Workbook

Sheet Premissas
A2: Vida útil do projeto - anos | B2: 10 | E2: Demonstrativo de resultado
A3: Capital Inicial | B3: 100000 | E3: Receita Bruta Anual
A4: Capital Giro (Rec Bruta) | B4: 0.04 | E4: Impostos (Pis, Cofins)
A5: Aluguel | B5: 2500 | E5: Aluguel + Taxas
A6: Crescimento Aluguel | B6: 0.05 | E6: Outras Despesas operacionais
A7: Outras despesas (Rec. Bruta) | B7: 0.7 | E7: Lucro operacional bruto
A8: Depreciação (Investimento) | B8: 0.05 | E8: Depreciação
A9: Cap Giro (rec. Bruta) | B9: 0.05 | E9: Lucro antes do IR (LAIR)
A10: IR | B10: 0.25 | E10: IR
A11: Outros Impostos | B11: 0.0365 | E11: Lucro líquido (LL)
A12: Crescimento anual clientes | B12: 0.05
A13: Financ. Cap proprio | B13: 1 | E13: Entradas de Caixa (ECX)
A14: Beta mercado cafeteria | B14: 0.7 | E14: Lucro líquido (LL)
A15: Taxa livre de risco | B15: 0.045 | E15: Depreciação
A16: Taxa de mercado | B16: 0.06 | E16: Valor residual (VR)
A17: Custo bruto da dívida | B17: 0.08 | E17: ICG (retorno capital giro)
A18: Valor residual | B18: 0 | E18: Saídas de Caixa (SCX)
A19: Dias úteis mês | B19: 22 | E19: Investimento
A20: Sabado e domingo e feriado fechado | E20: Capital de Giro (ICG)
E21: Variação da Necessidade de Capital de Giro
A22: Ano 1 e 2 | B22: constante | E22: Retorno do Capital de Giro
E23: Fluxo de caixa (FCX)
A24: Simulação (1000 x) | B24: mínimo | C24: máximo
A25: Outras despesas a partir do ano 3 | B25: 0.7 | C25: 1.3
A26: Clientes a partir do ano 3 | B26: 180 | C26: 220
A28: Tabela de Preços | E28: Decisão Financiamento
A29: Café | B29: 2
A30: Chocolate | B30: 3 | E30: Capital Próprio | F30: 1
A31: Água Mineral (garrafa) | B31: 2.5 | E31: Dívida | F31: 0
A32: Refrigerante (lata) | B32: 2.5
A33: Cookies (porção) | B33: 3 | E33: Condições de Mercado
A34: Bolo (unidade) | B34: 3 | E34: Beta Simulado p/ Cafeteria | F34: 0.7
A35: Chiclettes (embalagem com 10 unidades) | B35: 2 | E35: Taxa Livre de Risco | F35: 0.045
A36: Balas (embalagem com 10 unidades) | B36: 2 | E36: Taxa de mercado | F36: 0.06
E37: Taxa Financiamento terceiros | F37: 0.08
A39: Vendas (média de 200 clientes/dia) | B39: Clientes | E39: Análise de sensibilidade
A40: Café | B40: 70 | E40: Cenário | F40: Preço | G40: Clientes | H40: %
A41: Chocolate | B41: 30 | E41: Otimista | F41: 1.1 | G41: 1 | H41: 0.3
A42: Café + Cookies ou Bolo | B42: 30 | E42: Normal | F42: 1 | G42: 1.05 | H42: 0.5
A43: Chocolate + Cookies ou Bolo | B43: 20 | E43: Pessimista | F43: 0.9 | G43: 1.1 | H43: 0.2
A44: Água ou Refrigerante | B44: 30
A45: Chiclettes ou Balas | B45: 20
A46: Total/dia
A47: Total/mês
A48: Total/ano (valores médios estimados) | B48: =SUM(B40:B47) -> 200

Sheet Faturamento
A2: Tabela de Preços | C2: Crescimento dos preços | M2: Taxa de crescimento dos preços
A3: Café | B3: =Premissas!B29 -> 2 | C3: =B3 -> 2 | D3: =C3*$M$3 -> 2 | E3: =D3*$M$3 -> 2 | F3: 2 | G3: 2 | H3: 2 | I3: 2 | J3: 2 | K3: 2 | L3: 2 | M3: 1
A4: Chocolate | B4: =Premissas!B30 -> 3 | C4: =B4 -> 3 | D4: =C4*$M$4 -> 3 | E4: =D4*$M$4 -> 3 | F4: 3 | G4: 3 | H4: 3 | I4: 3 | J4: 3 | K4: 3 | L4: 3 | M4: 1
A5: Água Mineral (garrafa) | B5: =Premissas!B31 -> 2.5 | C5: =B5 -> 2.5 | D5: =C5*$M$5 -> 2.5 | E5: =D5*$M$5 -> 2.5 | F5: 2.5 | G5: 2.5 | H5: 2.5 | I5: 2.5 | J5: 2.5 | K5: 2.5 | L5: 2.5 | M5: 1
A6: Refrigerante (lata) | B6: =Premissas!B32 -> 2.5 | C6: =B6 -> 2.5 | D6: =C6*$M$6 -> 2.5 | E6: =D6*$M$6 -> 2.5 | F6: 2.5 | G6: 2.5 | H6: 2.5 | I6: 2.5 | J6: 2.5 | K6: 2.5 | L6: 2.5 | M6: 1
A7: Cookies (porção) | B7: =Premissas!B33 -> 3 | C7: 3 | D7: =C7*$M$7 -> 3 | E7: =D7*$M$7 -> 3 | F7: 3 | G7: 3 | H7: 3 | I7: 3 | J7: 3 | K7: 3 | L7: 3 | M7: 1
A8: Bolo (unidade) | B8: =Premissas!B34 -> 3 | C8: 3 | D8: =C8*$M$8 -> 3 | E8: =D8*$M$8 -> 3 | F8: 3 | G8: 3 | H8: 3 | I8: 3 | J8: 3 | K8: 3 | L8: 3 | M8: 1
A9: Chiclettes (embalagem com 10 unidades) | B9: =Premissas!B35 -> 2 | C9: 2 | D9: =C9*$M$9 -> 2 | E9: =D9*$M$9 -> 2 | F9: 2 | G9: 2 | H9: 2 | I9: 2 | J9: 2 | K9: 2 | L9: 2 | M9: 1
A10: Balas (embalagem com 10 unidades) | B10: =Premissas!B36 -> 2 | C10: =B10 -> 2 | D10: =C10*$M$10 -> 2 | E10: =D10*$M$10 -> 2 | F10: 2 | G10: 2 | H10: 2 | I10: 2 | J10: 2 | K10: 2 | L10: 2 | M10: 1
B12: Ano | C12: 1 | D12: 2 | E12: 3 | F12: 4 | G12: 5 | H12: 6 | I12: 7 | J12: 8 | K12: 9 | L12: 10 | M12: Taxa de crescimento dos clientes
A13: Vendas (média de 200 clientes/dia) | B13: Clientes | C13: $ | D13: $ | E13: $ | F13: $ | G13: $ | H13: $ | I13: $ | J13: $ | K13: $ | L13: $ | M13: =Premissas!B12+1 -> 1.05
A14: Café | B14: =Premissas!B40 -> 70 | C14: =$B$14*C3 -> 140 | D14: =B14*D3*$M$13 -> 147 | E14: =$B$14*E3*($M$13)^D12 -> 154.35 | F14: =$B$14*F3*($M$13)^E12 -> 162.0675 | G14: 170.170875 | H14: 178.6794188 | I14: 187.6133897 | J14: 196.9940592 | K14: 206.8437621 | L14: 217.1859502
A15: Chocolate | B15: =Premissas!B41 -> 30 | C15: =B15*C4 -> 90 | D15: =$B$15*D4*$M$13 -> 94.5 | E15: =$B$15*E4*($M$13)^D12 -> 99.225 | F15: =$B$15*F4*($M$13)^E12 -> 104.18625 | G15: 109.3955625 | H15: 114.8653406 | I15: 120.6086077 | J15: 126.639038 | K15: 132.9709899 | L15: 139.6195394
A16: Café + Cookies ou Bolo | B16: =Premissas!B42 -> 30 | C16: =B16*(C3+C7) -> 150 | D16: =$B$16*(D3+D7)*$M$13 -> 157.5 | E16: =$B$16*(E3+E7)*($M$13)^D12 -> 165.375 | F16: =$B$16*(F3+F7)*($M$13)^E12 -> 173.64375 | G16: 182.3259375 | H16: 191.4422344 | I16: 201.0143461 | J16: 211.0650634 | K16: 221.6183166 | L16: 232.6992324
A17: Chocolate + Cookies ou Bolo | B17: =Premissas!B43 -> 20 | C17: =B17*(C4+C8) -> 120 | D17: =$B$17*(D4+D8)*$M$13 -> 126 | E17: =$B$17*(E4+E8)*($M$13)^D12 -> 132.3 | F17: =$B$17*(F4+F8)*($M$13)^E12 -> 138.915 | G17: 145.86075 | H17: 153.1537875 | I17: 160.8114769 | J17: 168.8520507 | K17: 177.2946533 | L17: 186.1593859
A18: Água ou Refrigerante | B18: =Premissas!B44 -> 30 | C18: =B18*C5 -> 75 | D18: =$B$18*D5*$M$13 -> 78.75 | E18: =$B$18*E5*($M$13)^D12 -> 82.6875 | F18: =$B$18*F5*($M$13)^E12 -> 86.821875 | G18: 91.16296875 | H18: 95.72111719 | I18: 100.507173 | J18: 105.5325317 | K18: 110.8091583 | L18: 116.3496162
A19: Chiclettes ou Balas | B19: =Premissas!B45 -> 20 | C19: =B19*C9 -> 40 | D19: =$B$19*D9*$M$13 -> 42 | E19: =$B$19*E9*($M$13)^D12 -> 44.1 | F19: =$B$19*F9*($M$13)^E12 -> 46.305 | G19: 48.62025 | H19: 51.0512625 | I19: 53.60382562 | J19: 56.28401691 | K19: 59.09821775 | L19: 62.05312864
A20: Total/dia | C20: =SUM(C14:C19) -> 615 | D20: =SUM(D14:D19) -> 645.75 | E20: 678.0375 | F20: 711.939375 | G20: 747.5363438 | H20: 784.9131609 | I20: 824.158819 | J20: 865.3667599 | K20: 908.6350979 | L20: 954.0668528
A21: Total/mês | C21: =C20*$M$21 -> 13530 | D21: =D20*$M$21 -> 14206.5 | E21: 14916.825 | F21: 15662.66625 | G21: 16445.79956 | H21: 17268.08954 | I21: 18131.49402 | J21: 19038.06872 | K21: 19989.97215 | L21: 20989.47076 | M21: =Premissas!B19 -> 22
A22: Total/ano (valores médios estimados) | B22: =SUM(B14:B21) -> 200 | C22: =C21*$M$22 -> 162360 | D22: =D21*$M$22 -> 170478 | E22: 179001.9 | F22: 187951.995 | G22: 197349.5947 | H22: 207217.0745 | I22: 217577.9282 | J22: 228456.8246 | K22: 239879.6659 | L22: 251873.6491 | M22: 12
A25: Faturamento por Produto ano 1(média/dia) | B25: $
A26: Café | B26: =(B14+B16)*B3 -> 200
A27: Chocolate | B27: =(B15+B17)*B4 -> 150
A28: Cookies ou Bolo | B28: =(B16+B17)*B7 -> 150
A29: Água Mineral ou Refrigerante | B29: =B18*B5 -> 75
A30: Chiclettes ou Balas | B30: =B19*B9 -> 40
A31: Total | B31: =SUM(B26:B30) -> 615

Sheet Fluxo
A1: Demonstrativo de resultado | B1: Ano | C1: 1 | D1: 2 | E1: 3 | F1: 4 | G1: 5 | H1: 6 | I1: 7 | J1: 8 | K1: 9 | L1: 10
A2: Receita Bruta Anual | C2: =Faturamento!C22 -> 162360 | D2: =Faturamento!D22 -> 170478 | E2: =Faturamento!E22 -> 179001.9 | F2: =Faturamento!F22 -> 187951.995 | G2: =Faturamento!G22 -> 197349.5947 | H2: =Faturamento!H22 -> 207217.0745 | I2: =Faturamento!I22 -> 217577.9282 | J2: =Faturamento!J22 -> 228456.8246 | K2: =Faturamento!K22 -> 239879.6659 | L2: =Faturamento!L22 -> 251873.6491
A3: Impostos (Pis, Cofins) | B3: =Premissas!$B$11 -> 0.0365 | C3: =C2*Premissas!$B$11 -> 5926.14 | D3: =D2*Premissas!$B$11 -> 6222.447 | E3: =E2*Premissas!$B$11 -> 6533.56935 | F3: =F2*Premissas!$B$11 -> 6860.247817 | G3: =G2*Premissas!$B$11 -> 7203.260208 | H3: =H2*Premissas!$B$11 -> 7563.423219 | I3: =I2*Premissas!$B$11 -> 7941.59438 | J3: =J2*Premissas!$B$11 -> 8338.674099 | K3: =K2*Premissas!$B$11 -> 8755.607804 | L3: =L2*Premissas!$B$11 -> 9193.388194
A4: Aluguel + Taxas | B4: =Premissas!$B$5 -> 2500 | C4: =Premissas!$B$5*12 -> 30000 | D4: =C4*Premissas!$B$6+C4 -> 31500 | E4: =D4*Premissas!$B$6+D4 -> 33075 | F4: =E4*Premissas!$B$6+E4 -> 34728.75 | G4: =F4*Premissas!$B$6+F4 -> 36465.1875 | H4: =G4*Premissas!$B$6+G4 -> 38288.44688 | I4: =H4*Premissas!$B$6+H4 -> 40202.86922 | J4: =I4*Premissas!$B$6+I4 -> 42213.01268 | K4: =J4*Premissas!$B$6+J4 -> 44323.66331 | L4: =K4*Premissas!$B$6+K4 -> 46539.84648
A5: Outras Despesas operacionais | B5: =Premissas!B7 -> 0.7 | C5: =C2*Premissas!$B$7 -> 113652 | D5: =D2*Premissas!$B$7 -> 119334.6 | E5: =E2*Premissas!$B$7 -> 125301.33 | F5: =F2*Premissas!$B$7 -> 131566.3965 | G5: =G2*Premissas!$B$7 -> 138144.7163 | H5: =H2*Premissas!$B$7 -> 145051.9521 | I5: =I2*Premissas!$B$7 -> 152304.5497 | J5: =J2*Premissas!$B$7 -> 159919.7772 | K5: =K2*Premissas!$B$7 -> 167915.7661 | L5: =L2*Premissas!$B$7 -> 176311.5544
A6: Lucro operacional bruto | C6: =C2-C3-C4-C5 -> 12781.86 | D6: 13420.953 | E6: 14092.00065 | F6: 14796.60068 | G6: 15536.43072 | H6: 16313.25225 | I6: 17128.91487 | J6: 17985.36061 | K6: 18884.62864 | L6: 19828.86007
A7: Depreciação | B7: =Premissas!B8 -> 0.05 | C7: =B18*Premissas!B8 -> 5000 | D7: =C7 -> 5000 | E7: 5000 | F7: 5000 | G7: 5000 | H7: 5000 | I7: 5000 | J7: 5000 | K7: 5000 | L7: 5000
A8: Lucro antes do IR (LAIR) | C8: =C6-C7 -> 7781.86 | D8: 8420.953 | E8: 9092.00065 | F8: 9796.600682 | G8: 10536.43072 | H8: 11313.25225 | I8: 12128.91487 | J8: 12985.36061 | K8: 13884.62864 | L8: 14828.86007
A9: IR | B9: =Premissas!B10 -> 0.25 | C9: =C8*Premissas!$B$10 -> 1945.465 | D9: =D8*Premissas!$B$10 -> 2105.23825 | E9: =E8*Premissas!$B$10 -> 2273.000163 | F9: =F8*Premissas!$B$10 -> 2449.150171 | G9: =G8*Premissas!$B$10 -> 2634.107679 | H9: =H8*Premissas!$B$10 -> 2828.313063 | I9: =I8*Premissas!$B$10 -> 3032.228716 | J9: =J8*Premissas!$B$10 -> 3246.340152 | K9: =K8*Premissas!$B$10 -> 3471.15716 | L9: =L8*Premissas!$B$10 -> 3707.215018
A10: Lucro líquido (LL) | C10: =C8-C9 -> 5836.395 | D10: 6315.71475 | E10: 6819.000488 | F10: 7347.450512 | G10: 7902.323037 | H10: 8484.939189 | I10: 9096.686149 | J10: 9739.020456 | K10: 10413.47148 | L10: 11121.64505
A12: Entradas de Caixa (ECX) | C12: =C13+C14+C15+C16 -> 10836.395 | D12: 11315.71475 | E12: 11819.00049 | F12: 12347.45051 | G12: 12902.32304 | H12: 13484.93919 | I12: 14096.68615 | J12: 14739.02046 | K12: 15413.47148 | L12: 28715.32751
A13: Lucro líquido (LL) | C13: =C10 -> 5836.395 | D13: 6315.71475 | E13: 6819.000488 | F13: 7347.450512 | G13: 7902.323037 | H13: 8484.939189 | I13: 9096.686149 | J13: 9739.020456 | K13: 10413.47148 | L13: 11121.64505
A14: Depreciação | C14: =C7 -> 5000 | D14: 5000 | E14: 5000 | F14: 5000 | G14: 5000 | H14: 5000 | I14: 5000 | J14: 5000 | K14: 5000 | L14: 5000
A15: Valor residual (VR) | C15: 0 | D15: 0 | E15: 0 | F15: 0 | G15: 0 | H15: 0 | I15: 0 | J15: 0 | K15: 0 | L15: =Premissas!B18 -> 0
A16: ICG (retorno capital giro) | C16: 0 | D16: 0 | E16: 0 | F16: 0 | G16: 0 | H16: 0 | I16: 0 | J16: 0 | K16: 0 | L16: =K19 -> 12593.68246
A17: Saídas de Caixa (SCX) | B17: =B18+B20 -> 108118 | C17: 405.9 | D17: 426.195 | E17: 447.50475 | F17: 469.8799875 | G17: 493.3739869 | H17: 518.0426862 | I17: 543.9448205 | J17: 571.1420616 | K17: 599.6991646 | L17: 0
A18: Investimento | B18: =Premissas!B3 -> 100000
A19: Capital de Giro (ICG) | B19: =C2*Premissas!$B$9 -> 8118 | C19: =D2*Premissas!$B$9 -> 8523.9 | D19: =E2*Premissas!$B$9 -> 8950.095 | E19: =F2*Premissas!$B$9 -> 9397.59975 | F19: =G2*Premissas!$B$9 -> 9867.479737 | G19: =H2*Premissas!$B$9 -> 10360.85372 | H19: =I2*Premissas!$B$9 -> 10878.89641 | I19: =J2*Premissas!$B$9 -> 11422.84123 | J19: =K2*Premissas!$B$9 -> 11993.98329 | K19: =L2*Premissas!$B$9 -> 12593.68246
A20: Variação da Necessidade de Capital de Giro | B20: =B19 -> 8118 | C20: =C19-B19 -> 405.9 | D20: 426.195 | E20: 447.50475 | F20: 469.8799875 | G20: 493.3739869 | H20: 518.0426862 | I20: 543.9448205 | J20: 571.1420616 | K20: 599.6991646
A21: Retorno do Capital de Giro
A22: Fluxo de caixa (FCX) | B22: =B12-B17 -> -108118 | C22: 10430.495 | D22: 10889.51975 | E22: 11371.49574 | F22: 11877.57052 | G22: 12408.94905 | H22: 12966.8965 | I22: 13552.74133 | J22: 14167.87839 | K22: 14813.77231 | L22: 28715.32751

Sheet Taxas
A1: TAXA DE DESCONTO
A3: Capital Próprio | B3: 1
A4: Dívida | B4: 0
A5: Total | B5: =SUM(B3:B4) -> 1
A7: Beta Simulado p/ Cafeteria | B7: =Premissas!F34 -> 0.7
A8: Beta Alavancado | B8: =B7*(1+B4/B3*(1-B9)) -> 0.7
A9: Alíquota de IR | B9: =Premissas!B10 -> 0.25
A10: Taxa Livre de Risco | B10: =Premissas!F35 -> 0.045
A11: Taxa de mercado | B11: =Premissas!F36 -> 0.06
A12: Custo do Capital Próprio (CAPM) | B12: =B10+((B11-B10)*B11) -> 0.0459
A14: Custo Financiamento Terceiros | B14: =Premissas!F37 -> 0.08
A15: Custo Líquido da Dívida *( 1 - IR ) | B15: =B14*(1-B9) -> 0.06
A17: WACC | B17: =(B12*B3)+(B15*B4) -> 0.0459

Sheet Análise_1
B1: Ano | C1: 1 | D1: 2 | E1: 3 | F1: 4 | G1: 5 | H1: 6 | I1: 7 | J1: 8 | K1: 9 | L1: 10
A2: Retorno Capital | C2: =Fluxo!B22+Fluxo!C22 -> -97687.505 | D2: =C2+Fluxo!D22 -> -86797.98525 | E2: =D2+Fluxo!E22 -> -75426.48951 | F2: =E2+Fluxo!F22 -> -63548.91899 | G2: =F2+Fluxo!G22 -> -51139.96994 | H2: =G2+Fluxo!H22 -> -38173.07343 | I2: =H2+Fluxo!I22 -> -24620.33211 | J2: =I2+Fluxo!J22 -> -10452.45371 | K2: =J2+Fluxo!K22 -> 4361.318603 | L2: =K2+Fluxo!L22 -> 33076.64611
A3: PayBack (anos) | B3: =SUM(C3:L4) -> 8.705590277 | C3: =IF(C2<0,1,0) -> 1 | D3: 1 | E3: 1 | F3: 1 | G3: 1 | H3: 1 | I3: 1 | J3: 1 | K3: 0 | L3: 0
C4: =MAX(-IF(C2>0,B2/Fluxo!C22),0) -> 0 | D4: =MAX(-IF(D2>0,C2/Fluxo!D22),0) -> 0 | E4: =MAX(-IF(E2>0,D2/Fluxo!E22),0) -> 0 | F4: =MAX(-IF(F2>0,E2/Fluxo!F22),0) -> 0 | G4: =MAX(-IF(G2>0,F2/Fluxo!G22),0) -> 0 | H4: =MAX(-IF(H2>0,G2/Fluxo!H22),0) -> 0 | I4: =MAX(-IF(I2>0,H2/Fluxo!I22),0) -> 0 | J4: =MAX(-IF(J2>0,I2/Fluxo!J22),0) -> 0 | K4: =MAX(-IF(K2>0,J2/Fluxo!K22),0) -> 0.705590277 | L4: =MAX(-IF(L2>0,K2/Fluxo!L22),0) -> 0
A5: Valor presente do fluxo | C5: =Fluxo!C22/(1+Taxas!$B$17)^Fluxo!C1 -> 9972.74596 | D5: =Fluxo!D22/(1+Taxas!$B$17)^Fluxo!D1 -> 9954.705145 | E5: =Fluxo!E22/(1+Taxas!$B$17)^Fluxo!E1 -> 9939.101001 | F5: =Fluxo!F22/(1+Taxas!$B$17)^Fluxo!F1 -> 9925.83304 | G5: =Fluxo!G22/(1+Taxas!$B$17)^Fluxo!G1 -> 9914.805213 | H5: =Fluxo!H22/(1+Taxas!$B$17)^Fluxo!H1 -> 9905.925707 | I5: =Fluxo!I22/(1+Taxas!$B$17)^Fluxo!I1 -> 9899.106767 | J5: =Fluxo!J22/(1+Taxas!$B$17)^Fluxo!J1 -> 9894.264513 | K5: =Fluxo!K22/(1+Taxas!$B$17)^Fluxo!K1 -> 9891.318773 | L5: =Fluxo!L22/(1+Taxas!$B$17)^Fluxo!L1 -> 18332.09689
A6: Retorno Capital ajustado | C6: =Fluxo!B22+C5 -> -98145.25404 | D6: =C6+D5 -> -88190.54889 | E6: -78251.44789 | F6: -68325.61485 | G6: -58410.80964 | H6: -48504.88393 | I6: -38605.77717 | J6: -28711.51265 | K6: -18820.19388 | L6: -488.0969894
A7: PayBack descontado(anos) | B7: =SUM(C7:L8) -> 10 | C7: =IF(C6<0,1,0) -> 1 | D7: 1 | E7: 1 | F7: 1 | G7: 1 | H7: 1 | I7: 1 | J7: 1 | K7: 1 | L7: 1
C8: =MAX(-IF(C6>0,B6/C2),0) -> 0 | D8: 0 | E8: 0 | F8: 0 | G8: 0 | H8: 0 | I8: 0 | J8: 0 | K8: 0 | L8: 0
A10: VPL | B10: =NPV(Taxas!B17,Fluxo!C22:L22)+Fluxo!B22 -> -488.0969894 | C10: =IF(B10<0,"REJEITADO","ACEITO") -> REJEITADO
A11: TIR | B11: =IRR(Fluxo!B22:L22) -> 0.04509128797 | C11: =IF(B11<Taxas!B17,"REJEITADO","ACEITO") -> REJEITADO
A12: Índice rentabilidade | B12: =(B10-Fluxo!B22)/-Fluxo!B22 -> 0.9954855159 | C12: =IF(B12<1,"REJEITADO","ACEITO") -> REJEITADO

Sheet Cenario 1
A2: Tabela de Preços | C2: Crescimento dos preços | M2: Taxa de crescimento dos preços
A3: Café | B3: =Premissas!B29 -> 2 | C3: =B3 -> 2 | D3: =C3*$M$3 -> 2.2 | E3: =D3*$M$3 -> 2.42 | F3: 2.662 | G3: 2.9282 | H3: 3.22102 | I3: 3.543122 | J3: 3.8974342 | K3: 4.28717762 | L3: 4.715895382 | M3: =Premissas!F41 -> 1.1
A4: Chocolate | B4: =Premissas!B30 -> 3 | C4: =B4 -> 3 | D4: =C4*$M$4 -> 3.3 | E4: =D4*$M$4 -> 3.63 | F4: 3.993 | G4: 4.3923 | H4: 4.83153 | I4: 5.314683 | J4: 5.8461513 | K4: 6.43076643 | L4: 7.073843073 | M4: =M3 -> 1.1
A5: Água Mineral (garrafa) | B5: =Premissas!B31 -> 2.5 | C5: =B5 -> 2.5 | D5: =C5*$M$5 -> 2.75 | E5: =D5*$M$5 -> 3.025 | F5: 3.3275 | G5: 3.66025 | H5: 4.026275 | I5: 4.4289025 | J5: 4.87179275 | K5: 5.358972025 | L5: 5.894869228 | M5: =M4 -> 1.1
A6: Refrigerante (lata) | B6: =Premissas!B32 -> 2.5 | C6: =B6 -> 2.5 | D6: =C6*$M$6 -> 2.75 | E6: =D6*$M$6 -> 3.025 | F6: 3.3275 | G6: 3.66025 | H6: 4.026275 | I6: 4.4289025 | J6: 4.87179275 | K6: 5.358972025 | L6: 5.894869228 | M6: 1.1
A7: Cookies (porção) | B7: =Premissas!B33 -> 3 | C7: 3 | D7: =C7*$M$7 -> 3.3 | E7: =D7*$M$7 -> 3.63 | F7: 3.993 | G7: 4.3923 | H7: 4.83153 | I7: 5.314683 | J7: 5.8461513 | K7: 6.43076643 | L7: 7.073843073 | M7: 1.1
A8: Bolo (unidade) | B8: =Premissas!B34 -> 3 | C8: 3 | D8: =C8*$M$8 -> 3.3 | E8: =D8*$M$8 -> 3.63 | F8: 3.993 | G8: 4.3923 | H8: 4.83153 | I8: 5.314683 | J8: 5.8461513 | K8: 6.43076643 | L8: 7.073843073 | M8: 1.1
A9: Chiclettes (embalagem com 10 unidades) | B9: =Premissas!B35 -> 2 | C9: 2 | D9: =C9*$M$9 -> 2.2 | E9: =D9*$M$9 -> 2.42 | F9: 2.662 | G9: 2.9282 | H9: 3.22102 | I9: 3.543122 | J9: 3.8974342 | K9: 4.28717762 | L9: 4.715895382 | M9: 1.1
A10: Balas (embalagem com 10 unidades) | B10: =Premissas!B36 -> 2 | C10: =B10 -> 2 | D10: =C10*$M$10 -> 2.2 | E10: =D10*$M$10 -> 2.42 | F10: 2.662 | G10: 2.9282 | H10: 3.22102 | I10: 3.543122 | J10: 3.8974342 | K10: 4.28717762 | L10: 4.715895382 | M10: 1.1
B12: Ano | C12: 1 | D12: 2 | E12: 3 | F12: 4 | G12: 5 | H12: 6 | I12: 7 | J12: 8 | K12: 9 | L12: 10 | M12: Taxa de crescimento dos clientes
A13: Vendas (média de 200 clientes/dia) | B13: Clientes | C13: $ | D13: $ | E13: $ | F13: $ | G13: $ | H13: $ | I13: $ | J13: $ | K13: $ | L13: $ | M13: =Premissas!G41 -> 1
A14: Café | B14: =Premissas!B40 -> 70 | C14: =$B$14*C3 -> 140 | D14: =B14*D3*$M$13 -> 154 | E14: =$B$14*E3*($M$13)^D12 -> 169.4 | F14: =$B$14*F3*($M$13)^E12 -> 186.34 | G14: 204.974 | H14: 225.4714 | I14: 248.01854 | J14: 272.820394 | K14: 300.1024334 | L14: 330.1126767
A15: Chocolate | B15: =Premissas!B41 -> 30 | C15: =B15*C4 -> 90 | D15: =$B$15*D4*$M$13 -> 99 | E15: =$B$15*E4*($M$13)^D12 -> 108.9 | F15: =$B$15*F4*($M$13)^E12 -> 119.79 | G15: 131.769 | H15: 144.9459 | I15: 159.44049 | J15: 175.384539 | K15: 192.9229929 | L15: 212.2152922
A16: Café + Cookies ou Bolo | B16: =Premissas!B42 -> 30 | C16: =B16*(C3+C7) -> 150 | D16: =$B$16*(D3+D7)*$M$13 -> 165 | E16: =$B$16*(E3+E7)*($M$13)^D12 -> 181.5 | F16: =$B$16*(F3+F7)*($M$13)^E12 -> 199.65 | G16: 219.615 | H16: 241.5765 | I16: 265.73415 | J16: 292.307565 | K16: 321.5383215 | L16: 353.6921537
A17: Chocolate + Cookies ou Bolo | B17: =Premissas!B43 -> 20 | C17: =B17*(C4+C8) -> 120 | D17: =$B$17*(D4+D8)*$M$13 -> 132 | E17: =$B$17*(E4+E8)*($M$13)^D12 -> 145.2 | F17: =$B$17*(F4+F8)*($M$13)^E12 -> 159.72 | G17: 175.692 | H17: 193.2612 | I17: 212.58732 | J17: 233.846052 | K17: 257.2306572 | L17: 282.9537229
A18: Água ou Refrigerante | B18: =Premissas!B44 -> 30 | C18: =B18*C5 -> 75 | D18: =$B$18*D5*$M$13 -> 82.5 | E18: =$B$18*E5*($M$13)^D12 -> 90.75 | F18: =$B$18*F5*($M$13)^E12 -> 99.825 | G18: 109.8075 | H18: 120.78825 | I18: 132.867075 | J18: 146.1537825 | K18: 160.7691608 | L18: 176.8460768
A19: Chiclettes ou Balas | B19: =Premissas!B45 -> 20 | C19: =B19*C9 -> 40 | D19: =$B$19*D9*$M$13 -> 44 | E19: =$B$19*E9*($M$13)^D12 -> 48.4 | F19: =$B$19*F9*($M$13)^E12 -> 53.24 | G19: 58.564 | H19: 64.4204 | I19: 70.86244 | J19: 77.948684 | K19: 85.7435524 | L19: 94.31790764
A20: Total/dia | C20: =SUM(C14:C19) -> 615 | D20: =SUM(D14:D19) -> 676.5 | E20: 744.15 | F20: 818.565 | G20: 900.4215 | H20: 990.46365 | I20: 1089.510015 | J20: 1198.461017 | K20: 1318.307118 | L20: 1450.13783
A21: Total/mês | C21: =C20*$M$21 -> 13530 | D21: =D20*$M$21 -> 14883 | E21: 16371.3 | F21: 18008.43 | G21: 19809.273 | H21: 21790.2003 | I21: 23969.22033 | J21: 26366.14236 | K21: 29002.7566 | L21: 31903.03226 | M21: =Premissas!B19 -> 22
A22: Total/ano (valores médios estimados) | B22: =SUM(B14:B21) -> 200 | C22: =C21*$M$22 -> 162360 | D22: =D21*$M$22 -> 178596 | E22: 196455.6 | F22: 216101.16 | G22: 237711.276 | H22: 261482.4036 | I22: 287630.644 | J22: 316393.7084 | K22: 348033.0792 | L22: 382836.3871 | M22: 12
A25: Faturamento por Produto ano 1(média/dia) | B25: $
A26: Café | B26: =(B14+B16)*B3 -> 200
A27: Chocolate | B27: =(B15+B17)*B4 -> 150
A28: Cookies ou Bolo | B28: =(B16+B17)*B7 -> 150
A29: Água Mineral ou Refrigerante | B29: =B18*B5 -> 75
A30: Chiclettes ou Balas | B30: =B19*B9 -> 40
A31: Total | B31: =SUM(B26:B30) -> 615

Sheet Fluxo 1
A1: Demonstrativo de resultado | B1: Ano | C1: 1 | D1: 2 | E1: 3 | F1: 4 | G1: 5 | H1: 6 | I1: 7 | J1: 8 | K1: 9 | L1: 10
A2: Receita Bruta Anual | C2: ='Cenario 1'!C22 -> 162360 | D2: ='Cenario 1'!D22 -> 178596 | E2: ='Cenario 1'!E22 -> 196455.6 | F2: ='Cenario 1'!F22 -> 216101.16 | G2: ='Cenario 1'!G22 -> 237711.276 | H2: ='Cenario 1'!H22 -> 261482.4036 | I2: ='Cenario 1'!I22 -> 287630.644 | J2: ='Cenario 1'!J22 -> 316393.7084 | K2: ='Cenario 1'!K22 -> 348033.0792 | L2: ='Cenario 1'!L22 -> 382836.3871
A3: Impostos (Pis, Cofins) | B3: =Premissas!$B$11 -> 0.0365 | C3: =C2*Premissas!$B$11 -> 5926.14 | D3: =D2*Premissas!$B$11 -> 6518.754 | E3: =E2*Premissas!$B$11 -> 7170.6294 | F3: =F2*Premissas!$B$11 -> 7887.69234 | G3: =G2*Premissas!$B$11 -> 8676.461574 | H3: =H2*Premissas!$B$11 -> 9544.107731 | I3: =I2*Premissas!$B$11 -> 10498.5185 | J3: =J2*Premissas!$B$11 -> 11548.37035 | K3: =K2*Premissas!$B$11 -> 12703.20739 | L3: =L2*Premissas!$B$11 -> 13973.52813
A4: Aluguel + Taxas | B4: =Premissas!$B$5 -> 2500 | C4: =Premissas!$B$5*12 -> 30000 | D4: =C4*Premissas!$B$6+C4 -> 31500 | E4: =D4*Premissas!$B$6+D4 -> 33075 | F4: =E4*Premissas!$B$6+E4 -> 34728.75 | G4: =F4*Premissas!$B$6+F4 -> 36465.1875 | H4: =G4*Premissas!$B$6+G4 -> 38288.44688 | I4: =H4*Premissas!$B$6+H4 -> 40202.86922 | J4: =I4*Premissas!$B$6+I4 -> 42213.01268 | K4: =J4*Premissas!$B$6+J4 -> 44323.66331 | L4: =K4*Premissas!$B$6+K4 -> 46539.84648
A5: Outras Despesas operacionais | B5: =Premissas!B7 -> 0.7 | C5: =C2*Premissas!$B$7 -> 113652 | D5: =D2*Premissas!$B$7 -> 125017.2 | E5: =E2*Premissas!$B$7 -> 137518.92 | F5: =F2*Premissas!$B$7 -> 151270.812 | G5: =G2*Premissas!$B$7 -> 166397.8932 | H5: =H2*Premissas!$B$7 -> 183037.6825 | I5: =I2*Premissas!$B$7 -> 201341.4508 | J5: =J2*Premissas!$B$7 -> 221475.5958 | K5: =K2*Premissas!$B$7 -> 243623.1554 | L5: =L2*Premissas!$B$7 -> 267985.471
A6: Lucro operacional bruto | C6: =C2-C3-C4-C5 -> 12781.86 | D6: 15560.046 | E6: 18691.0506 | F6: 22213.90566 | G6: 26171.73373 | H6: 30612.16647 | I6: 35587.80546 | J6: 41156.72947 | K6: 47383.05305 | L6: 54337.54152
A7: Depreciação | B7: =Premissas!B8 -> 0.05 | C7: =B18*Premissas!B8 -> 5000 | D7: =C7 -> 5000 | E7: 5000 | F7: 5000 | G7: 5000 | H7: 5000 | I7: 5000 | J7: 5000 | K7: 5000 | L7: 5000
A8: Lucro antes do IR (LAIR) | C8: =C6-C7 -> 7781.86 | D8: 10560.046 | E8: 13691.0506 | F8: 17213.90566 | G8: 21171.73373 | H8: 25612.16647 | I8: 30587.80546 | J8: 36156.72947 | K8: 42383.05305 | L8: 49337.54152
A9: IR | B9: =Premissas!B10 -> 0.25 | C9: =C8*Premissas!$B$10 -> 1945.465 | D9: =D8*Premissas!$B$10 -> 2640.0115 | E9: =E8*Premissas!$B$10 -> 3422.76265 | F9: =F8*Premissas!$B$10 -> 4303.476415 | G9: =G8*Premissas!$B$10 -> 5292.933432 | H9: =H8*Premissas!$B$10 -> 6403.041618 | I9: =I8*Premissas!$B$10 -> 7646.951366 | J9: =J8*Premissas!$B$10 -> 9039.182368 | K9: =K8*Premissas!$B$10 -> 10595.76326 | L9: =L8*Premissas!$B$10 -> 12334.38538
A10: Lucro líquido (LL) | C10: =C8-C9 -> 5836.395 | D10: 7920.0345 | E10: 10268.28795 | F10: 12910.42925 | G10: 15878.80029 | H10: 19209.12486 | I10: 22940.8541 | J10: 27117.5471 | K10: 31787.28979 | L10: 37003.15614
A12: Entradas de Caixa (ECX) | C12: =C13+C14+C15+C16 -> 10836.395 | D12: 12920.0345 | E12: 15268.28795 | F12: 17910.42925 | G12: 20878.80029 | H12: 24209.12486 | I12: 27940.8541 | J12: 32117.5471 | K12: 36787.28979 | L12: 61144.9755
A13: Lucro líquido (LL) | C13: =C10 -> 5836.395 | D13: 7920.0345 | E13: 10268.28795 | F13: 12910.42925 | G13: 15878.80029 | H13: 19209.12486 | I13: 22940.8541 | J13: 27117.5471 | K13: 31787.28979 | L13: 37003.15614
A14: Depreciação | C14: =C7 -> 5000 | D14: 5000 | E14: 5000 | F14: 5000 | G14: 5000 | H14: 5000 | I14: 5000 | J14: 5000 | K14: 5000 | L14: 5000
A15: Valor residual (VR) | C15: 0 | D15: 0 | E15: 0 | F15: 0 | G15: 0 | H15: 0 | I15: 0 | J15: 0 | K15: 0 | L15: =Premissas!B18 -> 0
A16: ICG (retorno capital giro) | C16: 0 | D16: 0 | E16: 0 | F16: 0 | G16: 0 | H16: 0 | I16: 0 | J16: 0 | K16: 0 | L16: =K19 -> 19141.81936
A17: Saídas de Caixa (SCX) | B17: =B18+B20 -> 108118 | C17: 811.8 | D17: 892.98 | E17: 982.278 | F17: 1080.5058 | G17: 1188.55638 | H17: 1307.412018 | I17: 1438.15322 | J17: 1581.968542 | K17: 1740.165396 | L17: 0
A18: Investimento | B18: =Premissas!B3 -> 100000
A19: Capital de Giro (ICG) | B19: =C2*Premissas!$B$9 -> 8118 | C19: =D2*Premissas!$B$9 -> 8929.8 | D19: =E2*Premissas!$B$9 -> 9822.78 | E19: =F2*Premissas!$B$9 -> 10805.058 | F19: =G2*Premissas!$B$9 -> 11885.5638 | G19: =H2*Premissas!$B$9 -> 13074.12018 | H19: =I2*Premissas!$B$9 -> 14381.5322 | I19: =J2*Premissas!$B$9 -> 15819.68542 | J19: =K2*Premissas!$B$9 -> 17401.65396 | K19: =L2*Premissas!$B$9 -> 19141.81936
A20: Variação da Necessidade de Capital de Giro | B20: =B19 -> 8118 | C20: =C19-B19 -> 811.8 | D20: 892.98 | E20: 982.278 | F20: 1080.5058 | G20: 1188.55638 | H20: 1307.412018 | I20: 1438.15322 | J20: 1581.968542 | K20: 1740.165396
A21: Retorno do Capital de Giro
A22: Fluxo de caixa (FCX) | B22: =B12-B17 -> -108118 | C22: 10024.595 | D22: 12027.0545 | E22: 14286.00995 | F22: 16829.92345 | G22: 19690.24391 | H22: 22901.71284 | I22: 26502.70088 | J22: 30535.57856 | K22: 35047.12439 | L22: 61144.9755

Sheet Cenario2
A2: Tabela de Preços | C2: Crescimento dos preços | M2: Taxa de crescimento dos preços
A3: Café | B3: =Premissas!B29 -> 2 | C3: =B3 -> 2 | D3: =C3*$M$3 -> 2 | E3: =D3*$M$3 -> 2 | F3: 2 | G3: 2 | H3: 2 | I3: 2 | J3: 2 | K3: 2 | L3: 2 | M3: =Premissas!F42 -> 1
A4: Chocolate | B4: =Premissas!B30 -> 3 | C4: =B4 -> 3 | D4: =C4*$M$4 -> 3 | E4: =D4*$M$4 -> 3 | F4: 3 | G4: 3 | H4: 3 | I4: 3 | J4: 3 | K4: 3 | L4: 3 | M4: =M3 -> 1
A5: Água Mineral (garrafa) | B5: =Premissas!B31 -> 2.5 | C5: =B5 -> 2.5 | D5: =C5*$M$5 -> 2.5 | E5: =D5*$M$5 -> 2.5 | F5: 2.5 | G5: 2.5 | H5: 2.5 | I5: 2.5 | J5: 2.5 | K5: 2.5 | L5: 2.5 | M5: =M4 -> 1
A6: Refrigerante (lata) | B6: =Premissas!B32 -> 2.5 | C6: =B6 -> 2.5 | D6: =C6*$M$6 -> 2.5 | E6: =D6*$M$6 -> 2.5 | F6: 2.5 | G6: 2.5 | H6: 2.5 | I6: 2.5 | J6: 2.5 | K6: 2.5 | L6: 2.5 | M6: 1
A7: Cookies (porção) | B7: =Premissas!B33 -> 3 | C7: 3 | D7: =C7*$M$7 -> 3 | E7: =D7*$M$7 -> 3 | F7: 3 | G7: 3 | H7: 3 | I7: 3 | J7: 3 | K7: 3 | L7: 3 | M7: 1
A8: Bolo (unidade) | B8: =Premissas!B34 -> 3 | C8: 3 | D8: =C8*$M$8 -> 3 | E8: =D8*$M$8 -> 3 | F8: 3 | G8: 3 | H8: 3 | I8: 3 | J8: 3 | K8: 3 | L8: 3 | M8: 1
A9: Chiclettes (embalagem com 10 unidades) | B9: =Premissas!B35 -> 2 | C9: 2 | D9: =C9*$M$9 -> 2 | E9: =D9*$M$9 -> 2 | F9: 2 | G9: 2 | H9: 2 | I9: 2 | J9: 2 | K9: 2 | L9: 2 | M9: 1
A10: Balas (embalagem com 10 unidades) | B10: =Premissas!B36 -> 2 | C10: =B10 -> 2 | D10: =C10*$M$10 -> 2 | E10: =D10*$M$10 -> 2 | F10: 2 | G10: 2 | H10: 2 | I10: 2 | J10: 2 | K10: 2 | L10: 2 | M10: 1
B12: Ano | C12: 1 | D12: 2 | E12: 3 | F12: 4 | G12: 5 | H12: 6 | I12: 7 | J12: 8 | K12: 9 | L12: 10 | M12: Taxa de crescimento dos clientes
A13: Vendas (média de 200 clientes/dia) | B13: Clientes | C13: $ | D13: $ | E13: $ | F13: $ | G13: $ | H13: $ | I13: $ | J13: $ | K13: $ | L13: $ | M13: =Premissas!G42 -> 1.05
A14: Café | B14: =Premissas!B40 -> 70 | C14: =$B$14*C3 -> 140 | D14: =B14*D3*$M$13 -> 147 | E14: =$B$14*E3*($M$13)^D12 -> 154.35 | F14: =$B$14*F3*($M$13)^E12 -> 162.0675 | G14: 170.170875 | H14: 178.6794188 | I14: 187.6133897 | J14: 196.9940592 | K14: 206.8437621 | L14: 217.1859502
A15: Chocolate | B15: =Premissas!B41 -> 30 | C15: =B15*C4 -> 90 | D15: =$B$15*D4*$M$13 -> 94.5 | E15: =$B$15*E4*($M$13)^D12 -> 99.225 | F15: =$B$15*F4*($M$13)^E12 -> 104.18625 | G15: 109.3955625 | H15: 114.8653406 | I15: 120.6086077 | J15: 126.639038 | K15: 132.9709899 | L15: 139.6195394
A16: Café + Cookies ou Bolo | B16: =Premissas!B42 -> 30 | C16: =B16*(C3+C7) -> 150 | D16: =$B$16*(D3+D7)*$M$13 -> 157.5 | E16: =$B$16*(E3+E7)*($M$13)^D12 -> 165.375 | F16: =$B$16*(F3+F7)*($M$13)^E12 -> 173.64375 | G16: 182.3259375 | H16: 191.4422344 | I16: 201.0143461 | J16: 211.0650634 | K16: 221.6183166 | L16: 232.6992324
A17: Chocolate + Cookies ou Bolo | B17: =Premissas!B43 -> 20 | C17: =B17*(C4+C8) -> 120 | D17: =$B$17*(D4+D8)*$M$13 -> 126 | E17: =$B$17*(E4+E8)*($M$13)^D12 -> 132.3 | F17: =$B$17*(F4+F8)*($M$13)^E12 -> 138.915 | G17: 145.86075 | H17: 153.1537875 | I17: 160.8114769 | J17: 168.8520507 | K17: 177.2946533 | L17: 186.1593859
A18: Água ou Refrigerante | B18: =Premissas!B44 -> 30 | C18: =B18*C5 -> 75 | D18: =$B$18*D5*$M$13 -> 78.75 | E18: =$B$18*E5*($M$13)^D12 -> 82.6875 | F18: =$B$18*F5*($M$13)^E12 -> 86.821875 | G18: 91.16296875 | H18: 95.72111719 | I18: 100.507173 | J18: 105.5325317 | K18: 110.8091583 | L18: 116.3496162
A19: Chiclettes ou Balas | B19: =Premissas!B45 -> 20 | C19: =B19*C9 -> 40 | D19: =$B$19*D9*$M$13 -> 42 | E19: =$B$19*E9*($M$13)^D12 -> 44.1 | F19: =$B$19*F9*($M$13)^E12 -> 46.305 | G19: 48.62025 | H19: 51.0512625 | I19: 53.60382562 | J19: 56.28401691 | K19: 59.09821775 | L19: 62.05312864
A20: Total/dia | C20: =SUM(C14:C19) -> 615 | D20: =SUM(D14:D19) -> 645.75 | E20: 678.0375 | F20: 711.939375 | G20: 747.5363438 | H20: 784.9131609 | I20: 824.158819 | J20: 865.3667599 | K20: 908.6350979 | L20: 954.0668528
A21: Total/mês | C21: =C20*$M$21 -> 13530 | D21: =D20*$M$21 -> 14206.5 | E21: 14916.825 | F21: 15662.66625 | G21: 16445.79956 | H21: 17268.08954 | I21: 18131.49402 | J21: 19038.06872 | K21: 19989.97215 | L21: 20989.47076 | M21: =Premissas!B19 -> 22
A22: Total/ano (valores médios estimados) | B22: =SUM(B14:B21) -> 200 | C22: =C21*$M$22 -> 162360 | D22: =D21*$M$22 -> 170478 | E22: 179001.9 | F22: 187951.995 | G22: 197349.5947 | H22: 207217.0745 | I22: 217577.9282 | J22: 228456.8246 | K22: 239879.6659 | L22: 251873.6491 | M22: 12
A25: Faturamento por Produto ano 1(média/dia) | B25: $
A26: Café | B26: =(B14+B16)*B3 -> 200
A27: Chocolate | B27: =(B15+B17)*B4 -> 150
A28: Cookies ou Bolo | B28: =(B16+B17)*B7 -> 150
A29: Água Mineral ou Refrigerante | B29: =B18*B5 -> 75
A30: Chiclettes ou Balas | B30: =B19*B9 -> 40
A31: Total | B31: =SUM(B26:B30) -> 615

Sheet Fluxo 2
A1: Demonstrativo de resultado | B1: Ano | C1: 1 | D1: 2 | E1: 3 | F1: 4 | G1: 5 | H1: 6 | I1: 7 | J1: 8 | K1: 9 | L1: 10
A2: Receita Bruta Anual | C2: =Cenario2!C22 -> 162360 | D2: =Cenario2!D22 -> 170478 | E2: =Cenario2!E22 -> 179001.9 | F2: =Cenario2!F22 -> 187951.995 | G2: =Cenario2!G22 -> 197349.5947 | H2: =Cenario2!H22 -> 207217.0745 | I2: =Cenario2!I22 -> 217577.9282 | J2: =Cenario2!J22 -> 228456.8246 | K2: =Cenario2!K22 -> 239879.6659 | L2: =Cenario2!L22 -> 251873.6491
A3: Impostos (Pis, Cofins) | B3: =Premissas!$B$11 -> 0.0365 | C3: =C2*Premissas!$B$11 -> 5926.14 | D3: =D2*Premissas!$B$11 -> 6222.447 | E3: =E2*Premissas!$B$11 -> 6533.56935 | F3: =F2*Premissas!$B$11 -> 6860.247817 | G3: =G2*Premissas!$B$11 -> 7203.260208 | H3: =H2*Premissas!$B$11 -> 7563.423219 | I3: =I2*Premissas!$B$11 -> 7941.59438 | J3: =J2*Premissas!$B$11 -> 8338.674099 | K3: =K2*Premissas!$B$11 -> 8755.607804 | L3: =L2*Premissas!$B$11 -> 9193.388194
A4: Aluguel + Taxas | B4: =Premissas!$B$5 -> 2500 | C4: =Premissas!$B$5*12 -> 30000 | D4: =C4*Premissas!$B$6+C4 -> 31500 | E4: =D4*Premissas!$B$6+D4 -> 33075 | F4: =E4*Premissas!$B$6+E4 -> 34728.75 | G4: =F4*Premissas!$B$6+F4 -> 36465.1875 | H4: =G4*Premissas!$B$6+G4 -> 38288.44688 | I4: =H4*Premissas!$B$6+H4 -> 40202.86922 | J4: =I4*Premissas!$B$6+I4 -> 42213.01268 | K4: =J4*Premissas!$B$6+J4 -> 44323.66331 | L4: =K4*Premissas!$B$6+K4 -> 46539.84648
A5: Outras Despesas operacionais | B5: =Premissas!B7 -> 0.7 | C5: =C2*Premissas!$B$7 -> 113652 | D5: =D2*Premissas!$B$7 -> 119334.6 | E5: =E2*Premissas!$B$7 -> 125301.33 | F5: =F2*Premissas!$B$7 -> 131566.3965 | G5: =G2*Premissas!$B$7 -> 138144.7163 | H5: =H2*Premissas!$B$7 -> 145051.9521 | I5: =I2*Premissas!$B$7 -> 152304.5497 | J5: =J2*Premissas!$B$7 -> 159919.7772 | K5: =K2*Premissas!$B$7 -> 167915.7661 | L5: =L2*Premissas!$B$7 -> 176311.5544
A6: Lucro operacional bruto | C6: =C2-C3-C4-C5 -> 12781.86 | D6: 13420.953 | E6: 14092.00065 | F6: 14796.60068 | G6: 15536.43072 | H6: 16313.25225 | I6: 17128.91487 | J6: 17985.36061 | K6: 18884.62864 | L6: 19828.86007
A7: Depreciação | B7: =Premissas!B8 -> 0.05 | C7: =B18*Premissas!B8 -> 5000 | D7: =C7 -> 5000 | E7: 5000 | F7: 5000 | G7: 5000 | H7: 5000 | I7: 5000 | J7: 5000 | K7: 5000 | L7: 5000
A8: Lucro antes do IR (LAIR) | C8: =C6-C7 -> 7781.86 | D8: 8420.953 | E8: 9092.00065 | F8: 9796.600682 | G8: 10536.43072 | H8: 11313.25225 | I8: 12128.91487 | J8: 12985.36061 | K8: 13884.62864 | L8: 14828.86007
A9: IR | B9: =Premissas!B10 -> 0.25 | C9: =C8*Premissas!$B$10 -> 1945.465 | D9: =D8*Premissas!$B$10 -> 2105.23825 | E9: =E8*Premissas!$B$10 -> 2273.000163 | F9: =F8*Premissas!$B$10 -> 2449.150171 | G9: =G8*Premissas!$B$10 -> 2634.107679 | H9: =H8*Premissas!$B$10 -> 2828.313063 | I9: =I8*Premissas!$B$10 -> 3032.228716 | J9: =J8*Premissas!$B$10 -> 3246.340152 | K9: =K8*Premissas!$B$10 -> 3471.15716 | L9: =L8*Premissas!$B$10 -> 3707.215018
A10: Lucro líquido (LL) | C10: =C8-C9 -> 5836.395 | D10: 6315.71475 | E10: 6819.000488 | F10: 7347.450512 | G10: 7902.323037 | H10: 8484.939189 | I10: 9096.686149 | J10: 9739.020456 | K10: 10413.47148 | L10: 11121.64505
A12: Entradas de Caixa (ECX) | C12: =C13+C14+C15+C16 -> 10836.395 | D12: 11315.71475 | E12: 11819.00049 | F12: 12347.45051 | G12: 12902.32304 | H12: 13484.93919 | I12: 14096.68615 | J12: 14739.02046 | K12: 15413.47148 | L12: 28715.32751
A13: Lucro líquido (LL) | C13: =C10 -> 5836.395 | D13: 6315.71475 | E13: 6819.000488 | F13: 7347.450512 | G13: 7902.323037 | H13: 8484.939189 | I13: 9096.686149 | J13: 9739.020456 | K13: 10413.47148 | L13: 11121.64505
A14: Depreciação | C14: =C7 -> 5000 | D14: 5000 | E14: 5000 | F14: 5000 | G14: 5000 | H14: 5000 | I14: 5000 | J14: 5000 | K14: 5000 | L14: 5000
A15: Valor residual (VR) | C15: 0 | D15: 0 | E15: 0 | F15: 0 | G15: 0 | H15: 0 | I15: 0 | J15: 0 | K15: 0 | L15: =Premissas!B18 -> 0
A16: ICG (retorno capital giro) | C16: 0 | D16: 0 | E16: 0 | F16: 0 | G16: 0 | H16: 0 | I16: 0 | J16: 0 | K16: 0 | L16: =K19 -> 12593.68246
A17: Saídas de Caixa (SCX) | B17: =B18+B20 -> 108118 | C17: 405.9 | D17: 426.195 | E17: 447.50475 | F17: 469.8799875 | G17: 493.3739869 | H17: 518.0426862 | I17: 543.9448205 | J17: 571.1420616 | K17: 599.6991646 | L17: 0
A18: Investimento | B18: =Premissas!B3 -> 100000
A19: Capital de Giro (ICG) | B19: =C2*Premissas!$B$9 -> 8118 | C19: =D2*Premissas!$B$9 -> 8523.9 | D19: =E2*Premissas!$B$9 -> 8950.095 | E19: =F2*Premissas!$B$9 -> 9397.59975 | F19: =G2*Premissas!$B$9 -> 9867.479737 | G19: =H2*Premissas!$B$9 -> 10360.85372 | H19: =I2*Premissas!$B$9 -> 10878.89641 | I19: =J2*Premissas!$B$9 -> 11422.84123 | J19: =K2*Premissas!$B$9 -> 11993.98329 | K19: =L2*Premissas!$B$9 -> 12593.68246
A20: Variação da Necessidade de Capital de Giro | B20: =B19 -> 8118 | C20: =C19-B19 -> 405.9 | D20: 426.195 | E20: 447.50475 | F20: 469.8799875 | G20: 493.3739869 | H20: 518.0426862 | I20: 543.9448205 | J20: 571.1420616 | K20: 599.6991646
A21: Retorno do Capital de Giro
A22: Fluxo de caixa (FCX) | B22: =B12-B17 -> -108118 | C22: 10430.495 | D22: 10889.51975 | E22: 11371.49574 | F22: 11877.57052 | G22: 12408.94905 | H22: 12966.8965 | I22: 13552.74133 | J22: 14167.87839 | K22: 14813.77231 | L22: 28715.32751

Sheet Cenario 3
A2: Tabela de Preços | C2: Crescimento dos preços | M2: Taxa de crescimento dos preços
A3: Café | B3: =Premissas!B29 -> 2 | C3: =B3 -> 2 | D3: =C3*$M$3 -> 1.8 | E3: =D3*$M$3 -> 1.62 | F3: 1.458 | G3: 1.3122 | H3: 1.18098 | I3: 1.062882 | J3: 0.9565938 | K3: 0.86093442 | L3: 0.774840978 | M3: =Premissas!F43 -> 0.9
A4: Chocolate | B4: =Premissas!B30 -> 3 | C4: =B4 -> 3 | D4: =C4*$M$4 -> 2.7 | E4: =D4*$M$4 -> 2.43 | F4: 2.187 | G4: 1.9683 | H4: 1.77147 | I4: 1.594323 | J4: 1.4348907 | K4: 1.29140163 | L4: 1.162261467 | M4: =M3 -> 0.9
A5: Água Mineral (garrafa) | B5: =Premissas!B31 -> 2.5 | C5: =B5 -> 2.5 | D5: =C5*$M$5 -> 2.25 | E5: =D5*$M$5 -> 2.025 | F5: 1.8225 | G5: 1.64025 | H5: 1.476225 | I5: 1.3286025 | J5: 1.19574225 | K5: 1.076168025 | L5: 0.9685512225 | M5: =M4 -> 0.9
A6: Refrigerante (lata) | B6: =Premissas!B32 -> 2.5 | C6: =B6 -> 2.5 | D6: =C6*$M$6 -> 2.25 | E6: =D6*$M$6 -> 2.025 | F6: 1.8225 | G6: 1.64025 | H6: 1.476225 | I6: 1.3286025 | J6: 1.19574225 | K6: 1.076168025 | L6: 0.9685512225 | M6: 0.9
A7: Cookies (porção) | B7: =Premissas!B33 -> 3 | C7: 3 | D7: =C7*$M$7 -> 2.7 | E7: =D7*$M$7 -> 2.43 | F7: 2.187 | G7: 1.9683 | H7: 1.77147 | I7: 1.594323 | J7: 1.4348907 | K7: 1.29140163 | L7: 1.162261467 | M7: 0.9
A8: Bolo (unidade) | B8: =Premissas!B34 -> 3 | C8: 3 | D8: =C8*$M$8 -> 2.7 | E8: =D8*$M$8 -> 2.43 | F8: 2.187 | G8: 1.9683 | H8: 1.77147 | I8: 1.594323 | J8: 1.4348907 | K8: 1.29140163 | L8: 1.162261467 | M8: 0.9
A9: Chiclettes (embalagem com 10 unidades) | B9: =Premissas!B35 -> 2 | C9: 2 | D9: =C9*$M$9 -> 1.8 | E9: =D9*$M$9 -> 1.62 | F9: 1.458 | G9: 1.3122 | H9: 1.18098 | I9: 1.062882 | J9: 0.9565938 | K9: 0.86093442 | L9: 0.774840978 | M9: 0.9
A10: Balas (embalagem com 10 unidades) | B10: =Premissas!B36 -> 2 | C10: =B10 -> 2 | D10: =C10*$M$10 -> 1.8 | E10: =D10*$M$10 -> 1.62 | F10: 1.458 | G10: 1.3122 | H10: 1.18098 | I10: 1.062882 | J10: 0.9565938 | K10: 0.86093442 | L10: 0.774840978 | M10: 0.9
B12: Ano | C12: 1 | D12: 2 | E12: 3 | F12: 4 | G12: 5 | H12: 6 | I12: 7 | J12: 8 | K12: 9 | L12: 10 | M12: Taxa de crescimento dos clientes
A13: Vendas (média de 200 clientes/dia) | B13: Clientes | C13: $ | D13: $ | E13: $ | F13: $ | G13: $ | H13: $ | I13: $ | J13: $ | K13: $ | L13: $ | M13: =Premissas!G43 -> 1.1
A14: Café | B14: =Premissas!B40 -> 70 | C14: =$B$14*C3 -> 140 | D14: =B14*D3*$M$13 -> 138.6 | E14: =$B$14*E3*($M$13)^D12 -> 137.214 | F14: =$B$14*F3*($M$13)^E12 -> 135.84186 | G14: 134.4834414 | H14: 133.138607 | I14: 131.8072209 | J14: 130.4891487 | K14: 129.1842572 | L14: 127.8924146
A15: Chocolate | B15: =Premissas!B41 -> 30 | C15: =B15*C4 -> 90 | D15: =$B$15*D4*$M$13 -> 89.1 | E15: =$B$15*E4*($M$13)^D12 -> 88.209 | F15: =$B$15*F4*($M$13)^E12 -> 87.32691 | G15: 86.4536409 | H15: 85.58910449 | I15: 84.73321345 | J15: 83.88588131 | K15: 83.0470225 | L15: 82.21655227
A16: Café + Cookies ou Bolo | B16: =Premissas!B42 -> 30 | C16: =B16*(C3+C7) -> 150 | D16: =$B$16*(D3+D7)*$M$13 -> 148.5 | E16: =$B$16*(E3+E7)*($M$13)^D12 -> 147.015 | F16: =$B$16*(F3+F7)*($M$13)^E12 -> 145.54485 | G16: 144.0894015 | H16: 142.6485075 | I16: 141.2220224 | J16: 139.8098022 | K16: 138.4117042 | L16: 137.0275871
A17: Chocolate + Cookies ou Bolo | B17: =Premissas!B43 -> 20 | C17: =B17*(C4+C8) -> 120 | D17: =$B$17*(D4+D8)*$M$13 -> 118.8 | E17: =$B$17*(E4+E8)*($M$13)^D12 -> 117.612 | F17: =$B$17*(F4+F8)*($M$13)^E12 -> 116.43588 | G17: 115.2715212 | H17: 114.118806 | I17: 112.9776179 | J17: 111.8478417 | K17: 110.7293633 | L17: 109.6220697
A18: Água ou Refrigerante | B18: =Premissas!B44 -> 30 | C18: =B18*C5 -> 75 | D18: =$B$18*D5*$M$13 -> 74.25 | E18: =$B$18*E5*($M$13)^D12 -> 73.5075 | F18: =$B$18*F5*($M$13)^E12 -> 72.772425 | G18: 72.04470075 | H18: 71.32425374 | I18: 70.61101121 | J18: 69.90490109 | K18: 69.20585208 | L18: 68.51379356
A19: Chiclettes ou Balas | B19: =Premissas!B45 -> 20 | C19: =B19*C9 -> 40 | D19: =$B$19*D9*$M$13 -> 39.6 | E19: =$B$19*E9*($M$13)^D12 -> 39.204 | F19: =$B$19*F9*($M$13)^E12 -> 38.81196 | G19: 38.4238404 | H19: 38.039602 | I19: 37.65920598 | J19: 37.28261392 | K19: 36.90978778 | L19: 36.5406899
A20: Total/dia | C20: =SUM(C14:C19) -> 615 | D20: =SUM(D14:D19) -> 608.85 | E20: 602.7615 | F20: 596.733885 | G20: 590.7665462 | H20: 584.8588807 | I20: 579.0102919 | J20: 573.220189 | K20: 567.4879871 | L20: 561.8131072
A21: Total/mês | C21: =C20*$M$21 -> 13530 | D21: =D20*$M$21 -> 13394.7 | E21: 13260.753 | F21: 13128.14547 | G21: 12996.86402 | H21: 12866.89538 | I21: 12738.22642 | J21: 12610.84416 | K21: 12484.73572 | L21: 12359.88836 | M21: =Premissas!B19 -> 22
A22: Total/ano (valores médios estimados) | B22: =SUM(B14:B21) -> 200 | C22: =C21*$M$22 -> 162360 | D22: =D21*$M$22 -> 160736.4 | E22: 159129.036 | F22: 157537.7456 | G22: 155962.3682 | H22: 154402.7445 | I22: 152858.7171 | J22: 151330.1299 | K22: 149816.8286 | L22: 148318.6603 | M22: 12
A25: Faturamento por Produto ano 1(média/dia) | B25: $
A26: Café | B26: =(B14+B16)*B3 -> 200
A27: Chocolate | B27: =(B15+B17)*B4 -> 150
A28: Cookies ou Bolo | B28: =(B16+B17)*B7 -> 150
A29: Água Mineral ou Refrigerante | B29: =B18*B5 -> 75
A30: Chiclettes ou Balas | B30: =B19*B9 -> 40
A31: Total | B31: =SUM(B26:B30) -> 615

Sheet Fluxo 3
A1: Demonstrativo de resultado | B1: Ano | C1: 1 | D1: 2 | E1: 3 | F1: 4 | G1: 5 | H1: 6 | I1: 7 | J1: 8 | K1: 9 | L1: 10
A2: Receita Bruta Anual | C2: ='Cenario 3'!C22 -> 162360 | D2: ='Cenario 3'!D22 -> 160736.4 | E2: ='Cenario 3'!E22 -> 159129.036 | F2: ='Cenario 3'!F22 -> 157537.7456 | G2: ='Cenario 3'!G22 -> 155962.3682 | H2: ='Cenario 3'!H22 -> 154402.7445 | I2: ='Cenario 3'!I22 -> 152858.7171 | J2: ='Cenario 3'!J22 -> 151330.1299 | K2: ='Cenario 3'!K22 -> 149816.8286 | L2: ='Cenario 3'!L22 -> 148318.6603
A3: Impostos (Pis, Cofins) | B3: =Premissas!$B$11 -> 0.0365 | C3: =C2*Premissas!$B$11 -> 5926.14 | D3: =D2*Premissas!$B$11 -> 5866.8786 | E3: =E2*Premissas!$B$11 -> 5808.209814 | F3: =F2*Premissas!$B$11 -> 5750.127716 | G3: =G2*Premissas!$B$11 -> 5692.626439 | H3: =H2*Premissas!$B$11 -> 5635.700174 | I3: =I2*Premissas!$B$11 -> 5579.343173 | J3: =J2*Premissas!$B$11 -> 5523.549741 | K3: =K2*Premissas!$B$11 -> 5468.314243 | L3: =L2*Premissas!$B$11 -> 5413.631101
A4: Aluguel + Taxas | B4: =Premissas!$B$5 -> 2500 | C4: =Premissas!$B$5*12 -> 30000 | D4: =C4*Premissas!$B$6+C4 -> 31500 | E4: =D4*Premissas!$B$6+D4 -> 33075 | F4: =E4*Premissas!$B$6+E4 -> 34728.75 | G4: =F4*Premissas!$B$6+F4 -> 36465.1875 | H4: =G4*Premissas!$B$6+G4 -> 38288.44688 | I4: =H4*Premissas!$B$6+H4 -> 40202.86922 | J4: =I4*Premissas!$B$6+I4 -> 42213.01268 | K4: =J4*Premissas!$B$6+J4 -> 44323.66331 | L4: =K4*Premissas!$B$6+K4 -> 46539.84648
A5: Outras Despesas operacionais | B5: =Premissas!B7 -> 0.7 | C5: =C2*Premissas!$B$7 -> 113652 | D5: =D2*Premissas!$B$7 -> 112515.48 | E5: =E2*Premissas!$B$7 -> 111390.3252 | F5: =F2*Premissas!$B$7 -> 110276.4219 | G5: =G2*Premissas!$B$7 -> 109173.6577 | H5: =H2*Premissas!$B$7 -> 108081.9212 | I5: =I2*Premissas!$B$7 -> 107001.1019 | J5: =J2*Premissas!$B$7 -> 105931.0909 | K5: =K2*Premissas!$B$7 -> 104871.78 | L5: =L2*Premissas!$B$7 -> 103823.0622
A6: Lucro operacional bruto | C6: =C2-C3-C4-C5 -> 12781.86 | D6: 10854.0414 | E6: 8855.500986 | F6: 6782.445976 | G6: 4630.896516 | H6: 2396.676301 | I6: 75.4027257 | J6: -2337.523455 | K6: -4846.928981 | L6: -7457.87949
A7: Depreciação | B7: =Premissas!B8 -> 0.05 | C7: =B18*Premissas!B8 -> 5000 | D7: =C7 -> 5000 | E7: 5000 | F7: 5000 | G7: 5000 | H7: 5000 | I7: 5000 | J7: 5000 | K7: 5000 | L7: 5000
A8: Lucro antes do IR (LAIR) | C8: =C6-C7 -> 7781.86 | D8: 5854.0414 | E8: 3855.500986 | F8: 1782.445976 | G8: -369.1034836 | H8: -2603.323699 | I8: -4924.597274 | J8: -7337.523455 | K8: -9846.928981 | L8: -12457.87949
A9: IR | B9: =Premissas!B10 -> 0.25 | C9: =C8*Premissas!$B$10 -> 1945.465 | D9: =D8*Premissas!$B$10 -> 1463.51035 | E9: =E8*Premissas!$B$10 -> 963.8752465 | F9: =F8*Premissas!$B$10 -> 445.611494 | G9: =G8*Premissas!$B$10 -> -92.27587091 | H9: =H8*Premissas!$B$10 -> -650.8309247 | I9: =I8*Premissas!$B$10 -> -1231.149319 | J9: =J8*Premissas!$B$10 -> -1834.380864 | K9: =K8*Premissas!$B$10 -> -2461.732245 | L9: =L8*Premissas!$B$10 -> -3114.469872
A10: Lucro líquido (LL) | C10: =C8-C9 -> 5836.395 | D10: 4390.53105 | E10: 2891.62574 | F10: 1336.834482 | G10: -276.8276127 | H10: -1952.492774 | I10: -3693.447956 | J10: -5503.142591 | K10: -7385.196736 | L10: -9343.409617
A12: Entradas de Caixa (ECX) | C12: =C13+C14+C15+C16 -> 10836.395 | D12: 9390.53105 | E12: 7891.62574 | F12: 6336.834482 | G12: 4723.172387 | H12: 3047.507226 | I12: 1306.552044 | J12: -503.142591 | K12: -2385.196736 | L12: 3072.523398
A13: Lucro líquido (LL) | C13: =C10 -> 5836.395 | D13: 4390.53105 | E13: 2891.62574 | F13: 1336.834482 | G13: -276.8276127 | H13: -1952.492774 | I13: -3693.447956 | J13: -5503.142591 | K13: -7385.196736 | L13: -9343.409617
A14: Depreciação | C14: =C7 -> 5000 | D14: 5000 | E14: 5000 | F14: 5000 | G14: 5000 | H14: 5000 | I14: 5000 | J14: 5000 | K14: 5000 | L14: 5000
A15: Valor residual (VR) | C15: 0 | D15: 0 | E15: 0 | F15: 0 | G15: 0 | H15: 0 | I15: 0 | J15: 0 | K15: 0 | L15: =Premissas!B18 -> 0
A16: ICG (retorno capital giro) | C16: 0 | D16: 0 | E16: 0 | F16: 0 | G16: 0 | H16: 0 | I16: 0 | J16: 0 | K16: 0 | L16: =K19 -> 7415.933015
A17: Saídas de Caixa (SCX) | B17: =B18+B20 -> 108118 | C17: -81.18 | D17: -80.3682 | E17: -79.564518 | F17: -78.76887282 | G17: -77.98118409 | H17: -77.20137225 | I17: -76.42935853 | J17: -75.66506494 | K17: -74.90841429 | L17: 0
A18: Investimento | B18: =Premissas!B3 -> 100000
A19: Capital de Giro (ICG) | B19: =C2*Premissas!$B$9 -> 8118 | C19: =D2*Premissas!$B$9 -> 8036.82 | D19: =E2*Premissas!$B$9 -> 7956.4518 | E19: =F2*Premissas!$B$9 -> 7876.887282 | F19: =G2*Premissas!$B$9 -> 7798.118409 | G19: =H2*Premissas!$B$9 -> 7720.137225 | H19: =I2*Premissas!$B$9 -> 7642.935853 | I19: =J2*Premissas!$B$9 -> 7566.506494 | J19: =K2*Premissas!$B$9 -> 7490.841429 | K19: =L2*Premissas!$B$9 -> 7415.933015
A20: Variação da Necessidade de Capital de Giro | B20: =B19 -> 8118 | C20: =C19-B19 -> -81.18 | D20: -80.3682 | E20: -79.564518 | F20: -78.76887282 | G20: -77.98118409 | H20: -77.20137225 | I20: -76.42935853 | J20: -75.66506494 | K20: -74.90841429
A21: Retorno do Capital de Giro
A22: Fluxo de caixa (FCX) | B22: =B12-B17 -> -108118 | C22: 10917.575 | D22: 9470.89925 | E22: 7971.190258 | F22: 6415.603355 | G22: 4801.153571 | H22: 3124.708598 | I22: 1382.981403 | J22: -427.4775261 | K22: -2310.288321 | L22: 3072.523398

Sheet Sensibilidade
B1: Ano | C1: 1 | D1: 2 | E1: 3 | F1: 4 | G1: 5 | H1: 6 | I1: 7 | J1: 8 | K1: 9 | L1: 10
A2: Fluxo | B2: ='Fluxo 1'!B22*Premissas!H41+'Fluxo 2'!B22*Premissas!H42+'Fluxo 3'!B22*Premissas!H43 -> -108118 | C2: ='Fluxo 1'!C22*Premissas!$H$41+'Fluxo 2'!C22*Premissas!$H$42+'Fluxo 3'!C22*Premissas!$H$43 -> 10406.141 | D2: ='Fluxo 1'!D22*Premissas!$H$41+'Fluxo 2'!D22*Premissas!$H$42+'Fluxo 3'!D22*Premissas!$H$43 -> 10947.05608 | E2: ='Fluxo 1'!E22*Premissas!$H$41+'Fluxo 2'!E22*Premissas!$H$42+'Fluxo 3'!E22*Premissas!$H$43 -> 11565.78891 | F2: ='Fluxo 1'!F22*Premissas!$H$41+'Fluxo 2'!F22*Premissas!$H$42+'Fluxo 3'!F22*Premissas!$H$43 -> 12270.88297 | G2: ='Fluxo 1'!G22*Premissas!$H$41+'Fluxo 2'!G22*Premissas!$H$42+'Fluxo 3'!G22*Premissas!$H$43 -> 13071.77841 | H2: ='Fluxo 1'!H22*Premissas!$H$41+'Fluxo 2'!H22*Premissas!$H$42+'Fluxo 3'!H22*Premissas!$H$43 -> 13978.90382 | I2: ='Fluxo 1'!I22*Premissas!$H$41+'Fluxo 2'!I22*Premissas!$H$42+'Fluxo 3'!I22*Premissas!$H$43 -> 15003.77721 | J2: ='Fluxo 1'!J22*Premissas!$H$41+'Fluxo 2'!J22*Premissas!$H$42+'Fluxo 3'!J22*Premissas!$H$43 -> 16159.11726 | K2: ='Fluxo 1'!K22*Premissas!$H$41+'Fluxo 2'!K22*Premissas!$H$42+'Fluxo 3'!K22*Premissas!$H$43 -> 17458.96581 | L2: ='Fluxo 1'!L22*Premissas!$H$41+'Fluxo 2'!L22*Premissas!$H$42+'Fluxo 3'!L22*Premissas!$H$43 -> 33315.66108
A3: Retorno Capital | C3: =B2+C2 -> -97711.859 | D3: =C3+D2 -> -86764.80292 | E3: =D3+E2 -> -75199.01402 | F3: =E3+F2 -> -62928.13105 | G3: =F3+G2 -> -49856.35264 | H3: -35877.44882 | I3: -20873.67161 | J3: -4714.554348 | K3: 12744.41146 | L3: 46060.07255
A4: PayBack (anos) | B4: =SUM(C4:L5) -> 8.318254814 | C4: =IF(C3<0,1,0) -> 1 | D4: 1 | E4: 1 | F4: 1 | G4: 1 | H4: 1 | I4: 1 | J4: 1 | K4: 0 | L4: 0
C5: =MAX(-IF(C3>0,B3/Fluxo!C22),0) -> 0 | D5: =MAX(-IF(D3>0,C3/Fluxo!D22),0) -> 0 | E5: =MAX(-IF(E3>0,D3/Fluxo!E22),0) -> 0 | F5: =MAX(-IF(F3>0,E3/Fluxo!F22),0) -> 0 | G5: =MAX(-IF(G3>0,F3/Fluxo!G22),0) -> 0 | H5: =MAX(-IF(H3>0,G3/Fluxo!H22),0) -> 0 | I5: =MAX(-IF(I3>0,H3/Fluxo!I22),0) -> 0 | J5: =MAX(-IF(J3>0,I3/Fluxo!J22),0) -> 0 | K5: =MAX(-IF(K3>0,J3/Fluxo!K22),0) -> 0.3182548137 | L5: =MAX(-IF(L3>0,K3/Fluxo!L22),0) -> 0
A6: Valor presente do fluxo | C6: =C2/(1+Taxas!$B$17)^C1 -> 9949.460752 | D6: =D2/(1+Taxas!$B$17)^D1 -> 10007.30224 | E6: =E2/(1+Taxas!$B$17)^E1 -> 10108.9203 | F6: =F2/(1+Taxas!$B$17)^F1 -> 10254.51588 | G6: =G2/(1+Taxas!$B$17)^G1 -> 10444.40881 | H6: =H2/(1+Taxas!$B$17)^H1 -> 10679.03817 | I6: =I2/(1+Taxas!$B$17)^I1 -> 10958.96313 | J6: =J2/(1+Taxas!$B$17)^J1 -> 11284.86397 | K6: =K2/(1+Taxas!$B$17)^K1 -> 11657.54358 | L6: =L2/(1+Taxas!$B$17)^L1 -> 21268.98698
A7: Retorno Capital ajustado | C7: =B2+C6 -> -98168.53925 | D7: =C7+D6 -> -88161.237 | E7: -78052.31671 | F7: -67797.80082 | G7: -57353.39202 | H7: -46674.35384 | I7: -35715.39072 | J7: -24430.52674 | K7: -12772.98317 | L7: 8496.003815
A8: PayBack descontado(anos) | B8: =SUM(C8:L9) -> 9.277311399 | C8: =IF(C7<0,1,0) -> 1 | D8: 1 | E8: 1 | F8: 1 | G8: 1 | H8: 1 | I8: 1 | J8: 1 | K8: 1 | L8: 0
C9: =MAX(-IF(C7>0,B7/C3),0) -> 0 | D9: 0 | E9: 0 | F9: 0 | G9: 0 | H9: 0 | I9: 0 | J9: 0 | K9: 0 | L9: 0.2773113992
A11: VPL | B11: =NPV(Taxas!B17,Sensibilidade!C2:L2)+B2 -> 8496.003815 | C11: =IF(B11<0,"REJEITADO","ACEITO") -> ACEITO
A12: TIR | B12: =IRR(B2:L2) -> 0.0592498836 | C12: =IF(B12<Taxas!B17,"REJEITADO","ACEITO") -> ACEITO
A13: Índice rentabilidade | B13: =(B11-B2)/-B2 -> 1.078580845 | C13: =IF(B13<1,"REJEITADO","ACEITO") -> ACEITO

Sheet Simulação
L1: SIMULAÇÃO
A2: Clientes | O2: Outras Despesas Operacionais
B3: 1 | C3: 2 | D3: 3 | E3: =D3+1 -> 4 | F3: =E3+1 -> 5 | G3: 6 | H3: 7 | I3: 8 | J3: 9 | K3: 10 | L3: =1+Premissas!B12 -> 1.05 | P3: 1 | Q3: 2 | R3: 3 | S3: =R3+1 -> 4 | T3: =S3+1 -> 5 | U3: 6 | V3: 7 | W3: 8 | X3: 9 | Y3: 10
A4: Mínimo | D4: =L4 -> 180 | E4: =D4*$L$3 -> 189 | F4: 198.45 | G4: 208.3725 | H4: 218.791125 | I4: 229.7306813 | J4: 241.2172153 | K4: 253.2780761 | L4: =Premissas!B26 -> 180 | O4: Mínimo | R4: =Fluxo!E5*$Z$4 -> 87710.931 | S4: =Fluxo!F5*$Z$4 -> 92096.47755 | T4: =Fluxo!G5*$Z$4 -> 96701.30143 | U4: =Fluxo!H5*$Z$4 -> 101536.3665 | V4: =Fluxo!I5*$Z$4 -> 106613.1848 | W4: =Fluxo!J5*$Z$4 -> 111943.8441 | X4: =Fluxo!K5*$Z$4 -> 117541.0363 | Y4: =Fluxo!L5*$Z$4 -> 123418.0881 | Z4: =Premissas!B25 -> 0.7
A5: Máximo | D5: =L5 -> 220 | E5: 231 | F5: 242.55 | G5: 254.6775 | H5: 267.411375 | I5: 280.7819438 | J5: 294.8210409 | K5: 309.562093 | L5: =Premissas!C26 -> 220 | O5: Máximo | R5: =Fluxo!E5*$Z$5 -> 162891.729 | S5: =Fluxo!F5*$Z$5 -> 171036.3155 | T5: =Fluxo!G5*$Z$5 -> 179588.1312 | U5: =Fluxo!H5*$Z$5 -> 188567.5378 | V5: =Fluxo!I5*$Z$5 -> 197995.9147 | W5: =Fluxo!J5*$Z$5 -> 207895.7104 | X5: =Fluxo!K5*$Z$5 -> 218290.4959 | Y5: =Fluxo!L5*$Z$5 -> 229205.0207 | Z5: =Premissas!C25 -> 1.3
A8: Receita | B8: =B3 -> 1 | C8: =C3 -> 2 | D8: =D3 -> 3 | E8: =E3 -> 4 | F8: 5 | G8: 6 | H8: 7 | I8: 8 | J8: 9 | K8: 10 | O8: Outras Desp. | P8: =P3 -> 1 | Q8: =Q3 -> 2 | R8: =R3 -> 3 | S8: =S3 -> 4 | T8: 5 | U8: 6 | V8: 7 | W8: 8 | X8: 9 | Y8: 10
A9: 1 | D9: =D$4+(D$5-D$4)*((RAND()+RAND())/2) -> 192.7467352 | E9: =E$4+(E$5-E$4)*((RAND()+RAND())/2) -> 201.0419372 | F9: 211.3160887 | G9: 234.9131171 | H9: 235.1569208 | I9: 256.8283884 | J9: 278.4030804 | K9: 273.0545411 | O9: =A9 -> 1 | R9: =R$4+(R$5-R$4)*RAND() -> 110374.6328 | S9: 137367.8653 | T9: 101612.1522 | U9: 128594.7457 | V9: 183920.0951 | W9: 138684.4408 | X9: 215821.7878 | Y9: 217784.1737
A10: =A9+1 -> 2 | D10: 208.7057541 | E10: 204.9771377 | F10: 220.0804319 | G10: 219.8450759 | H10: 233.7921448 | I10: 246.0763053 | J10: 260.4551025 | K10: 284.026041 | O10: =A10 -> 2 | R10: 151638.9782 | S10: 118839.2603 | T10: 179010.9241 | U10: 170002.7838 | V10: 173945.3816 | W10: 157792.6163 | X10: 126146.7568 | Y10: 167276.1444
A11: =A10+1 -> 3 | D11: 196.3979531 | E11: 221.3905957 | F11: 235.1174926 | G11: 230.0129308 | H11: 248.0280356 | I11: 272.6183282 | J11: 269.2586179 | K11: 279.8592903 | O11: =A11 -> 3 | R11: 92184.29954 | S11: 101582.5655 | T11: 108925.1507 | U11: 180039.5359 | V11: 119397.0522 | W11: 200276.755 | X11: 211330.842 | Y11: 187922.1579
A12: 4 | D12: 211.0472705 | E12: 192.4142286 | F12: 232.3429478 | G12: 230.0872788 | H12: 246.8776851 | I12: 264.7900005 | J12: 265.7845781 | K12: 279.9656443 | O12: 4 | R12: 125116.5698 | S12: 112636.0281 | T12: 114913.3594 | U12: 133278.7972 | V12: 150749.0364 | W12: 181366.5287 | X12: 191672.5671 | Y12: 228817.4626
A13: 5 | D13: 203.1848759 | E13: 209.5726741 | F13: 218.7435843 | G13: 222.126996 | H13: 228.060407 | I13: 247.9527515 | J13: 283.2152842 | K13: 253.708524 | O13: 5 | R13: 159690.2255 | S13: 142319.9144 | T13: 171615.942 | U13: 111906.7661 | V13: 163896.7459 | W13: 156877.0335 | X13: 123772.4176 | Y13: 134362.1306
A14: 6 | D14: 197.6721846 | E14: 216.5094283 | F14: 232.7838765 | G14: 226.7054556 | H14: 263.5195618 | I14: 263.5593976 | J14: 268.9185933 | K14: 291.5813919 | O14: 6 | R14: 112791.8129 | S14: 134854.364 | T14: 150839.6549 | U14: 158619.2192 | V14: 110327.2332 | W14: 133796.3904 | X14: 121757.5812 | Y14: 149090.344
A15: 7 | D15: 185.9040951 | E15: 201.7651266 | F15: 226.5786451 | G15: 232.1472103 | H15: 227.5177883 | I15: 270.1693367 | J15: 269.115172 | K15: 276.2029614 | O15: 7 | R15: 133796.3131 | S15: 112246.2951 | T15: 168450.1838 | U15: 180697.598 | V15: 196025.499 | W15: 170144.6417 | X15: 191125.2307 | Y15: 170772.2807
A16: 8 | D16: 195.3554397 | E16: 213.4644329 | F16: 218.6616589 | G16: 211.7392125 | H16: 238.724429 | I16: 252.246946 | J16: 266.3107583 | K16: 275.4262408 | O16: 8 | R16: 107576.2068 | S16: 104838.3869 | T16: 158884.9259 | U16: 160261.8375 | V16: 108769.0208 | W16: 161252.2053 | X16: 196531.5665 | Y16: 125184.1978
A17: 9 | D17: 218.471929 | E17: 203.7013939 | F17: 238.8396997 | G17: 236.4000682 | H17: 262.4970945 | I17: 244.5417719 | J17: 267.5230654 | K17: 285.3457389 | O17: 9 | R17: 157382.6469 | S17: 99179.74086 | T17: 136123.155 | U17: 168084.5754 | V17: 194402.5423 | W17: 127800.6115 | X17: 213302.667 | Y17: 197211.8936
A18: 10 | D18: 186.6504854 | E18: 216.2012948 | F18: 218.7341411 | G18: 239.5581281 | H18: 256.459248 | I18: 259.0878499 | J18: 282.7995092 | K18: 260.9537718 | O18: 10 | R18: 126184.7117 | S18: 106440.0432 | T18: 143421.5514 | U18: 164672.8065 | V18: 128982.0743 | W18: 147914.486 | X18: 169518.8655 | Y18: 183385.4122
A19: 11 | D19: 202.7630666 | E19: 210.6380401 | F19: 235.9568728 | G19: 214.129431 | H19: 260.7420842 | I19: 253.3147258 | J19: 251.4106918 | K19: 297.1803041 | O19: 11 | R19: =R$4+(R$5-R$4)*RAND() -> 158868.2943 | S19: 166870.2074 | T19: 103966.4724 | U19: 103114.4946 | V19: 167200.1029 | W19: 133124.8514 | X19: 158981.4248 | Y19: 224384.155
A20: 12 | D20: 195.7387069 | E20: 216.7678038 | F20: 221.4474486 | G20: 223.9174749 | H20: 253.8221983 | I20: 243.9496444 | J20: 261.2092907 | K20: 289.2761836 | O20: 12 | R20: 145258.44 | S20: 148619.6079 | T20: 157466.5253 | U20: 149798.6869 | V20: 121130.081 | W20: 176207.1749 | X20: 138774.8706 | Y20: 147598.4126
A21: 13 | D21: 198.0291702 | E21: 208.8777814 | F21: 228.4992728 | G21: 235.4514241 | H21: 248.8764487 | I21: 245.57302 | J21: 278.8738436 | K21: 289.4046299 | O21: 13 | R21: 121033.7813 | S21: 169912.8885 | T21: 147055.6104 | U21: 174246.6705 | V21: 194903.4463 | W21: 151157.5884 | X21: 179459.8931 | Y21: 200742.8815
A22: 14 | D22: 199.5772774 | E22: 212.1172042 | F22: 207.8823794 | G22: 230.4291276 | H22: 247.1198207 | I22: 250.1658642 | J22: 272.562865 | K22: 254.383374 | O22: 14 | R22: 138039.2519 | S22: 101194.2187 | T22: 145401.6786 | U22: 180224.3205 | V22: 177828.7775 | W22: 120121.7758 | X22: 150278.4406 | Y22: 229038.9945
A23: 15 | D23: 197.0632431 | E23: 214.5981714 | F23: 224.5311164 | G23: 248.5834423 | H23: 260.6817809 | I23: 256.082907 | J23: 287.7998219 | K23: 275.7141061 | O23: 15 | R23: 101478.5213 | S23: 129717.9226 | T23: 103631.7471 | U23: 183931.7288 | V23: 149575.9447 | W23: 173851.3603 | X23: 202886.7318 | Y23: 176982.132
A24: 16 | D24: 211.6347588 | E24: 213.6877665 | F24: 214.3391728 | G24: 227.5602181 | H24: 248.7368345 | I24: 265.0823461 | J24: 286.5225441 | K24: 260.5248004 | O24: 16 | R24: 134903.2137 | S24: 144538.2777 | T24: 171697.8442 | U24: 181653.7925 | V24: 114538.265 | W24: 166884.3031 | X24: 129008.8422 | Y24: 174280.9269
A25: 17 | D25: 191.5123274 | E25: =E$4+(E$5-E$4)*((RAND()+RAND())/2) -> 204.0016897 | F25: 205.0108113 | G25: 247.2700775 | H25: 231.4863312 | I25: 270.9538187 | J25: 292.9821867 | K25: 296.4068144 | O25: 17 | R25: 97236.78458 | S25: 118460.4446 | T25: 111769.1876 | U25: 184475.4191 | V25: 149637.4375 | W25: 118596.0074 | X25: 145161.5703 | Y25: 225717.5258
A26: 18 | D26: 197.3313203 | E26: 213.7831266 | F26: 219.2078341 | G26: 226.1797289 | H26: 261.1369858 | I26: 247.7491712 | J26: 284.5770548 | K26: 270.9735091 | O26: 18 | R26: 104768.9285 | S26: 131713.5291 | T26: 129761.1422 | U26: 188092.5485 | V26: 153723.5596 | W26: 158993.4489 | X26: 163762.4699 | Y26: 213337.7462
A27: 19 | D27: 208.5959821 | E27: 215.6143122 | F27: 219.4142555 | G27: 247.0622023 | H27: 233.8358114 | I27: 270.7071236 | J27: 260.3559089 | K27: 298.1585041 | O27: 19 | R27: 158636.7486 | S27: 125586.4676 | T27: 148385.6551 | U27: 130351.818 | V27: 149188.7264 | W27: 128738.469 | X27: 166122.8584 | Y27: 133166.5491
A28: 20 | D28: 186.0802221 | E28: 210.9713706 | F28: 228.804575 | G28: 231.7339432 | H28: 252.5224763 | I28: 250.9118476 | J28: 291.4768623 | K28: 275.4871618 | O28: 20 | R28: 102518.0857 | S28: 140834.4629 | T28: 115865.7405 | U28: 162757.8268 | V28: 159659.2773 | W28: 189908.3325 | X28: 155560.144 | Y28: 147516.4216
A29: 21 | D29: 199.0520522 | E29: 212.5369682 | F29: 217.3745051 | G29: 242.5227129 | H29: 237.9594808 | I29: 234.4575686 | J29: 286.1182903 | K29: 281.8867831 | O29: 21 | R29: =R$4+(R$5-R$4)*RAND() -> 144716.9852 | S29: 143740.7907 | T29: 168657.2843 | U29: 112021.009 | V29: 134320.0785 | W29: 181389.1928 | X29: 190756.6842 | Y29: 168406.593
A30: 22 | D30: 198.3170294 | E30: 224.5993346 | F30: 214.0973798 | G30: 239.6699601 | H30: 241.5370716 | I30: 262.8054836 | J30: 270.5734357 | K30: 304.860524 | O30: 22 | R30: 158153.0149 | S30: 110018.4293 | T30: 125448.9021 | U30: 159841.3107 | V30: 161639.4251 | W30: 124479.195 | X30: 163165.6688 | Y30: 134823.863
A31: 23 | D31: 193.0234247 | E31: 209.8880054 | F31: 226.2530582 | G31: 229.5435995 | H31: 250.0862943 | I31: 239.8370358 | J31: 267.0482056 | K31: 307.043123 | O31: 23 | R31: 112427.2451 | S31: 98279.96133 | T31: 160426.3802 | U31: 176855.7049 | V31: 121032.4849 | W31: 150084.1675 | X31: 199523.9384 | Y31: 218235.8678
A32: 24 | D32: 202.6253906 | E32: 195.3425897 | F32: 230.4317227 | G32: 234.8126783 | H32: 260.0697629 | I32: 264.9337289 | J32: 249.6234756 | K32: 284.6004177 | O32: 24 | R32: 109752.0696 | S32: 150342.1928 | T32: 102255.3541 | U32: 179089.814 | V32: 116956.9644 | W32: 139120.5581 | X32: 160052.6669 | Y32: 217678.1912
A33: 25 | D33: 217.8109579 | E33: 208.7334634 | F33: 239.839363 | G33: 244.9372049 | H33: 224.2119923 | I33: 252.9622613 | J33: 273.2597953 | K33: 259.0633917 | O33: 25 | R33: 154875.9648 | S33: 166685.1412 | T33: 170469.6803 | U33: 172451.1215 | V33: 158974.1719 | W33: 147022.9591 | X33: 194812.2713 | Y33: 217894.759
A34: 26 | D34: 197.5232762 | E34: 206.0133019 | F34: 213.6046104 | G34: 225.6659323 | H34: 256.2417284 | I34: 239.4285819 | J34: 272.1826065 | K34: 280.3427854 | O34: 26 | R34: 116385.4463 | S34: 113676.1457 | T34: 144221.8006 | U34: 154871.8741 | V34: 171983.7418 | W34: 117202.1494 | X34: 187570.019 | Y34: 227246.262
A35: 27 | D35: 205.0781717 | E35: =E$4+(E$5-E$4)*((RAND()+RAND())/2) -> 214.2933134 | F35: 212.9731263 | G35: 233.4206942 | H35: 248.8248343 | I35: 238.9960886 | J35: 279.9897642 | K35: 258.1655881 | O35: 27 | R35: 161419.5379 | S35: 115464.9983 | T35: 127505.4925 | U35: 116259.6271 | V35: 193837.451 | W35: 147777.2479 | X35: 166827.4059 | Y35: 202607.6513
A36: 28 | D36: 186.6305696 | E36: 211.8581766 | F36: 230.580381 | G36: 227.3519238 | H36: 239.2648125 | I36: 261.0850359 | J36: 284.0483705 | K36: 289.3766406 | O36: 28 | R36: 143504.0531 | S36: 149706.0413 | T36: 109636.532 | U36: 143940.6028 | V36: 192536.6182 | W36: 113191.2216 | X36: 143000.445 | Y36: 215956.3999
A37: 29 | D37: 212.770392 | E37: 216.6295124 | F37: 224.4877613 | G37: 251.1066424 | H37: 251.4096795 | I37: 246.59335 | J37: 287.4550602 | K37: 283.2581645 | O37: 29 | R37: 131739.8889 | S37: 137505.2747 | T37: 103848.2693 | U37: 110842.7956 | V37: 151403.8961 | W37: 206981.1856 | X37: 214208.3953 | Y37: 218652.5004
A38: 30 | D38: 210.8144347 | E38: 203.2178914 | F38: 215.0335151 | G38: 228.3763611 | H38: 253.2360433 | I38: 262.8197766 | J38: 245.7876946 | K38: 292.0376092 | O38: 30 | R38: 160037.0061 | S38: 163405.4172 | T38: 153088.6304 | U38: 169041.7618 | V38: 162418.4865 | W38: 184082.6687 | X38: 128607.4849 | Y38: 228215.8494
A39: 31 | D39: 211.7160233 | E39: 213.5746169 | F39: 209.2566906 | G39: 238.4487864 | H39: 235.5356816 | I39: 263.0718029 | J39: 274.6890241 | K39: 292.707727 | O39: 31 | R39: 108439.9347 | S39: 129947.3508 | T39: 129577.8468 | U39: 137190.2747 | V39: 143200.7888 | W39: 199709.0316 | X39: 183744.77 | Y39: 203440.9634
A40: 32 | D40: 203.1772579 | E40: 218.8050187 | F40: 221.3351267 | G40: 242.633637 | H40: 241.5640109 | I40: 267.5213903 | J40: 291.7027435 | K40: 284.0622012 | O40: 32 | R40: 140626.7571 | S40: 149467.3854 | T40: 179432.2099 | U40: 139023.5062 | V40: 127896.9139 | W40: 126904.4016 | X40: 185393.6803 | Y40: 177105.7888
A41: 33 | D41: 198.86114 | E41: 224.8978591 | F41: 227.1189486 | G41: 214.8031106 | H41: 245.7670328 | I41: 248.6741765 | J41: 271.302086 | K41: 286.4773461 | O41: 33 | R41: 144987.3529 | S41: 125709.7317 | T41: 161333.3255 | U41: 155459.7504 | V41: 152318.2589 | W41: 144596.1134 | X41: 146719.4454 | Y41: 180860.8424
A42: 34 | D42: 190.6270246 | E42: 206.000773 | F42: 209.7754665 | G42: 227.665745 | H42: 219.3437724 | I42: 241.1899684 | J42: 283.5628415 | K42: 265.4944028 | O42: 34 | R42: =R$4+(R$5-R$4)*RAND() -> 161420.8064 | S42: 101203.8265 | T42: 144992.7278 | U42: 108205.5646 | V42: 121660.8034 | W42: 207318.6772 | X42: 144843.2657 | Y42: =Y$4+(Y$5-Y$4)*RAND() -> 173243.0132
A43: 35 | D43: 199.3656529 | E43: 210.3878537 | F43: 233.7745923 | G43: 229.3462784 | H43: 233.2973616 | I43: 245.1883196 | J43: 253.049377 | K43: 274.5185843 | O43: 35 | R43: =R$4+(R$5-R$4)*RAND() -> 93521.44132 | S43: 144894.5389 | T43: 115417.9347 | U43: 144842.3082 | V43: 183932.7006 | W43: 182500.5425 | X43: 124345.0928 | Y43: 131345.2353
A44: 36 | D44: 208.1035878 | E44: 217.0810011 | F44: 210.2506866 | G44: 230.5167597 | H44: 250.0185277 | I44: 233.3539904 | J44: 274.6215241 | K44: 271.5640838 | O44: 36 | R44: 134305.0519 | S44: 154590.4187 | T44: 108913.3203 | U44: 121977.2782 | V44: 156801.9308 | W44: 165635.9652 | X44: 140482.7157 | Y44: 161539.4789
A45: 37 | D45: 182.4272129 | E45: =E$4+(E$5-E$4)*((RAND()+RAND())/2) -> 210.353277 | F45: 237.8742356 | G45: 241.4221109 | H45: 242.8283612 | I45: 237.7624699 | J45: 282.2097627 | K45: 273.8349683 | O45: 37 | R45: 154518.3969 | S45: 100540.1699 | T45: 166136.2849 | U45: 132559.673 | V45: 149689.4909 | W45: 185468.6595 | X45: 136355.6505 | Y45: 162836.0569
A46: 38 | D46: 197.9386396 | E46: 206.3072595 | F46: 213.9627288 | G46: 237.9382825 | H46: 240.9480764 | I46: 249.5173312 | J46: 276.4621998 | K46: 261.2110357 | O46: 38 | R46: 119425.4412 | S46: 140818.5439 | T46: 140784.6855 | U46: 158025.5253 | V46: 155453.5133 | W46: 197696.5575 | X46: 216978.3464 | Y46: 133960.127
A47: 39 | D47: 210.4828207 | E47: 212.0076824 | F47: 222.1282364 | G47: 219.9389934 | H47: 246.4212744 | I47: 245.7354318 | J47: 274.7738043 | K47: 292.1204084 | O47: 39 | R47: 97735.56982 | S47: 98899.90863 | T47: 163841.0778 | U47: 129256.4591 | V47: 194119.4164 | W47: 129849.0442 | X47: 197487.9279 | Y47: 144156.2827
A48: 40 | D48: 205.3710937 | E48: 201.6046634 | F48: 206.8809663 | G48: 250.1104973 | H48: 245.7575317 | I48: 257.3206538 | J48: 274.896653 | K48: 277.6753635 | O48: 40 | R48: 113628.5289 | S48: 163215.2559 | T48: 154673.4724 | U48: 103485.0223 | V48: 167044.5766 | W48: 157330.0844 | X48: 174104.0845 | Y48: 196700.3892
A49: 41 | D49: 200.424245 | E49: 204.1127113 | F49: 226.7484488 | G49: 230.485239 | H49: 255.8027555 | I49: 268.3401708 | J49: 270.0766141 | K49: 283.969862 | O49: 41 | R49: 137261.1156 | S49: 93726.64318 | T49: 99222.08623 | U49: 153644.2306 | V49: 174188.9539 | W49: 201413.1869 | X49: 212298.7352 | Y49: 168060.9053
A50: 42 | D50: 194.5700383 | E50: 203.4397017 | F50: 227.753332 | G50: 240.1994392 | H50: 246.4224545 | I50: 252.3617427 | J50: 257.6928331 | K50: 284.8092587 | O50: 42 | R50: 125346.6265 | S50: 161540.5138 | T50: 131574.152 | U50: 137992.6476 | V50: 195106.1625 | W50: 126457.4117 | X50: 138613.1304 | Y50: 175391.98
A51: 43 | D51: 201.2711516 | E51: 198.3155196 | F51: 210.4315675 | G51: 217.8345247 | H51: 239.0895986 | I51: 275.7372785 | J51: 281.4186594 | K51: 261.8273564 | O51: 43 | R51: 106416.8589 | S51: 133096.9731 | T51: 137770.3906 | U51: 162737.2401 | V51: 195979.6132 | W51: 194822.9207 | X51: 163125.6055 | Y51: 177954.2546
A52: 44 | D52: 193.526774 | E52: 209.8234367 | F52: 224.5215892 | G52: 231.6867515 | H52: 238.0671373 | I52: 257.4749506 | J52: 257.0187566 | K52: 263.8204978 | O52: 44 | R52: 120781.5051 | S52: 151884.5692 | T52: 165451.3333 | U52: 109210.3896 | V52: 177880.3837 | W52: 164459.2927 | X52: 120816.8591 | Y52: 183119.7899
A53: 45 | D53: 202.1775151 | E53: 190.5712496 | F53: 223.0676339 | G53: 247.1389654 | H53: 245.0981473 | I53: 236.0315926 | J53: 273.3087734 | K53: 294.1979644 | O53: 45 | R53: 137844.9281 | S53: 95795.86577 | T53: 147495.1481 | U53: 180559.1737 | V53: 130595.8695 | W53: 191335.9805 | X53: 160015.6977 | Y53: 126856.1823
A54: 46 | D54: 198.5548811 | E54: 208.2865128 | F54: 215.5780416 | G54: 223.7067745 | H54: 239.1108915 | I54: 235.2312753 | J54: 267.6697597 | K54: 281.6332292 | O54: 46 | R54: 131902.3577 | S54: 165279.2937 | T54: 130863.1633 | U54: 166720.4795 | V54: 169807.5544 | W54: 135427.2723 | X54: 197065.5181 | Y54: 183770.6972
A55: 47 | D55: 181.3476623 | E55: =E$4+(E$5-E$4)*((RAND()+RAND())/2) -> 214.8653317 | F55: 207.2057748 | G55: 225.2533322 | H55: 247.9062663 | I55: 254.3279636 | J55: 267.8457205 | K55: 287.2325679 | O55: 47 | R55: 129825.1811 | S55: 140746.8145 | T55: 136952.075 | U55: 140316.4965 | V55: 195660.7751 | W55: 184704.2587 | X55: 129902.5992 | Y55: 203518.0563
A56: 48 | D56: =D$4+(D$5-D$4)*((RAND()+RAND())/2) -> 198.5618175 | E56: 206.2737572 | F56: 219.4046192 | G56: 224.6259121 | H56: 231.3947586 | I56: 246.9807294 | J56: 259.6939254 | K56: 276.4083068 | O56: 48 | R56: 140938.2414 | S56: 124991.4043 | T56: 140691.1316 | U56: 124221.7631 | V56: 151064.7923 | W56: 205905.1147 | X56: 175062.7242 | Y56: 228172.7713
A57: 49 | D57: 195.6280896 | E57: 224.2800559 | F57: 225.6742866 | G57: 217.3659479 | H57: 233.8061646 | I57: 249.5962511 | J57: 279.23426 | K57: 268.6276078 | O57: 49 | R57: 116729.0739 | S57: 126050.0855 | T57: 174279.1187 | U57: 142837.4412 | V57: 114105.6108 | W57: 203996.0828 | X57: 153142.8155 | Y57: 197601.3362
A58: 50 | D58: 214.1033521 | E58: 206.3212475 | F58: 211.0479209 | G58: 233.5060878 | H58: 248.0349704 | I58: 261.2048292 | J58: 257.0077292 | K58: 293.4146149 | O58: 50 | R58: 92196.95643 | S58: 127352.3522 | T58: 132984.6144 | U58: 102400.4284 | V58: 188995.5176 | W58: 127845.9723 | X58: 122221.7028 | Y58: 163226.7055
A59: 51 | D59: 205.4004733 | E59: 205.6024039 | F59: 222.7628678 | G59: 241.1968168 | H59: 227.1145963 | I59: 269.4759949 | J59: 249.7087168 | K59: 273.7526556 | O59: 51 | R59: 114271.4998 | S59: 104045.1078 | T59: 145233.904 | U59: 150197.512 | V59: 194506.9451 | W59: 152926.0391 | X59: 144958.4545 | Y59: 176718.8125
A60: 52 | D60: 183.4724824 | E60: 218.2718957 | F60: 207.1633881 | G60: 224.6114959 | H60: 242.300911 | I60: 273.3210713 | J60: 269.6025648 | K60: 289.9508739 | O60: 52 | R60: 120190.7443 | S60: 165376.1734 | T60: 122140.8173 | U60: 184294.2957 | V60: 114114.7694 | W60: 116368.79 | X60: 154449.2454 | Y60: 148944.2088
A61: 53 | D61: 202.0067845 | E61: 205.6578657 | F61: 217.2534661 | G61: 236.6986553 | H61: 238.6136269 | I61: 258.8389323 | J61: 255.9051534 | K61: 284.7137553 | O61: 53 | R61: 119099.4215 | S61: 132498.8381 | T61: 143523.5655 | U61: 173369.6891 | V61: 137622.0524 | W61: 207241.4331 | X61: 176507.4918 | Y61: 211377.0565
A62: 54 | D62: 210.2122934 | E62: 197.5867219 | F62: 207.5680084 | G62: 222.9635525 | H62: 242.3753096 | I62: 253.915813 | J62: 264.5471505 | K62: 255.2732672 | O62: 54 | R62: 155577.7757 | S62: 152206.2685 | T62: 178683.746 | U62: 185553.0988 | V62: 172251.8466 | W62: 118451.6983 | X62: 123074.9491 | Y62: 126586.2441
A63: 55 | D63: 204.5426013 | E63: 217.5108125 | F63: 217.7530202 | G63: 231.3360078 | H63: 258.6230945 | I63: 246.0709602 | J63: 273.6717463 | K63: 285.1142779 | O63: 55 | R63: 145946.7462 | S63: 168738.9085 | T63: 102534.397 | U63: 140185.7444 | V63: 164969.9029 | W63: 169521.7034 | X63: 203159.3483 | Y63: 224518.8718
A64: 56 | D64: 198.2214701 | E64: 197.3399491 | F64: 234.4597138 | G64: 225.4937258 | H64: 251.9198025 | I64: 247.8221755 | J64: 252.6310765 | K64: 292.8429797 | O64: 56 | R64: 150893.6521 | S64: 154634.8664 | T64: 113622.0124 | U64: 129352.8318 | V64: 140565.0737 | W64: 111989.871 | X64: 162405.9864 | Y64: 216000.3912
A65: 57 | D65: 198.3697808 | E65: 216.0172707 | F65: 222.4861108 | G65: 216.5339276 | H65: 241.1333376 | I65: 243.4391816 | J65: 278.7192264 | K65: 282.5251078 | O65: 57 | R65: 96448.1809 | S65: 137034.803 | T65: 139604.6862 | U65: 149070.9404 | V65: 177364.9301 | W65: 205209.9538 | X65: 193487.9619 | Y65: 214446.1573
A66: 58 | D66: 214.2244654 | E66: 213.1493978 | F66: 216.5454681 | G66: 219.3374302 | H66: 229.8892633 | I66: 268.0858665 | J66: 290.2840967 | K66: 266.1963623 | O66: 58 | R66: 155617.8434 | S66: 102375.8148 | T66: 154372.2029 | U66: 145511.6515 | V66: 151701.2306 | W66: 194992.7923 | X66: 212396.2941 | Y66: 131279.4243
A67: 59 | D67: 215.9442667 | E67: 205.3038239 | F67: 228.430244 | G67: 212.2659903 | H67: 234.5133595 | I67: 245.7334223 | J67: 257.464997 | K67: 272.3519182 | O67: 59 | R67: 134373.4132 | S67: 149960.1599 | T67: 163499.1402 | U67: 112086.7279 | V67: 163340.2722 | W67: 122120.1732 | X67: 166948.8893 | Y67: 147579.5684
A68: 60 | D68: 190.7501857 | E68: 208.6239967 | F68: 211.6162127 | G68: 212.7342021 | H68: 239.1649933 | I68: 255.0145391 | J68: 258.8071152 | K68: 265.9570162 | O68: 60 | R68: 158544.2073 | S68: 151334.4108 | T68: 173441.8573 | U68: 103120.8757 | V68: 127336.8974 | W68: 170975.4392 | X68: 184639.762 | Y68: 124143.1586
A69: 61 | D69: 195.5950067 | E69: 230.0340065 | F69: 226.0998202 | G69: 233.6280001 | H69: 243.7183371 | I69: 255.5745786 | J69: 255.3333562 | K69: 270.532085 | O69: 61 | R69: 132452.532 | S69: 167195.3661 | T69: 127825.4065 | U69: 176485.201 | V69: 148108.9333 | W69: 119236.9805 | X69: 135406.9286 | Y69: 146578.0972
A70: 62 | D70: 209.468581 | E70: 197.3369718 | F70: 218.6674372 | G70: 226.198792 | H70: 243.6775422 | I70: 269.5966068 | J70: 287.8879698 | K70: 279.030524 | O70: 62 | R70: 153243.2734 | S70: 94942.82269 | T70: 145313.2452 | U70: 106327.6591 | V70: 122735.0587 | W70: 180208.7638 | X70: 208029.4156 | Y70: 154722.1731
A71: 63 | D71: 202.6272854 | E71: 211.0476206 | F71: 223.366649 | G71: 233.9654807 | H71: 237.9493549 | I71: 250.6790144 | J71: 276.1014236 | K71: 281.2647748 | O71: 63 | R71: 91958.87758 | S71: 123257.2247 | T71: 102326.9783 | U71: 156693.1668 | V71: 188181.8143 | W71: 167348.6153 | X71: 137499.6369 | Y71: 205110.4256
A72: 64 | D72: 201.3356904 | E72: 207.0604926 | F72: 222.7219798 | G72: 229.4684505 | H72: 265.3334417 | I72: 259.623204 | J72: 274.4929535 | K72: 263.404335 | O72: 64 | R72: 146903.2569 | S72: 121714.0535 | T72: 159954.0113 | U72: 175498.6862 | V72: 138810.7216 | W72: 161871.2544 | X72: 150151.8617 | Y72: 223973.68
A73: 65 | D73: 205.8221857 | E73: 221.5615213 | F73: 216.1914427 | G73: 226.158776 | H73: 232.882802 | I73: 245.0981586 | J73: 278.5345444 | K73: 266.2965083 | O73: 65 | R73: 102220.3159 | S73: 116211.723 | T73: 117187.0769 | U73: 109107.2471 | V73: 171549.3652 | W73: 192308.6025 | X73: 154876.6986 | Y73: 187309.1435
A74: 66 | D74: 196.3626296 | E74: 219.04321 | F74: 222.4727664 | G74: 232.464503 | H74: 252.3821183 | I74: 242.0753546 | J74: 267.5341903 | K74: 294.9145576 | O74: 66 | R74: 147554.3779 | S74: 118272.4942 | T74: 138691.4787 | U74: 154888.9251 | V74: 197363.3181 | W74: 135961.9156 | X74: 166633.3353 | Y74: 202930.669
A75: =A74+1 -> 67 | D75: 207.3751332 | E75: 198.6885013 | F75: 222.2539483 | G75: 235.2580761 | H75: 244.9900895 | I75: 255.2552989 | J75: 258.8415648 | K75: 276.0592041 | O75: =A75 -> 67 | R75: 92463.9135 | S75: 155472.2319 | T75: 178186.271 | U75: 180919.1319 | V75: 112857.3436 | W75: 117940.9087 | X75: 178631.1782 | Y75: 162895.3553
A76: 68 | D76: 197.1052486 | E76: 203.0879182 | F76: 226.6296735 | G76: 222.6848761 | H76: 231.8126106 | I76: 270.6803858 | J76: 266.463777 | K76: 298.5699291 | O76: 68 | R76: 161877.2824 | S76: 130583.9107 | T76: 167529.0433 | U76: 165996.3351 | V76: 192501.1126 | W76: 202046.669 | X76: 210059.5366 | Y76: 141992.5981
A77: 69 | D77: 196.9635945 | E77: 211.2309827 | F77: 231.5145402 | G77: 219.0160563 | H77: 245.1749462 | I77: 239.2544309 | J77: 263.1372475 | K77: 273.0609014 | O77: 69 | R77: 127157.9798 | S77: 112128.1567 | T77: 155909.7179 | U77: 159758.2713 | V77: 118884.8824 | W77: 127516.3163 | X77: 148184.4227 | Y77: 212757.4486
A78: 70 | D78: 208.9072261 | E78: 193.8374587 | F78: 236.368441 | G78: 237.6731264 | H78: 232.7422303 | I78: 255.9376612 | J78: 252.3689165 | K78: 297.6538544 | O78: 70 | R78: 101942.4347 | S78: 99306.1533 | T78: 112537.9874 | U78: 161008.82 | V78: 175089.1422 | W78: 141606.6253 | X78: 149433.1397 | Y78: 216135.9078
A79: 71 | D79: 193.1329006 | E79: 200.1613935 | F79: 221.1812608 | G79: 229.8264478 | H79: 234.9443647 | I79: 257.7832292 | J79: 278.5796387 | K79: 293.5834565 | O79: 71 | R79: 117520.6693 | S79: 129216.4884 | T79: 117707.7478 | U79: =U$4+(U$5-U$4)*RAND() -> 132757.5532 | V79: 128775.0085 | W79: 164755.4255 | X79: 128817.9733 | Y79: 136858.0357
A80: 72 | D80: 201.9836702 | E80: 215.0164837 | F80: 220.203393 | G80: 238.3918958 | H80: 255.8939188 | I80: 247.7341317 | J80: 282.5614394 | K80: 283.8866565 | O80: 72 | R80: =R$4+(R$5-R$4)*RAND() -> 132443.5921 | S80: 134862.1281 | T80: 117501.3126 | U80: 183210.0755 | V80: 138021.4279 | W80: 197015.1548 | X80: 204667.0247 | Y80: 190824.7896
A81: 73 | D81: 187.3750737 | E81: 214.8514545 | F81: 217.3791686 | G81: 238.0941404 | H81: 241.6629048 | I81: 273.1922708 | J81: 283.3827991 | K81: 291.1678876 | O81: 73 | R81: 110086.2554 | S81: 92905.35495 | T81: 105716.8925 | U81: 127616.1083 | V81: 197114.6835 | W81: 174588.5655 | X81: 159300.853 | Y81: 155201.0164
A82: 74 | D82: 208.6470801 | E82: 206.1891212 | F82: 224.4346184 | G82: 220.8953675 | H82: 234.0684357 | I82: 252.2792593 | J82: 260.0069841 | K82: 281.3138531 | O82: 74 | R82: 137776.2133 | S82: 117145.7974 | T82: 131920.2774 | U82: 120980.4128 | V82: 155433.3629 | W82: 179008.1274 | X82: 208567.0792 | Y82: 198673.4702
A83: 75 | D83: 195.4112169 | E83: 222.9407673 | F83: 207.6602278 | G83: 231.8858647 | H83: 250.4433778 | I83: 244.104333 | J83: 258.0504951 | K83: 275.4350975 | O83: 75 | R83: 91999.01285 | S83: 169621.4277 | T83: 135344.748 | U83: 149130.0136 | V83: 187802.9122 | W83: 204346.6267 | X83: 128773.4392 | Y83: 128630.3605
A84: 76 | D84: 185.0016641 | E84: 216.4808886 | F84: 223.0779547 | G84: 228.831279 | H84: 250.2796141 | I84: 258.4101358 | J84: 275.0847266 | K84: 259.811804 | O84: 76 | R84: 127269.1424 | S84: 105831.4759 | T84: 121488.1019 | U84: 179287.9332 | V84: 197130.2539 | W84: 158378.9868 | X84: 167087.7681 | Y84: 145410.5171
A85: 77 | D85: 182.291472 | E85: 211.8289434 | F85: 209.7798845 | G85: 222.8271393 | H85: 255.2552693 | I85: 247.1333971 | J85: 285.7568335 | K85: 289.1707665 | O85: 77 | R85: 109605.9792 | S85: 155481.797 | T85: 156305.0611 | U85: 157920.0884 | V85: 163192.8517 | W85: 198751.9695 | X85: 191159.7711 | Y85: 199768.9072
A86: 78 | D86: 196.9979169 | E86: 215.8269267 | F86: 226.587045 | G86: 237.8636041 | H86: 229.1829241 | I86: 251.029292 | J86: 263.9440154 | K86: 285.0353541 | O86: 78 | R86: 148928.1691 | S86: 100394.593 | T86: 169083.3867 | U86: 174576.7635 | V86: 158361.6296 | W86: 144593.2118 | X86: 154075.8198 | Y86: 143590.2548
A87: 79 | D87: 205.2930394 | E87: 207.5232193 | F87: 226.5457489 | G87: 222.1658485 | H87: 252.5839208 | I87: 243.6728393 | J87: 281.1467964 | K87: 268.5697115 | O87: 79 | R87: 120903.7316 | S87: 136750.8663 | T87: 169212.9606 | U87: 171108.6261 | V87: 117676.8973 | W87: 194994.6999 | X87: 130607.9407 | Y87: 217545.4295
A88: 80 | D88: 208.6899431 | E88: 202.5846597 | F88: 235.1117648 | G88: 231.6363754 | H88: 245.5208498 | I88: 264.9797146 | J88: 257.9253588 | K88: 275.876296 | O88: 80 | R88: 135246.8883 | S88: 128237.5197 | T88: 134781.7442 | U88: 161558.2721 | V88: 188408.0897 | W88: 117296.0143 | X88: 209354.0439 | Y88: 169733.3314
A89: 81 | D89: 195.5268745 | E89: 218.9803121 | F89: 217.1337017 | G89: 229.0532338 | H89: 230.8688227 | I89: 262.2003478 | J89: 262.2596135 | K89: 279.9779186 | O89: 81 | R89: 97581.04851 | S89: 101842.4399 | T89: 137087.3325 | U89: 125068.4513 | V89: 147129.0734 | W89: 205574.2251 | X89: 166415.9955 | Y89: 189430.9948
A90: 82 | D90: 207.2892163 | E90: 198.1143125 | F90: 234.0823156 | G90: 216.3544522 | H90: 225.9901246 | I90: 251.880724 | J90: 265.308128 | K90: 297.4020308 | O90: 82 | R90: 98352.24264 | S90: 141829.1712 | T90: 163736.8431 | U90: 164857.0148 | V90: 124078.7031 | W90: 202108.3382 | X90: 188100.0418 | Y90: 167874.8673
A91: 83 | D91: 203.7482753 | E91: 196.6460076 | F91: 219.952126 | G91: 221.12171 | H91: =H$4+(H$5-H$4)*((RAND()+RAND())/2) -> 259.0456848 | I91: 256.6095413 | J91: 261.7142799 | K91: 278.2630007 | O91: 83 | R91: 114170.9123 | S91: 133487.9425 | T91: 108655.2769 | U91: 107497.3501 | V91: 172103.042 | W91: 197245.3578 | X91: 187286.8918 | Y91: 151308.4273
A92: 84 | D92: 202.2483513 | E92: 216.4195693 | F92: 231.3232293 | G92: 229.1456516 | H92: 249.7718847 | I92: 256.4551525 | J92: 263.3920767 | K92: 281.4685648 | O92: 84 | R92: 136631.4392 | S92: 115663.2324 | T92: 106722.2835 | U92: 142184.6551 | V92: 111878.7086 | W92: 156002.8708 | X92: 185812.6054 | Y92: 123700.4319
A93: 85 | D93: 189.704298 | E93: 201.905364 | F93: 227.6171312 | G93: 237.3560919 | H93: 258.5192438 | I93: 234.6299366 | J93: 275.914555 | K93: 268.1613392 | O93: 85 | R93: 129873.7249 | S93: 108548.8256 | T93: 142252.6076 | U93: 120968.3964 | V93: 171298.5723 | W93: 156707.8948 | X93: 184851.6794 | Y93: 206789.4898
A94: 86 | D94: 204.9354686 | E94: 196.9275253 | F94: 205.8524384 | G94: 220.2745598 | H94: 233.7138337 | I94: 268.5495722 | J94: 278.8604208 | K94: 280.0675321 | O94: 86 | R94: 125113.7363 | S94: 148810.5855 | T94: 152967.0944 | U94: 133523.1569 | V94: 146297.2299 | W94: 134529.442 | X94: 178666.8773 | Y94: 210323.4545
A95: 87 | D95: 192.4565379 | E95: 219.9120347 | F95: 233.4242632 | G95: 216.7990664 | H95: 256.3514715 | I95: 256.7169882 | J95: 288.1390437 | K95: 270.4880794 | O95: 87 | R95: 88936.61661 | S95: 149786.8957 | T95: 99367.4263 | U95: 120872.5851 | V95: 128495.8993 | W95: 197904.9149 | X95: 187518.4553 | Y95: 208371.1701
A96: 88 | D96: 201.7164409 | E96: 217.6875753 | F96: 218.9900081 | G96: 223.9955445 | H96: 235.5966778 | I96: 258.0466726 | J96: 256.835503 | K96: 277.3141876 | O96: 88 | R96: 110642.9556 | S96: 105078.4915 | T96: 155631.8056 | U96: 118289.4365 | V96: 195808.2846 | W96: 177653.6417 | X96: 193606.3275 | Y96: 228040.9754
A97: 89 | D97: 196.4108 | E97: 211.1604765 | F97: 223.6230913 | G97: 242.2826946 | H97: 225.7041438 | I97: 257.1152132 | J97: 261.0376605 | K97: 257.8209523 | O97: 89 | R97: 150160.4655 | S97: 128200.847 | T97: 164276.8408 | U97: 175727.4282 | V97: 197229.7242 | W97: 133642.7387 | X97: 168809.1258 | Y97: 187029.6807
A98: 90 | D98: 204.7312135 | E98: 195.1694776 | F98: 236.4651992 | G98: 215.4044797 | H98: 241.0642367 | I98: 255.2875109 | J98: 265.0131997 | K98: 279.0524882 | O98: 90 | R98: 147805.0882 | S98: 125499.2933 | T98: 177454.8575 | U98: 170031.7716 | V98: 127037.5369 | W98: 161101.457 | X98: 135844.0518 | Y98: 143174.7771
A99: 91 | D99: 198.3104572 | E99: 212.3849439 | F99: 225.3386922 | G99: 225.9980343 | H99: 252.2453084 | I99: 267.2175671 | J99: 285.9095448 | K99: 288.2712077 | O99: 91 | R99: 136355.1615 | S99: 167722.8083 | T99: 140460.812 | U99: 177918.5949 | V99: 178610.6348 | W99: 196929.0548 | X99: 136543.3336 | Y99: 175250.3549
A100: 92 | D100: 199.5966671 | E100: 216.5253102 | F100: 218.9238645 | G100: 216.6408673 | H100: 246.5002734 | I100: 263.1542011 | J100: 278.2661422 | K100: 296.0434982 | O100: 92 | R100: 93247.78897 | S100: 147528.3817 | T100: 112715.1336 | U100: 150850.6384 | V100: 130745.0286 | W100: 150768.4563 | X100: 175175.4293 | Y100: 187510.7696
A101: 93 | D101: 193.5675768 | E101: 211.6010391 | F101: 235.9816353 | G101: 239.3672021 | H101: 234.5403804 | I101: 252.8296859 | J101: 260.1205787 | K101: 264.0776724 | O101: 93 | R101: 120690.8545 | S101: 138743.7761 | T101: 152464.639 | U101: 177908.0824 | V101: 188769.6604 | W101: 197264.3969 | X101: 189567.616 | Y101: 214575.0382
A102: 94 | D102: 188.5509952 | E102: 205.1960176 | F102: 201.9014815 | G102: 232.6726225 | H102: 243.0652441 | I102: 235.962028 | J102: 266.8052728 | K102: 282.9641724 | O102: 94 | R102: 123243.9212 | S102: 170118.2612 | T102: 125670.1491 | U102: 112314.2181 | V102: 180037.0715 | W102: 131564.8136 | X102: 203338.3865 | Y102: 130846.5781
A103: 95 | D103: 192.063155 | E103: 225.680244 | F103: 230.9793189 | G103: 214.9430147 | H103: 259.0044351 | I103: 262.5848468 | J103: 270.2610579 | K103: 278.60662 | O103: 95 | R103: 124184.3572 | S103: 105459.7336 | T103: 121033.9349 | U103: 172695.4601 | V103: 149421.3077 | W103: 135525.2663 | X103: 185337.0145 | Y103: 202848.0132
A104: 96 | D104: 204.0230923 | E104: 207.6605876 | F104: 217.2227506 | G104: 233.5779506 | H104: 259.6864459 | I104: 255.2900971 | J104: 275.9181644 | K104: 299.331358 | O104: 96 | R104: 152705.805 | S104: 100497.0516 | T104: 170229.4057 | U104: 167653.5931 | V104: 131106.6381 | W104: 161955.7171 | X104: 205435.7673 | Y104: 181629.8157
A105: 97 | D105: 197.477626 | E105: 201.7166954 | F105: 238.4928846 | G105: 229.763926 | H105: 242.8048196 | I105: 256.0037453 | J105: 268.6196134 | K105: 294.2232135 | O105: 97 | R105: 92015.72583 | S105: 123453.5759 | T105: 117005.9155 | U105: 136134.2135 | V105: 166242.8881 | W105: 116737.2062 | X105: 202387.8023 | Y105: 227871.5921
A106: 98 | D106: 194.9668638 | E106: 196.6809535 | F106: 209.5687575 | G106: 228.5866276 | H106: 249.5288923 | I106: 240.4871742 | J106: 283.8637075 | K106: 258.2396282 | O106: 98 | R106: 120145.6163 | S106: 164247.1103 | T106: 108073.576 | U106: 161502.0729 | V106: 196869.9074 | W106: 182984.9635 | X106: 139526.0129 | Y106: 123996.8658
A107: 99 | D107: 215.0489824 | E107: 211.0423113 | F107: 222.0251714 | G107: 235.6743537 | H107: 233.995847 | I107: 242.5326701 | J107: 284.9554622 | K107: 287.926238 | O107: 99 | R107: 96744.09888 | S107: 138827.3925 | T107: 97452.98607 | U107: 144091.4147 | V107: 158627.9862 | W107: 150089.6652 | X107: 214614.452 | Y107: 217823.4241
A108: 100 | D108: 200.3271927 | E108: 195.5226075 | F108: 216.8733389 | G108: 226.2619685 | H108: 246.3837487 | I108: 239.1690001 | J108: 261.7906108 | K108: 282.8523851 | O108: 100 | R108: 98897.17478 | S108: 114075.1251 | T108: 116565.5437 | U108: 147262.4265 | V108: 130610.1347 | W108: 188408.3497 | X108: 151963.625 | Y108: 189675.5214
A109: 101 | D109: 193.8728397 | E109: 213.5584071 | F109: 219.3371579 | G109: 222.5787035 | H109: 249.2712152 | I109: 264.9379251 | J109: 253.1971817 | K109: 274.1031503 | O109: 101 | R109: 111200.4957 | S109: 149075.9676 | T109: 119526.4439 | U109: 183219.9144 | V109: 158728.7179 | W109: 144257.0287 | X109: 179174.4435 | Y109: 167118.8708
A110: 102 | D110: 198.2272311 | E110: 214.9195083 | F110: 204.0853584 | G110: 220.3500193 | H110: 243.7202213 | I110: 264.0553733 | J110: 268.6826041 | K110: 267.0255568 | O110: 102 | R110: 89241.60377 | S110: 133621.823 | T110: 108892.0887 | U110: 158476.6594 | V110: 189739.2439 | W110: 183570.6451 | X110: 213855.8908 | Y110: 173040.8289
A111: 103 | D111: 187.5504712 | E111: 212.0432812 | F111: 219.8636611 | G111: 229.5034594 | H111: 241.4717995 | I111: 237.2482468 | J111: 249.9703257 | K111: 297.7163866 | O111: 103 | R111: 162532.3213 | S111: 138636.045 | T111: 106236.9715 | U111: 177591.0721 | V111: 110897.5624 | W111: 170697.2121 | X111: 134811.2195 | Y111: 154954.9729
A112: 104 | D112: 189.4554429 | E112: 197.2084208 | F112: 208.5709152 | G112: 240.214637 | H112: 232.660911 | I112: 246.2170836 | J112: 276.7166747 | K112: 288.1183496 | O112: 104 | R112: 148790.4662 | S112: 95778.5044 | T112: 101152.8029 | U112: 177665.113 | V112: 164550.455 | W112: 186517.4998 | X112: 209366.3923 | Y112: 206964.8947
A113: 105 | D113: 208.1624389 | E113: 206.1039163 | F113: 220.1023119 | G113: 244.3342222 | H113: 244.7299124 | I113: 268.8534318 | J113: 264.0197743 | K113: 274.619463 | O113: 105 | R113: 89005.92346 | S113: 93031.80841 | T113: 127231.9349 | U113: 139926.555 | V113: 119285.0078 | W113: 189832.2938 | X113: 134131.5345 | Y113: 142375.9179
A114: 106 | D114: 190.8408199 | E114: 219.9980001 | F114: 205.8429335 | G114: 228.1182285 | H114: 226.8248348 | I114: 255.6173643 | J114: 245.3778912 | K114: 308.2960674 | O114: 106 | R114: 113970.7103 | S114: 138354.7576 | T114: 155166.6376 | U114: 111541.2148 | V114: 182697.9726 | W114: 195751.3174 | X114: 175502.9394 | Y114: 171993.165
A115: 107 | D115: 200.227774 | E115: 195.8460851 | F115: 222.8749976 | G115: 241.29314 | H115: 247.2833938 | I115: 279.0297628 | J115: 272.154887 | K115: 274.4658133 | O115: 107 | R115: 129658.9098 | S115: 164906.7188 | T115: 99867.61877 | U115: 187424.5968 | V115: 140650.9326 | W115: 143028.8409 | X115: 151271.6416 | Y115: 165711.9167
A116: 108 | D116: 203.8268379 | E116: 220.5646171 | F116: 209.0982484 | G116: 237.6750448 | H116: 245.6969734 | I116: 275.2456439 | J116: 282.9667456 | K116: 301.2980264 | O116: 108 | R116: 105123.3687 | S116: 133491.3352 | T116: 120055.5709 | U116: 175758.9443 | V116: 141694.1681 | W116: 150012.0911 | X116: 125227.6575 | Y116: 207451.3263
A117: 109 | D117: 201.710157 | E117: 217.7910282 | F117: 232.7048726 | G117: 241.5025495 | H117: 239.7275806 | I117: 256.3758585 | J117: 267.8251719 | K117: 288.7483419 | O117: 109 | R117: 135284.0827 | S117: 150478.7563 | T117: 157428.5209 | U117: 179091.5816 | V117: 185052.3445 | W117: 126172.0291 | X117: 131569.3424 | Y117: 184266.3157
A118: 110 | D118: 206.9564599 | E118: 198.4358924 | F118: 223.0043757 | G118: 220.3614955 | H118: 263.7165 | I118: 258.7905622 | J118: 285.2547954 | K118: 261.183904 | O118: 110 | R118: 104512.1575 | S118: 111604.8782 | T118: 157690.8899 | U118: 147817.8536 | V118: 156549.0417 | W118: 137291.0495 | X118: 211690.7789 | Y118: 153238.2886
A119: 111 | D119: 198.3940055 | E119: 205.0121378 | F119: 221.0133539 | G119: 254.1965136 | H119: 248.8556594 | I119: 245.4298196 | J119: 262.1741883 | K119: 287.7399919 | O119: 111 | R119: 125398.2956 | S119: 161666.6249 | T119: 122980.5822 | U119: 130587.9613 | V119: 154456.0322 | W119: 143827.7191 | X119: 143078.2114 | Y119: 149322.9782
A120: 112 | D120: =D$4+(D$5-D$4)*((RAND()+RAND())/2) -> 210.30923 | E120: 228.760708 | F120: 213.3144278 | G120: 243.394014 | H120: 246.7311889 | I120: 249.4087412 | J120: 260.7003359 | K120: 266.8598744 | O120: 112 | R120: 149394.5978 | S120: 143669.1166 | T120: 102679.5498 | U120: 145693.2715 | V120: 170790.2877 | W120: 203405.4858 | X120: 148333.7936 | Y120: 157406.6429
A121: 113 | D121: 195.9765187 | E121: 205.9795066 | F121: 211.507484 | G121: 253.2267456 | H121: 246.6237992 | I121: 262.6049551 | J121: 268.1119897 | K121: 288.2604913 | O121: 113 | R121: 92695.56467 | S121: 108366.8934 | T121: 106811.8149 | U121: 169084.4552 | V121: 171577.2343 | W121: 158484.1212 | X121: 215428.0985 | Y121: 182734.0925
A122: 114 | D122: 191.1952113 | E122: 221.9737432 | F122: 214.1162186 | G122: 250.0986543 | H122: 235.0467166 | I122: 267.3759204 | J122: 278.7541345 | K122: 271.8058078 | O122: 114 | R122: 101224.8023 | S122: 112297.008 | T122: 126460.2637 | U122: 158683.8212 | V122: 167259.3946 | W122: 126121.9775 | X122: 175624.4478 | Y122: 160704.6852
A123: 115 | D123: 197.0580266 | E123: 205.6110342 | F123: 219.3774298 | G123: 231.1484585 | H123: 231.2985274 | I123: 251.1704042 | J123: 251.7624811 | K123: 288.0153171 | O123: 115 | R123: 104520.7757 | S123: 129548.7666 | T123: 179435.6942 | U123: 146031.6199 | V123: 136365.5039 | W123: 189199.6897 | X123: 120525.7305 | Y123: 127956.2623
A124: 116 | D124: 215.5834113 | E124: 214.777654 | F124: 222.0154911 | G124: 221.9165232 | H124: 251.6016971 | I124: 271.822396 | J124: 273.3669311 | K124: 293.1284799 | O124: 116 | R124: 154015.3768 | S124: 117800.3001 | T124: 155136.8012 | U124: 109322.5023 | V124: 186903.2834 | W124: 164599.4637 | X124: 168471.1688 | Y124: 135455.6462
A125: 117 | D125: 211.3001926 | E125: 216.805862 | F125: 221.1910763 | G125: 239.5682398 | H125: 253.8322544 | I125: 266.716183 | J125: 256.2243922 | K125: 271.1155476 | O125: 117 | R125: 154002.1493 | S125: 144759.3995 | T125: 119533.2148 | U125: 183080.0967 | V125: 134869.3098 | W125: 144032.494 | X125: 174082.4338 | Y125: 167934.8492
A126: 118 | D126: 189.9478782 | E126: 210.2681043 | F126: 211.1793038 | G126: 252.1827548 | H126: 248.0747636 | I126: 258.6157387 | J126: 273.3760058 | K126: 299.5408636 | O126: 118 | R126: 107547.8469 | S126: 142200.0702 | T126: 178955.4335 | U126: 171979.6858 | V126: 114229.2361 | W126: 126194.0573 | X126: 205497.7882 | Y126: 148419.8064
A127: 119 | D127: 198.2878934 | E127: 206.1928804 | F127: 207.4964646 | G127: 219.9721354 | H127: 232.8235753 | I127: 247.9688331 | J127: 269.9211695 | K127: =K$4+(K$5-K$4)*((RAND()+RAND())/2) -> 271.8701978 | O127: 119 | R127: 121277.9465 | S127: 169749.8185 | T127: 144354.8155 | U127: 164153.5994 | V127: 179582.9102 | W127: 116494.8932 | X127: 203693.921 | Y127: 178689.2142
A128: 120 | D128: 210.2921167 | E128: 226.2942046 | F128: 225.0602754 | G128: 219.7737628 | H128: 260.289411 | I128: 271.2486301 | J128: 263.2054088 | K128: 285.5765416 | O128: 120 | R128: 104450.5584 | S128: 109926.2559 | T128: 136577.2797 | U128: 183425.4695 | V128: 183781.5347 | W128: 187537.0505 | X128: 156259.7435 | Y128: 164755.111
A129: 121 | D129: 192.4014397 | E129: 222.3687797 | F129: 216.960797 | G129: 252.0514275 | H129: 245.2263623 | I129: 254.519102 | J129: 286.731226 | K129: 297.9980997 | O129: 121 | R129: 92307.21973 | S129: 118176.7762 | T129: 164661.5602 | U129: 179028.0391 | V129: 172292.5672 | W129: 111957.1074 | X129: 151344.6051 | Y129: 194608.9521
A130: 122 | D130: 216.705426 | E130: 206.4037595 | F130: 211.2314129 | G130: 245.2865239 | H130: 232.3411977 | I130: 248.2864259 | J130: 271.4963399 | K130: 279.4322957 | O130: 122 | R130: 101470.7195 | S130: 148661.6244 | T130: 150158.307 | U130: 130228.2905 | V130: 124373.7067 | W130: 122983.6044 | X130: 131706.4721 | Y130: 160248.6327
A131: 123 | D131: 191.414703 | E131: 198.7202557 | F131: 220.3490302 | G131: 211.6024344 | H131: 237.7180671 | I131: 249.2459663 | J131: 272.2851275 | K131: 273.7276184 | O131: 123 | R131: 131904.7045 | S131: 112023.0607 | T131: 117561.3606 | U131: 156215.1955 | V131: 109923.4326 | W131: 184641.8484 | X131: 196291.9928 | Y131: 125823.5749
A132: 124 | D132: 204.8981464 | E132: 202.1900244 | F132: 233.7620782 | G132: 233.6945233 | H132: 238.8317423 | I132: 246.8130573 | J132: 253.4884563 | K132: 269.3357441 | O132: 124 | R132: 106073.8373 | S132: 95456.67321 | T132: 138414.5364 | U132: 173062.4193 | V132: 172715.3146 | W132: 119962.2489 | X132: 127102.5333 | Y132: 165463.9799
A133: 125 | D133: 194.0269789 | E133: 224.9116583 | F133: 234.8585547 | G133: 244.5601561 | H133: 243.6967071 | I133: 265.1893922 | J133: 274.3902866 | K133: 273.1975599 | O133: 125 | R133: 118127.4849 | S133: 129774.8187 | T133: 157006.7441 | U133: 111853.6905 | V133: 196093.2925 | W133: 165662.6226 | X133: 166324.1732 | Y133: 152542.8655
A134: 126 | D134: 196.5693942 | E134: 197.7804168 | F134: 212.9476404 | G134: 227.9574516 | H134: 232.2203972 | I134: 243.3500276 | J134: 267.4231925 | K134: 264.9808592 | O134: 126 | R134: 118750.1776 | S134: 148564.0529 | T134: 162877.346 | U134: 114509.1923 | V134: 181040.0402 | W134: 115925.431 | X134: 195794.5233 | Y134: 227176.4243
A135: 127 | D135: 201.2300294 | E135: 214.9696778 | F135: 224.3819786 | G135: 226.4150659 | H135: 226.7337151 | I135: 243.5604295 | J135: 291.1456738 | K135: 285.4820488 | O135: 127 | R135: 98329.83276 | S135: 169120.1276 | T135: 125651.0495 | U135: 146887.4485 | V135: 134817.6772 | W135: =W$4+(W$5-W$4)*RAND() -> 162326.8013 | X135: 197624.2259 | Y135: 149659.1605
A136: 128 | D136: 213.8126889 | E136: 211.0582312 | F136: 224.051575 | G136: 221.5526845 | H136: 234.4461272 | I136: 269.9971491 | J136: 273.5222863 | K136: 286.0791298 | O136: 128 | R136: 152910.1112 | S136: 167910.4538 | T136: 97623.75884 | U136: 145410.5178 | V136: 187714.3154 | W136: 154134.6863 | X136: 139400.5727 | Y136: 147011.0456
A137: 129 | D137: 211.3584449 | E137: 199.4208438 | F137: 203.9143538 | G137: 221.3457187 | H137: 247.238035 | I137: 243.4643349 | J137: 271.9131559 | K137: 270.677957 | O137: 129 | R137: 146190.8125 | S137: 148363.7531 | T137: 139256.183 | U137: 181317.5045 | V137: 185339.3924 | W137: 127554.1264 | X137: 124266.3476 | Y137: 169006.2545
A138: 130 | D138: 215.9985827 | E138: 203.8263697 | F138: 217.9954032 | G138: 240.3573787 | H138: 240.9976326 | I138: 257.632692 | J138: 267.2077147 | K138: 287.8342851 | O138: 130 | R138: 99720.09631 | S138: 117920.6034 | T138: 151639.3883 | U138: 130879.91 | V138: 107205.7263 | W138: 150329.4001 | X138: 208324.9731 | Y138: 139874.5665
A139: =A138+1 -> 131 | D139: 200.5492565 | E139: 212.177356 | F139: 206.00724 | G139: 217.5747036 | H139: 249.7154622 | I139: 251.7977216 | J139: 272.233528 | K139: 287.9361936 | O139: =A139 -> 131 | R139: 110412.0272 | S139: 160700.6885 | T139: 133407.7607 | U139: 176900.192 | V139: 183953.0732 | W139: 154355.6949 | X139: 186412.7673 | Y139: 131000.4476
A140: 132 | D140: 198.3078542 | E140: 227.0703533 | F140: 206.6326877 | G140: 239.1404126 | H140: 241.5927238 | I140: 250.7973182 | J140: 259.6037858 | K140: 280.5633533 | O140: 132 | R140: 134741.8358 | S140: 104423.2423 | T140: 160161.5485 | U140: 187624.6878 | V140: 154654.6731 | W140: 175346.9725 | X140: 213112.3974 | Y140: 219590.8704
A141: 133 | D141: 200.0422322 | E141: 210.8926528 | F141: 237.8610995 | G141: 229.1179773 | H141: 230.8918208 | I141: 259.2190116 | J141: 269.8261194 | K141: 293.0861612 | O141: 133 | R141: 105083.6013 | S141: 163508.2787 | T141: 139073.9143 | U141: 133612.6989 | V141: 142546.7588 | W141: 182654.1215 | X141: 185610.3483 | Y141: 136824.1744
A142: 134 | D142: 189.2561407 | E142: 201.7701001 | F142: 223.9955548 | G142: 230.0012528 | H142: 244.7658123 | I142: 256.6391676 | J142: 291.494052 | K142: 289.9904687 | O142: 134 | R142: 94889.74134 | S142: 112247.1719 | T142: 100565.1934 | U142: 174345.7382 | V142: 179525.6726 | W142: 125593.562 | X142: 148921.0797 | Y142: 189872.7603
A143: 135 | D143: 192.2535406 | E143: 205.1188868 | F143: 239.6872183 | G143: 236.8886819 | H143: 244.1060957 | I143: 256.0120407 | J143: 254.4526996 | K143: 289.3815847 | O143: 135 | R143: 102879.0328 | S143: 121202.4841 | T143: 111181.4246 | U143: 112978.701 | V143: 175778.8309 | W143: 137418.4889 | X143: 163746.1018 | Y143: 213463.3892
A144: 136 | D144: 192.2389299 | E144: 210.5469311 | F144: 216.2993293 | G144: 235.4331553 | H144: 232.1275827 | I144: 249.8392583 | J144: 267.7755076 | K144: 282.1330155 | O144: 136 | R144: =R$4+(R$5-R$4)*RAND() -> 112487.5276 | S144: 165070.8196 | T144: 148966.0068 | U144: 153323.1483 | V144: 118713.8687 | W144: 147831.2825 | X144: 149538.2619 | Y144: 194822.9667
A145: 137 | D145: 208.9700035 | E145: 202.3427247 | F145: 227.018962 | G145: 248.6497041 | H145: 243.3644648 | I145: 273.0395382 | J145: 268.8810661 | K145: 276.2242533 | O145: 137 | R145: 139121.7476 | S145: 135144.329 | T145: 168658.1877 | U145: 143780.6681 | V145: 183099.4838 | W145: 173735.7706 | X145: 123263.6519 | Y145: 128070.0875
A146: 138 | D146: 193.7715386 | E146: 205.7301755 | F146: 225.2865253 | G146: 217.8193954 | H146: 235.1017246 | I146: 247.3708458 | J146: 275.5890768 | K146: 276.9211582 | O146: 138 | R146: 123643.2631 | S146: 162127.125 | T146: 174051.2491 | U146: 124150.4482 | V146: 113452.0028 | W146: 124823.7086 | X146: 162365.0397 | Y146: 136874.4542
A147: 139 | D147: 205.0971066 | E147: 215.8065196 | F147: 211.5750191 | G147: 236.8633029 | H147: 241.5288456 | I147: 273.3977193 | J147: 283.0372704 | K147: 264.5493786 | O147: 139 | R147: 133497.9807 | S147: 100370.8343 | T147: 100199.6306 | U147: 182217.2647 | V147: 149665.9267 | W147: 200431.5165 | X147: 168135.3476 | Y147: 139249.0922
A148: 140 | D148: 202.8101113 | E148: 217.2628548 | F148: 214.978358 | G148: 219.8013234 | H148: 232.4254622 | I148: 260.3883155 | J148: 251.7493683 | K148: 278.2705729 | O148: 140 | R148: 113160.8202 | S148: 119227.7757 | T148: 129339.9051 | U148: 129147.3566 | V148: 171827.1808 | W148: 163941.0111 | X148: 163995.7702 | Y148: 221728.8461
A149: 141 | D149: 185.8335099 | E149: 209.0747554 | F149: 220.5448186 | G149: 229.0779966 | H149: 250.9416055 | I149: 267.1349969 | J149: 279.4670029 | K149: 274.9135167 | O149: 141 | R149: 102650.3325 | S149: 99655.12891 | T149: 120019.8991 | U149: 174980.8133 | V149: 141407.913 | W149: 135730.2526 | X149: 203184.7623 | Y149: 139260.7834
A150: 142 | D150: 197.7822414 | E150: 203.5132082 | F150: 206.9128445 | G150: 236.9027563 | H150: 234.7788694 | I150: 246.9268483 | J150: 267.2324056 | K150: 268.9395516 | O150: 142 | R150: 111888.9802 | S150: 93644.00521 | T150: 132955.7192 | U150: 140565.6573 | V150: 174629.3284 | W150: 200291.4518 | X150: 176726.481 | Y150: 195913.2418
A151: 143 | D151: 202.5140833 | E151: 204.8084745 | F151: 227.6243833 | G151: 224.5886481 | H151: 228.304398 | I151: 252.3184598 | J151: 268.5540294 | K151: 254.3748186 | O151: 143 | R151: 119804.2572 | S151: 127401.4426 | T151: 140741.5909 | U151: 120497.1249 | V151: 120451.0496 | W151: 193917.3454 | X151: 133228.1747 | Y151: 182924.3602
A152: 144 | D152: 213.0388504 | E152: 203.1866674 | F152: 213.312452 | G152: 231.2234524 | H152: 242.786794 | I152: 254.7230811 | J152: 289.2040588 | K152: 275.9635638 | O152: 144 | R152: 89968.42255 | S152: 93620.50479 | T152: 102962.1544 | U152: 132552.0082 | V152: 170752.5027 | W152: 192444.3918 | X152: 197801.8971 | Y152: 181138.2906
A153: 145 | D153: 204.7301792 | E153: 218.7368512 | F153: 216.2492604 | G153: 238.187596 | H153: 221.6323857 | I153: 246.0583224 | J153: 268.9113313 | K153: 278.3790136 | O153: 145 | R153: 94390.52801 | S153: 148149.0496 | T153: 122509.5867 | U153: 156301.1304 | V153: 178728.5874 | W153: 197559.3701 | X153: 188728.0355 | Y153: 222337.2295
A154: 146 | D154: 204.0759194 | E154: 200.4552089 | F154: 219.2699466 | G154: 228.6291652 | H154: 246.6896101 | I154: 266.9746619 | J154: 277.579867 | K154: 274.8169644 | O154: 146 | R154: 94094.99243 | S154: 98379.04073 | T154: 165256.7787 | U154: 145143.1441 | V154: 139756.8281 | W154: 155427.1126 | X154: 188131.0462 | Y154: 173009.9384
A155: 147 | D155: 211.1426891 | E155: 201.2462779 | F155: 218.8323263 | G155: 242.634734 | H155: 228.6290623 | I155: 253.7450503 | J155: 259.2129919 | K155: 284.6804152 | O155: 147 | R155: 152777.9355 | S155: 100254.1191 | T155: 147436.3288 | U155: 154999.8513 | V155: 179709.9309 | W155: 206540.0578 | X155: 153857.9942 | Y155: 203243.1187
A156: 148 | D156: 204.2597194 | E156: 217.1045268 | F156: 214.454369 | G156: 240.969158 | H156: 250.7824847 | I156: 256.7536425 | J156: 279.1055815 | K156: 266.5775697 | O156: 148 | R156: 104120.4426 | S156: 110198.65 | T156: 102782.0552 | U156: 133743.8671 | V156: 108184.8464 | W156: 147901.7213 | X156: 150988.5293 | Y156: 138222.7964
A157: 149 | D157: 194.1299191 | E157: 212.2866327 | F157: 217.5143292 | G157: 237.461644 | H157: 260.8752477 | I157: 275.7252006 | J157: 277.206743 | K157: 272.6150894 | O157: 149 | R157: 133669.5177 | S157: 110527.4248 | T157: 123654.2089 | U157: 147972.2486 | V157: 122152.0076 | W157: 188958.5005 | X157: 175417.4518 | Y157: 138137.8354
A158: 150 | D158: 210.1559601 | E158: 204.7651457 | F158: 207.073813 | G158: 231.3614018 | H158: 239.4057554 | I158: 276.7619797 | J158: 285.7905773 | K158: 272.9547655 | O158: 150 | R158: 130210.5127 | S158: 117206.109 | T158: 173625.1299 | U158: 186461.3338 | V158: 189326.8752 | W158: 135704.2021 | X158: 152635.2764 | Y158: 135832.2978
A159: 151 | D159: 191.9561201 | E159: 215.5763025 | F159: 202.3790602 | G159: 210.7622797 | H159: 246.6426824 | I159: 268.3426027 | J159: 252.9476251 | K159: 295.0239044 | O159: 151 | R159: 156939.7595 | S159: 165347.3219 | T159: 132569.0092 | U159: 182439.7217 | V159: 144180.9739 | W159: 168100.5645 | X159: 159551.2819 | Y159: 127713.7474
A160: 152 | D160: 190.0592643 | E160: 214.6137721 | F160: 208.024986 | G160: 216.2052218 | H160: 255.0640304 | I160: 256.1398783 | J160: 259.2874174 | K160: 295.1723789 | O160: 152 | R160: 114350.3628 | S160: 147820.9718 | T160: 145543.2479 | U160: 150867.277 | V160: 162098.1704 | W160: 205749.5095 | X160: 181784.0877 | Y160: 125941.0928
A161: 153 | D161: 194.1994468 | E161: 208.0262484 | F161: 227.0048361 | G161: 242.8069058 | H161: 229.9304146 | I161: 253.7974024 | J161: 272.73043 | K161: 268.7967755 | O161: 153 | R161: 111849.9869 | S161: 134611.7003 | T161: 172648.8477 | U161: 103168.8896 | V161: 160214.1821 | W161: 124767.297 | X161: 177467.5155 | Y161: 220664.043
A162: 154 | D162: 184.8252097 | E162: 192.3387113 | F162: 229.3258465 | G162: 228.6022027 | H162: 247.1449264 | I162: 250.3923527 | J162: 262.4377593 | K162: 280.2266342 | O162: 154 | R162: 145313.695 | S162: 128740.1612 | T162: 176038.4193 | U162: 126723.3343 | V162: 172488.6727 | W162: 114337.1575 | X162: 195435.9439 | Y162: 153438.7202
A163: 155 | D163: 211.4052558 | E163: 204.4490323 | F163: 228.6439208 | G163: 231.9548243 | H163: 230.6854387 | I163: 259.8992424 | J163: 260.106919 | K163: 268.5401756 | O163: 155 | R163: 142197.0619 | S163: 134654.8303 | T163: 161890.2034 | U163: 117582.4561 | V163: 132968.6447 | W163: 165734.0379 | X163: 179291.1363 | Y163: 134556.6779
A164: 156 | D164: 210.0206384 | E164: 198.5313934 | F164: 218.5586256 | G164: =G$4+(G$5-G$4)*((RAND()+RAND())/2) -> 234.9754671 | H164: 258.8125678 | I164: 263.9146508 | J164: 267.5893872 | K164: 286.5339886 | O164: 156 | R164: 127339.1487 | S164: 153875.7278 | T164: 126764.472 | U164: 117454.4032 | V164: 154786.0432 | W164: 190254.2478 | X164: 148941.7301 | Y164: 124847.6851
A165: 157 | D165: 189.3043443 | E165: 218.1676774 | F165: 212.5051617 | G165: 218.0575735 | H165: 242.1933454 | I165: 252.4899211 | J165: 282.2320304 | K165: 270.8373697 | O165: 157 | R165: 120255.5052 | S165: 166049.7632 | T165: 100812.411 | U165: 178896.4679 | V165: 125212.8251 | W165: 157837.0569 | X165: 190400.7898 | Y165: 186878.2347
A166: 158 | D166: 197.592091 | E166: 202.1143442 | F166: 230.1970527 | G166: 224.2743215 | H166: 238.8264833 | I166: 237.9506054 | J166: 280.8708025 | K166: 287.5611262 | O166: 158 | R166: 161497.0851 | S166: 118260.6433 | T166: 125667.2438 | U166: 167081.3854 | V166: 134325.8837 | W166: 154393.3824 | X166: 158946.3305 | Y166: 217885.3129
A167: 159 | D167: 205.2643859 | E167: 209.4639374 | F167: 226.2921781 | G167: 225.0386018 | H167: 260.6860663 | I167: 274.5412278 | J167: 261.1184947 | K167: 258.4626594 | O167: 159 | R167: 147870.1151 | S167: 170806.9139 | T167: 103467.6417 | U167: 169799.5445 | V167: 166437.2982 | W167: 122980.1881 | X167: 216660.2726 | Y167: 152375.0175
A168: 160 | D168: 183.8764199 | E168: 203.8823296 | F168: 209.8087087 | G168: 230.6948 | H168: 250.2133633 | I168: 262.3571059 | J168: 283.428686 | K168: 269.1300533 | O168: 160 | R168: 154251.9547 | S168: 94082.12281 | T168: 117808.7721 | U168: 180973.7678 | V168: 157352.2504 | W168: 178605.0621 | X168: 118272.1742 | Y168: 206152.3365
A169: 161 | D169: 204.1125737 | E169: 212.1027259 | F169: 216.8389636 | G169: 231.119727 | H169: 243.8127468 | I169: 255.12949 | J169: 258.6127182 | K169: 283.4819145 | O169: 161 | R169: 150172.1929 | S169: 167188.5117 | T169: 121614.9804 | U169: 186993.5555 | V169: 151331.8674 | W169: 197558.2682 | X169: 118098.1209 | Y169: 185708.2524
A170: 162 | D170: 199.2009237 | E170: 202.701601 | F170: 219.6702686 | G170: 227.3522365 | H170: 243.2504692 | I170: 249.4719183 | J170: 278.3993108 | K170: 265.0184622 | O170: 162 | R170: 112119.6982 | S170: 129149.8016 | T170: 110826.0273 | U170: 113730.0394 | V170: 154176.97 | W170: 172689.4638 | X170: 188988.6455 | Y170: 166940.2249
A171: 163 | D171: 199.8792489 | E171: 216.4257948 | F171: 216.133025 | G171: 223.3174906 | H171: 260.7182271 | I171: 243.6353816 | J171: 267.4577704 | K171: 297.5356083 | O171: 163 | R171: 148409.3345 | S171: 104303.799 | T171: 145510.5893 | U171: 115680.7846 | V171: 118358.6681 | W171: 198769.5219 | X171: 139087.1389 | Y171: 190037.8415
A172: 164 | D172: 192.7347819 | E172: 214.5999419 | F172: 212.3833394 | G172: 240.5166566 | H172: 240.8001908 | I172: 253.6670331 | J172: 287.0940159 | K172: 290.8980028 | O172: 164 | R172: 123960.0641 | S172: 100806.3401 | T172: 127000.9814 | U172: 129223.5039 | V172: 129650.2914 | W172: 116726.0087 | X172: 171045.8026 | Y172: 197816.0164
A173: 165 | D173: 203.6354148 | E173: 220.100142 | F173: 226.5463498 | G173: 246.1408038 | H173: 247.4692921 | I173: 256.7381885 | J173: 277.0960219 | K173: 290.4205839 | O173: 165 | R173: 98889.30683 | S173: 102924.8606 | T173: 144080.5931 | U173: 152224.5372 | V173: 129278.0009 | W173: 174918.2154 | X173: 123231.0168 | Y173: 202757.3356
A174: 166 | D174: 198.374424 | E174: 210.1840253 | F174: 208.3120235 | G174: 223.35365 | H174: 238.4105567 | I174: 246.8718931 | J174: 277.8694909 | K174: 285.679806 | O174: 166 | R174: 117500.6262 | S174: 152934.753 | T174: 114907.6066 | U174: 128360.8609 | V174: 142816.7413 | W174: 203638.1787 | X174: 148755.6479 | Y174: 179511.6833
A175: 167 | D175: 203.1746461 | E175: 211.3723035 | F175: 224.8737439 | G175: 228.6453397 | H175: 262.5486607 | I175: 251.5502378 | J175: 278.208743 | K175: 277.3124584 | O175: 167 | R175: 161555.3709 | S175: 117466.7511 | T175: 149645.6633 | U175: 176281.8494 | V175: 189380.3059 | W175: 180596.986 | X175: 167888.715 | Y175: 138083.6091
A176: 168 | D176: 201.1020169 | E176: 206.6917078 | F176: 233.2036945 | G176: 233.0988963 | H176: 240.1481073 | I176: 253.7580774 | J176: 263.7162371 | K176: 256.1748201 | O176: 168 | R176: 143800.0295 | S176: 148675.3813 | T176: 111443.9493 | U176: 152618.5617 | V176: 131545.5826 | W176: 188594.2281 | X176: 195684.0832 | Y176: 180091.4179
A177: 169 | D177: 204.7553475 | E177: 200.2376884 | F177: 220.9528915 | G177: 226.8155645 | H177: 244.5585841 | I177: 256.0673763 | J177: 278.8543372 | K177: 286.0908239 | O177: 169 | R177: 144586.9514 | S177: 129712.0255 | T177: 165877.9159 | U177: 176228.1383 | V177: 197966.0438 | W177: 151318.7419 | X177: 206985.8554 | Y177: 151984.3702
A178: 170 | D178: 198.696514 | E178: 201.4891004 | F178: 228.3685991 | G178: 236.3974293 | H178: 246.7037637 | I178: 253.4405338 | J178: 292.4773423 | K178: 272.2156089 | O178: 170 | R178: 133503.1953 | S178: 123137.9773 | T178: 172775.5832 | U178: 153757.2047 | V178: 143593.0216 | W178: 140935.6009 | X178: 158902.9823 | Y178: 135982.4793
A179: 171 | D179: 199.2859652 | E179: 212.3900281 | F179: 223.1784643 | G179: 227.2398821 | H179: 246.4852489 | I179: 265.0733044 | J179: 273.4203782 | K179: 293.868871 | O179: 171 | R179: 141472.3744 | S179: 135160.7866 | T179: 112374.9036 | U179: 139606.4794 | V179: 109443.2645 | W179: 141771.1435 | X179: 141104.7841 | Y179: 203616.2342
A180: 172 | D180: 195.5744981 | E180: 202.1107265 | F180: 214.2415183 | G180: 227.5013513 | H180: 255.2176935 | I180: 275.7231356 | J180: 280.0972025 | K180: 278.2850298 | O180: 172 | R180: 102469.2603 | S180: 121940.7586 | T180: 175757.8386 | U180: 129840.1224 | V180: 180068.2209 | W180: 181647.9221 | X180: 171225.8826 | Y180: 208046.9963
A181: 173 | D181: 201.324726 | E181: 207.1470945 | F181: 220.6618338 | G181: 231.6080894 | H181: 250.2619848 | I181: 251.0949713 | J181: 247.9613016 | K181: 274.6194279 | O181: 173 | R181: 157982.8741 | S181: 142619.8167 | T181: 146262.0976 | U181: 134115.7264 | V181: 159299.5812 | W181: 175427.1059 | X181: 186873.5053 | Y181: 164041.0328
A182: 174 | D182: 204.9818775 | E182: 210.6141483 | F182: 230.129459 | G182: 227.4021035 | H182: 250.5792367 | I182: 248.4435605 | J182: 281.3084589 | K182: 282.6459009 | O182: 174 | R182: 99681.42347 | S182: 120336.9054 | T182: 161171.5295 | U182: 105597.5088 | V182: 117677.9649 | W182: 189391.3954 | X182: 185144.3246 | Y182: 221705.8168
A183: 175 | D183: 201.0855065 | E183: 212.2784429 | F183: 217.6936513 | G183: 235.8764182 | H183: 253.8018915 | I183: 240.3092671 | J183: 267.0829185 | K183: 286.2940036 | O183: 175 | R183: 106441.6267 | S183: 102710.3928 | T183: 166396.2584 | U183: 111214.1949 | V183: 172651.095 | W183: 128050.5879 | X183: 179881.2446 | Y183: 203272.1104
A184: 176 | D184: =D$4+(D$5-D$4)*((RAND()+RAND())/2) -> 198.0880565 | E184: 201.0993501 | F184: 215.8718384 | G184: 234.9906049 | H184: 244.223015 | I184: 252.4713203 | J184: 260.5552838 | K184: 284.0369635 | O184: 176 | R184: 110063.5915 | S184: 165683.5706 | T184: 156714.3482 | U184: 135810.0304 | V184: 136083.52 | W184: 145617.3921 | X184: 192137.8526 | Y184: 193568.9203
A185: 177 | D185: 210.806753 | E185: 218.4683113 | F185: 228.147803 | G185: 233.2424619 | H185: 231.787925 | I185: 258.9570247 | J185: 291.1684705 | K185: 289.6460279 | O185: 177 | R185: 149823.162 | S185: 105800.9891 | T185: 175238.278 | U185: 144680.2029 | V185: 142064.1018 | W185: 164311.8707 | X185: 121862.6452 | Y185: 148636.641
A186: 178 | D186: 204.5354807 | E186: 202.6466945 | F186: 234.9695926 | G186: 229.6814267 | H186: 243.8994532 | I186: 260.7248351 | J186: 286.2653316 | K186: 277.4568624 | O186: 178 | R186: 146215.9763 | S186: 111094.0721 | T186: 162028.7068 | U186: 111431.8808 | V186: 124685.026 | W186: 206927.9816 | X186: 170439.5715 | Y186: 215718.7173
A187: 179 | D187: 181.9929949 | E187: 221.0620095 | F187: 232.8317512 | G187: 227.1831231 | H187: 246.6815678 | I187: 248.2101747 | J187: 275.7730641 | K187: 290.8797427 | O187: 179 | R187: 89094.93227 | S187: 166563.2667 | T187: 154367.9349 | U187: 146934.1817 | V187: 163194.4098 | W187: 170853.1157 | X187: 160004.5195 | Y187: 207147.7472
A188: 180 | D188: 190.5537334 | E188: 213.0655472 | F188: 238.7760219 | G188: 227.8534981 | H188: 252.0167024 | I188: 249.9789624 | J188: 265.9309904 | K188: 281.244317 | O188: 180 | R188: 103579.9632 | S188: 163792.0153 | T188: 153174.5998 | U188: 141129.1071 | V188: 107998.4151 | W188: 162858.8274 | X188: 135149.5452 | Y188: 224624.5938
A189: 181 | D189: 212.3062309 | E189: 204.9269956 | F189: 221.1183086 | G189: 237.9396473 | H189: 229.6604707 | I189: 270.2105266 | J189: 283.7191885 | K189: 283.4605695 | O189: 181 | R189: 136301.264 | S189: 132055.9033 | T189: 107516.2771 | U189: 134304.438 | V189: 143587.192 | W189: 132569.6177 | X189: 120874.7857 | Y189: 136132.0194
A190: 182 | D190: 204.9486992 | E190: 216.1837322 | F190: 224.8665704 | G190: 226.6595222 | H190: 245.9427265 | I190: 257.2301667 | J190: 280.0848726 | K190: 289.0857557 | O190: 182 | R190: 101279.3443 | S190: 156277.0301 | T190: 98516.31121 | U190: 181468.4678 | V190: 124878.9693 | W190: 193394.8875 | X190: 159229.3325 | Y190: 208732.1056
A191: 183 | D191: 189.0072105 | E191: 212.9509327 | F191: 202.2844437 | G191: 227.6778611 | H191: 251.8531187 | I191: 243.1637675 | J191: 254.5000214 | K191: 274.8144698 | O191: 183 | R191: 159538.8401 | S191: 137308.5038 | T191: 169645.5608 | U191: 136070.7499 | V191: 172075.2735 | W191: 113078.7009 | X191: 206085.5037 | Y191: 156041.5277
A192: 184 | D192: 196.2812413 | E192: 201.3971874 | F192: 215.7576458 | G192: 232.9912557 | H192: 253.7287081 | I192: 258.7436486 | J192: 248.483449 | K192: 282.3173226 | O192: 184 | R192: 89810.51736 | S192: 98928.02175 | T192: 102780.1525 | U192: 166217.7322 | V192: 186523.5021 | W192: 149796.8853 | X192: 190581.1098 | Y192: 197052.6261
A193: 185 | D193: 198.0173604 | E193: 211.4356202 | F193: 235.5284387 | G193: 220.6441592 | H193: 251.9839454 | I193: 242.4399262 | J193: 256.0724553 | K193: 281.5072184 | O193: 185 | R193: 95847.92439 | S193: 137287.6054 | T193: 147662.1554 | U193: 170515.9015 | V193: 147697.3763 | W193: 177661.362 | X193: 141245.7369 | Y193: 194122.2354
A194: 186 | D194: 203.5405165 | E194: 203.1828112 | F194: 227.4321126 | G194: 240.5812847 | H194: 260.9945555 | I194: 250.07657 | J194: 286.0607785 | K194: 268.1949144 | O194: 186 | R194: 97910.63438 | S194: 113395.0744 | T194: 177687.5486 | U194: 127074.5694 | V194: 143242.7513 | W194: 116991.1068 | X194: 129321.7871 | Y194: 214423.899
A195: 187 | D195: 206.5203566 | E195: 213.0837352 | F195: 217.6730736 | G195: 237.3392058 | H195: 220.5716042 | I195: 256.6927844 | J195: 268.3684247 | K195: 295.3169466 | O195: 187 | R195: =R$4+(R$5-R$4)*RAND() -> 115789.7168 | S195: 162041.2732 | T195: 146404.067 | U195: 143993.1805 | V195: 123487.5054 | W195: 160068.2335 | X195: 207468.3679 | Y195: 137888.3846
A196: 188 | D196: 205.7889492 | E196: 214.5162148 | F196: 219.2459142 | G196: 222.3540472 | H196: 228.1651554 | I196: 254.2573549 | J196: 276.7187635 | K196: 283.0568581 | O196: 188 | R196: 136445.033 | S196: 93404.39774 | T196: 97729.45245 | U196: 124630.8235 | V196: 148250.5948 | W196: 138249.488 | X196: 145455.3063 | Y196: 204667.933
A197: 189 | D197: 198.8991086 | E197: 221.4539297 | F197: 223.1796983 | G197: 238.1488178 | H197: 225.7553333 | I197: 262.9137018 | J197: 274.4180755 | K197: 259.0056228 | O197: 189 | R197: 155988.2773 | S197: 160402.7298 | T197: 117469.7847 | U197: 107949.5936 | V197: 182716.1121 | W197: 181957.6166 | X197: 153894.4371 | Y197: 195304.1093
A198: 190 | D198: 190.4840081 | E198: 209.5676054 | F198: 229.8719864 | G198: 224.5117774 | H198: 235.4378093 | I198: 264.5845206 | J198: 252.7064347 | K198: 268.9872498 | O198: 190 | R198: 113255.6923 | S198: 108433.2127 | T198: 118860.28 | U198: 140394.4881 | V198: 160458.2819 | W198: 149716.0361 | X198: 127661.711 | Y198: 155073.8162
A199: 191 | D199: 188.5956841 | E199: 210.1370677 | F199: 215.4613817 | G199: 232.7537385 | H199: 256.0993374 | I199: 234.6691344 | J199: 264.7426807 | K199: 276.7667941 | O199: 191 | R199: 116956.9432 | S199: 144619.998 | T199: 160977.9899 | U199: 101653.4581 | V199: 150642.7985 | W199: =W$4+(W$5-W$4)*RAND() -> 167127.3715 | X199: 208648.7168 | Y199: 139684.6902
A200: 192 | D200: 206.6071475 | E200: 215.8662241 | F200: 224.7228806 | G200: 244.5989701 | H200: 262.6506524 | I200: 271.0783072 | J200: =J$4+(J$5-J$4)*((RAND()+RAND())/2) -> 271.8653064 | K200: 285.6013485 | O200: 192 | R200: 118179.9786 | S200: 146225.791 | T200: 120322.5555 | U200: 127848.4035 | V200: 186126.0794 | W200: 154146.2002 | X200: 119469.427 | Y200: 180441.609
A201: 193 | D201: 190.2429093 | E201: 191.1689497 | F201: 216.4709327 | G201: 235.155952 | H201: 256.3667703 | I201: 248.6242058 | J201: 255.4270132 | K201: 289.5608306 | O201: 193 | R201: 142055.0489 | S201: 145931.0283 | T201: 168783.1499 | U201: 143402.7477 | V201: 122358.7632 | W201: 201374.0016 | X201: 210464.1415 | Y201: 191401.2495
A202: 194 | D202: 204.0286527 | E202: 214.1237406 | F202: 217.4117653 | G202: 244.8952847 | H202: 242.4054457 | I202: 249.4793637 | J202: 253.0472886 | K202: 280.6639591 | O202: 194 | R202: 123187.5051 | S202: 131605.0764 | T202: 154082.7324 | U202: 121421.5704 | V202: 118290.8014 | W202: 167903.727 | X202: 212204.0353 | Y202: 155692.7364
... 806 more rows

Sheet FC Simulação
A1: Fluxos de Caixa | B1: 0 | C1: 1 | D1: 2 | E1: 3 | F1: 4 | G1: 5 | H1: 6 | I1: 7 | J1: 8 | K1: 9 | L1: 10 | M1: VPL (t=0-10)
A2: 1 | B2: =Fluxo!B22 -> -108118 | C2: =Fluxo!C22 -> 10430.495 | D2: =Fluxo!D22 -> 10889.51975 | E2: =(((Faturamento!$E$20)*22*12)*0.9635-Fluxo!$E$4-Simulação!R9-Fluxo!$E$7)*0.75+Fluxo!$E$14+Fluxo!$E$15+Fluxo!$E$16-Fluxo!$E$18-Fluxo!$E$20+Fluxo!$E$21 -> 22566.51861 | F2: =(((Faturamento!$F$20)*22*12)*0.9635-Fluxo!$F$4-Simulação!S9-Fluxo!$D$7)*0.75+Fluxo!$F$14+Fluxo!$F$15+Fluxo!$F$16-Fluxo!$F$18-Fluxo!$F$20+Fluxo!$F$21 -> 7526.468898 | G2: =(((Faturamento!$G$20)*22*12)*0.9635-Fluxo!$G$4-Simulação!T9-Fluxo!$E$7)*0.75+Fluxo!$G$14+Fluxo!$G$15+Fluxo!$G$16-Fluxo!$G$18-Fluxo!$G$20+Fluxo!$G$21 -> 39808.37213 | H2: =(((Faturamento!$H$20)*22*12)*0.9635-Fluxo!$H$4-Simulação!U9-Fluxo!$F$7)*0.75+Fluxo!$H$14+Fluxo!$H$15+Fluxo!$H$16-Fluxo!$H$18-Fluxo!$H$20+Fluxo!$H$21 -> 25309.80137 | I2: =(((Faturamento!$I$20)*22*12)*0.9635-Fluxo!$I$4-Simulação!V9-Fluxo!$G$7)*0.75+Fluxo!$I$14+Fluxo!$I$15+Fluxo!$I$16-Fluxo!$I$18-Fluxo!$I$20+Fluxo!$I$21 -> -10158.91766 | J2: =(((Faturamento!$J$20)*22*12)*0.9635-Fluxo!$J$4-Simulação!W9-Fluxo!$H$7)*0.75+Fluxo!$J$14+Fluxo!$J$15+Fluxo!$J$16-Fluxo!$J$18-Fluxo!$J$20+Fluxo!$J$21 -> 30094.38069 | K2: =(((Faturamento!$K$20)*22*12)*0.9635-Fluxo!$K$4-Simulação!X9-Fluxo!$I$7)*0.75+Fluxo!$K$14+Fluxo!$K$15+Fluxo!$K$16-Fluxo!$K$18-Fluxo!$K$20+Fluxo!$K$21 -> -21115.74398 | L2: =(((Faturamento!$L$20)*22*12)*0.9635-Fluxo!$L$4-Simulação!Y9-Fluxo!$J$7)*0.75+Fluxo!$L$14+Fluxo!$L$15+Fluxo!$L$16-Fluxo!$L$18-Fluxo!$L$20+Fluxo!$L$21 -> -2389.136972 | M2: =NPV(Taxas!$B$17,C2:L2)+B2 -> -13062.64656
A3: =A2+1 -> 2 | B3: =B2 -> -108118 | C3: 10430.495 | D3: 10889.51975 | E3: =(((Faturamento!$E$20)*22*12)*0.9635-Fluxo!$E$4-Simulação!R10-Fluxo!$E$7)*0.75+Fluxo!$E$14+Fluxo!$E$15+Fluxo!$E$16-Fluxo!$E$18-Fluxo!$E$20+Fluxo!$E$21 -> -8381.74043 | F3: =(((Faturamento!$F$20)*22*12)*0.9635-Fluxo!$F$4-Simulação!S10-Fluxo!$D$7)*0.75+Fluxo!$F$14+Fluxo!$F$15+Fluxo!$F$16-Fluxo!$F$18-Fluxo!$F$20+Fluxo!$F$21 -> 21422.92267 | G3: =(((Faturamento!$G$20)*22*12)*0.9635-Fluxo!$G$4-Simulação!T10-Fluxo!$E$7)*0.75+Fluxo!$G$14+Fluxo!$G$15+Fluxo!$G$16-Fluxo!$G$18-Fluxo!$G$20+Fluxo!$G$21 -> -18240.7068 | H3: =(((Faturamento!$H$20)*22*12)*0.9635-Fluxo!$H$4-Simulação!U10-Fluxo!$F$7)*0.75+Fluxo!$H$14+Fluxo!$H$15+Fluxo!$H$16-Fluxo!$H$18-Fluxo!$H$20+Fluxo!$H$21 -> -5746.227272 | I3: =(((Faturamento!$I$20)*22*12)*0.9635-Fluxo!$I$4-Simulação!V10-Fluxo!$G$7)*0.75+Fluxo!$I$14+Fluxo!$I$15+Fluxo!$I$16-Fluxo!$I$18-Fluxo!$I$20+Fluxo!$I$21 -> -2677.882581 | J3: =(((Faturamento!$J$20)*22*12)*0.9635-Fluxo!$J$4-Simulação!W10-Fluxo!$H$7)*0.75+Fluxo!$J$14+Fluxo!$J$15+Fluxo!$J$16-Fluxo!$J$18-Fluxo!$J$20+Fluxo!$J$21 -> 15763.24913 | K3: =(((Faturamento!$K$20)*22*12)*0.9635-Fluxo!$K$4-Simulação!X10-Fluxo!$I$7)*0.75+Fluxo!$K$14+Fluxo!$K$15+Fluxo!$K$16-Fluxo!$K$18-Fluxo!$K$20+Fluxo!$K$21 -> 46140.52926 | L3: =(((Faturamento!$L$20)*22*12)*0.9635-Fluxo!$L$4-Simulação!Y10-Fluxo!$J$7)*0.75+Fluxo!$L$14+Fluxo!$L$15+Fluxo!$L$16-Fluxo!$L$18-Fluxo!$L$20+Fluxo!$L$21 -> 35491.88505 | M3: =NPV(Taxas!$B$17,C3:L3)+B3 -> -34058.70118
A4: =A3+1 -> 3 | B4: -108118 | C4: 10430.495 | D4: 10889.51975 | E4: =(((Faturamento!$E$20)*22*12)*0.9635-Fluxo!$E$4-Simulação!R11-Fluxo!$E$7)*0.75+Fluxo!$E$14+Fluxo!$E$15+Fluxo!$E$16-Fluxo!$E$18-Fluxo!$E$20+Fluxo!$E$21 -> 36209.26858 | F4: =(((Faturamento!$F$20)*22*12)*0.9635-Fluxo!$F$4-Simulação!S11-Fluxo!$D$7)*0.75+Fluxo!$F$14+Fluxo!$F$15+Fluxo!$F$16-Fluxo!$F$18-Fluxo!$F$20+Fluxo!$F$21 -> 34365.4438 | G4: =(((Faturamento!$G$20)*22*12)*0.9635-Fluxo!$G$4-Simulação!T11-Fluxo!$E$7)*0.75+Fluxo!$G$14+Fluxo!$G$15+Fluxo!$G$16-Fluxo!$G$18-Fluxo!$G$20+Fluxo!$G$21 -> 34323.62324 | H4: =(((Faturamento!$H$20)*22*12)*0.9635-Fluxo!$H$4-Simulação!U11-Fluxo!$F$7)*0.75+Fluxo!$H$14+Fluxo!$H$15+Fluxo!$H$16-Fluxo!$H$18-Fluxo!$H$20+Fluxo!$H$21 -> -13273.79134 | I4: =(((Faturamento!$I$20)*22*12)*0.9635-Fluxo!$I$4-Simulação!V11-Fluxo!$G$7)*0.75+Fluxo!$I$14+Fluxo!$I$15+Fluxo!$I$16-Fluxo!$I$18-Fluxo!$I$20+Fluxo!$I$21 -> 38233.36452 | J4: =(((Faturamento!$J$20)*22*12)*0.9635-Fluxo!$J$4-Simulação!W11-Fluxo!$H$7)*0.75+Fluxo!$J$14+Fluxo!$J$15+Fluxo!$J$16-Fluxo!$J$18-Fluxo!$J$20+Fluxo!$J$21 -> -16099.85492 | K4: =(((Faturamento!$K$20)*22*12)*0.9635-Fluxo!$K$4-Simulação!X11-Fluxo!$I$7)*0.75+Fluxo!$K$14+Fluxo!$K$15+Fluxo!$K$16-Fluxo!$K$18-Fluxo!$K$20+Fluxo!$K$21 -> -17747.53458 | L4: =(((Faturamento!$L$20)*22*12)*0.9635-Fluxo!$L$4-Simulação!Y11-Fluxo!$J$7)*0.75+Fluxo!$L$14+Fluxo!$L$15+Fluxo!$L$16-Fluxo!$L$18-Fluxo!$L$20+Fluxo!$L$21 -> 20007.3749 | M4: =NPV(Taxas!$B$17,C4:L4)+B4 -> 7065.829567
A5: =A4+1 -> 4 | B5: =B4 -> -108118 | C5: =C4 -> 10430.495 | D5: =D4 -> 10889.51975 | E5: =(((Faturamento!$E$20)*22*12)*0.9635-Fluxo!$E$4-Simulação!R12-Fluxo!$E$7)*0.75+Fluxo!$E$14+Fluxo!$E$15+Fluxo!$E$16-Fluxo!$E$18-Fluxo!$E$20+Fluxo!$E$21 -> 11510.06589 | F5: =(((Faturamento!$F$20)*22*12)*0.9635-Fluxo!$F$4-Simulação!S12-Fluxo!$D$7)*0.75+Fluxo!$F$14+Fluxo!$F$15+Fluxo!$F$16-Fluxo!$F$18-Fluxo!$F$20+Fluxo!$F$21 -> 26075.34686 | G5: =(((Faturamento!$G$20)*22*12)*0.9635-Fluxo!$G$4-Simulação!T12-Fluxo!$E$7)*0.75+Fluxo!$G$14+Fluxo!$G$15+Fluxo!$G$16-Fluxo!$G$18-Fluxo!$G$20+Fluxo!$G$21 -> 29832.46671 | H5: =(((Faturamento!$H$20)*22*12)*0.9635-Fluxo!$H$4-Simulação!U12-Fluxo!$F$7)*0.75+Fluxo!$H$14+Fluxo!$H$15+Fluxo!$H$16-Fluxo!$H$18-Fluxo!$H$20+Fluxo!$H$21 -> 21796.76268 | I5: =(((Faturamento!$I$20)*22*12)*0.9635-Fluxo!$I$4-Simulação!V12-Fluxo!$G$7)*0.75+Fluxo!$I$14+Fluxo!$I$15+Fluxo!$I$16-Fluxo!$I$18-Fluxo!$I$20+Fluxo!$I$21 -> 14719.37632 | J5: =(((Faturamento!$J$20)*22*12)*0.9635-Fluxo!$J$4-Simulação!W12-Fluxo!$H$7)*0.75+Fluxo!$J$14+Fluxo!$J$15+Fluxo!$J$16-Fluxo!$J$18-Fluxo!$J$20+Fluxo!$J$21 -> -1917.185213 | K5: =(((Faturamento!$K$20)*22*12)*0.9635-Fluxo!$K$4-Simulação!X12-Fluxo!$I$7)*0.75+Fluxo!$K$14+Fluxo!$K$15+Fluxo!$K$16-Fluxo!$K$18-Fluxo!$K$20+Fluxo!$K$21 -> -3003.828432 | L5: =(((Faturamento!$L$20)*22*12)*0.9635-Fluxo!$L$4-Simulação!Y12-Fluxo!$J$7)*0.75+Fluxo!$L$14+Fluxo!$L$15+Fluxo!$L$16-Fluxo!$L$18-Fluxo!$L$20+Fluxo!$L$21 -> -10664.10364 | M5: =NPV(Taxas!$B$17,C5:L5)+B5 -> -15253.42648
A6: 5 | B6: -108118 | C6: 10430.495 | D6: 10889.51975 | E6: =(((Faturamento!$E$20)*22*12)*0.9635-Fluxo!$E$4-Simulação!R13-Fluxo!$E$7)*0.75+Fluxo!$E$14+Fluxo!$E$15+Fluxo!$E$16-Fluxo!$E$18-Fluxo!$E$20+Fluxo!$E$21 -> -14420.17589 | F6: =(((Faturamento!$F$20)*22*12)*0.9635-Fluxo!$F$4-Simulação!S13-Fluxo!$D$7)*0.75+Fluxo!$F$14+Fluxo!$F$15+Fluxo!$F$16-Fluxo!$F$18-Fluxo!$F$20+Fluxo!$F$21 -> 3812.432115 | G6: =(((Faturamento!$G$20)*22*12)*0.9635-Fluxo!$G$4-Simulação!T13-Fluxo!$E$7)*0.75+Fluxo!$G$14+Fluxo!$G$15+Fluxo!$G$16-Fluxo!$G$18-Fluxo!$G$20+Fluxo!$G$21 -> -12694.47018 | H6: =(((Faturamento!$H$20)*22*12)*0.9635-Fluxo!$H$4-Simulação!U13-Fluxo!$F$7)*0.75+Fluxo!$H$14+Fluxo!$H$15+Fluxo!$H$16-Fluxo!$H$18-Fluxo!$H$20+Fluxo!$H$21 -> 37825.78607 | I6: =(((Faturamento!$I$20)*22*12)*0.9635-Fluxo!$I$4-Simulação!V13-Fluxo!$G$7)*0.75+Fluxo!$I$14+Fluxo!$I$15+Fluxo!$I$16-Fluxo!$I$18-Fluxo!$I$20+Fluxo!$I$21 -> 4858.594201 | J6: =(((Faturamento!$J$20)*22*12)*0.9635-Fluxo!$J$4-Simulação!W13-Fluxo!$H$7)*0.75+Fluxo!$J$14+Fluxo!$J$15+Fluxo!$J$16-Fluxo!$J$18-Fluxo!$J$20+Fluxo!$J$21 -> 16449.93621 | K6: =(((Faturamento!$K$20)*22*12)*0.9635-Fluxo!$K$4-Simulação!X13-Fluxo!$I$7)*0.75+Fluxo!$K$14+Fluxo!$K$15+Fluxo!$K$16-Fluxo!$K$18-Fluxo!$K$20+Fluxo!$K$21 -> 47921.28371 | L6: =(((Faturamento!$L$20)*22*12)*0.9635-Fluxo!$L$4-Simulação!Y13-Fluxo!$J$7)*0.75+Fluxo!$L$14+Fluxo!$L$15+Fluxo!$L$16-Fluxo!$L$18-Fluxo!$L$20+Fluxo!$L$21 -> 60177.39537 | M6: =NPV(Taxas!$B$17,C6:L6)+B6 -> 6597.38587
A7: 6 | B7: -108118 | C7: 10430.495 | D7: 10889.51975 | E7: =(((Faturamento!$E$20)*22*12)*0.9635-Fluxo!$E$4-Simulação!R14-Fluxo!$E$7)*0.75+Fluxo!$E$14+Fluxo!$E$15+Fluxo!$E$16-Fluxo!$E$18-Fluxo!$E$20+Fluxo!$E$21 -> 20753.63358 | F7: =(((Faturamento!$F$20)*22*12)*0.9635-Fluxo!$F$4-Simulação!S14-Fluxo!$D$7)*0.75+Fluxo!$F$14+Fluxo!$F$15+Fluxo!$F$16-Fluxo!$F$18-Fluxo!$F$20+Fluxo!$F$21 -> 9411.594864 | G7: =(((Faturamento!$G$20)*22*12)*0.9635-Fluxo!$G$4-Simulação!T14-Fluxo!$E$7)*0.75+Fluxo!$G$14+Fluxo!$G$15+Fluxo!$G$16-Fluxo!$G$18-Fluxo!$G$20+Fluxo!$G$21 -> 2887.745095 | H7: =(((Faturamento!$H$20)*22*12)*0.9635-Fluxo!$H$4-Simulação!U14-Fluxo!$F$7)*0.75+Fluxo!$H$14+Fluxo!$H$15+Fluxo!$H$16-Fluxo!$H$18-Fluxo!$H$20+Fluxo!$H$21 -> 2791.446243 | I7: =(((Faturamento!$I$20)*22*12)*0.9635-Fluxo!$I$4-Simulação!V14-Fluxo!$G$7)*0.75+Fluxo!$I$14+Fluxo!$I$15+Fluxo!$I$16-Fluxo!$I$18-Fluxo!$I$20+Fluxo!$I$21 -> 45035.72873 | J7: =(((Faturamento!$J$20)*22*12)*0.9635-Fluxo!$J$4-Simulação!W14-Fluxo!$H$7)*0.75+Fluxo!$J$14+Fluxo!$J$15+Fluxo!$J$16-Fluxo!$J$18-Fluxo!$J$20+Fluxo!$J$21 -> 33760.41853 | K7: =(((Faturamento!$K$20)*22*12)*0.9635-Fluxo!$K$4-Simulação!X14-Fluxo!$I$7)*0.75+Fluxo!$K$14+Fluxo!$K$15+Fluxo!$K$16-Fluxo!$K$18-Fluxo!$K$20+Fluxo!$K$21 -> 49432.41097 | L7: =(((Faturamento!$L$20)*22*12)*0.9635-Fluxo!$L$4-Simulação!Y14-Fluxo!$J$7)*0.75+Fluxo!$L$14+Fluxo!$L$15+Fluxo!$L$16-Fluxo!$L$18-Fluxo!$L$20+Fluxo!$L$21 -> 49131.23528 | M7: =NPV(Taxas!$B$17,C7:L7)+B7 -> 63097.71033
A8: 7 | B8: -108118 | C8: 10430.495 | D8: 10889.51975 | E8: =(((Faturamento!$E$20)*22*12)*0.9635-Fluxo!$E$4-Simulação!R15-Fluxo!$E$7)*0.75+Fluxo!$E$14+Fluxo!$E$15+Fluxo!$E$16-Fluxo!$E$18-Fluxo!$E$20+Fluxo!$E$21 -> 5000.258402 | F8: =(((Faturamento!$F$20)*22*12)*0.9635-Fluxo!$F$4-Simulação!S15-Fluxo!$D$7)*0.75+Fluxo!$F$14+Fluxo!$F$15+Fluxo!$F$16-Fluxo!$F$18-Fluxo!$F$20+Fluxo!$F$21 -> 26367.64659 | G8: =(((Faturamento!$G$20)*22*12)*0.9635-Fluxo!$G$4-Simulação!T15-Fluxo!$E$7)*0.75+Fluxo!$G$14+Fluxo!$G$15+Fluxo!$G$16-Fluxo!$G$18-Fluxo!$G$20+Fluxo!$G$21 -> -10320.15154 | H8: =(((Faturamento!$H$20)*22*12)*0.9635-Fluxo!$H$4-Simulação!U15-Fluxo!$F$7)*0.75+Fluxo!$H$14+Fluxo!$H$15+Fluxo!$H$16-Fluxo!$H$18-Fluxo!$H$20+Fluxo!$H$21 -> -13767.33787 | I8: =(((Faturamento!$I$20)*22*12)*0.9635-Fluxo!$I$4-Simulação!V15-Fluxo!$G$7)*0.75+Fluxo!$I$14+Fluxo!$I$15+Fluxo!$I$16-Fluxo!$I$18-Fluxo!$I$20+Fluxo!$I$21 -> -19237.97064 | J8: =(((Faturamento!$J$20)*22*12)*0.9635-Fluxo!$J$4-Simulação!W15-Fluxo!$H$7)*0.75+Fluxo!$J$14+Fluxo!$J$15+Fluxo!$J$16-Fluxo!$J$18-Fluxo!$J$20+Fluxo!$J$21 -> 6499.23005 | K8: =(((Faturamento!$K$20)*22*12)*0.9635-Fluxo!$K$4-Simulação!X15-Fluxo!$I$7)*0.75+Fluxo!$K$14+Fluxo!$K$15+Fluxo!$K$16-Fluxo!$K$18-Fluxo!$K$20+Fluxo!$K$21 -> -2593.326173 | L8: =(((Faturamento!$L$20)*22*12)*0.9635-Fluxo!$L$4-Simulação!Y15-Fluxo!$J$7)*0.75+Fluxo!$L$14+Fluxo!$L$15+Fluxo!$L$16-Fluxo!$L$18-Fluxo!$L$20+Fluxo!$L$21 -> 32869.78281 | M8: =NPV(Taxas!$B$17,C8:L8)+B8 -> -70808.65904
A9: 8 | B9: -108118 | C9: 10430.495 | D9: 10889.51975 | E9: =(((Faturamento!$E$20)*22*12)*0.9635-Fluxo!$E$4-Simulação!R16-Fluxo!$E$7)*0.75+Fluxo!$E$14+Fluxo!$E$15+Fluxo!$E$16-Fluxo!$E$18-Fluxo!$E$20+Fluxo!$E$21 -> 24665.33817 | F9: =(((Faturamento!$F$20)*22*12)*0.9635-Fluxo!$F$4-Simulação!S16-Fluxo!$D$7)*0.75+Fluxo!$F$14+Fluxo!$F$15+Fluxo!$F$16-Fluxo!$F$18-Fluxo!$F$20+Fluxo!$F$21 -> 31923.57776 | G9: =(((Faturamento!$G$20)*22*12)*0.9635-Fluxo!$G$4-Simulação!T16-Fluxo!$E$7)*0.75+Fluxo!$G$14+Fluxo!$G$15+Fluxo!$G$16-Fluxo!$G$18-Fluxo!$G$20+Fluxo!$G$21 -> -3146.208112 | H9: =(((Faturamento!$H$20)*22*12)*0.9635-Fluxo!$H$4-Simulação!U16-Fluxo!$F$7)*0.75+Fluxo!$H$14+Fluxo!$H$15+Fluxo!$H$16-Fluxo!$H$18-Fluxo!$H$20+Fluxo!$H$21 -> 1559.482502 | I9: =(((Faturamento!$I$20)*22*12)*0.9635-Fluxo!$I$4-Simulação!V16-Fluxo!$G$7)*0.75+Fluxo!$I$14+Fluxo!$I$15+Fluxo!$I$16-Fluxo!$I$18-Fluxo!$I$20+Fluxo!$I$21 -> 46204.38802 | J9: =(((Faturamento!$J$20)*22*12)*0.9635-Fluxo!$J$4-Simulação!W16-Fluxo!$H$7)*0.75+Fluxo!$J$14+Fluxo!$J$15+Fluxo!$J$16-Fluxo!$J$18-Fluxo!$J$20+Fluxo!$J$21 -> 13168.55735 | K9: =(((Faturamento!$K$20)*22*12)*0.9635-Fluxo!$K$4-Simulação!X16-Fluxo!$I$7)*0.75+Fluxo!$K$14+Fluxo!$K$15+Fluxo!$K$16-Fluxo!$K$18-Fluxo!$K$20+Fluxo!$K$21 -> -6648.077952 | L9: =(((Faturamento!$L$20)*22*12)*0.9635-Fluxo!$L$4-Simulação!Y16-Fluxo!$J$7)*0.75+Fluxo!$L$14+Fluxo!$L$15+Fluxo!$L$16-Fluxo!$L$18-Fluxo!$L$20+Fluxo!$L$21 -> 67060.84499 | M9: =NPV(Taxas!$B$17,C9:L9)+B9 -> 40041.10892
A10: 9 | B10: -108118 | C10: 10430.495 | D10: 10889.51975 | E10: =(((Faturamento!$E$20)*22*12)*0.9635-Fluxo!$E$4-Simulação!R17-Fluxo!$E$7)*0.75+Fluxo!$E$14+Fluxo!$E$15+Fluxo!$E$16-Fluxo!$E$18-Fluxo!$E$20+Fluxo!$E$21 -> -12689.4919 | F10: =(((Faturamento!$F$20)*22*12)*0.9635-Fluxo!$F$4-Simulação!S17-Fluxo!$D$7)*0.75+Fluxo!$F$14+Fluxo!$F$15+Fluxo!$F$16-Fluxo!$F$18-Fluxo!$F$20+Fluxo!$F$21 -> 36167.56226 | G10: =(((Faturamento!$G$20)*22*12)*0.9635-Fluxo!$G$4-Simulação!T17-Fluxo!$E$7)*0.75+Fluxo!$G$14+Fluxo!$G$15+Fluxo!$G$16-Fluxo!$G$18-Fluxo!$G$20+Fluxo!$G$21 -> 13925.12001 | H10: =(((Faturamento!$H$20)*22*12)*0.9635-Fluxo!$H$4-Simulação!U17-Fluxo!$F$7)*0.75+Fluxo!$H$14+Fluxo!$H$15+Fluxo!$H$16-Fluxo!$H$18-Fluxo!$H$20+Fluxo!$H$21 -> -4307.570932 | I10: =(((Faturamento!$I$20)*22*12)*0.9635-Fluxo!$I$4-Simulação!V17-Fluxo!$G$7)*0.75+Fluxo!$I$14+Fluxo!$I$15+Fluxo!$I$16-Fluxo!$I$18-Fluxo!$I$20+Fluxo!$I$21 -> -18020.75309 | J10: =(((Faturamento!$J$20)*22*12)*0.9635-Fluxo!$J$4-Simulação!W17-Fluxo!$H$7)*0.75+Fluxo!$J$14+Fluxo!$J$15+Fluxo!$J$16-Fluxo!$J$18-Fluxo!$J$20+Fluxo!$J$21 -> 38257.25267 | K10: =(((Faturamento!$K$20)*22*12)*0.9635-Fluxo!$K$4-Simulação!X17-Fluxo!$I$7)*0.75+Fluxo!$K$14+Fluxo!$K$15+Fluxo!$K$16-Fluxo!$K$18-Fluxo!$K$20+Fluxo!$K$21 -> -19226.40338 | L10: =(((Faturamento!$L$20)*22*12)*0.9635-Fluxo!$L$4-Simulação!Y17-Fluxo!$J$7)*0.75+Fluxo!$L$14+Fluxo!$L$15+Fluxo!$L$16-Fluxo!$L$18-Fluxo!$L$20+Fluxo!$L$21 -> 13040.07312 | M10: =NPV(Taxas!$B$17,C10:L10)+B10 -> -52179.75769
A11: 10 | B11: -108118 | C11: 10430.495 | D11: 10889.51975 | E11: =(((Faturamento!$E$20)*22*12)*0.9635-Fluxo!$E$4-Simulação!R18-Fluxo!$E$7)*0.75+Fluxo!$E$14+Fluxo!$E$15+Fluxo!$E$16-Fluxo!$E$18-Fluxo!$E$20+Fluxo!$E$21 -> 10708.95948 | F11: =(((Faturamento!$F$20)*22*12)*0.9635-Fluxo!$F$4-Simulação!S18-Fluxo!$D$7)*0.75+Fluxo!$F$14+Fluxo!$F$15+Fluxo!$F$16-Fluxo!$F$18-Fluxo!$F$20+Fluxo!$F$21 -> 30722.33548 | G11: =(((Faturamento!$G$20)*22*12)*0.9635-Fluxo!$G$4-Simulação!T18-Fluxo!$E$7)*0.75+Fluxo!$G$14+Fluxo!$G$15+Fluxo!$G$16-Fluxo!$G$18-Fluxo!$G$20+Fluxo!$G$21 -> 8451.322765 | H11: =(((Faturamento!$H$20)*22*12)*0.9635-Fluxo!$H$4-Simulação!U18-Fluxo!$F$7)*0.75+Fluxo!$H$14+Fluxo!$H$15+Fluxo!$H$16-Fluxo!$H$18-Fluxo!$H$20+Fluxo!$H$21 -> -1748.744232 | I11: =(((Faturamento!$I$20)*22*12)*0.9635-Fluxo!$I$4-Simulação!V18-Fluxo!$G$7)*0.75+Fluxo!$I$14+Fluxo!$I$15+Fluxo!$I$16-Fluxo!$I$18-Fluxo!$I$20+Fluxo!$I$21 -> 31044.59794 | J11: =(((Faturamento!$J$20)*22*12)*0.9635-Fluxo!$J$4-Simulação!W18-Fluxo!$H$7)*0.75+Fluxo!$J$14+Fluxo!$J$15+Fluxo!$J$16-Fluxo!$J$18-Fluxo!$J$20+Fluxo!$J$21 -> 23171.84683 | K11: =(((Faturamento!$K$20)*22*12)*0.9635-Fluxo!$K$4-Simulação!X18-Fluxo!$I$7)*0.75+Fluxo!$K$14+Fluxo!$K$15+Fluxo!$K$16-Fluxo!$K$18-Fluxo!$K$20+Fluxo!$K$21 -> 13611.44774 | L11: =(((Faturamento!$L$20)*22*12)*0.9635-Fluxo!$L$4-Simulação!Y18-Fluxo!$J$7)*0.75+Fluxo!$L$14+Fluxo!$L$15+Fluxo!$L$16-Fluxo!$L$18-Fluxo!$L$20+Fluxo!$L$21 -> 23409.93413 | M11: =NPV(Taxas!$B$17,C11:L11)+B11 -> 15151.45058
A12: 11 | B12: -108118 | C12: 10430.495 | D12: 10889.51975 | E12: =(((Faturamento!$E$20)*22*12)*0.9635-Fluxo!$E$4-Simulação!R19-Fluxo!$E$7)*0.75+Fluxo!$E$14+Fluxo!$E$15+Fluxo!$E$16-Fluxo!$E$18-Fluxo!$E$20+Fluxo!$E$21 -> -13803.72747 | F12: =(((Faturamento!$F$20)*22*12)*0.9635-Fluxo!$F$4-Simulação!S19-Fluxo!$D$7)*0.75+Fluxo!$F$14+Fluxo!$F$15+Fluxo!$F$16-Fluxo!$F$18-Fluxo!$F$20+Fluxo!$F$21 -> -14600.28765 | G12: =(((Faturamento!$G$20)*22*12)*0.9635-Fluxo!$G$4-Simulação!T19-Fluxo!$E$7)*0.75+Fluxo!$G$14+Fluxo!$G$15+Fluxo!$G$16-Fluxo!$G$18-Fluxo!$G$20+Fluxo!$G$21 -> 38042.632 | H12: =(((Faturamento!$H$20)*22*12)*0.9635-Fluxo!$H$4-Simulação!U19-Fluxo!$F$7)*0.75+Fluxo!$H$14+Fluxo!$H$15+Fluxo!$H$16-Fluxo!$H$18-Fluxo!$H$20+Fluxo!$H$21 -> 44419.98967 | I12: =(((Faturamento!$I$20)*22*12)*0.9635-Fluxo!$I$4-Simulação!V19-Fluxo!$G$7)*0.75+Fluxo!$I$14+Fluxo!$I$15+Fluxo!$I$16-Fluxo!$I$18-Fluxo!$I$20+Fluxo!$I$21 -> 2381.076479 | J12: =(((Faturamento!$J$20)*22*12)*0.9635-Fluxo!$J$4-Simulação!W19-Fluxo!$H$7)*0.75+Fluxo!$J$14+Fluxo!$J$15+Fluxo!$J$16-Fluxo!$J$18-Fluxo!$J$20+Fluxo!$J$21 -> 34264.07278 | K12: =(((Faturamento!$K$20)*22*12)*0.9635-Fluxo!$K$4-Simulação!X19-Fluxo!$I$7)*0.75+Fluxo!$K$14+Fluxo!$K$15+Fluxo!$K$16-Fluxo!$K$18-Fluxo!$K$20+Fluxo!$K$21 -> 21514.52829 | L12: =(((Faturamento!$L$20)*22*12)*0.9635-Fluxo!$L$4-Simulação!Y19-Fluxo!$J$7)*0.75+Fluxo!$L$14+Fluxo!$L$15+Fluxo!$L$16-Fluxo!$L$18-Fluxo!$L$20+Fluxo!$L$21 -> -7339.122941 | M12: =NPV(Taxas!$B$17,C12:L12)+B12 -> -12778.31424
A13: 12 | B13: -108118 | C13: 10430.495 | D13: 10889.51975 | E13: =(((Faturamento!$E$20)*22*12)*0.9635-Fluxo!$E$4-Simulação!R20-Fluxo!$E$7)*0.75+Fluxo!$E$14+Fluxo!$E$15+Fluxo!$E$16-Fluxo!$E$18-Fluxo!$E$20+Fluxo!$E$21 -> -3596.336799 | F13: =(((Faturamento!$F$20)*22*12)*0.9635-Fluxo!$F$4-Simulação!S20-Fluxo!$D$7)*0.75+Fluxo!$F$14+Fluxo!$F$15+Fluxo!$F$16-Fluxo!$F$18-Fluxo!$F$20+Fluxo!$F$21 -> -912.3380329 | G13: =(((Faturamento!$G$20)*22*12)*0.9635-Fluxo!$G$4-Simulação!T20-Fluxo!$E$7)*0.75+Fluxo!$G$14+Fluxo!$G$15+Fluxo!$G$16-Fluxo!$G$18-Fluxo!$G$20+Fluxo!$G$21 -> -2082.4077 | H13: =(((Faturamento!$H$20)*22*12)*0.9635-Fluxo!$H$4-Simulação!U20-Fluxo!$F$7)*0.75+Fluxo!$H$14+Fluxo!$H$15+Fluxo!$H$16-Fluxo!$H$18-Fluxo!$H$20+Fluxo!$H$21 -> 9406.845449 | I13: =(((Faturamento!$I$20)*22*12)*0.9635-Fluxo!$I$4-Simulação!V20-Fluxo!$G$7)*0.75+Fluxo!$I$14+Fluxo!$I$15+Fluxo!$I$16-Fluxo!$I$18-Fluxo!$I$20+Fluxo!$I$21 -> 36933.5929 | J13: =(((Faturamento!$J$20)*22*12)*0.9635-Fluxo!$J$4-Simulação!W20-Fluxo!$H$7)*0.75+Fluxo!$J$14+Fluxo!$J$15+Fluxo!$J$16-Fluxo!$J$18-Fluxo!$J$20+Fluxo!$J$21 -> 1952.33014 | K13: =(((Faturamento!$K$20)*22*12)*0.9635-Fluxo!$K$4-Simulação!X20-Fluxo!$I$7)*0.75+Fluxo!$K$14+Fluxo!$K$15+Fluxo!$K$16-Fluxo!$K$18-Fluxo!$K$20+Fluxo!$K$21 -> 36669.44392 | L13: =(((Faturamento!$L$20)*22*12)*0.9635-Fluxo!$L$4-Simulação!Y20-Fluxo!$J$7)*0.75+Fluxo!$L$14+Fluxo!$L$15+Fluxo!$L$16-Fluxo!$L$18-Fluxo!$L$20+Fluxo!$L$21 -> 50250.18389 | M13: =NPV(Taxas!$B$17,C13:L13)+B13 -> -1668.950337
A14: 13 | B14: -108118 | C14: 10430.495 | D14: 10889.51975 | E14: =(((Faturamento!$E$20)*22*12)*0.9635-Fluxo!$E$4-Simulação!R21-Fluxo!$E$7)*0.75+Fluxo!$E$14+Fluxo!$E$15+Fluxo!$E$16-Fluxo!$E$18-Fluxo!$E$20+Fluxo!$E$21 -> 14572.15727 | F14: =(((Faturamento!$F$20)*22*12)*0.9635-Fluxo!$F$4-Simulação!S21-Fluxo!$D$7)*0.75+Fluxo!$F$14+Fluxo!$F$15+Fluxo!$F$16-Fluxo!$F$18-Fluxo!$F$20+Fluxo!$F$21 -> -16882.2985 | G14: =(((Faturamento!$G$20)*22*12)*0.9635-Fluxo!$G$4-Simulação!T21-Fluxo!$E$7)*0.75+Fluxo!$G$14+Fluxo!$G$15+Fluxo!$G$16-Fluxo!$G$18-Fluxo!$G$20+Fluxo!$G$21 -> 5725.778486 | H14: =(((Faturamento!$H$20)*22*12)*0.9635-Fluxo!$H$4-Simulação!U21-Fluxo!$F$7)*0.75+Fluxo!$H$14+Fluxo!$H$15+Fluxo!$H$16-Fluxo!$H$18-Fluxo!$H$20+Fluxo!$H$21 -> -8929.142231 | I14: =(((Faturamento!$I$20)*22*12)*0.9635-Fluxo!$I$4-Simulação!V21-Fluxo!$G$7)*0.75+Fluxo!$I$14+Fluxo!$I$15+Fluxo!$I$16-Fluxo!$I$18-Fluxo!$I$20+Fluxo!$I$21 -> -18396.43111 | J14: =(((Faturamento!$J$20)*22*12)*0.9635-Fluxo!$J$4-Simulação!W21-Fluxo!$H$7)*0.75+Fluxo!$J$14+Fluxo!$J$15+Fluxo!$J$16-Fluxo!$J$18-Fluxo!$J$20+Fluxo!$J$21 -> 20739.52 | K14: =(((Faturamento!$K$20)*22*12)*0.9635-Fluxo!$K$4-Simulação!X21-Fluxo!$I$7)*0.75+Fluxo!$K$14+Fluxo!$K$15+Fluxo!$K$16-Fluxo!$K$18-Fluxo!$K$20+Fluxo!$K$21 -> 6155.677041 | L14: =(((Faturamento!$L$20)*22*12)*0.9635-Fluxo!$L$4-Simulação!Y21-Fluxo!$J$7)*0.75+Fluxo!$L$14+Fluxo!$L$15+Fluxo!$L$16-Fluxo!$L$18-Fluxo!$L$20+Fluxo!$L$21 -> 10391.83216 | M14: =NPV(Taxas!$B$17,C14:L14)+B14 -> -80017.46572
A15: 14 | B15: -108118 | C15: 10430.495 | D15: 10889.51975 | E15: =(((Faturamento!$E$20)*22*12)*0.9635-Fluxo!$E$4-Simulação!R22-Fluxo!$E$7)*0.75+Fluxo!$E$14+Fluxo!$E$15+Fluxo!$E$16-Fluxo!$E$18-Fluxo!$E$20+Fluxo!$E$21 -> 1818.054333 | F15: =(((Faturamento!$F$20)*22*12)*0.9635-Fluxo!$F$4-Simulação!S22-Fluxo!$D$7)*0.75+Fluxo!$F$14+Fluxo!$F$15+Fluxo!$F$16-Fluxo!$F$18-Fluxo!$F$20+Fluxo!$F$21 -> 34656.70387 | G15: =(((Faturamento!$G$20)*22*12)*0.9635-Fluxo!$G$4-Simulação!T22-Fluxo!$E$7)*0.75+Fluxo!$G$14+Fluxo!$G$15+Fluxo!$G$16-Fluxo!$G$18-Fluxo!$G$20+Fluxo!$G$21 -> 6966.227317 | H15: =(((Faturamento!$H$20)*22*12)*0.9635-Fluxo!$H$4-Simulação!U22-Fluxo!$F$7)*0.75+Fluxo!$H$14+Fluxo!$H$15+Fluxo!$H$16-Fluxo!$H$18-Fluxo!$H$20+Fluxo!$H$21 -> -13412.37976 | I15: =(((Faturamento!$I$20)*22*12)*0.9635-Fluxo!$I$4-Simulação!V22-Fluxo!$G$7)*0.75+Fluxo!$I$14+Fluxo!$I$15+Fluxo!$I$16-Fluxo!$I$18-Fluxo!$I$20+Fluxo!$I$21 -> -5590.429486 | J15: =(((Faturamento!$J$20)*22*12)*0.9635-Fluxo!$J$4-Simulação!W22-Fluxo!$H$7)*0.75+Fluxo!$J$14+Fluxo!$J$15+Fluxo!$J$16-Fluxo!$J$18-Fluxo!$J$20+Fluxo!$J$21 -> 44016.37944 | K15: =(((Faturamento!$K$20)*22*12)*0.9635-Fluxo!$K$4-Simulação!X22-Fluxo!$I$7)*0.75+Fluxo!$K$14+Fluxo!$K$15+Fluxo!$K$16-Fluxo!$K$18-Fluxo!$K$20+Fluxo!$K$21 -> 28041.76642 | L15: =(((Faturamento!$L$20)*22*12)*0.9635-Fluxo!$L$4-Simulação!Y22-Fluxo!$J$7)*0.75+Fluxo!$L$14+Fluxo!$L$15+Fluxo!$L$16-Fluxo!$L$18-Fluxo!$L$20+Fluxo!$L$21 -> -10830.25257 | M15: =NPV(Taxas!$B$17,C15:L15)+B15 -> -23854.25303
A16: 15 | B16: -108118 | C16: 10430.495 | D16: 10889.51975 | E16: =(((Faturamento!$E$20)*22*12)*0.9635-Fluxo!$E$4-Simulação!R23-Fluxo!$E$7)*0.75+Fluxo!$E$14+Fluxo!$E$15+Fluxo!$E$16-Fluxo!$E$18-Fluxo!$E$20+Fluxo!$E$21 -> 29238.60228 | F16: =(((Faturamento!$F$20)*22*12)*0.9635-Fluxo!$F$4-Simulação!S23-Fluxo!$D$7)*0.75+Fluxo!$F$14+Fluxo!$F$15+Fluxo!$F$16-Fluxo!$F$18-Fluxo!$F$20+Fluxo!$F$21 -> 13263.92597 | G16: =(((Faturamento!$G$20)*22*12)*0.9635-Fluxo!$G$4-Simulação!T23-Fluxo!$E$7)*0.75+Fluxo!$G$14+Fluxo!$G$15+Fluxo!$G$16-Fluxo!$G$18-Fluxo!$G$20+Fluxo!$G$21 -> 38293.67599 | H16: =(((Faturamento!$H$20)*22*12)*0.9635-Fluxo!$H$4-Simulação!U23-Fluxo!$F$7)*0.75+Fluxo!$H$14+Fluxo!$H$15+Fluxo!$H$16-Fluxo!$H$18-Fluxo!$H$20+Fluxo!$H$21 -> -16192.93599 | I16: =(((Faturamento!$I$20)*22*12)*0.9635-Fluxo!$I$4-Simulação!V23-Fluxo!$G$7)*0.75+Fluxo!$I$14+Fluxo!$I$15+Fluxo!$I$16-Fluxo!$I$18-Fluxo!$I$20+Fluxo!$I$21 -> 15599.19513 | J16: =(((Faturamento!$J$20)*22*12)*0.9635-Fluxo!$J$4-Simulação!W23-Fluxo!$H$7)*0.75+Fluxo!$J$14+Fluxo!$J$15+Fluxo!$J$16-Fluxo!$J$18-Fluxo!$J$20+Fluxo!$J$21 -> 3719.191114 | K16: =(((Faturamento!$K$20)*22*12)*0.9635-Fluxo!$K$4-Simulação!X23-Fluxo!$I$7)*0.75+Fluxo!$K$14+Fluxo!$K$15+Fluxo!$K$16-Fluxo!$K$18-Fluxo!$K$20+Fluxo!$K$21 -> -11414.45195 | L16: =(((Faturamento!$L$20)*22*12)*0.9635-Fluxo!$L$4-Simulação!Y23-Fluxo!$J$7)*0.75+Fluxo!$L$14+Fluxo!$L$15+Fluxo!$L$16-Fluxo!$L$18-Fluxo!$L$20+Fluxo!$L$21 -> 28212.39429 | M16: =NPV(Taxas!$B$17,C16:L16)+B16 -> -8943.514398
A17: 16 | B17: -108118 | C17: 10430.495 | D17: 10889.51975 | E17: =(((Faturamento!$E$20)*22*12)*0.9635-Fluxo!$E$4-Simulação!R24-Fluxo!$E$7)*0.75+Fluxo!$E$14+Fluxo!$E$15+Fluxo!$E$16-Fluxo!$E$18-Fluxo!$E$20+Fluxo!$E$21 -> 4170.082932 | F17: =(((Faturamento!$F$20)*22*12)*0.9635-Fluxo!$F$4-Simulação!S24-Fluxo!$D$7)*0.75+Fluxo!$F$14+Fluxo!$F$15+Fluxo!$F$16-Fluxo!$F$18-Fluxo!$F$20+Fluxo!$F$21 -> 2148.65959 | G17: =(((Faturamento!$G$20)*22*12)*0.9635-Fluxo!$G$4-Simulação!T24-Fluxo!$E$7)*0.75+Fluxo!$G$14+Fluxo!$G$15+Fluxo!$G$16-Fluxo!$G$18-Fluxo!$G$20+Fluxo!$G$21 -> -12755.89685 | H17: =(((Faturamento!$H$20)*22*12)*0.9635-Fluxo!$H$4-Simulação!U24-Fluxo!$F$7)*0.75+Fluxo!$H$14+Fluxo!$H$15+Fluxo!$H$16-Fluxo!$H$18-Fluxo!$H$20+Fluxo!$H$21 -> -14484.48379 | I17: =(((Faturamento!$I$20)*22*12)*0.9635-Fluxo!$I$4-Simulação!V24-Fluxo!$G$7)*0.75+Fluxo!$I$14+Fluxo!$I$15+Fluxo!$I$16-Fluxo!$I$18-Fluxo!$I$20+Fluxo!$I$21 -> 41877.45489 | J17: =(((Faturamento!$J$20)*22*12)*0.9635-Fluxo!$J$4-Simulação!W24-Fluxo!$H$7)*0.75+Fluxo!$J$14+Fluxo!$J$15+Fluxo!$J$16-Fluxo!$J$18-Fluxo!$J$20+Fluxo!$J$21 -> 8944.484022 | K17: =(((Faturamento!$K$20)*22*12)*0.9635-Fluxo!$K$4-Simulação!X24-Fluxo!$I$7)*0.75+Fluxo!$K$14+Fluxo!$K$15+Fluxo!$K$16-Fluxo!$K$18-Fluxo!$K$20+Fluxo!$K$21 -> 43993.96522 | L17: =(((Faturamento!$L$20)*22*12)*0.9635-Fluxo!$L$4-Simulação!Y24-Fluxo!$J$7)*0.75+Fluxo!$L$14+Fluxo!$L$15+Fluxo!$L$16-Fluxo!$L$18-Fluxo!$L$20+Fluxo!$L$21 -> 30238.29813 | M17: =NPV(Taxas!$B$17,C17:L17)+B17 -> -18493.49255
A18: 17 | B18: -108118 | C18: 10430.495 | D18: 10889.51975 | E18: =(((Faturamento!$E$20)*22*12)*0.9635-Fluxo!$E$4-Simulação!R25-Fluxo!$E$7)*0.75+Fluxo!$E$14+Fluxo!$E$15+Fluxo!$E$16-Fluxo!$E$18-Fluxo!$E$20+Fluxo!$E$21 -> 32419.9048 | F18: =(((Faturamento!$F$20)*22*12)*0.9635-Fluxo!$F$4-Simulação!S25-Fluxo!$D$7)*0.75+Fluxo!$F$14+Fluxo!$F$15+Fluxo!$F$16-Fluxo!$F$18-Fluxo!$F$20+Fluxo!$F$21 -> 21707.03446 | G18: =(((Faturamento!$G$20)*22*12)*0.9635-Fluxo!$G$4-Simulação!T25-Fluxo!$E$7)*0.75+Fluxo!$G$14+Fluxo!$G$15+Fluxo!$G$16-Fluxo!$G$18-Fluxo!$G$20+Fluxo!$G$21 -> 32190.59561 | H18: =(((Faturamento!$H$20)*22*12)*0.9635-Fluxo!$H$4-Simulação!U25-Fluxo!$F$7)*0.75+Fluxo!$H$14+Fluxo!$H$15+Fluxo!$H$16-Fluxo!$H$18-Fluxo!$H$20+Fluxo!$H$21 -> -16600.70375 | I18: =(((Faturamento!$I$20)*22*12)*0.9635-Fluxo!$I$4-Simulação!V25-Fluxo!$G$7)*0.75+Fluxo!$I$14+Fluxo!$I$15+Fluxo!$I$16-Fluxo!$I$18-Fluxo!$I$20+Fluxo!$I$21 -> 15553.07554 | J18: =(((Faturamento!$J$20)*22*12)*0.9635-Fluxo!$J$4-Simulação!W25-Fluxo!$H$7)*0.75+Fluxo!$J$14+Fluxo!$J$15+Fluxo!$J$16-Fluxo!$J$18-Fluxo!$J$20+Fluxo!$J$21 -> 45160.70574 | K18: =(((Faturamento!$K$20)*22*12)*0.9635-Fluxo!$K$4-Simulação!X25-Fluxo!$I$7)*0.75+Fluxo!$K$14+Fluxo!$K$15+Fluxo!$K$16-Fluxo!$K$18-Fluxo!$K$20+Fluxo!$K$21 -> 31879.41914 | L18: =(((Faturamento!$L$20)*22*12)*0.9635-Fluxo!$L$4-Simulação!Y25-Fluxo!$J$7)*0.75+Fluxo!$L$14+Fluxo!$L$15+Fluxo!$L$16-Fluxo!$L$18-Fluxo!$L$20+Fluxo!$L$21 -> -8339.151059 | M18: =NPV(Taxas!$B$17,C18:L18)+B18 -> 30185.246
A19: 18 | B19: -108118 | C19: 10430.495 | D19: 10889.51975 | E19: =(((Faturamento!$E$20)*22*12)*0.9635-Fluxo!$E$4-Simulação!R26-Fluxo!$E$7)*0.75+Fluxo!$E$14+Fluxo!$E$15+Fluxo!$E$16-Fluxo!$E$18-Fluxo!$E$20+Fluxo!$E$21 -> 26770.7969 | F19: =(((Faturamento!$F$20)*22*12)*0.9635-Fluxo!$F$4-Simulação!S26-Fluxo!$D$7)*0.75+Fluxo!$F$14+Fluxo!$F$15+Fluxo!$F$16-Fluxo!$F$18-Fluxo!$F$20+Fluxo!$F$21 -> 11767.22106 | G19: =(((Faturamento!$G$20)*22*12)*0.9635-Fluxo!$G$4-Simulação!T26-Fluxo!$E$7)*0.75+Fluxo!$G$14+Fluxo!$G$15+Fluxo!$G$16-Fluxo!$G$18-Fluxo!$G$20+Fluxo!$G$21 -> 18696.62966 | H19: =(((Faturamento!$H$20)*22*12)*0.9635-Fluxo!$H$4-Simulação!U26-Fluxo!$F$7)*0.75+Fluxo!$H$14+Fluxo!$H$15+Fluxo!$H$16-Fluxo!$H$18-Fluxo!$H$20+Fluxo!$H$21 -> -19313.55076 | I19: =(((Faturamento!$I$20)*22*12)*0.9635-Fluxo!$I$4-Simulação!V26-Fluxo!$G$7)*0.75+Fluxo!$I$14+Fluxo!$I$15+Fluxo!$I$16-Fluxo!$I$18-Fluxo!$I$20+Fluxo!$I$21 -> 12488.48392 | J19: =(((Faturamento!$J$20)*22*12)*0.9635-Fluxo!$J$4-Simulação!W26-Fluxo!$H$7)*0.75+Fluxo!$J$14+Fluxo!$J$15+Fluxo!$J$16-Fluxo!$J$18-Fluxo!$J$20+Fluxo!$J$21 -> 14862.62467 | K19: =(((Faturamento!$K$20)*22*12)*0.9635-Fluxo!$K$4-Simulação!X26-Fluxo!$I$7)*0.75+Fluxo!$K$14+Fluxo!$K$15+Fluxo!$K$16-Fluxo!$K$18-Fluxo!$K$20+Fluxo!$K$21 -> 17928.74444 | L19: =(((Faturamento!$L$20)*22*12)*0.9635-Fluxo!$L$4-Simulação!Y26-Fluxo!$J$7)*0.75+Fluxo!$L$14+Fluxo!$L$15+Fluxo!$L$16-Fluxo!$L$18-Fluxo!$L$20+Fluxo!$L$21 -> 945.6836489 | M19: =NPV(Taxas!$B$17,C19:L19)+B19 -> -22697.82097
A20: 19 | B20: -108118 | C20: 10430.495 | D20: 10889.51975 | E20: =(((Faturamento!$E$20)*22*12)*0.9635-Fluxo!$E$4-Simulação!R27-Fluxo!$E$7)*0.75+Fluxo!$E$14+Fluxo!$E$15+Fluxo!$E$16-Fluxo!$E$18-Fluxo!$E$20+Fluxo!$E$21 -> -13630.06819 | F20: =(((Faturamento!$F$20)*22*12)*0.9635-Fluxo!$F$4-Simulação!S27-Fluxo!$D$7)*0.75+Fluxo!$F$14+Fluxo!$F$15+Fluxo!$F$16-Fluxo!$F$18-Fluxo!$F$20+Fluxo!$F$21 -> 16362.51721 | G20: =(((Faturamento!$G$20)*22*12)*0.9635-Fluxo!$G$4-Simulação!T27-Fluxo!$E$7)*0.75+Fluxo!$G$14+Fluxo!$G$15+Fluxo!$G$16-Fluxo!$G$18-Fluxo!$G$20+Fluxo!$G$21 -> 4728.244951 | H20: =(((Faturamento!$H$20)*22*12)*0.9635-Fluxo!$H$4-Simulação!U27-Fluxo!$F$7)*0.75+Fluxo!$H$14+Fluxo!$H$15+Fluxo!$H$16-Fluxo!$H$18-Fluxo!$H$20+Fluxo!$H$21 -> 23991.99712 | I20: =(((Faturamento!$I$20)*22*12)*0.9635-Fluxo!$I$4-Simulação!V27-Fluxo!$G$7)*0.75+Fluxo!$I$14+Fluxo!$I$15+Fluxo!$I$16-Fluxo!$I$18-Fluxo!$I$20+Fluxo!$I$21 -> 15889.60884 | J20: =(((Faturamento!$J$20)*22*12)*0.9635-Fluxo!$J$4-Simulação!W27-Fluxo!$H$7)*0.75+Fluxo!$J$14+Fluxo!$J$15+Fluxo!$J$16-Fluxo!$J$18-Fluxo!$J$20+Fluxo!$J$21 -> 37553.85956 | K20: =(((Faturamento!$K$20)*22*12)*0.9635-Fluxo!$K$4-Simulação!X27-Fluxo!$I$7)*0.75+Fluxo!$K$14+Fluxo!$K$15+Fluxo!$K$16-Fluxo!$K$18-Fluxo!$K$20+Fluxo!$K$21 -> 16158.4531 | L20: =(((Faturamento!$L$20)*22*12)*0.9635-Fluxo!$L$4-Simulação!Y27-Fluxo!$J$7)*0.75+Fluxo!$L$14+Fluxo!$L$15+Fluxo!$L$16-Fluxo!$L$18-Fluxo!$L$20+Fluxo!$L$21 -> 61074.08148 | M20: =NPV(Taxas!$B$17,C20:L20)+B20 -> 23287.83217
A21: 20 | B21: -108118 | C21: 10430.495 | D21: 10889.51975 | E21: =(((Faturamento!$E$20)*22*12)*0.9635-Fluxo!$E$4-Simulação!R28-Fluxo!$E$7)*0.75+Fluxo!$E$14+Fluxo!$E$15+Fluxo!$E$16-Fluxo!$E$18-Fluxo!$E$20+Fluxo!$E$21 -> 28458.92898 | F21: =(((Faturamento!$F$20)*22*12)*0.9635-Fluxo!$F$4-Simulação!S28-Fluxo!$D$7)*0.75+Fluxo!$F$14+Fluxo!$F$15+Fluxo!$F$16-Fluxo!$F$18-Fluxo!$F$20+Fluxo!$F$21 -> 4926.520715 | G21: =(((Faturamento!$G$20)*22*12)*0.9635-Fluxo!$G$4-Simulação!T28-Fluxo!$E$7)*0.75+Fluxo!$G$14+Fluxo!$G$15+Fluxo!$G$16-Fluxo!$G$18-Fluxo!$G$20+Fluxo!$G$21 -> 29118.18092 | H21: =(((Faturamento!$H$20)*22*12)*0.9635-Fluxo!$H$4-Simulação!U28-Fluxo!$F$7)*0.75+Fluxo!$H$14+Fluxo!$H$15+Fluxo!$H$16-Fluxo!$H$18-Fluxo!$H$20+Fluxo!$H$21 -> -312.5095172 | I21: =(((Faturamento!$I$20)*22*12)*0.9635-Fluxo!$I$4-Simulação!V28-Fluxo!$G$7)*0.75+Fluxo!$I$14+Fluxo!$I$15+Fluxo!$I$16-Fluxo!$I$18-Fluxo!$I$20+Fluxo!$I$21 -> 8036.695697 | J21: =(((Faturamento!$J$20)*22*12)*0.9635-Fluxo!$J$4-Simulação!W28-Fluxo!$H$7)*0.75+Fluxo!$J$14+Fluxo!$J$15+Fluxo!$J$16-Fluxo!$J$18-Fluxo!$J$20+Fluxo!$J$21 -> -8323.538042 | K21: =(((Faturamento!$K$20)*22*12)*0.9635-Fluxo!$K$4-Simulação!X28-Fluxo!$I$7)*0.75+Fluxo!$K$14+Fluxo!$K$15+Fluxo!$K$16-Fluxo!$K$18-Fluxo!$K$20+Fluxo!$K$21 -> 24080.48892 | L21: =(((Faturamento!$L$20)*22*12)*0.9635-Fluxo!$L$4-Simulação!Y28-Fluxo!$J$7)*0.75+Fluxo!$L$14+Fluxo!$L$15+Fluxo!$L$16-Fluxo!$L$18-Fluxo!$L$20+Fluxo!$L$21 -> 50311.6771 | M21: =NPV(Taxas!$B$17,C21:L21)+B21 -> 12082.87903
A22: 21 | B22: -108118 | C22: 10430.495 | D22: 10889.51975 | E22: =(((Faturamento!$E$20)*22*12)*0.9635-Fluxo!$E$4-Simulação!R29-Fluxo!$E$7)*0.75+Fluxo!$E$14+Fluxo!$E$15+Fluxo!$E$16-Fluxo!$E$18-Fluxo!$E$20+Fluxo!$E$21 -> -3190.245674 | F22: =(((Faturamento!$F$20)*22*12)*0.9635-Fluxo!$F$4-Simulação!S29-Fluxo!$D$7)*0.75+Fluxo!$F$14+Fluxo!$F$15+Fluxo!$F$16-Fluxo!$F$18-Fluxo!$F$20+Fluxo!$F$21 -> 2746.77488 | G22: =(((Faturamento!$G$20)*22*12)*0.9635-Fluxo!$G$4-Simulação!T29-Fluxo!$E$7)*0.75+Fluxo!$G$14+Fluxo!$G$15+Fluxo!$G$16-Fluxo!$G$18-Fluxo!$G$20+Fluxo!$G$21 -> -10475.47694 | H22: =(((Faturamento!$H$20)*22*12)*0.9635-Fluxo!$H$4-Simulação!U29-Fluxo!$F$7)*0.75+Fluxo!$H$14+Fluxo!$H$15+Fluxo!$H$16-Fluxo!$H$18-Fluxo!$H$20+Fluxo!$H$21 -> 37740.10382 | I22: =(((Faturamento!$I$20)*22*12)*0.9635-Fluxo!$I$4-Simulação!V29-Fluxo!$G$7)*0.75+Fluxo!$I$14+Fluxo!$I$15+Fluxo!$I$16-Fluxo!$I$18-Fluxo!$I$20+Fluxo!$I$21 -> 27041.09477 | J22: =(((Faturamento!$J$20)*22*12)*0.9635-Fluxo!$J$4-Simulação!W29-Fluxo!$H$7)*0.75+Fluxo!$J$14+Fluxo!$J$15+Fluxo!$J$16-Fluxo!$J$18-Fluxo!$J$20+Fluxo!$J$21 -> -1934.183252 | K22: =(((Faturamento!$K$20)*22*12)*0.9635-Fluxo!$K$4-Simulação!X29-Fluxo!$I$7)*0.75+Fluxo!$K$14+Fluxo!$K$15+Fluxo!$K$16-Fluxo!$K$18-Fluxo!$K$20+Fluxo!$K$21 -> -2316.916241 | L22: =(((Faturamento!$L$20)*22*12)*0.9635-Fluxo!$L$4-Simulação!Y29-Fluxo!$J$7)*0.75+Fluxo!$L$14+Fluxo!$L$15+Fluxo!$L$16-Fluxo!$L$18-Fluxo!$L$20+Fluxo!$L$21 -> 34644.04856 | M22: =NPV(Taxas!$B$17,C22:L22)+B22 -> -29251.87164
A23: 22 | B23: -108118 | C23: 10430.495 | D23: 10889.51975 | E23: =(((Faturamento!$E$20)*22*12)*0.9635-Fluxo!$E$4-Simulação!R30-Fluxo!$E$7)*0.75+Fluxo!$E$14+Fluxo!$E$15+Fluxo!$E$16-Fluxo!$E$18-Fluxo!$E$20+Fluxo!$E$21 -> -13267.26797 | F23: =(((Faturamento!$F$20)*22*12)*0.9635-Fluxo!$F$4-Simulação!S30-Fluxo!$D$7)*0.75+Fluxo!$F$14+Fluxo!$F$15+Fluxo!$F$16-Fluxo!$F$18-Fluxo!$F$20+Fluxo!$F$21 -> 28038.54589 | G23: =(((Faturamento!$G$20)*22*12)*0.9635-Fluxo!$G$4-Simulação!T30-Fluxo!$E$7)*0.75+Fluxo!$G$14+Fluxo!$G$15+Fluxo!$G$16-Fluxo!$G$18-Fluxo!$G$20+Fluxo!$G$21 -> 21930.80976 | H23: =(((Faturamento!$H$20)*22*12)*0.9635-Fluxo!$H$4-Simulação!U30-Fluxo!$F$7)*0.75+Fluxo!$H$14+Fluxo!$H$15+Fluxo!$H$16-Fluxo!$H$18-Fluxo!$H$20+Fluxo!$H$21 -> 1874.877602 | I23: =(((Faturamento!$I$20)*22*12)*0.9635-Fluxo!$I$4-Simulação!V30-Fluxo!$G$7)*0.75+Fluxo!$I$14+Fluxo!$I$15+Fluxo!$I$16-Fluxo!$I$18-Fluxo!$I$20+Fluxo!$I$21 -> 6551.584814 | J23: =(((Faturamento!$J$20)*22*12)*0.9635-Fluxo!$J$4-Simulação!W30-Fluxo!$H$7)*0.75+Fluxo!$J$14+Fluxo!$J$15+Fluxo!$J$16-Fluxo!$J$18-Fluxo!$J$20+Fluxo!$J$21 -> 40748.31508 | K23: =(((Faturamento!$K$20)*22*12)*0.9635-Fluxo!$K$4-Simulação!X30-Fluxo!$I$7)*0.75+Fluxo!$K$14+Fluxo!$K$15+Fluxo!$K$16-Fluxo!$K$18-Fluxo!$K$20+Fluxo!$K$21 -> 18376.3453 | L23: =(((Faturamento!$L$20)*22*12)*0.9635-Fluxo!$L$4-Simulação!Y30-Fluxo!$J$7)*0.75+Fluxo!$L$14+Fluxo!$L$15+Fluxo!$L$16-Fluxo!$L$18-Fluxo!$L$20+Fluxo!$L$21 -> 59831.09605 | M23: =NPV(Taxas!$B$17,C23:L23)+B23 -> 26308.75937
A24: 23 | B24: -108118 | C24: 10430.495 | D24: 10889.51975 | E24: =(((Faturamento!$E$20)*22*12)*0.9635-Fluxo!$E$4-Simulação!R31-Fluxo!$E$7)*0.75+Fluxo!$E$14+Fluxo!$E$15+Fluxo!$E$16-Fluxo!$E$18-Fluxo!$E$20+Fluxo!$E$21 -> 21027.05938 | F24: =(((Faturamento!$F$20)*22*12)*0.9635-Fluxo!$F$4-Simulação!S31-Fluxo!$D$7)*0.75+Fluxo!$F$14+Fluxo!$F$15+Fluxo!$F$16-Fluxo!$F$18-Fluxo!$F$20+Fluxo!$F$21 -> 36842.3969 | G24: =(((Faturamento!$G$20)*22*12)*0.9635-Fluxo!$G$4-Simulação!T31-Fluxo!$E$7)*0.75+Fluxo!$G$14+Fluxo!$G$15+Fluxo!$G$16-Fluxo!$G$18-Fluxo!$G$20+Fluxo!$G$21 -> -4302.298868 | H24: =(((Faturamento!$H$20)*22*12)*0.9635-Fluxo!$H$4-Simulação!U31-Fluxo!$F$7)*0.75+Fluxo!$H$14+Fluxo!$H$15+Fluxo!$H$16-Fluxo!$H$18-Fluxo!$H$20+Fluxo!$H$21 -> -10885.91803 | I24: =(((Faturamento!$I$20)*22*12)*0.9635-Fluxo!$I$4-Simulação!V31-Fluxo!$G$7)*0.75+Fluxo!$I$14+Fluxo!$I$15+Fluxo!$I$16-Fluxo!$I$18-Fluxo!$I$20+Fluxo!$I$21 -> 37006.78993 | J24: =(((Faturamento!$J$20)*22*12)*0.9635-Fluxo!$J$4-Simulação!W31-Fluxo!$H$7)*0.75+Fluxo!$J$14+Fluxo!$J$15+Fluxo!$J$16-Fluxo!$J$18-Fluxo!$J$20+Fluxo!$J$21 -> 21544.58572 | K24: =(((Faturamento!$K$20)*22*12)*0.9635-Fluxo!$K$4-Simulação!X31-Fluxo!$I$7)*0.75+Fluxo!$K$14+Fluxo!$K$15+Fluxo!$K$16-Fluxo!$K$18-Fluxo!$K$20+Fluxo!$K$21 -> -8892.356927 | L24: =(((Faturamento!$L$20)*22*12)*0.9635-Fluxo!$L$4-Simulação!Y31-Fluxo!$J$7)*0.75+Fluxo!$L$14+Fluxo!$L$15+Fluxo!$L$16-Fluxo!$L$18-Fluxo!$L$20+Fluxo!$L$21 -> -2727.907546 | M24: =NPV(Taxas!$B$17,C24:L24)+B24 -> -16380.39184
A25: 24 | B25: -108118 | C25: 10430.495 | D25: 10889.51975 | E25: =(((Faturamento!$E$20)*22*12)*0.9635-Fluxo!$E$4-Simulação!R32-Fluxo!$E$7)*0.75+Fluxo!$E$14+Fluxo!$E$15+Fluxo!$E$16-Fluxo!$E$18-Fluxo!$E$20+Fluxo!$E$21 -> 23033.44103 | F25: =(((Faturamento!$F$20)*22*12)*0.9635-Fluxo!$F$4-Simulação!S32-Fluxo!$D$7)*0.75+Fluxo!$F$14+Fluxo!$F$15+Fluxo!$F$16-Fluxo!$F$18-Fluxo!$F$20+Fluxo!$F$21 -> -2204.276695 | G25: =(((Faturamento!$G$20)*22*12)*0.9635-Fluxo!$G$4-Simulação!T32-Fluxo!$E$7)*0.75+Fluxo!$G$14+Fluxo!$G$15+Fluxo!$G$16-Fluxo!$G$18-Fluxo!$G$20+Fluxo!$G$21 -> 39325.97071 | H25: =(((Faturamento!$H$20)*22*12)*0.9635-Fluxo!$H$4-Simulação!U32-Fluxo!$F$7)*0.75+Fluxo!$H$14+Fluxo!$H$15+Fluxo!$H$16-Fluxo!$H$18-Fluxo!$H$20+Fluxo!$H$21 -> -12561.49986 | I25: =(((Faturamento!$I$20)*22*12)*0.9635-Fluxo!$I$4-Simulação!V32-Fluxo!$G$7)*0.75+Fluxo!$I$14+Fluxo!$I$15+Fluxo!$I$16-Fluxo!$I$18-Fluxo!$I$20+Fluxo!$I$21 -> 40063.43037 | J25: =(((Faturamento!$J$20)*22*12)*0.9635-Fluxo!$J$4-Simulação!W32-Fluxo!$H$7)*0.75+Fluxo!$J$14+Fluxo!$J$15+Fluxo!$J$16-Fluxo!$J$18-Fluxo!$J$20+Fluxo!$J$21 -> 29767.29274 | K25: =(((Faturamento!$K$20)*22*12)*0.9635-Fluxo!$K$4-Simulação!X32-Fluxo!$I$7)*0.75+Fluxo!$K$14+Fluxo!$K$15+Fluxo!$K$16-Fluxo!$K$18-Fluxo!$K$20+Fluxo!$K$21 -> 20711.09675 | L25: =(((Faturamento!$L$20)*22*12)*0.9635-Fluxo!$L$4-Simulação!Y32-Fluxo!$J$7)*0.75+Fluxo!$L$14+Fluxo!$L$15+Fluxo!$L$16-Fluxo!$L$18-Fluxo!$L$20+Fluxo!$L$21 -> -2309.650116 | M25: =NPV(Taxas!$B$17,C25:L25)+B25 -> 14330.50474
A26: 25 | B26: -108118 | C26: 10430.495 | D26: 10889.51975 | E26: =(((Faturamento!$E$20)*22*12)*0.9635-Fluxo!$E$4-Simulação!R33-Fluxo!$E$7)*0.75+Fluxo!$E$14+Fluxo!$E$15+Fluxo!$E$16-Fluxo!$E$18-Fluxo!$E$20+Fluxo!$E$21 -> -10809.4804 | F26: =(((Faturamento!$F$20)*22*12)*0.9635-Fluxo!$F$4-Simulação!S33-Fluxo!$D$7)*0.75+Fluxo!$F$14+Fluxo!$F$15+Fluxo!$F$16-Fluxo!$F$18-Fluxo!$F$20+Fluxo!$F$21 -> -14461.48797 | G26: =(((Faturamento!$G$20)*22*12)*0.9635-Fluxo!$G$4-Simulação!T33-Fluxo!$E$7)*0.75+Fluxo!$G$14+Fluxo!$G$15+Fluxo!$G$16-Fluxo!$G$18-Fluxo!$G$20+Fluxo!$G$21 -> -11834.77393 | H26: =(((Faturamento!$H$20)*22*12)*0.9635-Fluxo!$H$4-Simulação!U33-Fluxo!$F$7)*0.75+Fluxo!$H$14+Fluxo!$H$15+Fluxo!$H$16-Fluxo!$H$18-Fluxo!$H$20+Fluxo!$H$21 -> -7582.480545 | I26: =(((Faturamento!$I$20)*22*12)*0.9635-Fluxo!$I$4-Simulação!V33-Fluxo!$G$7)*0.75+Fluxo!$I$14+Fluxo!$I$15+Fluxo!$I$16-Fluxo!$I$18-Fluxo!$I$20+Fluxo!$I$21 -> 8550.524699 | J26: =(((Faturamento!$J$20)*22*12)*0.9635-Fluxo!$J$4-Simulação!W33-Fluxo!$H$7)*0.75+Fluxo!$J$14+Fluxo!$J$15+Fluxo!$J$16-Fluxo!$J$18-Fluxo!$J$20+Fluxo!$J$21 -> 23840.49203 | K26: =(((Faturamento!$K$20)*22*12)*0.9635-Fluxo!$K$4-Simulação!X33-Fluxo!$I$7)*0.75+Fluxo!$K$14+Fluxo!$K$15+Fluxo!$K$16-Fluxo!$K$18-Fluxo!$K$20+Fluxo!$K$21 -> -5358.606612 | L26: =(((Faturamento!$L$20)*22*12)*0.9635-Fluxo!$L$4-Simulação!Y33-Fluxo!$J$7)*0.75+Fluxo!$L$14+Fluxo!$L$15+Fluxo!$L$16-Fluxo!$L$18-Fluxo!$L$20+Fluxo!$L$21 -> -2472.075913 | M26: =NPV(Taxas!$B$17,C26:L26)+B26 -> -107233.7333
A27: 26 | B27: -108118 | C27: 10430.495 | D27: 10889.51975 | E27: =(((Faturamento!$E$20)*22*12)*0.9635-Fluxo!$E$4-Simulação!R34-Fluxo!$E$7)*0.75+Fluxo!$E$14+Fluxo!$E$15+Fluxo!$E$16-Fluxo!$E$18-Fluxo!$E$20+Fluxo!$E$21 -> 18058.40853 | F27: =(((Faturamento!$F$20)*22*12)*0.9635-Fluxo!$F$4-Simulação!S34-Fluxo!$D$7)*0.75+Fluxo!$F$14+Fluxo!$F$15+Fluxo!$F$16-Fluxo!$F$18-Fluxo!$F$20+Fluxo!$F$21 -> 25295.25865 | G27: =(((Faturamento!$G$20)*22*12)*0.9635-Fluxo!$G$4-Simulação!T34-Fluxo!$E$7)*0.75+Fluxo!$G$14+Fluxo!$G$15+Fluxo!$G$16-Fluxo!$G$18-Fluxo!$G$20+Fluxo!$G$21 -> 7851.135875 | H27: =(((Faturamento!$H$20)*22*12)*0.9635-Fluxo!$H$4-Simulação!U34-Fluxo!$F$7)*0.75+Fluxo!$H$14+Fluxo!$H$15+Fluxo!$H$16-Fluxo!$H$18-Fluxo!$H$20+Fluxo!$H$21 -> 5601.955014 | I27: =(((Faturamento!$I$20)*22*12)*0.9635-Fluxo!$I$4-Simulação!V34-Fluxo!$G$7)*0.75+Fluxo!$I$14+Fluxo!$I$15+Fluxo!$I$16-Fluxo!$I$18-Fluxo!$I$20+Fluxo!$I$21 -> -1206.65272 | J27: =(((Faturamento!$J$20)*22*12)*0.9635-Fluxo!$J$4-Simulação!W34-Fluxo!$H$7)*0.75+Fluxo!$J$14+Fluxo!$J$15+Fluxo!$J$16-Fluxo!$J$18-Fluxo!$J$20+Fluxo!$J$21 -> 46206.0993 | K27: =(((Faturamento!$K$20)*22*12)*0.9635-Fluxo!$K$4-Simulação!X34-Fluxo!$I$7)*0.75+Fluxo!$K$14+Fluxo!$K$15+Fluxo!$K$16-Fluxo!$K$18-Fluxo!$K$20+Fluxo!$K$21 -> 73.08267479 | L27: =(((Faturamento!$L$20)*22*12)*0.9635-Fluxo!$L$4-Simulação!Y34-Fluxo!$J$7)*0.75+Fluxo!$L$14+Fluxo!$L$15+Fluxo!$L$16-Fluxo!$L$18-Fluxo!$L$20+Fluxo!$L$21 -> -9485.703161 | M27: =NPV(Taxas!$B$17,C27:L27)+B27 -> -15335.35014
A28: 27 | B28: -108118 | C28: 10430.495 | D28: 10889.51975 | E28: =(((Faturamento!$E$20)*22*12)*0.9635-Fluxo!$E$4-Simulação!R35-Fluxo!$E$7)*0.75+Fluxo!$E$14+Fluxo!$E$15+Fluxo!$E$16-Fluxo!$E$18-Fluxo!$E$20+Fluxo!$E$21 -> -15717.16018 | F28: =(((Faturamento!$F$20)*22*12)*0.9635-Fluxo!$F$4-Simulação!S35-Fluxo!$D$7)*0.75+Fluxo!$F$14+Fluxo!$F$15+Fluxo!$F$16-Fluxo!$F$18-Fluxo!$F$20+Fluxo!$F$21 -> 23953.61919 | G28: =(((Faturamento!$G$20)*22*12)*0.9635-Fluxo!$G$4-Simulação!T35-Fluxo!$E$7)*0.75+Fluxo!$G$14+Fluxo!$G$15+Fluxo!$G$16-Fluxo!$G$18-Fluxo!$G$20+Fluxo!$G$21 -> 20388.36688 | H28: =(((Faturamento!$H$20)*22*12)*0.9635-Fluxo!$H$4-Simulação!U35-Fluxo!$F$7)*0.75+Fluxo!$H$14+Fluxo!$H$15+Fluxo!$H$16-Fluxo!$H$18-Fluxo!$H$20+Fluxo!$H$21 -> 34561.14031 | I28: =(((Faturamento!$I$20)*22*12)*0.9635-Fluxo!$I$4-Simulação!V35-Fluxo!$G$7)*0.75+Fluxo!$I$14+Fluxo!$I$15+Fluxo!$I$16-Fluxo!$I$18-Fluxo!$I$20+Fluxo!$I$21 -> -17596.9346 | J28: =(((Faturamento!$J$20)*22*12)*0.9635-Fluxo!$J$4-Simulação!W35-Fluxo!$H$7)*0.75+Fluxo!$J$14+Fluxo!$J$15+Fluxo!$J$16-Fluxo!$J$18-Fluxo!$J$20+Fluxo!$J$21 -> 23274.77541 | K28: =(((Faturamento!$K$20)*22*12)*0.9635-Fluxo!$K$4-Simulação!X35-Fluxo!$I$7)*0.75+Fluxo!$K$14+Fluxo!$K$15+Fluxo!$K$16-Fluxo!$K$18-Fluxo!$K$20+Fluxo!$K$21 -> 15630.0425 | L28: =(((Faturamento!$L$20)*22*12)*0.9635-Fluxo!$L$4-Simulação!Y35-Fluxo!$J$7)*0.75+Fluxo!$L$14+Fluxo!$L$15+Fluxo!$L$16-Fluxo!$L$18-Fluxo!$L$20+Fluxo!$L$21 -> 8993.254819 | M28: =NPV(Taxas!$B$17,C28:L28)+B28 -> -19638.54497
A29: 28 | B29: -108118 | C29: 10430.495 | D29: 10889.51975 | E29: =(((Faturamento!$E$20)*22*12)*0.9635-Fluxo!$E$4-Simulação!R36-Fluxo!$E$7)*0.75+Fluxo!$E$14+Fluxo!$E$15+Fluxo!$E$16-Fluxo!$E$18-Fluxo!$E$20+Fluxo!$E$21 -> -2280.546608 | F29: =(((Faturamento!$F$20)*22*12)*0.9635-Fluxo!$F$4-Simulação!S36-Fluxo!$D$7)*0.75+Fluxo!$F$14+Fluxo!$F$15+Fluxo!$F$16-Fluxo!$F$18-Fluxo!$F$20+Fluxo!$F$21 -> -1727.163092 | G29: =(((Faturamento!$G$20)*22*12)*0.9635-Fluxo!$G$4-Simulação!T36-Fluxo!$E$7)*0.75+Fluxo!$G$14+Fluxo!$G$15+Fluxo!$G$16-Fluxo!$G$18-Fluxo!$G$20+Fluxo!$G$21 -> 33790.0873 | H29: =(((Faturamento!$H$20)*22*12)*0.9635-Fluxo!$H$4-Simulação!U36-Fluxo!$F$7)*0.75+Fluxo!$H$14+Fluxo!$H$15+Fluxo!$H$16-Fluxo!$H$18-Fluxo!$H$20+Fluxo!$H$21 -> 13800.40854 | I29: =(((Faturamento!$I$20)*22*12)*0.9635-Fluxo!$I$4-Simulação!V36-Fluxo!$G$7)*0.75+Fluxo!$I$14+Fluxo!$I$15+Fluxo!$I$16-Fluxo!$I$18-Fluxo!$I$20+Fluxo!$I$21 -> -16621.31003 | J29: =(((Faturamento!$J$20)*22*12)*0.9635-Fluxo!$J$4-Simulação!W36-Fluxo!$H$7)*0.75+Fluxo!$J$14+Fluxo!$J$15+Fluxo!$J$16-Fluxo!$J$18-Fluxo!$J$20+Fluxo!$J$21 -> 49214.29511 | K29: =(((Faturamento!$K$20)*22*12)*0.9635-Fluxo!$K$4-Simulação!X36-Fluxo!$I$7)*0.75+Fluxo!$K$14+Fluxo!$K$15+Fluxo!$K$16-Fluxo!$K$18-Fluxo!$K$20+Fluxo!$K$21 -> 33500.26317 | L29: =(((Faturamento!$L$20)*22*12)*0.9635-Fluxo!$L$4-Simulação!Y36-Fluxo!$J$7)*0.75+Fluxo!$L$14+Fluxo!$L$15+Fluxo!$L$16-Fluxo!$L$18-Fluxo!$L$20+Fluxo!$L$21 -> -1018.306634 | M29: =NPV(Taxas!$B$17,C29:L29)+B29 -> -10138.86429
A30: 29 | B30: -108118 | C30: 10430.495 | D30: 10889.51975 | E30: =(((Faturamento!$E$20)*22*12)*0.9635-Fluxo!$E$4-Simulação!R37-Fluxo!$E$7)*0.75+Fluxo!$E$14+Fluxo!$E$15+Fluxo!$E$16-Fluxo!$E$18-Fluxo!$E$20+Fluxo!$E$21 -> 6542.57653 | F30: =(((Faturamento!$F$20)*22*12)*0.9635-Fluxo!$F$4-Simulação!S37-Fluxo!$D$7)*0.75+Fluxo!$F$14+Fluxo!$F$15+Fluxo!$F$16-Fluxo!$F$18-Fluxo!$F$20+Fluxo!$F$21 -> 7423.411868 | G30: =(((Faturamento!$G$20)*22*12)*0.9635-Fluxo!$G$4-Simulação!T37-Fluxo!$E$7)*0.75+Fluxo!$G$14+Fluxo!$G$15+Fluxo!$G$16-Fluxo!$G$18-Fluxo!$G$20+Fluxo!$G$21 -> 38131.28428 | H30: =(((Faturamento!$H$20)*22*12)*0.9635-Fluxo!$H$4-Simulação!U37-Fluxo!$F$7)*0.75+Fluxo!$H$14+Fluxo!$H$15+Fluxo!$H$16-Fluxo!$H$18-Fluxo!$H$20+Fluxo!$H$21 -> 38623.76392 | I30: =(((Faturamento!$I$20)*22*12)*0.9635-Fluxo!$I$4-Simulação!V37-Fluxo!$G$7)*0.75+Fluxo!$I$14+Fluxo!$I$15+Fluxo!$I$16-Fluxo!$I$18-Fluxo!$I$20+Fluxo!$I$21 -> 14228.23156 | J30: =(((Faturamento!$J$20)*22*12)*0.9635-Fluxo!$J$4-Simulação!W37-Fluxo!$H$7)*0.75+Fluxo!$J$14+Fluxo!$J$15+Fluxo!$J$16-Fluxo!$J$18-Fluxo!$J$20+Fluxo!$J$21 -> -21128.17791 | K30: =(((Faturamento!$K$20)*22*12)*0.9635-Fluxo!$K$4-Simulação!X37-Fluxo!$I$7)*0.75+Fluxo!$K$14+Fluxo!$K$15+Fluxo!$K$16-Fluxo!$K$18-Fluxo!$K$20+Fluxo!$K$21 -> -19905.69955 | L30: =(((Faturamento!$L$20)*22*12)*0.9635-Fluxo!$L$4-Simulação!Y37-Fluxo!$J$7)*0.75+Fluxo!$L$14+Fluxo!$L$15+Fluxo!$L$16-Fluxo!$L$18-Fluxo!$L$20+Fluxo!$L$21 -> -3040.381974 | M30: =NPV(Taxas!$B$17,C30:L30)+B30 -> -35890.04085
A31: 30 | B31: -108118 | C31: 10430.495 | D31: 10889.51975 | E31: =(((Faturamento!$E$20)*22*12)*0.9635-Fluxo!$E$4-Simulação!R38-Fluxo!$E$7)*0.75+Fluxo!$E$14+Fluxo!$E$15+Fluxo!$E$16-Fluxo!$E$18-Fluxo!$E$20+Fluxo!$E$21 -> -14680.26137 | F31: =(((Faturamento!$F$20)*22*12)*0.9635-Fluxo!$F$4-Simulação!S38-Fluxo!$D$7)*0.75+Fluxo!$F$14+Fluxo!$F$15+Fluxo!$F$16-Fluxo!$F$18-Fluxo!$F$20+Fluxo!$F$21 -> -12001.695 | G31: =(((Faturamento!$G$20)*22*12)*0.9635-Fluxo!$G$4-Simulação!T38-Fluxo!$E$7)*0.75+Fluxo!$G$14+Fluxo!$G$15+Fluxo!$G$16-Fluxo!$G$18-Fluxo!$G$20+Fluxo!$G$21 -> 1201.013489 | H31: =(((Faturamento!$H$20)*22*12)*0.9635-Fluxo!$H$4-Simulação!U38-Fluxo!$F$7)*0.75+Fluxo!$H$14+Fluxo!$H$15+Fluxo!$H$16-Fluxo!$H$18-Fluxo!$H$20+Fluxo!$H$21 -> -5025.460721 | I31: =(((Faturamento!$I$20)*22*12)*0.9635-Fluxo!$I$4-Simulação!V38-Fluxo!$G$7)*0.75+Fluxo!$I$14+Fluxo!$I$15+Fluxo!$I$16-Fluxo!$I$18-Fluxo!$I$20+Fluxo!$I$21 -> 5967.288797 | J31: =(((Faturamento!$J$20)*22*12)*0.9635-Fluxo!$J$4-Simulação!W38-Fluxo!$H$7)*0.75+Fluxo!$J$14+Fluxo!$J$15+Fluxo!$J$16-Fluxo!$J$18-Fluxo!$J$20+Fluxo!$J$21 -> -3954.290207 | K31: =(((Faturamento!$K$20)*22*12)*0.9635-Fluxo!$K$4-Simulação!X38-Fluxo!$I$7)*0.75+Fluxo!$K$14+Fluxo!$K$15+Fluxo!$K$16-Fluxo!$K$18-Fluxo!$K$20+Fluxo!$K$21 -> 44294.98318 | L31: =(((Faturamento!$L$20)*22*12)*0.9635-Fluxo!$L$4-Simulação!Y38-Fluxo!$J$7)*0.75+Fluxo!$L$14+Fluxo!$L$15+Fluxo!$L$16-Fluxo!$L$18-Fluxo!$L$20+Fluxo!$L$21 -> -10212.89371 | M31: =NPV(Taxas!$B$17,C31:L31)+B31 -> -89277.39708
A32: 31 | B32: -108118 | C32: 10430.495 | D32: 10889.51975 | E32: =(((Faturamento!$E$20)*22*12)*0.9635-Fluxo!$E$4-Simulação!R39-Fluxo!$E$7)*0.75+Fluxo!$E$14+Fluxo!$E$15+Fluxo!$E$16-Fluxo!$E$18-Fluxo!$E$20+Fluxo!$E$21 -> 24017.5422 | F32: =(((Faturamento!$F$20)*22*12)*0.9635-Fluxo!$F$4-Simulação!S39-Fluxo!$D$7)*0.75+Fluxo!$F$14+Fluxo!$F$15+Fluxo!$F$16-Fluxo!$F$18-Fluxo!$F$20+Fluxo!$F$21 -> 13091.85477 | G32: =(((Faturamento!$G$20)*22*12)*0.9635-Fluxo!$G$4-Simulação!T39-Fluxo!$E$7)*0.75+Fluxo!$G$14+Fluxo!$G$15+Fluxo!$G$16-Fluxo!$G$18-Fluxo!$G$20+Fluxo!$G$21 -> 18834.10119 | H32: =(((Faturamento!$H$20)*22*12)*0.9635-Fluxo!$H$4-Simulação!U39-Fluxo!$F$7)*0.75+Fluxo!$H$14+Fluxo!$H$15+Fluxo!$H$16-Fluxo!$H$18-Fluxo!$H$20+Fluxo!$H$21 -> 18863.15461 | I32: =(((Faturamento!$I$20)*22*12)*0.9635-Fluxo!$I$4-Simulação!V39-Fluxo!$G$7)*0.75+Fluxo!$I$14+Fluxo!$I$15+Fluxo!$I$16-Fluxo!$I$18-Fluxo!$I$20+Fluxo!$I$21 -> 20380.56201 | J32: =(((Faturamento!$J$20)*22*12)*0.9635-Fluxo!$J$4-Simulação!W39-Fluxo!$H$7)*0.75+Fluxo!$J$14+Fluxo!$J$15+Fluxo!$J$16-Fluxo!$J$18-Fluxo!$J$20+Fluxo!$J$21 -> -15674.06236 | K32: =(((Faturamento!$K$20)*22*12)*0.9635-Fluxo!$K$4-Simulação!X39-Fluxo!$I$7)*0.75+Fluxo!$K$14+Fluxo!$K$15+Fluxo!$K$16-Fluxo!$K$18-Fluxo!$K$20+Fluxo!$K$21 -> 2942.019384 | L32: =(((Faturamento!$L$20)*22*12)*0.9635-Fluxo!$L$4-Simulação!Y39-Fluxo!$J$7)*0.75+Fluxo!$L$14+Fluxo!$L$15+Fluxo!$L$16-Fluxo!$L$18-Fluxo!$L$20+Fluxo!$L$21 -> 8368.270785 | M32: =NPV(Taxas!$B$17,C32:L32)+B32 -> -15552.00894
A33: 32 | B33: -108118 | C33: 10430.495 | D33: 10889.51975 | E33: =(((Faturamento!$E$20)*22*12)*0.9635-Fluxo!$E$4-Simulação!R40-Fluxo!$E$7)*0.75+Fluxo!$E$14+Fluxo!$E$15+Fluxo!$E$16-Fluxo!$E$18-Fluxo!$E$20+Fluxo!$E$21 -> -122.574618 | F33: =(((Faturamento!$F$20)*22*12)*0.9635-Fluxo!$F$4-Simulação!S40-Fluxo!$D$7)*0.75+Fluxo!$F$14+Fluxo!$F$15+Fluxo!$F$16-Fluxo!$F$18-Fluxo!$F$20+Fluxo!$F$21 -> -1548.17114 | G33: =(((Faturamento!$G$20)*22*12)*0.9635-Fluxo!$G$4-Simulação!T40-Fluxo!$E$7)*0.75+Fluxo!$G$14+Fluxo!$G$15+Fluxo!$G$16-Fluxo!$G$18-Fluxo!$G$20+Fluxo!$G$21 -> -18556.67115 | H33: =(((Faturamento!$H$20)*22*12)*0.9635-Fluxo!$H$4-Simulação!U40-Fluxo!$F$7)*0.75+Fluxo!$H$14+Fluxo!$H$15+Fluxo!$H$16-Fluxo!$H$18-Fluxo!$H$20+Fluxo!$H$21 -> 17488.23096 | I33: =(((Faturamento!$I$20)*22*12)*0.9635-Fluxo!$I$4-Simulação!V40-Fluxo!$G$7)*0.75+Fluxo!$I$14+Fluxo!$I$15+Fluxo!$I$16-Fluxo!$I$18-Fluxo!$I$20+Fluxo!$I$21 -> 31858.4682 | J33: =(((Faturamento!$J$20)*22*12)*0.9635-Fluxo!$J$4-Simulação!W40-Fluxo!$H$7)*0.75+Fluxo!$J$14+Fluxo!$J$15+Fluxo!$J$16-Fluxo!$J$18-Fluxo!$J$20+Fluxo!$J$21 -> 38929.41014 | K33: =(((Faturamento!$K$20)*22*12)*0.9635-Fluxo!$K$4-Simulação!X40-Fluxo!$I$7)*0.75+Fluxo!$K$14+Fluxo!$K$15+Fluxo!$K$16-Fluxo!$K$18-Fluxo!$K$20+Fluxo!$K$21 -> 1705.336677 | L33: =(((Faturamento!$L$20)*22*12)*0.9635-Fluxo!$L$4-Simulação!Y40-Fluxo!$J$7)*0.75+Fluxo!$L$14+Fluxo!$L$15+Fluxo!$L$16-Fluxo!$L$18-Fluxo!$L$20+Fluxo!$L$21 -> 28119.65172 | M33: =NPV(Taxas!$B$17,C33:L33)+B33 -> -21511.32238
A34: 33 | B34: -108118 | C34: 10430.495 | D34: 10889.51975 | E34: =(((Faturamento!$E$20)*22*12)*0.9635-Fluxo!$E$4-Simulação!R41-Fluxo!$E$7)*0.75+Fluxo!$E$14+Fluxo!$E$15+Fluxo!$E$16-Fluxo!$E$18-Fluxo!$E$20+Fluxo!$E$21 -> -3393.021457 | F34: =(((Faturamento!$F$20)*22*12)*0.9635-Fluxo!$F$4-Simulação!S41-Fluxo!$D$7)*0.75+Fluxo!$F$14+Fluxo!$F$15+Fluxo!$F$16-Fluxo!$F$18-Fluxo!$F$20+Fluxo!$F$21 -> 16270.06914 | G34: =(((Faturamento!$G$20)*22*12)*0.9635-Fluxo!$G$4-Simulação!T41-Fluxo!$E$7)*0.75+Fluxo!$G$14+Fluxo!$G$15+Fluxo!$G$16-Fluxo!$G$18-Fluxo!$G$20+Fluxo!$G$21 -> -4982.507848 | H34: =(((Faturamento!$H$20)*22*12)*0.9635-Fluxo!$H$4-Simulação!U41-Fluxo!$F$7)*0.75+Fluxo!$H$14+Fluxo!$H$15+Fluxo!$H$16-Fluxo!$H$18-Fluxo!$H$20+Fluxo!$H$21 -> 5161.047785 | I34: =(((Faturamento!$I$20)*22*12)*0.9635-Fluxo!$I$4-Simulação!V41-Fluxo!$G$7)*0.75+Fluxo!$I$14+Fluxo!$I$15+Fluxo!$I$16-Fluxo!$I$18-Fluxo!$I$20+Fluxo!$I$21 -> 13542.45944 | J34: =(((Faturamento!$J$20)*22*12)*0.9635-Fluxo!$J$4-Simulação!W41-Fluxo!$H$7)*0.75+Fluxo!$J$14+Fluxo!$J$15+Fluxo!$J$16-Fluxo!$J$18-Fluxo!$J$20+Fluxo!$J$21 -> 25660.62629 | K34: =(((Faturamento!$K$20)*22*12)*0.9635-Fluxo!$K$4-Simulação!X41-Fluxo!$I$7)*0.75+Fluxo!$K$14+Fluxo!$K$15+Fluxo!$K$16-Fluxo!$K$18-Fluxo!$K$20+Fluxo!$K$21 -> 30711.01286 | L34: =(((Faturamento!$L$20)*22*12)*0.9635-Fluxo!$L$4-Simulação!Y41-Fluxo!$J$7)*0.75+Fluxo!$L$14+Fluxo!$L$15+Fluxo!$L$16-Fluxo!$L$18-Fluxo!$L$20+Fluxo!$L$21 -> 25303.36153 | M34: =NPV(Taxas!$B$17,C34:L34)+B34 -> -13126.0635
A35: 34 | B35: -108118 | C35: 10430.495 | D35: 10889.51975 | E35: =(((Faturamento!$E$20)*22*12)*0.9635-Fluxo!$E$4-Simulação!R42-Fluxo!$E$7)*0.75+Fluxo!$E$14+Fluxo!$E$15+Fluxo!$E$16-Fluxo!$E$18-Fluxo!$E$20+Fluxo!$E$21 -> -15718.11154 | F35: =(((Faturamento!$F$20)*22*12)*0.9635-Fluxo!$F$4-Simulação!S42-Fluxo!$D$7)*0.75+Fluxo!$F$14+Fluxo!$F$15+Fluxo!$F$16-Fluxo!$F$18-Fluxo!$F$20+Fluxo!$F$21 -> 34649.49805 | G35: =(((Faturamento!$G$20)*22*12)*0.9635-Fluxo!$G$4-Simulação!T42-Fluxo!$E$7)*0.75+Fluxo!$G$14+Fluxo!$G$15+Fluxo!$G$16-Fluxo!$G$18-Fluxo!$G$20+Fluxo!$G$21 -> 7272.940425 | H35: =(((Faturamento!$H$20)*22*12)*0.9635-Fluxo!$H$4-Simulação!U42-Fluxo!$F$7)*0.75+Fluxo!$H$14+Fluxo!$H$15+Fluxo!$H$16-Fluxo!$H$18-Fluxo!$H$20+Fluxo!$H$21 -> 40601.68712 | I35: =(((Faturamento!$I$20)*22*12)*0.9635-Fluxo!$I$4-Simulação!V42-Fluxo!$G$7)*0.75+Fluxo!$I$14+Fluxo!$I$15+Fluxo!$I$16-Fluxo!$I$18-Fluxo!$I$20+Fluxo!$I$21 -> 36535.55106 | J35: =(((Faturamento!$J$20)*22*12)*0.9635-Fluxo!$J$4-Simulação!W42-Fluxo!$H$7)*0.75+Fluxo!$J$14+Fluxo!$J$15+Fluxo!$J$16-Fluxo!$J$18-Fluxo!$J$20+Fluxo!$J$21 -> -21381.29655 | K35: =(((Faturamento!$K$20)*22*12)*0.9635-Fluxo!$K$4-Simulação!X42-Fluxo!$I$7)*0.75+Fluxo!$K$14+Fluxo!$K$15+Fluxo!$K$16-Fluxo!$K$18-Fluxo!$K$20+Fluxo!$K$21 -> 32118.14758 | L35: =(((Faturamento!$L$20)*22*12)*0.9635-Fluxo!$L$4-Simulação!Y42-Fluxo!$J$7)*0.75+Fluxo!$L$14+Fluxo!$L$15+Fluxo!$L$16-Fluxo!$L$18-Fluxo!$L$20+Fluxo!$L$21 -> 31016.7334 | M35: =NPV(Taxas!$B$17,C35:L35)+B35 -> 16856.66424
A36: 35 | B36: -108118 | C36: 10430.495 | D36: 10889.51975 | E36: =(((Faturamento!$E$20)*22*12)*0.9635-Fluxo!$E$4-Simulação!R43-Fluxo!$E$7)*0.75+Fluxo!$E$14+Fluxo!$E$15+Fluxo!$E$16-Fluxo!$E$18-Fluxo!$E$20+Fluxo!$E$21 -> 35206.41225 | F36: =(((Faturamento!$F$20)*22*12)*0.9635-Fluxo!$F$4-Simulação!S43-Fluxo!$D$7)*0.75+Fluxo!$F$14+Fluxo!$F$15+Fluxo!$F$16-Fluxo!$F$18-Fluxo!$F$20+Fluxo!$F$21 -> 1881.463703 | G36: =(((Faturamento!$G$20)*22*12)*0.9635-Fluxo!$G$4-Simulação!T43-Fluxo!$E$7)*0.75+Fluxo!$G$14+Fluxo!$G$15+Fluxo!$G$16-Fluxo!$G$18-Fluxo!$G$20+Fluxo!$G$21 -> 29454.03527 | H36: =(((Faturamento!$H$20)*22*12)*0.9635-Fluxo!$H$4-Simulação!U43-Fluxo!$F$7)*0.75+Fluxo!$H$14+Fluxo!$H$15+Fluxo!$H$16-Fluxo!$H$18-Fluxo!$H$20+Fluxo!$H$21 -> 13124.12944 | I36: =(((Faturamento!$I$20)*22*12)*0.9635-Fluxo!$I$4-Simulação!V43-Fluxo!$G$7)*0.75+Fluxo!$I$14+Fluxo!$I$15+Fluxo!$I$16-Fluxo!$I$18-Fluxo!$I$20+Fluxo!$I$21 -> -10168.3718 | J36: =(((Faturamento!$J$20)*22*12)*0.9635-Fluxo!$J$4-Simulação!W43-Fluxo!$H$7)*0.75+Fluxo!$J$14+Fluxo!$J$15+Fluxo!$J$16-Fluxo!$J$18-Fluxo!$J$20+Fluxo!$J$21 -> -2767.695561 | K36: =(((Faturamento!$K$20)*22*12)*0.9635-Fluxo!$K$4-Simulação!X43-Fluxo!$I$7)*0.75+Fluxo!$K$14+Fluxo!$K$15+Fluxo!$K$16-Fluxo!$K$18-Fluxo!$K$20+Fluxo!$K$21 -> 47491.77729 | L36: =(((Faturamento!$L$20)*22*12)*0.9635-Fluxo!$L$4-Simulação!Y43-Fluxo!$J$7)*0.75+Fluxo!$L$14+Fluxo!$L$15+Fluxo!$L$16-Fluxo!$L$18-Fluxo!$L$20+Fluxo!$L$21 -> 62440.0668 | M36: =NPV(Taxas!$B$17,C36:L36)+B36 -> 39926.44507
A37: 36 | B37: -108118 | C37: 10430.495 | D37: 10889.51975 | E37: =(((Faturamento!$E$20)*22*12)*0.9635-Fluxo!$E$4-Simulação!R44-Fluxo!$E$7)*0.75+Fluxo!$E$14+Fluxo!$E$15+Fluxo!$E$16-Fluxo!$E$18-Fluxo!$E$20+Fluxo!$E$21 -> 4618.70434 | F37: =(((Faturamento!$F$20)*22*12)*0.9635-Fluxo!$F$4-Simulação!S44-Fluxo!$D$7)*0.75+Fluxo!$F$14+Fluxo!$F$15+Fluxo!$F$16-Fluxo!$F$18-Fluxo!$F$20+Fluxo!$F$21 -> -5390.446146 | G37: =(((Faturamento!$G$20)*22*12)*0.9635-Fluxo!$G$4-Simulação!T44-Fluxo!$E$7)*0.75+Fluxo!$G$14+Fluxo!$G$15+Fluxo!$G$16-Fluxo!$G$18-Fluxo!$G$20+Fluxo!$G$21 -> 34332.49605 | H37: =(((Faturamento!$H$20)*22*12)*0.9635-Fluxo!$H$4-Simulação!U44-Fluxo!$F$7)*0.75+Fluxo!$H$14+Fluxo!$H$15+Fluxo!$H$16-Fluxo!$H$18-Fluxo!$H$20+Fluxo!$H$21 -> 30272.90199 | I37: =(((Faturamento!$I$20)*22*12)*0.9635-Fluxo!$I$4-Simulação!V44-Fluxo!$G$7)*0.75+Fluxo!$I$14+Fluxo!$I$15+Fluxo!$I$16-Fluxo!$I$18-Fluxo!$I$20+Fluxo!$I$21 -> 10179.70555 | J37: =(((Faturamento!$J$20)*22*12)*0.9635-Fluxo!$J$4-Simulação!W44-Fluxo!$H$7)*0.75+Fluxo!$J$14+Fluxo!$J$15+Fluxo!$J$16-Fluxo!$J$18-Fluxo!$J$20+Fluxo!$J$21 -> 9880.737411 | K37: =(((Faturamento!$K$20)*22*12)*0.9635-Fluxo!$K$4-Simulação!X44-Fluxo!$I$7)*0.75+Fluxo!$K$14+Fluxo!$K$15+Fluxo!$K$16-Fluxo!$K$18-Fluxo!$K$20+Fluxo!$K$21 -> 35388.56012 | L37: =(((Faturamento!$L$20)*22*12)*0.9635-Fluxo!$L$4-Simulação!Y44-Fluxo!$J$7)*0.75+Fluxo!$L$14+Fluxo!$L$15+Fluxo!$L$16-Fluxo!$L$18-Fluxo!$L$20+Fluxo!$L$21 -> 39794.38412 | M37: =NPV(Taxas!$B$17,C37:L37)+B37 -> 25270.25429
A38: 37 | B38: -108118 | C38: 10430.495 | D38: 10889.51975 | E38: =(((Faturamento!$E$20)*22*12)*0.9635-Fluxo!$E$4-Simulação!R45-Fluxo!$E$7)*0.75+Fluxo!$E$14+Fluxo!$E$15+Fluxo!$E$16-Fluxo!$E$18-Fluxo!$E$20+Fluxo!$E$21 -> -10541.30446 | F38: =(((Faturamento!$F$20)*22*12)*0.9635-Fluxo!$F$4-Simulação!S45-Fluxo!$D$7)*0.75+Fluxo!$F$14+Fluxo!$F$15+Fluxo!$F$16-Fluxo!$F$18-Fluxo!$F$20+Fluxo!$F$21 -> 35147.2405 | G38: =(((Faturamento!$G$20)*22*12)*0.9635-Fluxo!$G$4-Simulação!T45-Fluxo!$E$7)*0.75+Fluxo!$G$14+Fluxo!$G$15+Fluxo!$G$16-Fluxo!$G$18-Fluxo!$G$20+Fluxo!$G$21 -> -8584.727418 | H38: =(((Faturamento!$H$20)*22*12)*0.9635-Fluxo!$H$4-Simulação!U45-Fluxo!$F$7)*0.75+Fluxo!$H$14+Fluxo!$H$15+Fluxo!$H$16-Fluxo!$H$18-Fluxo!$H$20+Fluxo!$H$21 -> 22336.10583 | I38: =(((Faturamento!$I$20)*22*12)*0.9635-Fluxo!$I$4-Simulação!V45-Fluxo!$G$7)*0.75+Fluxo!$I$14+Fluxo!$I$15+Fluxo!$I$16-Fluxo!$I$18-Fluxo!$I$20+Fluxo!$I$21 -> 15514.03544 | J38: =(((Faturamento!$J$20)*22*12)*0.9635-Fluxo!$J$4-Simulação!W45-Fluxo!$H$7)*0.75+Fluxo!$J$14+Fluxo!$J$15+Fluxo!$J$16-Fluxo!$J$18-Fluxo!$J$20+Fluxo!$J$21 -> -4993.783283 | K38: =(((Faturamento!$K$20)*22*12)*0.9635-Fluxo!$K$4-Simulação!X45-Fluxo!$I$7)*0.75+Fluxo!$K$14+Fluxo!$K$15+Fluxo!$K$16-Fluxo!$K$18-Fluxo!$K$20+Fluxo!$K$21 -> 38483.859 | L38: =(((Faturamento!$L$20)*22*12)*0.9635-Fluxo!$L$4-Simulação!Y45-Fluxo!$J$7)*0.75+Fluxo!$L$14+Fluxo!$L$15+Fluxo!$L$16-Fluxo!$L$18-Fluxo!$L$20+Fluxo!$L$21 -> 38821.95067 | M38: =NPV(Taxas!$B$17,C38:L38)+B38 -> 496.5215775
A39: 38 | B39: -108118 | C39: 10430.495 | D39: 10889.51975 | E39: =(((Faturamento!$E$20)*22*12)*0.9635-Fluxo!$E$4-Simulação!R46-Fluxo!$E$7)*0.75+Fluxo!$E$14+Fluxo!$E$15+Fluxo!$E$16-Fluxo!$E$18-Fluxo!$E$20+Fluxo!$E$21 -> 15778.4123 | F39: =(((Faturamento!$F$20)*22*12)*0.9635-Fluxo!$F$4-Simulação!S46-Fluxo!$D$7)*0.75+Fluxo!$F$14+Fluxo!$F$15+Fluxo!$F$16-Fluxo!$F$18-Fluxo!$F$20+Fluxo!$F$21 -> 4938.459966 | G39: =(((Faturamento!$G$20)*22*12)*0.9635-Fluxo!$G$4-Simulação!T46-Fluxo!$E$7)*0.75+Fluxo!$G$14+Fluxo!$G$15+Fluxo!$G$16-Fluxo!$G$18-Fluxo!$G$20+Fluxo!$G$21 -> 10428.97216 | H39: =(((Faturamento!$H$20)*22*12)*0.9635-Fluxo!$H$4-Simulação!U46-Fluxo!$F$7)*0.75+Fluxo!$H$14+Fluxo!$H$15+Fluxo!$H$16-Fluxo!$H$18-Fluxo!$H$20+Fluxo!$H$21 -> 3236.716628 | I39: =(((Faturamento!$I$20)*22*12)*0.9635-Fluxo!$I$4-Simulação!V46-Fluxo!$G$7)*0.75+Fluxo!$I$14+Fluxo!$I$15+Fluxo!$I$16-Fluxo!$I$18-Fluxo!$I$20+Fluxo!$I$21 -> 11191.01867 | J39: =(((Faturamento!$J$20)*22*12)*0.9635-Fluxo!$J$4-Simulação!W46-Fluxo!$H$7)*0.75+Fluxo!$J$14+Fluxo!$J$15+Fluxo!$J$16-Fluxo!$J$18-Fluxo!$J$20+Fluxo!$J$21 -> -14164.70683 | K39: =(((Faturamento!$K$20)*22*12)*0.9635-Fluxo!$K$4-Simulação!X46-Fluxo!$I$7)*0.75+Fluxo!$K$14+Fluxo!$K$15+Fluxo!$K$16-Fluxo!$K$18-Fluxo!$K$20+Fluxo!$K$21 -> -21983.16291 | L39: =(((Faturamento!$L$20)*22*12)*0.9635-Fluxo!$L$4-Simulação!Y46-Fluxo!$J$7)*0.75+Fluxo!$L$14+Fluxo!$L$15+Fluxo!$L$16-Fluxo!$L$18-Fluxo!$L$20+Fluxo!$L$21 -> 60478.89806 | M39: =NPV(Taxas!$B$17,C39:L39)+B39 -> -37253.38587
A40: 39 | B40: -108118 | C40: 10430.495 | D40: 10889.51975 | E40: =(((Faturamento!$E$20)*22*12)*0.9635-Fluxo!$E$4-Simulação!R47-Fluxo!$E$7)*0.75+Fluxo!$E$14+Fluxo!$E$15+Fluxo!$E$16-Fluxo!$E$18-Fluxo!$E$20+Fluxo!$E$21 -> 32045.81587 | F40: =(((Faturamento!$F$20)*22*12)*0.9635-Fluxo!$F$4-Simulação!S47-Fluxo!$D$7)*0.75+Fluxo!$F$14+Fluxo!$F$15+Fluxo!$F$16-Fluxo!$F$18-Fluxo!$F$20+Fluxo!$F$21 -> 36377.43643 | G40: =(((Faturamento!$G$20)*22*12)*0.9635-Fluxo!$G$4-Simulação!T47-Fluxo!$E$7)*0.75+Fluxo!$G$14+Fluxo!$G$15+Fluxo!$G$16-Fluxo!$G$18-Fluxo!$G$20+Fluxo!$G$21 -> -6863.322068 | H40: =(((Faturamento!$H$20)*22*12)*0.9635-Fluxo!$H$4-Simulação!U47-Fluxo!$F$7)*0.75+Fluxo!$H$14+Fluxo!$H$15+Fluxo!$H$16-Fluxo!$H$18-Fluxo!$H$20+Fluxo!$H$21 -> 24813.5163 | I40: =(((Faturamento!$I$20)*22*12)*0.9635-Fluxo!$I$4-Simulação!V47-Fluxo!$G$7)*0.75+Fluxo!$I$14+Fluxo!$I$15+Fluxo!$I$16-Fluxo!$I$18-Fluxo!$I$20+Fluxo!$I$21 -> -17808.40865 | J40: =(((Faturamento!$J$20)*22*12)*0.9635-Fluxo!$J$4-Simulação!W47-Fluxo!$H$7)*0.75+Fluxo!$J$14+Fluxo!$J$15+Fluxo!$J$16-Fluxo!$J$18-Fluxo!$J$20+Fluxo!$J$21 -> 36720.92819 | K40: =(((Faturamento!$K$20)*22*12)*0.9635-Fluxo!$K$4-Simulação!X47-Fluxo!$I$7)*0.75+Fluxo!$K$14+Fluxo!$K$15+Fluxo!$K$16-Fluxo!$K$18-Fluxo!$K$20+Fluxo!$K$21 -> -7365.349057 | L40: =(((Faturamento!$L$20)*22*12)*0.9635-Fluxo!$L$4-Simulação!Y47-Fluxo!$J$7)*0.75+Fluxo!$L$14+Fluxo!$L$15+Fluxo!$L$16-Fluxo!$L$18-Fluxo!$L$20+Fluxo!$L$21 -> 52831.78128 | M40: =NPV(Taxas!$B$17,C40:L40)+B40 -> 25137.90826
A41: 40 | B41: -108118 | C41: 10430.495 | D41: 10889.51975 | E41: =(((Faturamento!$E$20)*22*12)*0.9635-Fluxo!$E$4-Simulação!R48-Fluxo!$E$7)*0.75+Fluxo!$E$14+Fluxo!$E$15+Fluxo!$E$16-Fluxo!$E$18-Fluxo!$E$20+Fluxo!$E$21 -> 20126.09653 | F41: =(((Faturamento!$F$20)*22*12)*0.9635-Fluxo!$F$4-Simulação!S48-Fluxo!$D$7)*0.75+Fluxo!$F$14+Fluxo!$F$15+Fluxo!$F$16-Fluxo!$F$18-Fluxo!$F$20+Fluxo!$F$21 -> -11859.07403 | G41: =(((Faturamento!$G$20)*22*12)*0.9635-Fluxo!$G$4-Simulação!T48-Fluxo!$E$7)*0.75+Fluxo!$G$14+Fluxo!$G$15+Fluxo!$G$16-Fluxo!$G$18-Fluxo!$G$20+Fluxo!$G$21 -> 12.38198255 | H41: =(((Faturamento!$H$20)*22*12)*0.9635-Fluxo!$H$4-Simulação!U48-Fluxo!$F$7)*0.75+Fluxo!$H$14+Fluxo!$H$15+Fluxo!$H$16-Fluxo!$H$18-Fluxo!$H$20+Fluxo!$H$21 -> 44142.09385 | I41: =(((Faturamento!$I$20)*22*12)*0.9635-Fluxo!$I$4-Simulação!V48-Fluxo!$G$7)*0.75+Fluxo!$I$14+Fluxo!$I$15+Fluxo!$I$16-Fluxo!$I$18-Fluxo!$I$20+Fluxo!$I$21 -> 2497.721227 | J41: =(((Faturamento!$J$20)*22*12)*0.9635-Fluxo!$J$4-Simulação!W48-Fluxo!$H$7)*0.75+Fluxo!$J$14+Fluxo!$J$15+Fluxo!$J$16-Fluxo!$J$18-Fluxo!$J$20+Fluxo!$J$21 -> 16110.14799 | K41: =(((Faturamento!$K$20)*22*12)*0.9635-Fluxo!$K$4-Simulação!X48-Fluxo!$I$7)*0.75+Fluxo!$K$14+Fluxo!$K$15+Fluxo!$K$16-Fluxo!$K$18-Fluxo!$K$20+Fluxo!$K$21 -> 10172.53353 | L41: =(((Faturamento!$L$20)*22*12)*0.9635-Fluxo!$L$4-Simulação!Y48-Fluxo!$J$7)*0.75+Fluxo!$L$14+Fluxo!$L$15+Fluxo!$L$16-Fluxo!$L$18-Fluxo!$L$20+Fluxo!$L$21 -> 13423.70139 | M41: =NPV(Taxas!$B$17,C41:L41)+B41 -> -18341.05016
A42: 41 | B42: -108118 | C42: 10430.495 | D42: 10889.51975 | E42: =(((Faturamento!$E$20)*22*12)*0.9635-Fluxo!$E$4-Simulação!R49-Fluxo!$E$7)*0.75+Fluxo!$E$14+Fluxo!$E$15+Fluxo!$E$16-Fluxo!$E$18-Fluxo!$E$20+Fluxo!$E$21 -> 2401.656541 | F42: =(((Faturamento!$F$20)*22*12)*0.9635-Fluxo!$F$4-Simulação!S49-Fluxo!$D$7)*0.75+Fluxo!$F$14+Fluxo!$F$15+Fluxo!$F$16-Fluxo!$F$18-Fluxo!$F$20+Fluxo!$F$21 -> 40257.38551 | G42: =(((Faturamento!$G$20)*22*12)*0.9635-Fluxo!$G$4-Simulação!T49-Fluxo!$E$7)*0.75+Fluxo!$G$14+Fluxo!$G$15+Fluxo!$G$16-Fluxo!$G$18-Fluxo!$G$20+Fluxo!$G$21 -> 41600.92162 | H42: =(((Faturamento!$H$20)*22*12)*0.9635-Fluxo!$H$4-Simulação!U49-Fluxo!$F$7)*0.75+Fluxo!$H$14+Fluxo!$H$15+Fluxo!$H$16-Fluxo!$H$18-Fluxo!$H$20+Fluxo!$H$21 -> 6522.687695 | I42: =(((Faturamento!$I$20)*22*12)*0.9635-Fluxo!$I$4-Simulação!V49-Fluxo!$G$7)*0.75+Fluxo!$I$14+Fluxo!$I$15+Fluxo!$I$16-Fluxo!$I$18-Fluxo!$I$20+Fluxo!$I$21 -> -2860.561777 | J42: =(((Faturamento!$J$20)*22*12)*0.9635-Fluxo!$J$4-Simulação!W49-Fluxo!$H$7)*0.75+Fluxo!$J$14+Fluxo!$J$15+Fluxo!$J$16-Fluxo!$J$18-Fluxo!$J$20+Fluxo!$J$21 -> -16952.17884 | K42: =(((Faturamento!$K$20)*22*12)*0.9635-Fluxo!$K$4-Simulação!X49-Fluxo!$I$7)*0.75+Fluxo!$K$14+Fluxo!$K$15+Fluxo!$K$16-Fluxo!$K$18-Fluxo!$K$20+Fluxo!$K$21 -> -18473.45454 | L42: =(((Faturamento!$L$20)*22*12)*0.9635-Fluxo!$L$4-Simulação!Y49-Fluxo!$J$7)*0.75+Fluxo!$L$14+Fluxo!$L$15+Fluxo!$L$16-Fluxo!$L$18-Fluxo!$L$20+Fluxo!$L$21 -> 34903.3143 | M42: =NPV(Taxas!$B$17,C42:L42)+B42 -> -18207.38315
A43: 42 | B43: -108118 | C43: 10430.495 | D43: 10889.51975 | E43: =(((Faturamento!$E$20)*22*12)*0.9635-Fluxo!$E$4-Simulação!R50-Fluxo!$E$7)*0.75+Fluxo!$E$14+Fluxo!$E$15+Fluxo!$E$16-Fluxo!$E$18-Fluxo!$E$20+Fluxo!$E$21 -> 11337.52337 | F43: =(((Faturamento!$F$20)*22*12)*0.9635-Fluxo!$F$4-Simulação!S50-Fluxo!$D$7)*0.75+Fluxo!$F$14+Fluxo!$F$15+Fluxo!$F$16-Fluxo!$F$18-Fluxo!$F$20+Fluxo!$F$21 -> -10603.01746 | G43: =(((Faturamento!$G$20)*22*12)*0.9635-Fluxo!$G$4-Simulação!T50-Fluxo!$E$7)*0.75+Fluxo!$G$14+Fluxo!$G$15+Fluxo!$G$16-Fluxo!$G$18-Fluxo!$G$20+Fluxo!$G$21 -> 17336.87227 | H43: =(((Faturamento!$H$20)*22*12)*0.9635-Fluxo!$H$4-Simulação!U50-Fluxo!$F$7)*0.75+Fluxo!$H$14+Fluxo!$H$15+Fluxo!$H$16-Fluxo!$H$18-Fluxo!$H$20+Fluxo!$H$21 -> 18261.37493 | I43: =(((Faturamento!$I$20)*22*12)*0.9635-Fluxo!$I$4-Simulação!V50-Fluxo!$G$7)*0.75+Fluxo!$I$14+Fluxo!$I$15+Fluxo!$I$16-Fluxo!$I$18-Fluxo!$I$20+Fluxo!$I$21 -> -18548.46821 | J43: =(((Faturamento!$J$20)*22*12)*0.9635-Fluxo!$J$4-Simulação!W50-Fluxo!$H$7)*0.75+Fluxo!$J$14+Fluxo!$J$15+Fluxo!$J$16-Fluxo!$J$18-Fluxo!$J$20+Fluxo!$J$21 -> 39264.65254 | K43: =(((Faturamento!$K$20)*22*12)*0.9635-Fluxo!$K$4-Simulação!X50-Fluxo!$I$7)*0.75+Fluxo!$K$14+Fluxo!$K$15+Fluxo!$K$16-Fluxo!$K$18-Fluxo!$K$20+Fluxo!$K$21 -> 36790.74909 | L43: =(((Faturamento!$L$20)*22*12)*0.9635-Fluxo!$L$4-Simulação!Y50-Fluxo!$J$7)*0.75+Fluxo!$L$14+Fluxo!$L$15+Fluxo!$L$16-Fluxo!$L$18-Fluxo!$L$20+Fluxo!$L$21 -> 29405.00834 | M43: =NPV(Taxas!$B$17,C43:L43)+B43 -> -2128.281983
A44: 43 | B44: -108118 | C44: 10430.495 | D44: 10889.51975 | E44: =(((Faturamento!$E$20)*22*12)*0.9635-Fluxo!$E$4-Simulação!R51-Fluxo!$E$7)*0.75+Fluxo!$E$14+Fluxo!$E$15+Fluxo!$E$16-Fluxo!$E$18-Fluxo!$E$20+Fluxo!$E$21 -> 25534.84904 | F44: =(((Faturamento!$F$20)*22*12)*0.9635-Fluxo!$F$4-Simulação!S51-Fluxo!$D$7)*0.75+Fluxo!$F$14+Fluxo!$F$15+Fluxo!$F$16-Fluxo!$F$18-Fluxo!$F$20+Fluxo!$F$21 -> 10729.63809 | G44: =(((Faturamento!$G$20)*22*12)*0.9635-Fluxo!$G$4-Simulação!T51-Fluxo!$E$7)*0.75+Fluxo!$G$14+Fluxo!$G$15+Fluxo!$G$16-Fluxo!$G$18-Fluxo!$G$20+Fluxo!$G$21 -> 12689.69337 | H44: =(((Faturamento!$H$20)*22*12)*0.9635-Fluxo!$H$4-Simulação!U51-Fluxo!$F$7)*0.75+Fluxo!$H$14+Fluxo!$H$15+Fluxo!$H$16-Fluxo!$H$18-Fluxo!$H$20+Fluxo!$H$21 -> -297.069446 | I44: =(((Faturamento!$I$20)*22*12)*0.9635-Fluxo!$I$4-Simulação!V51-Fluxo!$G$7)*0.75+Fluxo!$I$14+Fluxo!$I$15+Fluxo!$I$16-Fluxo!$I$18-Fluxo!$I$20+Fluxo!$I$21 -> -19203.55627 | J44: =(((Faturamento!$J$20)*22*12)*0.9635-Fluxo!$J$4-Simulação!W51-Fluxo!$H$7)*0.75+Fluxo!$J$14+Fluxo!$J$15+Fluxo!$J$16-Fluxo!$J$18-Fluxo!$J$20+Fluxo!$J$21 -> -12009.4792 | K44: =(((Faturamento!$K$20)*22*12)*0.9635-Fluxo!$K$4-Simulação!X51-Fluxo!$I$7)*0.75+Fluxo!$K$14+Fluxo!$K$15+Fluxo!$K$16-Fluxo!$K$18-Fluxo!$K$20+Fluxo!$K$21 -> 18406.3928 | L44: =(((Faturamento!$L$20)*22*12)*0.9635-Fluxo!$L$4-Simulação!Y51-Fluxo!$J$7)*0.75+Fluxo!$L$14+Fluxo!$L$15+Fluxo!$L$16-Fluxo!$L$18-Fluxo!$L$20+Fluxo!$L$21 -> 27483.30237 | M44: =NPV(Taxas!$B$17,C44:L44)+B44 -> -39571.2064
A45: 44 | B45: -108118 | C45: 10430.495 | D45: 10889.51975 | E45: =(((Faturamento!$E$20)*22*12)*0.9635-Fluxo!$E$4-Simulação!R52-Fluxo!$E$7)*0.75+Fluxo!$E$14+Fluxo!$E$15+Fluxo!$E$16-Fluxo!$E$18-Fluxo!$E$20+Fluxo!$E$21 -> 14761.3644 | F45: =(((Faturamento!$F$20)*22*12)*0.9635-Fluxo!$F$4-Simulação!S52-Fluxo!$D$7)*0.75+Fluxo!$F$14+Fluxo!$F$15+Fluxo!$F$16-Fluxo!$F$18-Fluxo!$F$20+Fluxo!$F$21 -> -3361.059001 | G45: =(((Faturamento!$G$20)*22*12)*0.9635-Fluxo!$G$4-Simulação!T52-Fluxo!$E$7)*0.75+Fluxo!$G$14+Fluxo!$G$15+Fluxo!$G$16-Fluxo!$G$18-Fluxo!$G$20+Fluxo!$G$21 -> -8071.013676 | H45: =(((Faturamento!$H$20)*22*12)*0.9635-Fluxo!$H$4-Simulação!U52-Fluxo!$F$7)*0.75+Fluxo!$H$14+Fluxo!$H$15+Fluxo!$H$16-Fluxo!$H$18-Fluxo!$H$20+Fluxo!$H$21 -> 39848.06838 | I45: =(((Faturamento!$I$20)*22*12)*0.9635-Fluxo!$I$4-Simulação!V52-Fluxo!$G$7)*0.75+Fluxo!$I$14+Fluxo!$I$15+Fluxo!$I$16-Fluxo!$I$18-Fluxo!$I$20+Fluxo!$I$21 -> -5629.134121 | J45: =(((Faturamento!$J$20)*22*12)*0.9635-Fluxo!$J$4-Simulação!W52-Fluxo!$H$7)*0.75+Fluxo!$J$14+Fluxo!$J$15+Fluxo!$J$16-Fluxo!$J$18-Fluxo!$J$20+Fluxo!$J$21 -> 10763.24182 | K45: =(((Faturamento!$K$20)*22*12)*0.9635-Fluxo!$K$4-Simulação!X52-Fluxo!$I$7)*0.75+Fluxo!$K$14+Fluxo!$K$15+Fluxo!$K$16-Fluxo!$K$18-Fluxo!$K$20+Fluxo!$K$21 -> 50137.95253 | L45: =(((Faturamento!$L$20)*22*12)*0.9635-Fluxo!$L$4-Simulação!Y52-Fluxo!$J$7)*0.75+Fluxo!$L$14+Fluxo!$L$15+Fluxo!$L$16-Fluxo!$L$18-Fluxo!$L$20+Fluxo!$L$21 -> 23609.15092 | M45: =NPV(Taxas!$B$17,C45:L45)+B45 -> -2149.658112
A46: 45 | B46: -108118 | C46: 10430.495 | D46: 10889.51975 | E46: =(((Faturamento!$E$20)*22*12)*0.9635-Fluxo!$E$4-Simulação!R53-Fluxo!$E$7)*0.75+Fluxo!$E$14+Fluxo!$E$15+Fluxo!$E$16-Fluxo!$E$18-Fluxo!$E$20+Fluxo!$E$21 -> 1963.797166 | F46: =(((Faturamento!$F$20)*22*12)*0.9635-Fluxo!$F$4-Simulação!S53-Fluxo!$D$7)*0.75+Fluxo!$F$14+Fluxo!$F$15+Fluxo!$F$16-Fluxo!$F$18-Fluxo!$F$20+Fluxo!$F$21 -> 38705.46857 | G46: =(((Faturamento!$G$20)*22*12)*0.9635-Fluxo!$G$4-Simulação!T53-Fluxo!$E$7)*0.75+Fluxo!$G$14+Fluxo!$G$15+Fluxo!$G$16-Fluxo!$G$18-Fluxo!$G$20+Fluxo!$G$21 -> 5396.125246 | H46: =(((Faturamento!$H$20)*22*12)*0.9635-Fluxo!$H$4-Simulação!U53-Fluxo!$F$7)*0.75+Fluxo!$H$14+Fluxo!$H$15+Fluxo!$H$16-Fluxo!$H$18-Fluxo!$H$20+Fluxo!$H$21 -> -13663.51964 | I46: =(((Faturamento!$I$20)*22*12)*0.9635-Fluxo!$I$4-Simulação!V53-Fluxo!$G$7)*0.75+Fluxo!$I$14+Fluxo!$I$15+Fluxo!$I$16-Fluxo!$I$18-Fluxo!$I$20+Fluxo!$I$21 -> 29834.25153 | J46: =(((Faturamento!$J$20)*22*12)*0.9635-Fluxo!$J$4-Simulação!W53-Fluxo!$H$7)*0.75+Fluxo!$J$14+Fluxo!$J$15+Fluxo!$J$16-Fluxo!$J$18-Fluxo!$J$20+Fluxo!$J$21 -> -9394.274023 | K46: =(((Faturamento!$K$20)*22*12)*0.9635-Fluxo!$K$4-Simulação!X53-Fluxo!$I$7)*0.75+Fluxo!$K$14+Fluxo!$K$15+Fluxo!$K$16-Fluxo!$K$18-Fluxo!$K$20+Fluxo!$K$21 -> 20738.82359 | L46: =(((Faturamento!$L$20)*22*12)*0.9635-Fluxo!$L$4-Simulação!Y53-Fluxo!$J$7)*0.75+Fluxo!$L$14+Fluxo!$L$15+Fluxo!$L$16-Fluxo!$L$18-Fluxo!$L$20+Fluxo!$L$21 -> 65806.85656 | M46: =NPV(Taxas!$B$17,C46:L46)+B46 -> 10834.57971
A47: 46 | B47: -108118 | C47: 10430.495 | D47: 10889.51975 | E47: =(((Faturamento!$E$20)*22*12)*0.9635-Fluxo!$E$4-Simulação!R54-Fluxo!$E$7)*0.75+Fluxo!$E$14+Fluxo!$E$15+Fluxo!$E$16-Fluxo!$E$18-Fluxo!$E$20+Fluxo!$E$21 -> 6420.724955 | F47: =(((Faturamento!$F$20)*22*12)*0.9635-Fluxo!$F$4-Simulação!S54-Fluxo!$D$7)*0.75+Fluxo!$F$14+Fluxo!$F$15+Fluxo!$F$16-Fluxo!$F$18-Fluxo!$F$20+Fluxo!$F$21 -> -13407.10241 | G47: =(((Faturamento!$G$20)*22*12)*0.9635-Fluxo!$G$4-Simulação!T54-Fluxo!$E$7)*0.75+Fluxo!$G$14+Fluxo!$G$15+Fluxo!$G$16-Fluxo!$G$18-Fluxo!$G$20+Fluxo!$G$21 -> 17870.1138 | H47: =(((Faturamento!$H$20)*22*12)*0.9635-Fluxo!$H$4-Simulação!U54-Fluxo!$F$7)*0.75+Fluxo!$H$14+Fluxo!$H$15+Fluxo!$H$16-Fluxo!$H$18-Fluxo!$H$20+Fluxo!$H$21 -> -3284.499044 | I47: =(((Faturamento!$I$20)*22*12)*0.9635-Fluxo!$I$4-Simulação!V54-Fluxo!$G$7)*0.75+Fluxo!$I$14+Fluxo!$I$15+Fluxo!$I$16-Fluxo!$I$18-Fluxo!$I$20+Fluxo!$I$21 -> 425.4878678 | J47: =(((Faturamento!$J$20)*22*12)*0.9635-Fluxo!$J$4-Simulação!W54-Fluxo!$H$7)*0.75+Fluxo!$J$14+Fluxo!$J$15+Fluxo!$J$16-Fluxo!$J$18-Fluxo!$J$20+Fluxo!$J$21 -> 32537.25708 | K47: =(((Faturamento!$K$20)*22*12)*0.9635-Fluxo!$K$4-Simulação!X54-Fluxo!$I$7)*0.75+Fluxo!$K$14+Fluxo!$K$15+Fluxo!$K$16-Fluxo!$K$18-Fluxo!$K$20+Fluxo!$K$21 -> -7048.541673 | L47: =(((Faturamento!$L$20)*22*12)*0.9635-Fluxo!$L$4-Simulação!Y54-Fluxo!$J$7)*0.75+Fluxo!$L$14+Fluxo!$L$15+Fluxo!$L$16-Fluxo!$L$18-Fluxo!$L$20+Fluxo!$L$21 -> 23120.97045 | M47: =NPV(Taxas!$B$17,C47:L47)+B47 -> -48925.79906
A48: 47 | B48: -108118 | C48: 10430.495 | D48: 10889.51975 | E48: =(((Faturamento!$E$20)*22*12)*0.9635-Fluxo!$E$4-Simulação!R55-Fluxo!$E$7)*0.75+Fluxo!$E$14+Fluxo!$E$15+Fluxo!$E$16-Fluxo!$E$18-Fluxo!$E$20+Fluxo!$E$21 -> 7978.607401 | F48: =(((Faturamento!$F$20)*22*12)*0.9635-Fluxo!$F$4-Simulação!S55-Fluxo!$D$7)*0.75+Fluxo!$F$14+Fluxo!$F$15+Fluxo!$F$16-Fluxo!$F$18-Fluxo!$F$20+Fluxo!$F$21 -> 4992.256989 | G48: =(((Faturamento!$G$20)*22*12)*0.9635-Fluxo!$G$4-Simulação!T55-Fluxo!$E$7)*0.75+Fluxo!$G$14+Fluxo!$G$15+Fluxo!$G$16-Fluxo!$G$18-Fluxo!$G$20+Fluxo!$G$21 -> 13303.43008 | H48: =(((Faturamento!$H$20)*22*12)*0.9635-Fluxo!$H$4-Simulação!U55-Fluxo!$F$7)*0.75+Fluxo!$H$14+Fluxo!$H$15+Fluxo!$H$16-Fluxo!$H$18-Fluxo!$H$20+Fluxo!$H$21 -> 16518.48824 | I48: =(((Faturamento!$I$20)*22*12)*0.9635-Fluxo!$I$4-Simulação!V55-Fluxo!$G$7)*0.75+Fluxo!$I$14+Fluxo!$I$15+Fluxo!$I$16-Fluxo!$I$18-Fluxo!$I$20+Fluxo!$I$21 -> -18964.42768 | J48: =(((Faturamento!$J$20)*22*12)*0.9635-Fluxo!$J$4-Simulação!W55-Fluxo!$H$7)*0.75+Fluxo!$J$14+Fluxo!$J$15+Fluxo!$J$16-Fluxo!$J$18-Fluxo!$J$20+Fluxo!$J$21 -> -4420.482723 | K48: =(((Faturamento!$K$20)*22*12)*0.9635-Fluxo!$K$4-Simulação!X55-Fluxo!$I$7)*0.75+Fluxo!$K$14+Fluxo!$K$15+Fluxo!$K$16-Fluxo!$K$18-Fluxo!$K$20+Fluxo!$K$21 -> 43323.64752 | L48: =(((Faturamento!$L$20)*22*12)*0.9635-Fluxo!$L$4-Simulação!Y55-Fluxo!$J$7)*0.75+Fluxo!$L$14+Fluxo!$L$15+Fluxo!$L$16-Fluxo!$L$18-Fluxo!$L$20+Fluxo!$L$21 -> 8310.451075 | M48: =NPV(Taxas!$B$17,C48:L48)+B48 -> -36502.23055
A49: 48 | B49: -108118 | C49: 10430.495 | D49: 10889.51975 | E49: =(((Faturamento!$E$20)*22*12)*0.9635-Fluxo!$E$4-Simulação!R56-Fluxo!$E$7)*0.75+Fluxo!$E$14+Fluxo!$E$15+Fluxo!$E$16-Fluxo!$E$18-Fluxo!$E$20+Fluxo!$E$21 -> -356.1878273 | F49: =(((Faturamento!$F$20)*22*12)*0.9635-Fluxo!$F$4-Simulação!S56-Fluxo!$D$7)*0.75+Fluxo!$F$14+Fluxo!$F$15+Fluxo!$F$16-Fluxo!$F$18-Fluxo!$F$20+Fluxo!$F$21 -> 16808.81465 | G49: =(((Faturamento!$G$20)*22*12)*0.9635-Fluxo!$G$4-Simulação!T56-Fluxo!$E$7)*0.75+Fluxo!$G$14+Fluxo!$G$15+Fluxo!$G$16-Fluxo!$G$18-Fluxo!$G$20+Fluxo!$G$21 -> 10499.13757 | H49: =(((Faturamento!$H$20)*22*12)*0.9635-Fluxo!$H$4-Simulação!U56-Fluxo!$F$7)*0.75+Fluxo!$H$14+Fluxo!$H$15+Fluxo!$H$16-Fluxo!$H$18-Fluxo!$H$20+Fluxo!$H$21 -> 28589.53827 | I49: =(((Faturamento!$I$20)*22*12)*0.9635-Fluxo!$I$4-Simulação!V56-Fluxo!$G$7)*0.75+Fluxo!$I$14+Fluxo!$I$15+Fluxo!$I$16-Fluxo!$I$18-Fluxo!$I$20+Fluxo!$I$21 -> 14482.55943 | J49: =(((Faturamento!$J$20)*22*12)*0.9635-Fluxo!$J$4-Simulação!W56-Fluxo!$H$7)*0.75+Fluxo!$J$14+Fluxo!$J$15+Fluxo!$J$16-Fluxo!$J$18-Fluxo!$J$20+Fluxo!$J$21 -> -20321.12468 | K49: =(((Faturamento!$K$20)*22*12)*0.9635-Fluxo!$K$4-Simulação!X56-Fluxo!$I$7)*0.75+Fluxo!$K$14+Fluxo!$K$15+Fluxo!$K$16-Fluxo!$K$18-Fluxo!$K$20+Fluxo!$K$21 -> 9453.553729 | L49: =(((Faturamento!$L$20)*22*12)*0.9635-Fluxo!$L$4-Simulação!Y56-Fluxo!$J$7)*0.75+Fluxo!$L$14+Fluxo!$L$15+Fluxo!$L$16-Fluxo!$L$18-Fluxo!$L$20+Fluxo!$L$21 -> -10180.58514 | M49: =NPV(Taxas!$B$17,C49:L49)+B49 -> -48025.86977
A50: 49 | B50: -108118 | C50: 10430.495 | D50: 10889.51975 | E50: =(((Faturamento!$E$20)*22*12)*0.9635-Fluxo!$E$4-Simulação!R57-Fluxo!$E$7)*0.75+Fluxo!$E$14+Fluxo!$E$15+Fluxo!$E$16-Fluxo!$E$18-Fluxo!$E$20+Fluxo!$E$21 -> 17800.68784 | F50: =(((Faturamento!$F$20)*22*12)*0.9635-Fluxo!$F$4-Simulação!S57-Fluxo!$D$7)*0.75+Fluxo!$F$14+Fluxo!$F$15+Fluxo!$F$16-Fluxo!$F$18-Fluxo!$F$20+Fluxo!$F$21 -> 16014.80376 | G50: =(((Faturamento!$G$20)*22*12)*0.9635-Fluxo!$G$4-Simulação!T57-Fluxo!$E$7)*0.75+Fluxo!$G$14+Fluxo!$G$15+Fluxo!$G$16-Fluxo!$G$18-Fluxo!$G$20+Fluxo!$G$21 -> -14691.85276 | H50: =(((Faturamento!$H$20)*22*12)*0.9635-Fluxo!$H$4-Simulação!U57-Fluxo!$F$7)*0.75+Fluxo!$H$14+Fluxo!$H$15+Fluxo!$H$16-Fluxo!$H$18-Fluxo!$H$20+Fluxo!$H$21 -> 14627.77975 | I50: =(((Faturamento!$I$20)*22*12)*0.9635-Fluxo!$I$4-Simulação!V57-Fluxo!$G$7)*0.75+Fluxo!$I$14+Fluxo!$I$15+Fluxo!$I$16-Fluxo!$I$18-Fluxo!$I$20+Fluxo!$I$21 -> 42201.94554 | J50: =(((Faturamento!$J$20)*22*12)*0.9635-Fluxo!$J$4-Simulação!W57-Fluxo!$H$7)*0.75+Fluxo!$J$14+Fluxo!$J$15+Fluxo!$J$16-Fluxo!$J$18-Fluxo!$J$20+Fluxo!$J$21 -> -18889.35078 | K50: =(((Faturamento!$K$20)*22*12)*0.9635-Fluxo!$K$4-Simulação!X57-Fluxo!$I$7)*0.75+Fluxo!$K$14+Fluxo!$K$15+Fluxo!$K$16-Fluxo!$K$18-Fluxo!$K$20+Fluxo!$K$21 -> 25893.48526 | L50: =(((Faturamento!$L$20)*22*12)*0.9635-Fluxo!$L$4-Simulação!Y57-Fluxo!$J$7)*0.75+Fluxo!$L$14+Fluxo!$L$15+Fluxo!$L$16-Fluxo!$L$18-Fluxo!$L$20+Fluxo!$L$21 -> 12747.99115 | M50: =NPV(Taxas!$B$17,C50:L50)+B50 -> -16751.87035
A51: 50 | B51: -108118 | C51: 10430.495 | D51: 10889.51975 | E51: =(((Faturamento!$E$20)*22*12)*0.9635-Fluxo!$E$4-Simulação!R58-Fluxo!$E$7)*0.75+Fluxo!$E$14+Fluxo!$E$15+Fluxo!$E$16-Fluxo!$E$18-Fluxo!$E$20+Fluxo!$E$21 -> 36199.77591 | F51: =(((Faturamento!$F$20)*22*12)*0.9635-Fluxo!$F$4-Simulação!S58-Fluxo!$D$7)*0.75+Fluxo!$F$14+Fluxo!$F$15+Fluxo!$F$16-Fluxo!$F$18-Fluxo!$F$20+Fluxo!$F$21 -> 15038.10377 | G51: =(((Faturamento!$G$20)*22*12)*0.9635-Fluxo!$G$4-Simulação!T58-Fluxo!$E$7)*0.75+Fluxo!$G$14+Fluxo!$G$15+Fluxo!$G$16-Fluxo!$G$18-Fluxo!$G$20+Fluxo!$G$21 -> 16279.02549 | H51: =(((Faturamento!$H$20)*22*12)*0.9635-Fluxo!$H$4-Simulação!U58-Fluxo!$F$7)*0.75+Fluxo!$H$14+Fluxo!$H$15+Fluxo!$H$16-Fluxo!$H$18-Fluxo!$H$20+Fluxo!$H$21 -> 44955.53929 | I51: =(((Faturamento!$I$20)*22*12)*0.9635-Fluxo!$I$4-Simulação!V58-Fluxo!$G$7)*0.75+Fluxo!$I$14+Fluxo!$I$15+Fluxo!$I$16-Fluxo!$I$18-Fluxo!$I$20+Fluxo!$I$21 -> -13965.48454 | J51: =(((Faturamento!$J$20)*22*12)*0.9635-Fluxo!$J$4-Simulação!W58-Fluxo!$H$7)*0.75+Fluxo!$J$14+Fluxo!$J$15+Fluxo!$J$16-Fluxo!$J$18-Fluxo!$J$20+Fluxo!$J$21 -> 38223.23206 | K51: =(((Faturamento!$K$20)*22*12)*0.9635-Fluxo!$K$4-Simulação!X58-Fluxo!$I$7)*0.75+Fluxo!$K$14+Fluxo!$K$15+Fluxo!$K$16-Fluxo!$K$18-Fluxo!$K$20+Fluxo!$K$21 -> 49084.31982 | L51: =(((Faturamento!$L$20)*22*12)*0.9635-Fluxo!$L$4-Simulação!Y58-Fluxo!$J$7)*0.75+Fluxo!$L$14+Fluxo!$L$15+Fluxo!$L$16-Fluxo!$L$18-Fluxo!$L$20+Fluxo!$L$21 -> 38528.96417 | M51: =NPV(Taxas!$B$17,C51:L51)+B51 -> 77231.02371
A52: 51 | B52: -108118 | C52: 10430.495 | D52: 10889.51975 | E52: =(((Faturamento!$E$20)*22*12)*0.9635-Fluxo!$E$4-Simulação!R59-Fluxo!$E$7)*0.75+Fluxo!$E$14+Fluxo!$E$15+Fluxo!$E$16-Fluxo!$E$18-Fluxo!$E$20+Fluxo!$E$21 -> 19643.86842 | F52: =(((Faturamento!$F$20)*22*12)*0.9635-Fluxo!$F$4-Simulação!S59-Fluxo!$D$7)*0.75+Fluxo!$F$14+Fluxo!$F$15+Fluxo!$F$16-Fluxo!$F$18-Fluxo!$F$20+Fluxo!$F$21 -> 32518.53706 | G52: =(((Faturamento!$G$20)*22*12)*0.9635-Fluxo!$G$4-Simulação!T59-Fluxo!$E$7)*0.75+Fluxo!$G$14+Fluxo!$G$15+Fluxo!$G$16-Fluxo!$G$18-Fluxo!$G$20+Fluxo!$G$21 -> 7092.058323 | H52: =(((Faturamento!$H$20)*22*12)*0.9635-Fluxo!$H$4-Simulação!U59-Fluxo!$F$7)*0.75+Fluxo!$H$14+Fluxo!$H$15+Fluxo!$H$16-Fluxo!$H$18-Fluxo!$H$20+Fluxo!$H$21 -> 9107.726601 | I52: =(((Faturamento!$I$20)*22*12)*0.9635-Fluxo!$I$4-Simulação!V59-Fluxo!$G$7)*0.75+Fluxo!$I$14+Fluxo!$I$15+Fluxo!$I$16-Fluxo!$I$18-Fluxo!$I$20+Fluxo!$I$21 -> -18099.05517 | J52: =(((Faturamento!$J$20)*22*12)*0.9635-Fluxo!$J$4-Simulação!W59-Fluxo!$H$7)*0.75+Fluxo!$J$14+Fluxo!$J$15+Fluxo!$J$16-Fluxo!$J$18-Fluxo!$J$20+Fluxo!$J$21 -> 19413.18197 | K52: =(((Faturamento!$K$20)*22*12)*0.9635-Fluxo!$K$4-Simulação!X59-Fluxo!$I$7)*0.75+Fluxo!$K$14+Fluxo!$K$15+Fluxo!$K$16-Fluxo!$K$18-Fluxo!$K$20+Fluxo!$K$21 -> 32031.75605 | L52: =(((Faturamento!$L$20)*22*12)*0.9635-Fluxo!$L$4-Simulação!Y59-Fluxo!$J$7)*0.75+Fluxo!$L$14+Fluxo!$L$15+Fluxo!$L$16-Fluxo!$L$18-Fluxo!$L$20+Fluxo!$L$21 -> 28409.88397 | M52: =NPV(Taxas!$B$17,C52:L52)+B52 -> 8640.923613
A53: 52 | B53: -108118 | C53: 10430.495 | D53: 10889.51975 | E53: =(((Faturamento!$E$20)*22*12)*0.9635-Fluxo!$E$4-Simulação!R60-Fluxo!$E$7)*0.75+Fluxo!$E$14+Fluxo!$E$15+Fluxo!$E$16-Fluxo!$E$18-Fluxo!$E$20+Fluxo!$E$21 -> 15204.43501 | F53: =(((Faturamento!$F$20)*22*12)*0.9635-Fluxo!$F$4-Simulação!S60-Fluxo!$D$7)*0.75+Fluxo!$F$14+Fluxo!$F$15+Fluxo!$F$16-Fluxo!$F$18-Fluxo!$F$20+Fluxo!$F$21 -> -13479.76213 | G53: =(((Faturamento!$G$20)*22*12)*0.9635-Fluxo!$G$4-Simulação!T60-Fluxo!$E$7)*0.75+Fluxo!$G$14+Fluxo!$G$15+Fluxo!$G$16-Fluxo!$G$18-Fluxo!$G$20+Fluxo!$G$21 -> 24411.87332 | H53: =(((Faturamento!$H$20)*22*12)*0.9635-Fluxo!$H$4-Simulação!U60-Fluxo!$F$7)*0.75+Fluxo!$H$14+Fluxo!$H$15+Fluxo!$H$16-Fluxo!$H$18-Fluxo!$H$20+Fluxo!$H$21 -> -16464.86119 | I53: =(((Faturamento!$I$20)*22*12)*0.9635-Fluxo!$I$4-Simulação!V60-Fluxo!$G$7)*0.75+Fluxo!$I$14+Fluxo!$I$15+Fluxo!$I$16-Fluxo!$I$18-Fluxo!$I$20+Fluxo!$I$21 -> 42195.07656 | J53: =(((Faturamento!$J$20)*22*12)*0.9635-Fluxo!$J$4-Simulação!W60-Fluxo!$H$7)*0.75+Fluxo!$J$14+Fluxo!$J$15+Fluxo!$J$16-Fluxo!$J$18-Fluxo!$J$20+Fluxo!$J$21 -> 46831.11879 | K53: =(((Faturamento!$K$20)*22*12)*0.9635-Fluxo!$K$4-Simulação!X60-Fluxo!$I$7)*0.75+Fluxo!$K$14+Fluxo!$K$15+Fluxo!$K$16-Fluxo!$K$18-Fluxo!$K$20+Fluxo!$K$21 -> 24913.66286 | L53: =(((Faturamento!$L$20)*22*12)*0.9635-Fluxo!$L$4-Simulação!Y60-Fluxo!$J$7)*0.75+Fluxo!$L$14+Fluxo!$L$15+Fluxo!$L$16-Fluxo!$L$18-Fluxo!$L$20+Fluxo!$L$21 -> 49240.83672 | M53: =NPV(Taxas!$B$17,C53:L53)+B53 -> 32356.62861
A54: 53 | B54: -108118 | C54: 10430.495 | D54: 10889.51975 | E54: =(((Faturamento!$E$20)*22*12)*0.9635-Fluxo!$E$4-Simulação!R61-Fluxo!$E$7)*0.75+Fluxo!$E$14+Fluxo!$E$15+Fluxo!$E$16-Fluxo!$E$18-Fluxo!$E$20+Fluxo!$E$21 -> 16022.9271 | F54: =(((Faturamento!$F$20)*22*12)*0.9635-Fluxo!$F$4-Simulação!S61-Fluxo!$D$7)*0.75+Fluxo!$F$14+Fluxo!$F$15+Fluxo!$F$16-Fluxo!$F$18-Fluxo!$F$20+Fluxo!$F$21 -> 11178.23934 | G54: =(((Faturamento!$G$20)*22*12)*0.9635-Fluxo!$G$4-Simulação!T61-Fluxo!$E$7)*0.75+Fluxo!$G$14+Fluxo!$G$15+Fluxo!$G$16-Fluxo!$G$18-Fluxo!$G$20+Fluxo!$G$21 -> 8374.812133 | H54: =(((Faturamento!$H$20)*22*12)*0.9635-Fluxo!$H$4-Simulação!U61-Fluxo!$F$7)*0.75+Fluxo!$H$14+Fluxo!$H$15+Fluxo!$H$16-Fluxo!$H$18-Fluxo!$H$20+Fluxo!$H$21 -> -8271.406193 | I54: =(((Faturamento!$I$20)*22*12)*0.9635-Fluxo!$I$4-Simulação!V61-Fluxo!$G$7)*0.75+Fluxo!$I$14+Fluxo!$I$15+Fluxo!$I$16-Fluxo!$I$18-Fluxo!$I$20+Fluxo!$I$21 -> 24564.61432 | J54: =(((Faturamento!$J$20)*22*12)*0.9635-Fluxo!$J$4-Simulação!W61-Fluxo!$H$7)*0.75+Fluxo!$J$14+Fluxo!$J$15+Fluxo!$J$16-Fluxo!$J$18-Fluxo!$J$20+Fluxo!$J$21 -> -21323.36353 | K54: =(((Faturamento!$K$20)*22*12)*0.9635-Fluxo!$K$4-Simulação!X61-Fluxo!$I$7)*0.75+Fluxo!$K$14+Fluxo!$K$15+Fluxo!$K$16-Fluxo!$K$18-Fluxo!$K$20+Fluxo!$K$21 -> 8369.978051 | L54: =(((Faturamento!$L$20)*22*12)*0.9635-Fluxo!$L$4-Simulação!Y61-Fluxo!$J$7)*0.75+Fluxo!$L$14+Fluxo!$L$15+Fluxo!$L$16-Fluxo!$L$18-Fluxo!$L$20+Fluxo!$L$21 -> 2416.200912 | M54: =NPV(Taxas!$B$17,C54:L54)+B54 -> -54289.63776
A55: 54 | B55: -108118 | C55: 10430.495 | D55: 10889.51975 | E55: =(((Faturamento!$E$20)*22*12)*0.9635-Fluxo!$E$4-Simulação!R62-Fluxo!$E$7)*0.75+Fluxo!$E$14+Fluxo!$E$15+Fluxo!$E$16-Fluxo!$E$18-Fluxo!$E$20+Fluxo!$E$21 -> -11335.83857 | F55: =(((Faturamento!$F$20)*22*12)*0.9635-Fluxo!$F$4-Simulação!S62-Fluxo!$D$7)*0.75+Fluxo!$F$14+Fluxo!$F$15+Fluxo!$F$16-Fluxo!$F$18-Fluxo!$F$20+Fluxo!$F$21 -> -3602.333469 | G55: =(((Faturamento!$G$20)*22*12)*0.9635-Fluxo!$G$4-Simulação!T62-Fluxo!$E$7)*0.75+Fluxo!$G$14+Fluxo!$G$15+Fluxo!$G$16-Fluxo!$G$18-Fluxo!$G$20+Fluxo!$G$21 -> -17995.32319 | H55: =(((Faturamento!$H$20)*22*12)*0.9635-Fluxo!$H$4-Simulação!U62-Fluxo!$F$7)*0.75+Fluxo!$H$14+Fluxo!$H$15+Fluxo!$H$16-Fluxo!$H$18-Fluxo!$H$20+Fluxo!$H$21 -> -17408.96347 | I55: =(((Faturamento!$I$20)*22*12)*0.9635-Fluxo!$I$4-Simulação!V62-Fluxo!$G$7)*0.75+Fluxo!$I$14+Fluxo!$I$15+Fluxo!$I$16-Fluxo!$I$18-Fluxo!$I$20+Fluxo!$I$21 -> -1407.731282 | J55: =(((Faturamento!$J$20)*22*12)*0.9635-Fluxo!$J$4-Simulação!W62-Fluxo!$H$7)*0.75+Fluxo!$J$14+Fluxo!$J$15+Fluxo!$J$16-Fluxo!$J$18-Fluxo!$J$20+Fluxo!$J$21 -> 45268.93762 | K55: =(((Faturamento!$K$20)*22*12)*0.9635-Fluxo!$K$4-Simulação!X62-Fluxo!$I$7)*0.75+Fluxo!$K$14+Fluxo!$K$15+Fluxo!$K$16-Fluxo!$K$18-Fluxo!$K$20+Fluxo!$K$21 -> 48444.3851 | L55: =(((Faturamento!$L$20)*22*12)*0.9635-Fluxo!$L$4-Simulação!Y62-Fluxo!$J$7)*0.75+Fluxo!$L$14+Fluxo!$L$15+Fluxo!$L$16-Fluxo!$L$18-Fluxo!$L$20+Fluxo!$L$21 -> 66009.31026 | M55: =NPV(Taxas!$B$17,C55:L55)+B55 -> -23713.1505
A56: 55 | B56: -108118 | C56: 10430.495 | D56: 10889.51975 | E56: =(((Faturamento!$E$20)*22*12)*0.9635-Fluxo!$E$4-Simulação!R63-Fluxo!$E$7)*0.75+Fluxo!$E$14+Fluxo!$E$15+Fluxo!$E$16-Fluxo!$E$18-Fluxo!$E$20+Fluxo!$E$21 -> -4112.566437 | F56: =(((Faturamento!$F$20)*22*12)*0.9635-Fluxo!$F$4-Simulação!S63-Fluxo!$D$7)*0.75+Fluxo!$F$14+Fluxo!$F$15+Fluxo!$F$16-Fluxo!$F$18-Fluxo!$F$20+Fluxo!$F$21 -> -16001.81345 | G56: =(((Faturamento!$G$20)*22*12)*0.9635-Fluxo!$G$4-Simulação!T63-Fluxo!$E$7)*0.75+Fluxo!$G$14+Fluxo!$G$15+Fluxo!$G$16-Fluxo!$G$18-Fluxo!$G$20+Fluxo!$G$21 -> 39116.68855 | H56: =(((Faturamento!$H$20)*22*12)*0.9635-Fluxo!$H$4-Simulação!U63-Fluxo!$F$7)*0.75+Fluxo!$H$14+Fluxo!$H$15+Fluxo!$H$16-Fluxo!$H$18-Fluxo!$H$20+Fluxo!$H$21 -> 16616.5523 | I56: =(((Faturamento!$I$20)*22*12)*0.9635-Fluxo!$I$4-Simulação!V63-Fluxo!$G$7)*0.75+Fluxo!$I$14+Fluxo!$I$15+Fluxo!$I$16-Fluxo!$I$18-Fluxo!$I$20+Fluxo!$I$21 -> 4053.726451 | J56: =(((Faturamento!$J$20)*22*12)*0.9635-Fluxo!$J$4-Simulação!W63-Fluxo!$H$7)*0.75+Fluxo!$J$14+Fluxo!$J$15+Fluxo!$J$16-Fluxo!$J$18-Fluxo!$J$20+Fluxo!$J$21 -> 6966.433769 | K56: =(((Faturamento!$K$20)*22*12)*0.9635-Fluxo!$K$4-Simulação!X63-Fluxo!$I$7)*0.75+Fluxo!$K$14+Fluxo!$K$15+Fluxo!$K$16-Fluxo!$K$18-Fluxo!$K$20+Fluxo!$K$21 -> -11618.91435 | L56: =(((Faturamento!$L$20)*22*12)*0.9635-Fluxo!$L$4-Simulação!Y63-Fluxo!$J$7)*0.75+Fluxo!$L$14+Fluxo!$L$15+Fluxo!$L$16-Fluxo!$L$18-Fluxo!$L$20+Fluxo!$L$21 -> -7440.160566 | M56: =NPV(Taxas!$B$17,C56:L56)+B56 -> -65890.97439
A57: 56 | B57: -108118 | C57: 10430.495 | D57: 10889.51975 | E57: =(((Faturamento!$E$20)*22*12)*0.9635-Fluxo!$E$4-Simulação!R64-Fluxo!$E$7)*0.75+Fluxo!$E$14+Fluxo!$E$15+Fluxo!$E$16-Fluxo!$E$18-Fluxo!$E$20+Fluxo!$E$21 -> -7822.745875 | F57: =(((Faturamento!$F$20)*22*12)*0.9635-Fluxo!$F$4-Simulação!S64-Fluxo!$D$7)*0.75+Fluxo!$F$14+Fluxo!$F$15+Fluxo!$F$16-Fluxo!$F$18-Fluxo!$F$20+Fluxo!$F$21 -> -5423.781924 | G57: =(((Faturamento!$G$20)*22*12)*0.9635-Fluxo!$G$4-Simulação!T64-Fluxo!$E$7)*0.75+Fluxo!$G$14+Fluxo!$G$15+Fluxo!$G$16-Fluxo!$G$18-Fluxo!$G$20+Fluxo!$G$21 -> 30800.97698 | H57: =(((Faturamento!$H$20)*22*12)*0.9635-Fluxo!$H$4-Simulação!U64-Fluxo!$F$7)*0.75+Fluxo!$H$14+Fluxo!$H$15+Fluxo!$H$16-Fluxo!$H$18-Fluxo!$H$20+Fluxo!$H$21 -> 24741.23673 | I57: =(((Faturamento!$I$20)*22*12)*0.9635-Fluxo!$I$4-Simulação!V64-Fluxo!$G$7)*0.75+Fluxo!$I$14+Fluxo!$I$15+Fluxo!$I$16-Fluxo!$I$18-Fluxo!$I$20+Fluxo!$I$21 -> 22357.34838 | J57: =(((Faturamento!$J$20)*22*12)*0.9635-Fluxo!$J$4-Simulação!W64-Fluxo!$H$7)*0.75+Fluxo!$J$14+Fluxo!$J$15+Fluxo!$J$16-Fluxo!$J$18-Fluxo!$J$20+Fluxo!$J$21 -> 50115.3081 | K57: =(((Faturamento!$K$20)*22*12)*0.9635-Fluxo!$K$4-Simulação!X64-Fluxo!$I$7)*0.75+Fluxo!$K$14+Fluxo!$K$15+Fluxo!$K$16-Fluxo!$K$18-Fluxo!$K$20+Fluxo!$K$21 -> 18946.10708 | L57: =(((Faturamento!$L$20)*22*12)*0.9635-Fluxo!$L$4-Simulação!Y64-Fluxo!$J$7)*0.75+Fluxo!$L$14+Fluxo!$L$15+Fluxo!$L$16-Fluxo!$L$18-Fluxo!$L$20+Fluxo!$L$21 -> -1051.300113 | M57: =NPV(Taxas!$B$17,C57:L57)+B57 -> 7258.425441
A58: 57 | B58: -108118 | C58: 10430.495 | D58: 10889.51975 | E58: =(((Faturamento!$E$20)*22*12)*0.9635-Fluxo!$E$4-Simulação!R65-Fluxo!$E$7)*0.75+Fluxo!$E$14+Fluxo!$E$15+Fluxo!$E$16-Fluxo!$E$18-Fluxo!$E$20+Fluxo!$E$21 -> 33011.35757 | F58: =(((Faturamento!$F$20)*22*12)*0.9635-Fluxo!$F$4-Simulação!S65-Fluxo!$D$7)*0.75+Fluxo!$F$14+Fluxo!$F$15+Fluxo!$F$16-Fluxo!$F$18-Fluxo!$F$20+Fluxo!$F$21 -> 7776.265686 | G58: =(((Faturamento!$G$20)*22*12)*0.9635-Fluxo!$G$4-Simulação!T65-Fluxo!$E$7)*0.75+Fluxo!$G$14+Fluxo!$G$15+Fluxo!$G$16-Fluxo!$G$18-Fluxo!$G$20+Fluxo!$G$21 -> 11313.97162 | H58: =(((Faturamento!$H$20)*22*12)*0.9635-Fluxo!$H$4-Simulação!U65-Fluxo!$F$7)*0.75+Fluxo!$H$14+Fluxo!$H$15+Fluxo!$H$16-Fluxo!$H$18-Fluxo!$H$20+Fluxo!$H$21 -> 9952.655304 | I58: =(((Faturamento!$I$20)*22*12)*0.9635-Fluxo!$I$4-Simulação!V65-Fluxo!$G$7)*0.75+Fluxo!$I$14+Fluxo!$I$15+Fluxo!$I$16-Fluxo!$I$18-Fluxo!$I$20+Fluxo!$I$21 -> -5242.543962 | J58: =(((Faturamento!$J$20)*22*12)*0.9635-Fluxo!$J$4-Simulação!W65-Fluxo!$H$7)*0.75+Fluxo!$J$14+Fluxo!$J$15+Fluxo!$J$16-Fluxo!$J$18-Fluxo!$J$20+Fluxo!$J$21 -> -19799.75401 | K58: =(((Faturamento!$K$20)*22*12)*0.9635-Fluxo!$K$4-Simulação!X65-Fluxo!$I$7)*0.75+Fluxo!$K$14+Fluxo!$K$15+Fluxo!$K$16-Fluxo!$K$18-Fluxo!$K$20+Fluxo!$K$21 -> -4365.37456 | L58: =(((Faturamento!$L$20)*22*12)*0.9635-Fluxo!$L$4-Simulação!Y65-Fluxo!$J$7)*0.75+Fluxo!$L$14+Fluxo!$L$15+Fluxo!$L$16-Fluxo!$L$18-Fluxo!$L$20+Fluxo!$L$21 -> 114.375342 | M58: =NPV(Taxas!$B$17,C58:L58)+B58 -> -56694.17177
A59: 58 | B59: -108118 | C59: 10430.495 | D59: 10889.51975 | E59: =(((Faturamento!$E$20)*22*12)*0.9635-Fluxo!$E$4-Simulação!R66-Fluxo!$E$7)*0.75+Fluxo!$E$14+Fluxo!$E$15+Fluxo!$E$16-Fluxo!$E$18-Fluxo!$E$20+Fluxo!$E$21 -> -11365.88928 | F59: =(((Faturamento!$F$20)*22*12)*0.9635-Fluxo!$F$4-Simulação!S66-Fluxo!$D$7)*0.75+Fluxo!$F$14+Fluxo!$F$15+Fluxo!$F$16-Fluxo!$F$18-Fluxo!$F$20+Fluxo!$F$21 -> 33770.50679 | G59: =(((Faturamento!$G$20)*22*12)*0.9635-Fluxo!$G$4-Simulação!T66-Fluxo!$E$7)*0.75+Fluxo!$G$14+Fluxo!$G$15+Fluxo!$G$16-Fluxo!$G$18-Fluxo!$G$20+Fluxo!$G$21 -> 238.334083 | H59: =(((Faturamento!$H$20)*22*12)*0.9635-Fluxo!$H$4-Simulação!U66-Fluxo!$F$7)*0.75+Fluxo!$H$14+Fluxo!$H$15+Fluxo!$H$16-Fluxo!$H$18-Fluxo!$H$20+Fluxo!$H$21 -> 12622.12199 | I59: =(((Faturamento!$I$20)*22*12)*0.9635-Fluxo!$I$4-Simulação!V66-Fluxo!$G$7)*0.75+Fluxo!$I$14+Fluxo!$I$15+Fluxo!$I$16-Fluxo!$I$18-Fluxo!$I$20+Fluxo!$I$21 -> 14005.23072 | J59: =(((Faturamento!$J$20)*22*12)*0.9635-Fluxo!$J$4-Simulação!W66-Fluxo!$H$7)*0.75+Fluxo!$J$14+Fluxo!$J$15+Fluxo!$J$16-Fluxo!$J$18-Fluxo!$J$20+Fluxo!$J$21 -> -12136.88289 | K59: =(((Faturamento!$K$20)*22*12)*0.9635-Fluxo!$K$4-Simulação!X66-Fluxo!$I$7)*0.75+Fluxo!$K$14+Fluxo!$K$15+Fluxo!$K$16-Fluxo!$K$18-Fluxo!$K$20+Fluxo!$K$21 -> -18546.62369 | L59: =(((Faturamento!$L$20)*22*12)*0.9635-Fluxo!$L$4-Simulação!Y66-Fluxo!$J$7)*0.75+Fluxo!$L$14+Fluxo!$L$15+Fluxo!$L$16-Fluxo!$L$18-Fluxo!$L$20+Fluxo!$L$21 -> 62489.42508 | M59: =NPV(Taxas!$B$17,C59:L59)+B59 -> -30806.80742
A60: 59 | B60: -108118 | C60: 10430.495 | D60: 10889.51975 | E60: =(((Faturamento!$E$20)*22*12)*0.9635-Fluxo!$E$4-Simulação!R67-Fluxo!$E$7)*0.75+Fluxo!$E$14+Fluxo!$E$15+Fluxo!$E$16-Fluxo!$E$18-Fluxo!$E$20+Fluxo!$E$21 -> 4567.433338 | F60: =(((Faturamento!$F$20)*22*12)*0.9635-Fluxo!$F$4-Simulação!S67-Fluxo!$D$7)*0.75+Fluxo!$F$14+Fluxo!$F$15+Fluxo!$F$16-Fluxo!$F$18-Fluxo!$F$20+Fluxo!$F$21 -> -1917.752056 | G60: =(((Faturamento!$G$20)*22*12)*0.9635-Fluxo!$G$4-Simulação!T67-Fluxo!$E$7)*0.75+Fluxo!$G$14+Fluxo!$G$15+Fluxo!$G$16-Fluxo!$G$18-Fluxo!$G$20+Fluxo!$G$21 -> -6606.868875 | H60: =(((Faturamento!$H$20)*22*12)*0.9635-Fluxo!$H$4-Simulação!U67-Fluxo!$F$7)*0.75+Fluxo!$H$14+Fluxo!$H$15+Fluxo!$H$16-Fluxo!$H$18-Fluxo!$H$20+Fluxo!$H$21 -> 37690.81472 | I60: =(((Faturamento!$I$20)*22*12)*0.9635-Fluxo!$I$4-Simulação!V67-Fluxo!$G$7)*0.75+Fluxo!$I$14+Fluxo!$I$15+Fluxo!$I$16-Fluxo!$I$18-Fluxo!$I$20+Fluxo!$I$21 -> 5275.949472 | J60: =(((Faturamento!$J$20)*22*12)*0.9635-Fluxo!$J$4-Simulação!W67-Fluxo!$H$7)*0.75+Fluxo!$J$14+Fluxo!$J$15+Fluxo!$J$16-Fluxo!$J$18-Fluxo!$J$20+Fluxo!$J$21 -> 42517.58145 | K60: =(((Faturamento!$K$20)*22*12)*0.9635-Fluxo!$K$4-Simulação!X67-Fluxo!$I$7)*0.75+Fluxo!$K$14+Fluxo!$K$15+Fluxo!$K$16-Fluxo!$K$18-Fluxo!$K$20+Fluxo!$K$21 -> 15538.92994 | L60: =(((Faturamento!$L$20)*22*12)*0.9635-Fluxo!$L$4-Simulação!Y67-Fluxo!$J$7)*0.75+Fluxo!$L$14+Fluxo!$L$15+Fluxo!$L$16-Fluxo!$L$18-Fluxo!$L$20+Fluxo!$L$21 -> 50264.31698 | M60: =NPV(Taxas!$B$17,C60:L60)+B60 -> 13724.33639
A61: 60 | B61: -108118 | C61: 10430.495 | D61: 10889.51975 | E61: =(((Faturamento!$E$20)*22*12)*0.9635-Fluxo!$E$4-Simulação!R68-Fluxo!$E$7)*0.75+Fluxo!$E$14+Fluxo!$E$15+Fluxo!$E$16-Fluxo!$E$18-Fluxo!$E$20+Fluxo!$E$21 -> -13560.66224 | F61: =(((Faturamento!$F$20)*22*12)*0.9635-Fluxo!$F$4-Simulação!S68-Fluxo!$D$7)*0.75+Fluxo!$F$14+Fluxo!$F$15+Fluxo!$F$16-Fluxo!$F$18-Fluxo!$F$20+Fluxo!$F$21 -> -2948.440181 | G61: =(((Faturamento!$G$20)*22*12)*0.9635-Fluxo!$G$4-Simulação!T68-Fluxo!$E$7)*0.75+Fluxo!$G$14+Fluxo!$G$15+Fluxo!$G$16-Fluxo!$G$18-Fluxo!$G$20+Fluxo!$G$21 -> -14063.90666 | H61: =(((Faturamento!$H$20)*22*12)*0.9635-Fluxo!$H$4-Simulação!U68-Fluxo!$F$7)*0.75+Fluxo!$H$14+Fluxo!$H$15+Fluxo!$H$16-Fluxo!$H$18-Fluxo!$H$20+Fluxo!$H$21 -> 44415.20386 | I61: =(((Faturamento!$I$20)*22*12)*0.9635-Fluxo!$I$4-Simulação!V68-Fluxo!$G$7)*0.75+Fluxo!$I$14+Fluxo!$I$15+Fluxo!$I$16-Fluxo!$I$18-Fluxo!$I$20+Fluxo!$I$21 -> 32278.48057 | J61: =(((Faturamento!$J$20)*22*12)*0.9635-Fluxo!$J$4-Simulação!W68-Fluxo!$H$7)*0.75+Fluxo!$J$14+Fluxo!$J$15+Fluxo!$J$16-Fluxo!$J$18-Fluxo!$J$20+Fluxo!$J$21 -> 5876.13193 | K61: =(((Faturamento!$K$20)*22*12)*0.9635-Fluxo!$K$4-Simulação!X68-Fluxo!$I$7)*0.75+Fluxo!$K$14+Fluxo!$K$15+Fluxo!$K$16-Fluxo!$K$18-Fluxo!$K$20+Fluxo!$K$21 -> 2270.775414 | L61: =(((Faturamento!$L$20)*22*12)*0.9635-Fluxo!$L$4-Simulação!Y68-Fluxo!$J$7)*0.75+Fluxo!$L$14+Fluxo!$L$15+Fluxo!$L$16-Fluxo!$L$18-Fluxo!$L$20+Fluxo!$L$21 -> 67841.62437 | M61: =NPV(Taxas!$B$17,C61:L61)+B61 -> -7306.447207
A62: 61 | B62: -108118 | C62: 10430.495 | D62: 10889.51975 | E62: =(((Faturamento!$E$20)*22*12)*0.9635-Fluxo!$E$4-Simulação!R69-Fluxo!$E$7)*0.75+Fluxo!$E$14+Fluxo!$E$15+Fluxo!$E$16-Fluxo!$E$18-Fluxo!$E$20+Fluxo!$E$21 -> 6008.094207 | F62: =(((Faturamento!$F$20)*22*12)*0.9635-Fluxo!$F$4-Simulação!S69-Fluxo!$D$7)*0.75+Fluxo!$F$14+Fluxo!$F$15+Fluxo!$F$16-Fluxo!$F$18-Fluxo!$F$20+Fluxo!$F$21 -> -14844.15668 | G62: =(((Faturamento!$G$20)*22*12)*0.9635-Fluxo!$G$4-Simulação!T69-Fluxo!$E$7)*0.75+Fluxo!$G$14+Fluxo!$G$15+Fluxo!$G$16-Fluxo!$G$18-Fluxo!$G$20+Fluxo!$G$21 -> 20148.4314 | H62: =(((Faturamento!$H$20)*22*12)*0.9635-Fluxo!$H$4-Simulação!U69-Fluxo!$F$7)*0.75+Fluxo!$H$14+Fluxo!$H$15+Fluxo!$H$16-Fluxo!$H$18-Fluxo!$H$20+Fluxo!$H$21 -> -10608.04011 | I62: =(((Faturamento!$I$20)*22*12)*0.9635-Fluxo!$I$4-Simulação!V69-Fluxo!$G$7)*0.75+Fluxo!$I$14+Fluxo!$I$15+Fluxo!$I$16-Fluxo!$I$18-Fluxo!$I$20+Fluxo!$I$21 -> 16699.4537 | J62: =(((Faturamento!$J$20)*22*12)*0.9635-Fluxo!$J$4-Simulação!W69-Fluxo!$H$7)*0.75+Fluxo!$J$14+Fluxo!$J$15+Fluxo!$J$16-Fluxo!$J$18-Fluxo!$J$20+Fluxo!$J$21 -> 44679.97592 | K62: =(((Faturamento!$K$20)*22*12)*0.9635-Fluxo!$K$4-Simulação!X69-Fluxo!$I$7)*0.75+Fluxo!$K$14+Fluxo!$K$15+Fluxo!$K$16-Fluxo!$K$18-Fluxo!$K$20+Fluxo!$K$21 -> 39195.40041 | L62: =(((Faturamento!$L$20)*22*12)*0.9635-Fluxo!$L$4-Simulação!Y69-Fluxo!$J$7)*0.75+Fluxo!$L$14+Fluxo!$L$15+Fluxo!$L$16-Fluxo!$L$18-Fluxo!$L$20+Fluxo!$L$21 -> 51015.42043 | M62: =NPV(Taxas!$B$17,C62:L62)+B62 -> 14790.60724
A63: 62 | B63: -108118 | C63: 10430.495 | D63: 10889.51975 | E63: =(((Faturamento!$E$20)*22*12)*0.9635-Fluxo!$E$4-Simulação!R70-Fluxo!$E$7)*0.75+Fluxo!$E$14+Fluxo!$E$15+Fluxo!$E$16-Fluxo!$E$18-Fluxo!$E$20+Fluxo!$E$21 -> -9584.961775 | F63: =(((Faturamento!$F$20)*22*12)*0.9635-Fluxo!$F$4-Simulação!S70-Fluxo!$D$7)*0.75+Fluxo!$F$14+Fluxo!$F$15+Fluxo!$F$16-Fluxo!$F$18-Fluxo!$F$20+Fluxo!$F$21 -> 39345.25088 | G63: =(((Faturamento!$G$20)*22*12)*0.9635-Fluxo!$G$4-Simulação!T70-Fluxo!$E$7)*0.75+Fluxo!$G$14+Fluxo!$G$15+Fluxo!$G$16-Fluxo!$G$18-Fluxo!$G$20+Fluxo!$G$21 -> 7032.552406 | H63: =(((Faturamento!$H$20)*22*12)*0.9635-Fluxo!$H$4-Simulação!U70-Fluxo!$F$7)*0.75+Fluxo!$H$14+Fluxo!$H$15+Fluxo!$H$16-Fluxo!$H$18-Fluxo!$H$20+Fluxo!$H$21 -> 42010.11627 | I63: =(((Faturamento!$I$20)*22*12)*0.9635-Fluxo!$I$4-Simulação!V70-Fluxo!$G$7)*0.75+Fluxo!$I$14+Fluxo!$I$15+Fluxo!$I$16-Fluxo!$I$18-Fluxo!$I$20+Fluxo!$I$21 -> 35729.85965 | J63: =(((Faturamento!$J$20)*22*12)*0.9635-Fluxo!$J$4-Simulação!W70-Fluxo!$H$7)*0.75+Fluxo!$J$14+Fluxo!$J$15+Fluxo!$J$16-Fluxo!$J$18-Fluxo!$J$20+Fluxo!$J$21 -> -1048.861499 | K63: =(((Faturamento!$K$20)*22*12)*0.9635-Fluxo!$K$4-Simulação!X70-Fluxo!$I$7)*0.75+Fluxo!$K$14+Fluxo!$K$15+Fluxo!$K$16-Fluxo!$K$18-Fluxo!$K$20+Fluxo!$K$21 -> -15271.46482 | L63: =(((Faturamento!$L$20)*22*12)*0.9635-Fluxo!$L$4-Simulação!Y70-Fluxo!$J$7)*0.75+Fluxo!$L$14+Fluxo!$L$15+Fluxo!$L$16-Fluxo!$L$18-Fluxo!$L$20+Fluxo!$L$21 -> 44907.36351 | M63: =NPV(Taxas!$B$17,C63:L63)+B63 -> 17861.45928
A64: 63 | B64: -108118 | C64: 10430.495 | D64: 10889.51975 | E64: =(((Faturamento!$E$20)*22*12)*0.9635-Fluxo!$E$4-Simulação!R71-Fluxo!$E$7)*0.75+Fluxo!$E$14+Fluxo!$E$15+Fluxo!$E$16-Fluxo!$E$18-Fluxo!$E$20+Fluxo!$E$21 -> 36378.33506 | F64: =(((Faturamento!$F$20)*22*12)*0.9635-Fluxo!$F$4-Simulação!S71-Fluxo!$D$7)*0.75+Fluxo!$F$14+Fluxo!$F$15+Fluxo!$F$16-Fluxo!$F$18-Fluxo!$F$20+Fluxo!$F$21 -> 18109.44937 | G64: =(((Faturamento!$G$20)*22*12)*0.9635-Fluxo!$G$4-Simulação!T71-Fluxo!$E$7)*0.75+Fluxo!$G$14+Fluxo!$G$15+Fluxo!$G$16-Fluxo!$G$18-Fluxo!$G$20+Fluxo!$G$21 -> 39272.25257 | H64: =(((Faturamento!$H$20)*22*12)*0.9635-Fluxo!$H$4-Simulação!U71-Fluxo!$F$7)*0.75+Fluxo!$H$14+Fluxo!$H$15+Fluxo!$H$16-Fluxo!$H$18-Fluxo!$H$20+Fluxo!$H$21 -> 4235.985528 | I64: =(((Faturamento!$I$20)*22*12)*0.9635-Fluxo!$I$4-Simulação!V71-Fluxo!$G$7)*0.75+Fluxo!$I$14+Fluxo!$I$15+Fluxo!$I$16-Fluxo!$I$18-Fluxo!$I$20+Fluxo!$I$21 -> -13355.20711 | J64: =(((Faturamento!$J$20)*22*12)*0.9635-Fluxo!$J$4-Simulação!W71-Fluxo!$H$7)*0.75+Fluxo!$J$14+Fluxo!$J$15+Fluxo!$J$16-Fluxo!$J$18-Fluxo!$J$20+Fluxo!$J$21 -> 8596.249822 | K64: =(((Faturamento!$K$20)*22*12)*0.9635-Fluxo!$K$4-Simulação!X71-Fluxo!$I$7)*0.75+Fluxo!$K$14+Fluxo!$K$15+Fluxo!$K$16-Fluxo!$K$18-Fluxo!$K$20+Fluxo!$K$21 -> 37625.86923 | L64: =(((Faturamento!$L$20)*22*12)*0.9635-Fluxo!$L$4-Simulação!Y71-Fluxo!$J$7)*0.75+Fluxo!$L$14+Fluxo!$L$15+Fluxo!$L$16-Fluxo!$L$18-Fluxo!$L$20+Fluxo!$L$21 -> 7116.174109 | M64: =NPV(Taxas!$B$17,C64:L64)+B64 -> 19268.53452
A65: 64 | B65: -108118 | C65: 10430.495 | D65: 10889.51975 | E65: =(((Faturamento!$E$20)*22*12)*0.9635-Fluxo!$E$4-Simulação!R72-Fluxo!$E$7)*0.75+Fluxo!$E$14+Fluxo!$E$15+Fluxo!$E$16-Fluxo!$E$18-Fluxo!$E$20+Fluxo!$E$21 -> -4829.949417 | F65: =(((Faturamento!$F$20)*22*12)*0.9635-Fluxo!$F$4-Simulação!S72-Fluxo!$D$7)*0.75+Fluxo!$F$14+Fluxo!$F$15+Fluxo!$F$16-Fluxo!$F$18-Fluxo!$F$20+Fluxo!$F$21 -> 19266.82777 | G65: =(((Faturamento!$G$20)*22*12)*0.9635-Fluxo!$G$4-Simulação!T72-Fluxo!$E$7)*0.75+Fluxo!$G$14+Fluxo!$G$15+Fluxo!$G$16-Fluxo!$G$18-Fluxo!$G$20+Fluxo!$G$21 -> -3948.022183 | H65: =(((Faturamento!$H$20)*22*12)*0.9635-Fluxo!$H$4-Simulação!U72-Fluxo!$F$7)*0.75+Fluxo!$H$14+Fluxo!$H$15+Fluxo!$H$16-Fluxo!$H$18-Fluxo!$H$20+Fluxo!$H$21 -> -9868.154052 | I65: =(((Faturamento!$I$20)*22*12)*0.9635-Fluxo!$I$4-Simulação!V72-Fluxo!$G$7)*0.75+Fluxo!$I$14+Fluxo!$I$15+Fluxo!$I$16-Fluxo!$I$18-Fluxo!$I$20+Fluxo!$I$21 -> 23673.11245 | J65: =(((Faturamento!$J$20)*22*12)*0.9635-Fluxo!$J$4-Simulação!W72-Fluxo!$H$7)*0.75+Fluxo!$J$14+Fluxo!$J$15+Fluxo!$J$16-Fluxo!$J$18-Fluxo!$J$20+Fluxo!$J$21 -> 12704.27052 | K65: =(((Faturamento!$K$20)*22*12)*0.9635-Fluxo!$K$4-Simulação!X72-Fluxo!$I$7)*0.75+Fluxo!$K$14+Fluxo!$K$15+Fluxo!$K$16-Fluxo!$K$18-Fluxo!$K$20+Fluxo!$K$21 -> 28136.7006 | L65: =(((Faturamento!$L$20)*22*12)*0.9635-Fluxo!$L$4-Simulação!Y72-Fluxo!$J$7)*0.75+Fluxo!$L$14+Fluxo!$L$15+Fluxo!$L$16-Fluxo!$L$18-Fluxo!$L$20+Fluxo!$L$21 -> -7031.26667 | M65: =NPV(Taxas!$B$17,C65:L65)+B65 -> -46542.71145
A66: 65 | B66: -108118 | C66: 10430.495 | D66: 10889.51975 | E66: =(((Faturamento!$E$20)*22*12)*0.9635-Fluxo!$E$4-Simulação!R73-Fluxo!$E$7)*0.75+Fluxo!$E$14+Fluxo!$E$15+Fluxo!$E$16-Fluxo!$E$18-Fluxo!$E$20+Fluxo!$E$21 -> 28682.25628 | F66: =(((Faturamento!$F$20)*22*12)*0.9635-Fluxo!$F$4-Simulação!S73-Fluxo!$D$7)*0.75+Fluxo!$F$14+Fluxo!$F$15+Fluxo!$F$16-Fluxo!$F$18-Fluxo!$F$20+Fluxo!$F$21 -> 23393.57564 | G66: =(((Faturamento!$G$20)*22*12)*0.9635-Fluxo!$G$4-Simulação!T73-Fluxo!$E$7)*0.75+Fluxo!$G$14+Fluxo!$G$15+Fluxo!$G$16-Fluxo!$G$18-Fluxo!$G$20+Fluxo!$G$21 -> 28127.17861 | H66: =(((Faturamento!$H$20)*22*12)*0.9635-Fluxo!$H$4-Simulação!U73-Fluxo!$F$7)*0.75+Fluxo!$H$14+Fluxo!$H$15+Fluxo!$H$16-Fluxo!$H$18-Fluxo!$H$20+Fluxo!$H$21 -> 39925.42526 | I66: =(((Faturamento!$I$20)*22*12)*0.9635-Fluxo!$I$4-Simulação!V73-Fluxo!$G$7)*0.75+Fluxo!$I$14+Fluxo!$I$15+Fluxo!$I$16-Fluxo!$I$18-Fluxo!$I$20+Fluxo!$I$21 -> -880.8702849 | J66: =(((Faturamento!$J$20)*22*12)*0.9635-Fluxo!$J$4-Simulação!W73-Fluxo!$H$7)*0.75+Fluxo!$J$14+Fluxo!$J$15+Fluxo!$J$16-Fluxo!$J$18-Fluxo!$J$20+Fluxo!$J$21 -> -10123.74057 | K66: =(((Faturamento!$K$20)*22*12)*0.9635-Fluxo!$K$4-Simulação!X73-Fluxo!$I$7)*0.75+Fluxo!$K$14+Fluxo!$K$15+Fluxo!$K$16-Fluxo!$K$18-Fluxo!$K$20+Fluxo!$K$21 -> 24593.07293 | L66: =(((Faturamento!$L$20)*22*12)*0.9635-Fluxo!$L$4-Simulação!Y73-Fluxo!$J$7)*0.75+Fluxo!$L$14+Fluxo!$L$15+Fluxo!$L$16-Fluxo!$L$18-Fluxo!$L$20+Fluxo!$L$21 -> 20467.1357 | M66: =NPV(Taxas!$B$17,C66:L66)+B66 -> 31176.69941
A67: 66 | B67: -108118 | C67: 10430.495 | D67: 10889.51975 | E67: =(((Faturamento!$E$20)*22*12)*0.9635-Fluxo!$E$4-Simulação!R74-Fluxo!$E$7)*0.75+Fluxo!$E$14+Fluxo!$E$15+Fluxo!$E$16-Fluxo!$E$18-Fluxo!$E$20+Fluxo!$E$21 -> -5318.290194 | F67: =(((Faturamento!$F$20)*22*12)*0.9635-Fluxo!$F$4-Simulação!S74-Fluxo!$D$7)*0.75+Fluxo!$F$14+Fluxo!$F$15+Fluxo!$F$16-Fluxo!$F$18-Fluxo!$F$20+Fluxo!$F$21 -> 21847.99726 | G67: =(((Faturamento!$G$20)*22*12)*0.9635-Fluxo!$G$4-Simulação!T74-Fluxo!$E$7)*0.75+Fluxo!$G$14+Fluxo!$G$15+Fluxo!$G$16-Fluxo!$G$18-Fluxo!$G$20+Fluxo!$G$21 -> 11998.8773 | H67: =(((Faturamento!$H$20)*22*12)*0.9635-Fluxo!$H$4-Simulação!U74-Fluxo!$F$7)*0.75+Fluxo!$H$14+Fluxo!$H$15+Fluxo!$H$16-Fluxo!$H$18-Fluxo!$H$20+Fluxo!$H$21 -> 5589.166819 | I67: =(((Faturamento!$I$20)*22*12)*0.9635-Fluxo!$I$4-Simulação!V74-Fluxo!$G$7)*0.75+Fluxo!$I$14+Fluxo!$I$15+Fluxo!$I$16-Fluxo!$I$18-Fluxo!$I$20+Fluxo!$I$21 -> -20241.33491 | J67: =(((Faturamento!$J$20)*22*12)*0.9635-Fluxo!$J$4-Simulação!W74-Fluxo!$H$7)*0.75+Fluxo!$J$14+Fluxo!$J$15+Fluxo!$J$16-Fluxo!$J$18-Fluxo!$J$20+Fluxo!$J$21 -> 32136.27461 | K67: =(((Faturamento!$K$20)*22*12)*0.9635-Fluxo!$K$4-Simulação!X74-Fluxo!$I$7)*0.75+Fluxo!$K$14+Fluxo!$K$15+Fluxo!$K$16-Fluxo!$K$18-Fluxo!$K$20+Fluxo!$K$21 -> 15775.59543 | L67: =(((Faturamento!$L$20)*22*12)*0.9635-Fluxo!$L$4-Simulação!Y74-Fluxo!$J$7)*0.75+Fluxo!$L$14+Fluxo!$L$15+Fluxo!$L$16-Fluxo!$L$18-Fluxo!$L$20+Fluxo!$L$21 -> 8750.991556 | M67: =NPV(Taxas!$B$17,C67:L67)+B67 -> -36945.72917
A68: 67 | B68: -108118 | C68: 10430.495 | D68: 10889.51975 | E68: =(((Faturamento!$E$20)*22*12)*0.9635-Fluxo!$E$4-Simulação!R75-Fluxo!$E$7)*0.75+Fluxo!$E$14+Fluxo!$E$15+Fluxo!$E$16-Fluxo!$E$18-Fluxo!$E$20+Fluxo!$E$21 -> 35999.55811 | F68: =(((Faturamento!$F$20)*22*12)*0.9635-Fluxo!$F$4-Simulação!S75-Fluxo!$D$7)*0.75+Fluxo!$F$14+Fluxo!$F$15+Fluxo!$F$16-Fluxo!$F$18-Fluxo!$F$20+Fluxo!$F$21 -> -6051.806025 | G68: =(((Faturamento!$G$20)*22*12)*0.9635-Fluxo!$G$4-Simulação!T75-Fluxo!$E$7)*0.75+Fluxo!$G$14+Fluxo!$G$15+Fluxo!$G$16-Fluxo!$G$18-Fluxo!$G$20+Fluxo!$G$21 -> -17622.21699 | H68: =(((Faturamento!$H$20)*22*12)*0.9635-Fluxo!$H$4-Simulação!U75-Fluxo!$F$7)*0.75+Fluxo!$H$14+Fluxo!$H$15+Fluxo!$H$16-Fluxo!$H$18-Fluxo!$H$20+Fluxo!$H$21 -> -13933.48834 | I68: =(((Faturamento!$I$20)*22*12)*0.9635-Fluxo!$I$4-Simulação!V75-Fluxo!$G$7)*0.75+Fluxo!$I$14+Fluxo!$I$15+Fluxo!$I$16-Fluxo!$I$18-Fluxo!$I$20+Fluxo!$I$21 -> 43138.14597 | J68: =(((Faturamento!$J$20)*22*12)*0.9635-Fluxo!$J$4-Simulação!W75-Fluxo!$H$7)*0.75+Fluxo!$J$14+Fluxo!$J$15+Fluxo!$J$16-Fluxo!$J$18-Fluxo!$J$20+Fluxo!$J$21 -> 45652.02977 | K68: =(((Faturamento!$K$20)*22*12)*0.9635-Fluxo!$K$4-Simulação!X75-Fluxo!$I$7)*0.75+Fluxo!$K$14+Fluxo!$K$15+Fluxo!$K$16-Fluxo!$K$18-Fluxo!$K$20+Fluxo!$K$21 -> 6777.213231 | L68: =(((Faturamento!$L$20)*22*12)*0.9635-Fluxo!$L$4-Simulação!Y75-Fluxo!$J$7)*0.75+Fluxo!$L$14+Fluxo!$L$15+Fluxo!$L$16-Fluxo!$L$18-Fluxo!$L$20+Fluxo!$L$21 -> 38777.4768 | M68: =NPV(Taxas!$B$17,C68:L68)+B68 -> 6163.702424
A69: =A68+1 -> 68 | B69: =B68 -> -108118 | C69: =C68 -> 10430.495 | D69: =D68 -> 10889.51975 | E69: =(((Faturamento!$E$20)*22*12)*0.9635-Fluxo!$E$4-Simulação!R76-Fluxo!$E$7)*0.75+Fluxo!$E$14+Fluxo!$E$15+Fluxo!$E$16-Fluxo!$E$18-Fluxo!$E$20+Fluxo!$E$21 -> -16060.46854 | F69: =(((Faturamento!$F$20)*22*12)*0.9635-Fluxo!$F$4-Simulação!S76-Fluxo!$D$7)*0.75+Fluxo!$F$14+Fluxo!$F$15+Fluxo!$F$16-Fluxo!$F$18-Fluxo!$F$20+Fluxo!$F$21 -> 12614.43491 | G69: =(((Faturamento!$G$20)*22*12)*0.9635-Fluxo!$G$4-Simulação!T76-Fluxo!$E$7)*0.75+Fluxo!$G$14+Fluxo!$G$15+Fluxo!$G$16-Fluxo!$G$18-Fluxo!$G$20+Fluxo!$G$21 -> -9629.2962 | H69: =(((Faturamento!$H$20)*22*12)*0.9635-Fluxo!$H$4-Simulação!U76-Fluxo!$F$7)*0.75+Fluxo!$H$14+Fluxo!$H$15+Fluxo!$H$16-Fluxo!$H$18-Fluxo!$H$20+Fluxo!$H$21 -> -2741.390735 | I69: =(((Faturamento!$I$20)*22*12)*0.9635-Fluxo!$I$4-Simulação!V76-Fluxo!$G$7)*0.75+Fluxo!$I$14+Fluxo!$I$15+Fluxo!$I$16-Fluxo!$I$18-Fluxo!$I$20+Fluxo!$I$21 -> -16594.68079 | J69: =(((Faturamento!$J$20)*22*12)*0.9635-Fluxo!$J$4-Simulação!W76-Fluxo!$H$7)*0.75+Fluxo!$J$14+Fluxo!$J$15+Fluxo!$J$16-Fluxo!$J$18-Fluxo!$J$20+Fluxo!$J$21 -> -17427.29042 | K69: =(((Faturamento!$K$20)*22*12)*0.9635-Fluxo!$K$4-Simulação!X76-Fluxo!$I$7)*0.75+Fluxo!$K$14+Fluxo!$K$15+Fluxo!$K$16-Fluxo!$K$18-Fluxo!$K$20+Fluxo!$K$21 -> -16794.05559 | L69: =(((Faturamento!$L$20)*22*12)*0.9635-Fluxo!$L$4-Simulação!Y76-Fluxo!$J$7)*0.75+Fluxo!$L$14+Fluxo!$L$15+Fluxo!$L$16-Fluxo!$L$18-Fluxo!$L$20+Fluxo!$L$21 -> 54454.5447 | M69: =NPV(Taxas!$B$17,C69:L69)+B69 -> -102215.3146
A70: 69 | B70: -108118 | C70: 10430.495 | D70: 10889.51975 | E70: =(((Faturamento!$E$20)*22*12)*0.9635-Fluxo!$E$4-Simulação!R77-Fluxo!$E$7)*0.75+Fluxo!$E$14+Fluxo!$E$15+Fluxo!$E$16-Fluxo!$E$18-Fluxo!$E$20+Fluxo!$E$21 -> 9979.008394 | F70: =(((Faturamento!$F$20)*22*12)*0.9635-Fluxo!$F$4-Simulação!S77-Fluxo!$D$7)*0.75+Fluxo!$F$14+Fluxo!$F$15+Fluxo!$F$16-Fluxo!$F$18-Fluxo!$F$20+Fluxo!$F$21 -> 26456.25041 | G70: =(((Faturamento!$G$20)*22*12)*0.9635-Fluxo!$G$4-Simulação!T77-Fluxo!$E$7)*0.75+Fluxo!$G$14+Fluxo!$G$15+Fluxo!$G$16-Fluxo!$G$18-Fluxo!$G$20+Fluxo!$G$21 -> -914.8021532 | H70: =(((Faturamento!$H$20)*22*12)*0.9635-Fluxo!$H$4-Simulação!U77-Fluxo!$F$7)*0.75+Fluxo!$H$14+Fluxo!$H$15+Fluxo!$H$16-Fluxo!$H$18-Fluxo!$H$20+Fluxo!$H$21 -> 1937.157104 | I70: =(((Faturamento!$I$20)*22*12)*0.9635-Fluxo!$I$4-Simulação!V77-Fluxo!$G$7)*0.75+Fluxo!$I$14+Fluxo!$I$15+Fluxo!$I$16-Fluxo!$I$18-Fluxo!$I$20+Fluxo!$I$21 -> 38617.49181 | J70: =(((Faturamento!$J$20)*22*12)*0.9635-Fluxo!$J$4-Simulação!W77-Fluxo!$H$7)*0.75+Fluxo!$J$14+Fluxo!$J$15+Fluxo!$J$16-Fluxo!$J$18-Fluxo!$J$20+Fluxo!$J$21 -> 38470.47411 | K70: =(((Faturamento!$K$20)*22*12)*0.9635-Fluxo!$K$4-Simulação!X77-Fluxo!$I$7)*0.75+Fluxo!$K$14+Fluxo!$K$15+Fluxo!$K$16-Fluxo!$K$18-Fluxo!$K$20+Fluxo!$K$21 -> 29612.27986 | L70: =(((Faturamento!$L$20)*22*12)*0.9635-Fluxo!$L$4-Simulação!Y77-Fluxo!$J$7)*0.75+Fluxo!$L$14+Fluxo!$L$15+Fluxo!$L$16-Fluxo!$L$18-Fluxo!$L$20+Fluxo!$L$21 -> 1380.906874 | M70: =NPV(Taxas!$B$17,C70:L70)+B70 -> 19116.30165
A71: 70 | B71: -108118 | C71: 10430.495 | D71: 10889.51975 | E71: =(((Faturamento!$E$20)*22*12)*0.9635-Fluxo!$E$4-Simulação!R78-Fluxo!$E$7)*0.75+Fluxo!$E$14+Fluxo!$E$15+Fluxo!$E$16-Fluxo!$E$18-Fluxo!$E$20+Fluxo!$E$21 -> 28890.66722 | F71: =(((Faturamento!$F$20)*22*12)*0.9635-Fluxo!$F$4-Simulação!S78-Fluxo!$D$7)*0.75+Fluxo!$F$14+Fluxo!$F$15+Fluxo!$F$16-Fluxo!$F$18-Fluxo!$F$20+Fluxo!$F$21 -> 36072.75292 | G71: =(((Faturamento!$G$20)*22*12)*0.9635-Fluxo!$G$4-Simulação!T78-Fluxo!$E$7)*0.75+Fluxo!$G$14+Fluxo!$G$15+Fluxo!$G$16-Fluxo!$G$18-Fluxo!$G$20+Fluxo!$G$21 -> 31613.99575 | H71: =(((Faturamento!$H$20)*22*12)*0.9635-Fluxo!$H$4-Simulação!U78-Fluxo!$F$7)*0.75+Fluxo!$H$14+Fluxo!$H$15+Fluxo!$H$16-Fluxo!$H$18-Fluxo!$H$20+Fluxo!$H$21 -> 999.2455787 | I71: =(((Faturamento!$I$20)*22*12)*0.9635-Fluxo!$I$4-Simulação!V78-Fluxo!$G$7)*0.75+Fluxo!$I$14+Fluxo!$I$15+Fluxo!$I$16-Fluxo!$I$18-Fluxo!$I$20+Fluxo!$I$21 -> -3535.703028 | J71: =(((Faturamento!$J$20)*22*12)*0.9635-Fluxo!$J$4-Simulação!W78-Fluxo!$H$7)*0.75+Fluxo!$J$14+Fluxo!$J$15+Fluxo!$J$16-Fluxo!$J$18-Fluxo!$J$20+Fluxo!$J$21 -> 27902.74236 | K71: =(((Faturamento!$K$20)*22*12)*0.9635-Fluxo!$K$4-Simulação!X78-Fluxo!$I$7)*0.75+Fluxo!$K$14+Fluxo!$K$15+Fluxo!$K$16-Fluxo!$K$18-Fluxo!$K$20+Fluxo!$K$21 -> 28675.74209 | L71: =(((Faturamento!$L$20)*22*12)*0.9635-Fluxo!$L$4-Simulação!Y78-Fluxo!$J$7)*0.75+Fluxo!$L$14+Fluxo!$L$15+Fluxo!$L$16-Fluxo!$L$18-Fluxo!$L$20+Fluxo!$L$21 -> -1152.937575 | M71: =NPV(Taxas!$B$17,C71:L71)+B71 -> 28543.93126
A72: 71 | B72: -108118 | C72: 10430.495 | D72: 10889.51975 | E72: =(((Faturamento!$E$20)*22*12)*0.9635-Fluxo!$E$4-Simulação!R79-Fluxo!$E$7)*0.75+Fluxo!$E$14+Fluxo!$E$15+Fluxo!$E$16-Fluxo!$E$18-Fluxo!$E$20+Fluxo!$E$21 -> 17206.99125 | F72: =(((Faturamento!$F$20)*22*12)*0.9635-Fluxo!$F$4-Simulação!S79-Fluxo!$D$7)*0.75+Fluxo!$F$14+Fluxo!$F$15+Fluxo!$F$16-Fluxo!$F$18-Fluxo!$F$20+Fluxo!$F$21 -> 13640.00158 | G72: =(((Faturamento!$G$20)*22*12)*0.9635-Fluxo!$G$4-Simulação!T79-Fluxo!$E$7)*0.75+Fluxo!$G$14+Fluxo!$G$15+Fluxo!$G$16-Fluxo!$G$18-Fluxo!$G$20+Fluxo!$G$21 -> 27736.67546 | H72: =(((Faturamento!$H$20)*22*12)*0.9635-Fluxo!$H$4-Simulação!U79-Fluxo!$F$7)*0.75+Fluxo!$H$14+Fluxo!$H$15+Fluxo!$H$16-Fluxo!$H$18-Fluxo!$H$20+Fluxo!$H$21 -> 22187.69569 | I72: =(((Faturamento!$I$20)*22*12)*0.9635-Fluxo!$I$4-Simulação!V79-Fluxo!$G$7)*0.75+Fluxo!$I$14+Fluxo!$I$15+Fluxo!$I$16-Fluxo!$I$18-Fluxo!$I$20+Fluxo!$I$21 -> 31199.89726 | J72: =(((Faturamento!$J$20)*22*12)*0.9635-Fluxo!$J$4-Simulação!W79-Fluxo!$H$7)*0.75+Fluxo!$J$14+Fluxo!$J$15+Fluxo!$J$16-Fluxo!$J$18-Fluxo!$J$20+Fluxo!$J$21 -> 10541.14216 | K72: =(((Faturamento!$K$20)*22*12)*0.9635-Fluxo!$K$4-Simulação!X79-Fluxo!$I$7)*0.75+Fluxo!$K$14+Fluxo!$K$15+Fluxo!$K$16-Fluxo!$K$18-Fluxo!$K$20+Fluxo!$K$21 -> 44137.11693 | L72: =(((Faturamento!$L$20)*22*12)*0.9635-Fluxo!$L$4-Simulação!Y79-Fluxo!$J$7)*0.75+Fluxo!$L$14+Fluxo!$L$15+Fluxo!$L$16-Fluxo!$L$18-Fluxo!$L$20+Fluxo!$L$21 -> 58305.46656 | M72: =NPV(Taxas!$B$17,C72:L72)+B72 -> 74203.28216
A73: 72 | B73: -108118 | C73: 10430.495 | D73: 10889.51975 | E73: =(((Faturamento!$E$20)*22*12)*0.9635-Fluxo!$E$4-Simulação!R80-Fluxo!$E$7)*0.75+Fluxo!$E$14+Fluxo!$E$15+Fluxo!$E$16-Fluxo!$E$18-Fluxo!$E$20+Fluxo!$E$21 -> 6014.799166 | F73: =(((Faturamento!$F$20)*22*12)*0.9635-Fluxo!$F$4-Simulação!S80-Fluxo!$D$7)*0.75+Fluxo!$F$14+Fluxo!$F$15+Fluxo!$F$16-Fluxo!$F$18-Fluxo!$F$20+Fluxo!$F$21 -> 9405.771859 | G73: =(((Faturamento!$G$20)*22*12)*0.9635-Fluxo!$G$4-Simulação!T80-Fluxo!$E$7)*0.75+Fluxo!$G$14+Fluxo!$G$15+Fluxo!$G$16-Fluxo!$G$18-Fluxo!$G$20+Fluxo!$G$21 -> 27891.50182 | H73: =(((Faturamento!$H$20)*22*12)*0.9635-Fluxo!$H$4-Simulação!U80-Fluxo!$F$7)*0.75+Fluxo!$H$14+Fluxo!$H$15+Fluxo!$H$16-Fluxo!$H$18-Fluxo!$H$20+Fluxo!$H$21 -> -15651.69599 | I73: =(((Faturamento!$I$20)*22*12)*0.9635-Fluxo!$I$4-Simulação!V80-Fluxo!$G$7)*0.75+Fluxo!$I$14+Fluxo!$I$15+Fluxo!$I$16-Fluxo!$I$18-Fluxo!$I$20+Fluxo!$I$21 -> 24265.08274 | J73: =(((Faturamento!$J$20)*22*12)*0.9635-Fluxo!$J$4-Simulação!W80-Fluxo!$H$7)*0.75+Fluxo!$J$14+Fluxo!$J$15+Fluxo!$J$16-Fluxo!$J$18-Fluxo!$J$20+Fluxo!$J$21 -> -13653.65478 | K73: =(((Faturamento!$K$20)*22*12)*0.9635-Fluxo!$K$4-Simulação!X80-Fluxo!$I$7)*0.75+Fluxo!$K$14+Fluxo!$K$15+Fluxo!$K$16-Fluxo!$K$18-Fluxo!$K$20+Fluxo!$K$21 -> -12749.67162 | L73: =(((Faturamento!$L$20)*22*12)*0.9635-Fluxo!$L$4-Simulação!Y80-Fluxo!$J$7)*0.75+Fluxo!$L$14+Fluxo!$L$15+Fluxo!$L$16-Fluxo!$L$18-Fluxo!$L$20+Fluxo!$L$21 -> 17830.4011 | M73: =NPV(Taxas!$B$17,C73:L73)+B73 -> -53686.33817
A74: 73 | B74: -108118 | C74: 10430.495 | D74: 10889.51975 | E74: =(((Faturamento!$E$20)*22*12)*0.9635-Fluxo!$E$4-Simulação!R81-Fluxo!$E$7)*0.75+Fluxo!$E$14+Fluxo!$E$15+Fluxo!$E$16-Fluxo!$E$18-Fluxo!$E$20+Fluxo!$E$21 -> 22782.80169 | F74: =(((Faturamento!$F$20)*22*12)*0.9635-Fluxo!$F$4-Simulação!S81-Fluxo!$D$7)*0.75+Fluxo!$F$14+Fluxo!$F$15+Fluxo!$F$16-Fluxo!$F$18-Fluxo!$F$20+Fluxo!$F$21 -> 40873.35169 | G74: =(((Faturamento!$G$20)*22*12)*0.9635-Fluxo!$G$4-Simulação!T81-Fluxo!$E$7)*0.75+Fluxo!$G$14+Fluxo!$G$15+Fluxo!$G$16-Fluxo!$G$18-Fluxo!$G$20+Fluxo!$G$21 -> 36729.81694 | H74: =(((Faturamento!$H$20)*22*12)*0.9635-Fluxo!$H$4-Simulação!U81-Fluxo!$F$7)*0.75+Fluxo!$H$14+Fluxo!$H$15+Fluxo!$H$16-Fluxo!$H$18-Fluxo!$H$20+Fluxo!$H$21 -> 26043.77941 | I74: =(((Faturamento!$I$20)*22*12)*0.9635-Fluxo!$I$4-Simulação!V81-Fluxo!$G$7)*0.75+Fluxo!$I$14+Fluxo!$I$15+Fluxo!$I$16-Fluxo!$I$18-Fluxo!$I$20+Fluxo!$I$21 -> -20054.85898 | J74: =(((Faturamento!$J$20)*22*12)*0.9635-Fluxo!$J$4-Simulação!W81-Fluxo!$H$7)*0.75+Fluxo!$J$14+Fluxo!$J$15+Fluxo!$J$16-Fluxo!$J$18-Fluxo!$J$20+Fluxo!$J$21 -> 3166.287202 | K74: =(((Faturamento!$K$20)*22*12)*0.9635-Fluxo!$K$4-Simulação!X81-Fluxo!$I$7)*0.75+Fluxo!$K$14+Fluxo!$K$15+Fluxo!$K$16-Fluxo!$K$18-Fluxo!$K$20+Fluxo!$K$21 -> 21274.95713 | L74: =(((Faturamento!$L$20)*22*12)*0.9635-Fluxo!$L$4-Simulação!Y81-Fluxo!$J$7)*0.75+Fluxo!$L$14+Fluxo!$L$15+Fluxo!$L$16-Fluxo!$L$18-Fluxo!$L$20+Fluxo!$L$21 -> 44548.23098 | M74: =NPV(Taxas!$B$17,C74:L74)+B74 -> 45330.93616
A75: 74 | B75: -108118 | C75: 10430.495 | D75: 10889.51975 | E75: =(((Faturamento!$E$20)*22*12)*0.9635-Fluxo!$E$4-Simulação!R82-Fluxo!$E$7)*0.75+Fluxo!$E$14+Fluxo!$E$15+Fluxo!$E$16-Fluxo!$E$18-Fluxo!$E$20+Fluxo!$E$21 -> 2015.333299 | F75: =(((Faturamento!$F$20)*22*12)*0.9635-Fluxo!$F$4-Simulação!S82-Fluxo!$D$7)*0.75+Fluxo!$F$14+Fluxo!$F$15+Fluxo!$F$16-Fluxo!$F$18-Fluxo!$F$20+Fluxo!$F$21 -> 22693.01988 | G75: =(((Faturamento!$G$20)*22*12)*0.9635-Fluxo!$G$4-Simulação!T82-Fluxo!$E$7)*0.75+Fluxo!$G$14+Fluxo!$G$15+Fluxo!$G$16-Fluxo!$G$18-Fluxo!$G$20+Fluxo!$G$21 -> 17077.27825 | H75: =(((Faturamento!$H$20)*22*12)*0.9635-Fluxo!$H$4-Simulação!U82-Fluxo!$F$7)*0.75+Fluxo!$H$14+Fluxo!$H$15+Fluxo!$H$16-Fluxo!$H$18-Fluxo!$H$20+Fluxo!$H$21 -> 31020.551 | I75: =(((Faturamento!$I$20)*22*12)*0.9635-Fluxo!$I$4-Simulação!V82-Fluxo!$G$7)*0.75+Fluxo!$I$14+Fluxo!$I$15+Fluxo!$I$16-Fluxo!$I$18-Fluxo!$I$20+Fluxo!$I$21 -> 11206.13147 | J75: =(((Faturamento!$J$20)*22*12)*0.9635-Fluxo!$J$4-Simulação!W82-Fluxo!$H$7)*0.75+Fluxo!$J$14+Fluxo!$J$15+Fluxo!$J$16-Fluxo!$J$18-Fluxo!$J$20+Fluxo!$J$21 -> -148.3842433 | K75: =(((Faturamento!$K$20)*22*12)*0.9635-Fluxo!$K$4-Simulação!X82-Fluxo!$I$7)*0.75+Fluxo!$K$14+Fluxo!$K$15+Fluxo!$K$16-Fluxo!$K$18-Fluxo!$K$20+Fluxo!$K$21 -> -15674.71249 | L75: =(((Faturamento!$L$20)*22*12)*0.9635-Fluxo!$L$4-Simulação!Y82-Fluxo!$J$7)*0.75+Fluxo!$L$14+Fluxo!$L$15+Fluxo!$L$16-Fluxo!$L$18-Fluxo!$L$20+Fluxo!$L$21 -> 11943.89068 | M75: =NPV(Taxas!$B$17,C75:L75)+B75 -> -24881.96832
A76: 75 | B76: -108118 | C76: 10430.495 | D76: 10889.51975 | E76: =(((Faturamento!$E$20)*22*12)*0.9635-Fluxo!$E$4-Simulação!R83-Fluxo!$E$7)*0.75+Fluxo!$E$14+Fluxo!$E$15+Fluxo!$E$16-Fluxo!$E$18-Fluxo!$E$20+Fluxo!$E$21 -> 36348.2336 | F76: =(((Faturamento!$F$20)*22*12)*0.9635-Fluxo!$F$4-Simulação!S83-Fluxo!$D$7)*0.75+Fluxo!$F$14+Fluxo!$F$15+Fluxo!$F$16-Fluxo!$F$18-Fluxo!$F$20+Fluxo!$F$21 -> -16663.70291 | G76: =(((Faturamento!$G$20)*22*12)*0.9635-Fluxo!$G$4-Simulação!T83-Fluxo!$E$7)*0.75+Fluxo!$G$14+Fluxo!$G$15+Fluxo!$G$16-Fluxo!$G$18-Fluxo!$G$20+Fluxo!$G$21 -> 14508.92533 | H76: =(((Faturamento!$H$20)*22*12)*0.9635-Fluxo!$H$4-Simulação!U83-Fluxo!$F$7)*0.75+Fluxo!$H$14+Fluxo!$H$15+Fluxo!$H$16-Fluxo!$H$18-Fluxo!$H$20+Fluxo!$H$21 -> 9908.350444 | I76: =(((Faturamento!$I$20)*22*12)*0.9635-Fluxo!$I$4-Simulação!V83-Fluxo!$G$7)*0.75+Fluxo!$I$14+Fluxo!$I$15+Fluxo!$I$16-Fluxo!$I$18-Fluxo!$I$20+Fluxo!$I$21 -> -13071.0305 | J76: =(((Faturamento!$J$20)*22*12)*0.9635-Fluxo!$J$4-Simulação!W83-Fluxo!$H$7)*0.75+Fluxo!$J$14+Fluxo!$J$15+Fluxo!$J$16-Fluxo!$J$18-Fluxo!$J$20+Fluxo!$J$21 -> -19152.25873 | K76: =(((Faturamento!$K$20)*22*12)*0.9635-Fluxo!$K$4-Simulação!X83-Fluxo!$I$7)*0.75+Fluxo!$K$14+Fluxo!$K$15+Fluxo!$K$16-Fluxo!$K$18-Fluxo!$K$20+Fluxo!$K$21 -> 44170.5175 | L76: =(((Faturamento!$L$20)*22*12)*0.9635-Fluxo!$L$4-Simulação!Y83-Fluxo!$J$7)*0.75+Fluxo!$L$14+Fluxo!$L$15+Fluxo!$L$16-Fluxo!$L$18-Fluxo!$L$20+Fluxo!$L$21 -> 64476.22293 | M76: =NPV(Taxas!$B$17,C76:L76)+B76 -> -3451.423464
A77: 76 | B77: -108118 | C77: 10430.495 | D77: 10889.51975 | E77: =(((Faturamento!$E$20)*22*12)*0.9635-Fluxo!$E$4-Simulação!R84-Fluxo!$E$7)*0.75+Fluxo!$E$14+Fluxo!$E$15+Fluxo!$E$16-Fluxo!$E$18-Fluxo!$E$20+Fluxo!$E$21 -> 9895.636471 | F77: =(((Faturamento!$F$20)*22*12)*0.9635-Fluxo!$F$4-Simulação!S84-Fluxo!$D$7)*0.75+Fluxo!$F$14+Fluxo!$F$15+Fluxo!$F$16-Fluxo!$F$18-Fluxo!$F$20+Fluxo!$F$21 -> 31178.76098 | G77: =(((Faturamento!$G$20)*22*12)*0.9635-Fluxo!$G$4-Simulação!T84-Fluxo!$E$7)*0.75+Fluxo!$G$14+Fluxo!$G$15+Fluxo!$G$16-Fluxo!$G$18-Fluxo!$G$20+Fluxo!$G$21 -> 24901.4099 | H77: =(((Faturamento!$H$20)*22*12)*0.9635-Fluxo!$H$4-Simulação!U84-Fluxo!$F$7)*0.75+Fluxo!$H$14+Fluxo!$H$15+Fluxo!$H$16-Fluxo!$H$18-Fluxo!$H$20+Fluxo!$H$21 -> -12710.08927 | I77: =(((Faturamento!$I$20)*22*12)*0.9635-Fluxo!$I$4-Simulação!V84-Fluxo!$G$7)*0.75+Fluxo!$I$14+Fluxo!$I$15+Fluxo!$I$16-Fluxo!$I$18-Fluxo!$I$20+Fluxo!$I$21 -> -20066.53679 | J77: =(((Faturamento!$J$20)*22*12)*0.9635-Fluxo!$J$4-Simulação!W84-Fluxo!$H$7)*0.75+Fluxo!$J$14+Fluxo!$J$15+Fluxo!$J$16-Fluxo!$J$18-Fluxo!$J$20+Fluxo!$J$21 -> 15323.47125 | K77: =(((Faturamento!$K$20)*22*12)*0.9635-Fluxo!$K$4-Simulação!X84-Fluxo!$I$7)*0.75+Fluxo!$K$14+Fluxo!$K$15+Fluxo!$K$16-Fluxo!$K$18-Fluxo!$K$20+Fluxo!$K$21 -> 15434.77081 | L77: =(((Faturamento!$L$20)*22*12)*0.9635-Fluxo!$L$4-Simulação!Y84-Fluxo!$J$7)*0.75+Fluxo!$L$14+Fluxo!$L$15+Fluxo!$L$16-Fluxo!$L$18-Fluxo!$L$20+Fluxo!$L$21 -> 51891.10545 | M77: =NPV(Taxas!$B$17,C77:L77)+B77 -> -3821.300617
A78: 77 | B78: -108118 | C78: 10430.495 | D78: 10889.51975 | E78: =(((Faturamento!$E$20)*22*12)*0.9635-Fluxo!$E$4-Simulação!R85-Fluxo!$E$7)*0.75+Fluxo!$E$14+Fluxo!$E$15+Fluxo!$E$16-Fluxo!$E$18-Fluxo!$E$20+Fluxo!$E$21 -> 23143.00885 | F78: =(((Faturamento!$F$20)*22*12)*0.9635-Fluxo!$F$4-Simulação!S85-Fluxo!$D$7)*0.75+Fluxo!$F$14+Fluxo!$F$15+Fluxo!$F$16-Fluxo!$F$18-Fluxo!$F$20+Fluxo!$F$21 -> -6058.979846 | G78: =(((Faturamento!$G$20)*22*12)*0.9635-Fluxo!$G$4-Simulação!T85-Fluxo!$E$7)*0.75+Fluxo!$G$14+Fluxo!$G$15+Fluxo!$G$16-Fluxo!$G$18-Fluxo!$G$20+Fluxo!$G$21 -> -1211.309524 | H78: =(((Faturamento!$H$20)*22*12)*0.9635-Fluxo!$H$4-Simulação!U85-Fluxo!$F$7)*0.75+Fluxo!$H$14+Fluxo!$H$15+Fluxo!$H$16-Fluxo!$H$18-Fluxo!$H$20+Fluxo!$H$21 -> 3315.794332 | I78: =(((Faturamento!$I$20)*22*12)*0.9635-Fluxo!$I$4-Simulação!V85-Fluxo!$G$7)*0.75+Fluxo!$I$14+Fluxo!$I$15+Fluxo!$I$16-Fluxo!$I$18-Fluxo!$I$20+Fluxo!$I$21 -> 5386.514862 | J78: =(((Faturamento!$J$20)*22*12)*0.9635-Fluxo!$J$4-Simulação!W85-Fluxo!$H$7)*0.75+Fluxo!$J$14+Fluxo!$J$15+Fluxo!$J$16-Fluxo!$J$18-Fluxo!$J$20+Fluxo!$J$21 -> -14956.26583 | K78: =(((Faturamento!$K$20)*22*12)*0.9635-Fluxo!$K$4-Simulação!X85-Fluxo!$I$7)*0.75+Fluxo!$K$14+Fluxo!$K$15+Fluxo!$K$16-Fluxo!$K$18-Fluxo!$K$20+Fluxo!$K$21 -> -2619.231442 | L78: =(((Faturamento!$L$20)*22*12)*0.9635-Fluxo!$L$4-Simulação!Y85-Fluxo!$J$7)*0.75+Fluxo!$L$14+Fluxo!$L$15+Fluxo!$L$16-Fluxo!$L$18-Fluxo!$L$20+Fluxo!$L$21 -> 11122.31292 | M78: =NPV(Taxas!$B$17,C78:L78)+B78 -> -72619.62625
A79: 78 | B79: -108118 | C79: 10430.495 | D79: 10889.51975 | E79: =(((Faturamento!$E$20)*22*12)*0.9635-Fluxo!$E$4-Simulação!R86-Fluxo!$E$7)*0.75+Fluxo!$E$14+Fluxo!$E$15+Fluxo!$E$16-Fluxo!$E$18-Fluxo!$E$20+Fluxo!$E$21 -> -6348.633582 | F79: =(((Faturamento!$F$20)*22*12)*0.9635-Fluxo!$F$4-Simulação!S86-Fluxo!$D$7)*0.75+Fluxo!$F$14+Fluxo!$F$15+Fluxo!$F$16-Fluxo!$F$18-Fluxo!$F$20+Fluxo!$F$21 -> 35256.42316 | G79: =(((Faturamento!$G$20)*22*12)*0.9635-Fluxo!$G$4-Simulação!T86-Fluxo!$E$7)*0.75+Fluxo!$G$14+Fluxo!$G$15+Fluxo!$G$16-Fluxo!$G$18-Fluxo!$G$20+Fluxo!$G$21 -> -10795.05375 | H79: =(((Faturamento!$H$20)*22*12)*0.9635-Fluxo!$H$4-Simulação!U86-Fluxo!$F$7)*0.75+Fluxo!$H$14+Fluxo!$H$15+Fluxo!$H$16-Fluxo!$H$18-Fluxo!$H$20+Fluxo!$H$21 -> -9176.712022 | I79: =(((Faturamento!$I$20)*22*12)*0.9635-Fluxo!$I$4-Simulação!V86-Fluxo!$G$7)*0.75+Fluxo!$I$14+Fluxo!$I$15+Fluxo!$I$16-Fluxo!$I$18-Fluxo!$I$20+Fluxo!$I$21 -> 9009.931432 | J79: =(((Faturamento!$J$20)*22*12)*0.9635-Fluxo!$J$4-Simulação!W86-Fluxo!$H$7)*0.75+Fluxo!$J$14+Fluxo!$J$15+Fluxo!$J$16-Fluxo!$J$18-Fluxo!$J$20+Fluxo!$J$21 -> 25662.8025 | K79: =(((Faturamento!$K$20)*22*12)*0.9635-Fluxo!$K$4-Simulação!X86-Fluxo!$I$7)*0.75+Fluxo!$K$14+Fluxo!$K$15+Fluxo!$K$16-Fluxo!$K$18-Fluxo!$K$20+Fluxo!$K$21 -> 25193.73202 | L79: =(((Faturamento!$L$20)*22*12)*0.9635-Fluxo!$L$4-Simulação!Y86-Fluxo!$J$7)*0.75+Fluxo!$L$14+Fluxo!$L$15+Fluxo!$L$16-Fluxo!$L$18-Fluxo!$L$20+Fluxo!$L$21 -> 53256.30221 | M79: =NPV(Taxas!$B$17,C79:L79)+B79 -> -4587.982732
A80: 79 | B80: -108118 | C80: 10430.495 | D80: 10889.51975 | E80: =(((Faturamento!$E$20)*22*12)*0.9635-Fluxo!$E$4-Simulação!R87-Fluxo!$E$7)*0.75+Fluxo!$E$14+Fluxo!$E$15+Fluxo!$E$16-Fluxo!$E$18-Fluxo!$E$20+Fluxo!$E$21 -> 14669.69451 | F80: =(((Faturamento!$F$20)*22*12)*0.9635-Fluxo!$F$4-Simulação!S87-Fluxo!$D$7)*0.75+Fluxo!$F$14+Fluxo!$F$15+Fluxo!$F$16-Fluxo!$F$18-Fluxo!$F$20+Fluxo!$F$21 -> 7989.21817 | G80: =(((Faturamento!$G$20)*22*12)*0.9635-Fluxo!$G$4-Simulação!T87-Fluxo!$E$7)*0.75+Fluxo!$G$14+Fluxo!$G$15+Fluxo!$G$16-Fluxo!$G$18-Fluxo!$G$20+Fluxo!$G$21 -> -10892.23417 | H80: =(((Faturamento!$H$20)*22*12)*0.9635-Fluxo!$H$4-Simulação!U87-Fluxo!$F$7)*0.75+Fluxo!$H$14+Fluxo!$H$15+Fluxo!$H$16-Fluxo!$H$18-Fluxo!$H$20+Fluxo!$H$21 -> -6575.608975 | I80: =(((Faturamento!$I$20)*22*12)*0.9635-Fluxo!$I$4-Simulação!V87-Fluxo!$G$7)*0.75+Fluxo!$I$14+Fluxo!$I$15+Fluxo!$I$16-Fluxo!$I$18-Fluxo!$I$20+Fluxo!$I$21 -> 39523.48063 | J80: =(((Faturamento!$J$20)*22*12)*0.9635-Fluxo!$J$4-Simulação!W87-Fluxo!$H$7)*0.75+Fluxo!$J$14+Fluxo!$J$15+Fluxo!$J$16-Fluxo!$J$18-Fluxo!$J$20+Fluxo!$J$21 -> -12138.31357 | K80: =(((Faturamento!$K$20)*22*12)*0.9635-Fluxo!$K$4-Simulação!X87-Fluxo!$I$7)*0.75+Fluxo!$K$14+Fluxo!$K$15+Fluxo!$K$16-Fluxo!$K$18-Fluxo!$K$20+Fluxo!$K$21 -> 42794.64137 | L80: =(((Faturamento!$L$20)*22*12)*0.9635-Fluxo!$L$4-Simulação!Y87-Fluxo!$J$7)*0.75+Fluxo!$L$14+Fluxo!$L$15+Fluxo!$L$16-Fluxo!$L$18-Fluxo!$L$20+Fluxo!$L$21 -> -2210.078835 | M80: =NPV(Taxas!$B$17,C80:L80)+B80 -> -34863.4846
A81: 80 | B81: -108118 | C81: 10430.495 | D81: 10889.51975 | E81: =(((Faturamento!$E$20)*22*12)*0.9635-Fluxo!$E$4-Simulação!R88-Fluxo!$E$7)*0.75+Fluxo!$E$14+Fluxo!$E$15+Fluxo!$E$16-Fluxo!$E$18-Fluxo!$E$20+Fluxo!$E$21 -> 3912.326977 | F81: =(((Faturamento!$F$20)*22*12)*0.9635-Fluxo!$F$4-Simulação!S88-Fluxo!$D$7)*0.75+Fluxo!$F$14+Fluxo!$F$15+Fluxo!$F$16-Fluxo!$F$18-Fluxo!$F$20+Fluxo!$F$21 -> 14374.22813 | G81: =(((Faturamento!$G$20)*22*12)*0.9635-Fluxo!$G$4-Simulação!T88-Fluxo!$E$7)*0.75+Fluxo!$G$14+Fluxo!$G$15+Fluxo!$G$16-Fluxo!$G$18-Fluxo!$G$20+Fluxo!$G$21 -> 14931.17814 | H81: =(((Faturamento!$H$20)*22*12)*0.9635-Fluxo!$H$4-Simulação!U88-Fluxo!$F$7)*0.75+Fluxo!$H$14+Fluxo!$H$15+Fluxo!$H$16-Fluxo!$H$18-Fluxo!$H$20+Fluxo!$H$21 -> 587.1565323 | I81: =(((Faturamento!$I$20)*22*12)*0.9635-Fluxo!$I$4-Simulação!V88-Fluxo!$G$7)*0.75+Fluxo!$I$14+Fluxo!$I$15+Fluxo!$I$16-Fluxo!$I$18-Fluxo!$I$20+Fluxo!$I$21 -> -13524.91363 | J81: =(((Faturamento!$J$20)*22*12)*0.9635-Fluxo!$J$4-Simulação!W88-Fluxo!$H$7)*0.75+Fluxo!$J$14+Fluxo!$J$15+Fluxo!$J$16-Fluxo!$J$18-Fluxo!$J$20+Fluxo!$J$21 -> 46135.70061 | K81: =(((Faturamento!$K$20)*22*12)*0.9635-Fluxo!$K$4-Simulação!X88-Fluxo!$I$7)*0.75+Fluxo!$K$14+Fluxo!$K$15+Fluxo!$K$16-Fluxo!$K$18-Fluxo!$K$20+Fluxo!$K$21 -> -16264.93605 | L81: =(((Faturamento!$L$20)*22*12)*0.9635-Fluxo!$L$4-Simulação!Y88-Fluxo!$J$7)*0.75+Fluxo!$L$14+Fluxo!$L$15+Fluxo!$L$16-Fluxo!$L$18-Fluxo!$L$20+Fluxo!$L$21 -> 33648.99473 | M81: =NPV(Taxas!$B$17,C81:L81)+B81 -> -27418.15558
A82: 81 | B82: -108118 | C82: 10430.495 | D82: 10889.51975 | E82: =(((Faturamento!$E$20)*22*12)*0.9635-Fluxo!$E$4-Simulação!R89-Fluxo!$E$7)*0.75+Fluxo!$E$14+Fluxo!$E$15+Fluxo!$E$16-Fluxo!$E$18-Fluxo!$E$20+Fluxo!$E$21 -> 32161.70686 | F82: =(((Faturamento!$F$20)*22*12)*0.9635-Fluxo!$F$4-Simulação!S89-Fluxo!$D$7)*0.75+Fluxo!$F$14+Fluxo!$F$15+Fluxo!$F$16-Fluxo!$F$18-Fluxo!$F$20+Fluxo!$F$21 -> 34170.53801 | G82: =(((Faturamento!$G$20)*22*12)*0.9635-Fluxo!$G$4-Simulação!T89-Fluxo!$E$7)*0.75+Fluxo!$G$14+Fluxo!$G$15+Fluxo!$G$16-Fluxo!$G$18-Fluxo!$G$20+Fluxo!$G$21 -> 13201.98694 | H82: =(((Faturamento!$H$20)*22*12)*0.9635-Fluxo!$H$4-Simulação!U89-Fluxo!$F$7)*0.75+Fluxo!$H$14+Fluxo!$H$15+Fluxo!$H$16-Fluxo!$H$18-Fluxo!$H$20+Fluxo!$H$21 -> 27954.52216 | I82: =(((Faturamento!$I$20)*22*12)*0.9635-Fluxo!$I$4-Simulação!V89-Fluxo!$G$7)*0.75+Fluxo!$I$14+Fluxo!$I$15+Fluxo!$I$16-Fluxo!$I$18-Fluxo!$I$20+Fluxo!$I$21 -> 17434.34863 | J82: =(((Faturamento!$J$20)*22*12)*0.9635-Fluxo!$J$4-Simulação!W89-Fluxo!$H$7)*0.75+Fluxo!$J$14+Fluxo!$J$15+Fluxo!$J$16-Fluxo!$J$18-Fluxo!$J$20+Fluxo!$J$21 -> -20072.9575 | K82: =(((Faturamento!$K$20)*22*12)*0.9635-Fluxo!$K$4-Simulação!X89-Fluxo!$I$7)*0.75+Fluxo!$K$14+Fluxo!$K$15+Fluxo!$K$16-Fluxo!$K$18-Fluxo!$K$20+Fluxo!$K$21 -> 15938.60026 | L82: =(((Faturamento!$L$20)*22*12)*0.9635-Fluxo!$L$4-Simulação!Y89-Fluxo!$J$7)*0.75+Fluxo!$L$14+Fluxo!$L$15+Fluxo!$L$16-Fluxo!$L$18-Fluxo!$L$20+Fluxo!$L$21 -> 18875.74724 | M82: =NPV(Taxas!$B$17,C82:L82)+B82 -> 21788.52171
A83: 82 | B83: -108118 | C83: 10430.495 | D83: 10889.51975 | E83: =(((Faturamento!$E$20)*22*12)*0.9635-Fluxo!$E$4-Simulação!R90-Fluxo!$E$7)*0.75+Fluxo!$E$14+Fluxo!$E$15+Fluxo!$E$16-Fluxo!$E$18-Fluxo!$E$20+Fluxo!$E$21 -> 31583.31126 | F83: =(((Faturamento!$F$20)*22*12)*0.9635-Fluxo!$F$4-Simulação!S90-Fluxo!$D$7)*0.75+Fluxo!$F$14+Fluxo!$F$15+Fluxo!$F$16-Fluxo!$F$18-Fluxo!$F$20+Fluxo!$F$21 -> 4180.489511 | G83: =(((Faturamento!$G$20)*22*12)*0.9635-Fluxo!$G$4-Simulação!T90-Fluxo!$E$7)*0.75+Fluxo!$G$14+Fluxo!$G$15+Fluxo!$G$16-Fluxo!$G$18-Fluxo!$G$20+Fluxo!$G$21 -> -6785.146042 | H83: =(((Faturamento!$H$20)*22*12)*0.9635-Fluxo!$H$4-Simulação!U90-Fluxo!$F$7)*0.75+Fluxo!$H$14+Fluxo!$H$15+Fluxo!$H$16-Fluxo!$H$18-Fluxo!$H$20+Fluxo!$H$21 -> -1886.900498 | I83: =(((Faturamento!$I$20)*22*12)*0.9635-Fluxo!$I$4-Simulação!V90-Fluxo!$G$7)*0.75+Fluxo!$I$14+Fluxo!$I$15+Fluxo!$I$16-Fluxo!$I$18-Fluxo!$I$20+Fluxo!$I$21 -> 34722.12632 | J83: =(((Faturamento!$J$20)*22*12)*0.9635-Fluxo!$J$4-Simulação!W90-Fluxo!$H$7)*0.75+Fluxo!$J$14+Fluxo!$J$15+Fluxo!$J$16-Fluxo!$J$18-Fluxo!$J$20+Fluxo!$J$21 -> -17473.54234 | K83: =(((Faturamento!$K$20)*22*12)*0.9635-Fluxo!$K$4-Simulação!X90-Fluxo!$I$7)*0.75+Fluxo!$K$14+Fluxo!$K$15+Fluxo!$K$16-Fluxo!$K$18-Fluxo!$K$20+Fluxo!$K$21 -> -324.4344828 | L83: =(((Faturamento!$L$20)*22*12)*0.9635-Fluxo!$L$4-Simulação!Y90-Fluxo!$J$7)*0.75+Fluxo!$L$14+Fluxo!$L$15+Fluxo!$L$16-Fluxo!$L$18-Fluxo!$L$20+Fluxo!$L$21 -> 35042.8428 | M83: =NPV(Taxas!$B$17,C83:L83)+B83 -> -28641.16479
A84: 83 | B84: -108118 | C84: 10430.495 | D84: 10889.51975 | E84: =(((Faturamento!$E$20)*22*12)*0.9635-Fluxo!$E$4-Simulação!R91-Fluxo!$E$7)*0.75+Fluxo!$E$14+Fluxo!$E$15+Fluxo!$E$16-Fluxo!$E$18-Fluxo!$E$20+Fluxo!$E$21 -> 19719.309 | F84: =(((Faturamento!$F$20)*22*12)*0.9635-Fluxo!$F$4-Simulação!S91-Fluxo!$D$7)*0.75+Fluxo!$F$14+Fluxo!$F$15+Fluxo!$F$16-Fluxo!$F$18-Fluxo!$F$20+Fluxo!$F$21 -> 10436.411 | G84: =(((Faturamento!$G$20)*22*12)*0.9635-Fluxo!$G$4-Simulação!T91-Fluxo!$E$7)*0.75+Fluxo!$G$14+Fluxo!$G$15+Fluxo!$G$16-Fluxo!$G$18-Fluxo!$G$20+Fluxo!$G$21 -> 34526.02865 | H84: =(((Faturamento!$H$20)*22*12)*0.9635-Fluxo!$H$4-Simulação!U91-Fluxo!$F$7)*0.75+Fluxo!$H$14+Fluxo!$H$15+Fluxo!$H$16-Fluxo!$H$18-Fluxo!$H$20+Fluxo!$H$21 -> 41132.84805 | I84: =(((Faturamento!$I$20)*22*12)*0.9635-Fluxo!$I$4-Simulação!V91-Fluxo!$G$7)*0.75+Fluxo!$I$14+Fluxo!$I$15+Fluxo!$I$16-Fluxo!$I$18-Fluxo!$I$20+Fluxo!$I$21 -> -1296.127871 | J84: =(((Faturamento!$J$20)*22*12)*0.9635-Fluxo!$J$4-Simulação!W91-Fluxo!$H$7)*0.75+Fluxo!$J$14+Fluxo!$J$15+Fluxo!$J$16-Fluxo!$J$18-Fluxo!$J$20+Fluxo!$J$21 -> -13826.30702 | K84: =(((Faturamento!$K$20)*22*12)*0.9635-Fluxo!$K$4-Simulação!X91-Fluxo!$I$7)*0.75+Fluxo!$K$14+Fluxo!$K$15+Fluxo!$K$16-Fluxo!$K$18-Fluxo!$K$20+Fluxo!$K$21 -> 285.4280207 | L84: =(((Faturamento!$L$20)*22*12)*0.9635-Fluxo!$L$4-Simulação!Y91-Fluxo!$J$7)*0.75+Fluxo!$L$14+Fluxo!$L$15+Fluxo!$L$16-Fluxo!$L$18-Fluxo!$L$20+Fluxo!$L$21 -> 47467.67281 | M84: =NPV(Taxas!$B$17,C84:L84)+B84 -> 16667.68682
A85: 84 | B85: -108118 | C85: 10430.495 | D85: 10889.51975 | E85: =(((Faturamento!$E$20)*22*12)*0.9635-Fluxo!$E$4-Simulação!R92-Fluxo!$E$7)*0.75+Fluxo!$E$14+Fluxo!$E$15+Fluxo!$E$16-Fluxo!$E$18-Fluxo!$E$20+Fluxo!$E$21 -> 2873.913849 | F85: =(((Faturamento!$F$20)*22*12)*0.9635-Fluxo!$F$4-Simulação!S92-Fluxo!$D$7)*0.75+Fluxo!$F$14+Fluxo!$F$15+Fluxo!$F$16-Fluxo!$F$18-Fluxo!$F$20+Fluxo!$F$21 -> 23804.94358 | G85: =(((Faturamento!$G$20)*22*12)*0.9635-Fluxo!$G$4-Simulação!T92-Fluxo!$E$7)*0.75+Fluxo!$G$14+Fluxo!$G$15+Fluxo!$G$16-Fluxo!$G$18-Fluxo!$G$20+Fluxo!$G$21 -> 35975.77369 | H85: =(((Faturamento!$H$20)*22*12)*0.9635-Fluxo!$H$4-Simulação!U92-Fluxo!$F$7)*0.75+Fluxo!$H$14+Fluxo!$H$15+Fluxo!$H$16-Fluxo!$H$18-Fluxo!$H$20+Fluxo!$H$21 -> 15117.36926 | I85: =(((Faturamento!$I$20)*22*12)*0.9635-Fluxo!$I$4-Simulação!V92-Fluxo!$G$7)*0.75+Fluxo!$I$14+Fluxo!$I$15+Fluxo!$I$16-Fluxo!$I$18-Fluxo!$I$20+Fluxo!$I$21 -> 43872.12221 | J85: =(((Faturamento!$J$20)*22*12)*0.9635-Fluxo!$J$4-Simulação!W92-Fluxo!$H$7)*0.75+Fluxo!$J$14+Fluxo!$J$15+Fluxo!$J$16-Fluxo!$J$18-Fluxo!$J$20+Fluxo!$J$21 -> 17105.55819 | K85: =(((Faturamento!$K$20)*22*12)*0.9635-Fluxo!$K$4-Simulação!X92-Fluxo!$I$7)*0.75+Fluxo!$K$14+Fluxo!$K$15+Fluxo!$K$16-Fluxo!$K$18-Fluxo!$K$20+Fluxo!$K$21 -> 1391.142821 | L85: =(((Faturamento!$L$20)*22*12)*0.9635-Fluxo!$L$4-Simulação!Y92-Fluxo!$J$7)*0.75+Fluxo!$L$14+Fluxo!$L$15+Fluxo!$L$16-Fluxo!$L$18-Fluxo!$L$20+Fluxo!$L$21 -> 68173.66938 | M85: =NPV(Taxas!$B$17,C85:L85)+B85 -> 62950.31779
A86: 85 | B86: -108118 | C86: 10430.495 | D86: 10889.51975 | E86: =(((Faturamento!$E$20)*22*12)*0.9635-Fluxo!$E$4-Simulação!R93-Fluxo!$E$7)*0.75+Fluxo!$E$14+Fluxo!$E$15+Fluxo!$E$16-Fluxo!$E$18-Fluxo!$E$20+Fluxo!$E$21 -> 7942.199567 | F86: =(((Faturamento!$F$20)*22*12)*0.9635-Fluxo!$F$4-Simulação!S93-Fluxo!$D$7)*0.75+Fluxo!$F$14+Fluxo!$F$15+Fluxo!$F$16-Fluxo!$F$18-Fluxo!$F$20+Fluxo!$F$21 -> 29140.74869 | G86: =(((Faturamento!$G$20)*22*12)*0.9635-Fluxo!$G$4-Simulação!T93-Fluxo!$E$7)*0.75+Fluxo!$G$14+Fluxo!$G$15+Fluxo!$G$16-Fluxo!$G$18-Fluxo!$G$20+Fluxo!$G$21 -> 9328.030577 | H86: =(((Faturamento!$H$20)*22*12)*0.9635-Fluxo!$H$4-Simulação!U93-Fluxo!$F$7)*0.75+Fluxo!$H$14+Fluxo!$H$15+Fluxo!$H$16-Fluxo!$H$18-Fluxo!$H$20+Fluxo!$H$21 -> 31029.56329 | I86: =(((Faturamento!$I$20)*22*12)*0.9635-Fluxo!$I$4-Simulação!V93-Fluxo!$G$7)*0.75+Fluxo!$I$14+Fluxo!$I$15+Fluxo!$I$16-Fluxo!$I$18-Fluxo!$I$20+Fluxo!$I$21 -> -692.7755914 | J86: =(((Faturamento!$J$20)*22*12)*0.9635-Fluxo!$J$4-Simulação!W93-Fluxo!$H$7)*0.75+Fluxo!$J$14+Fluxo!$J$15+Fluxo!$J$16-Fluxo!$J$18-Fluxo!$J$20+Fluxo!$J$21 -> 16576.79021 | K86: =(((Faturamento!$K$20)*22*12)*0.9635-Fluxo!$K$4-Simulação!X93-Fluxo!$I$7)*0.75+Fluxo!$K$14+Fluxo!$K$15+Fluxo!$K$16-Fluxo!$K$18-Fluxo!$K$20+Fluxo!$K$21 -> 2111.837329 | L86: =(((Faturamento!$L$20)*22*12)*0.9635-Fluxo!$L$4-Simulação!Y93-Fluxo!$J$7)*0.75+Fluxo!$L$14+Fluxo!$L$15+Fluxo!$L$16-Fluxo!$L$18-Fluxo!$L$20+Fluxo!$L$21 -> 5856.875961 | M86: =NPV(Taxas!$B$17,C86:L86)+B86 -> -9518.913042
A87: 86 | B87: -108118 | C87: 10430.495 | D87: 10889.51975 | E87: =(((Faturamento!$E$20)*22*12)*0.9635-Fluxo!$E$4-Simulação!R94-Fluxo!$E$7)*0.75+Fluxo!$E$14+Fluxo!$E$15+Fluxo!$E$16-Fluxo!$E$18-Fluxo!$E$20+Fluxo!$E$21 -> 11512.19104 | F87: =(((Faturamento!$F$20)*22*12)*0.9635-Fluxo!$F$4-Simulação!S94-Fluxo!$D$7)*0.75+Fluxo!$F$14+Fluxo!$F$15+Fluxo!$F$16-Fluxo!$F$18-Fluxo!$F$20+Fluxo!$F$21 -> -1055.571214 | G87: =(((Faturamento!$G$20)*22*12)*0.9635-Fluxo!$G$4-Simulação!T94-Fluxo!$E$7)*0.75+Fluxo!$G$14+Fluxo!$G$15+Fluxo!$G$16-Fluxo!$G$18-Fluxo!$G$20+Fluxo!$G$21 -> 1292.165495 | H87: =(((Faturamento!$H$20)*22*12)*0.9635-Fluxo!$H$4-Simulação!U94-Fluxo!$F$7)*0.75+Fluxo!$H$14+Fluxo!$H$15+Fluxo!$H$16-Fluxo!$H$18-Fluxo!$H$20+Fluxo!$H$21 -> 21613.49295 | I87: =(((Faturamento!$I$20)*22*12)*0.9635-Fluxo!$I$4-Simulação!V94-Fluxo!$G$7)*0.75+Fluxo!$I$14+Fluxo!$I$15+Fluxo!$I$16-Fluxo!$I$18-Fluxo!$I$20+Fluxo!$I$21 -> 18058.23124 | J87: =(((Faturamento!$J$20)*22*12)*0.9635-Fluxo!$J$4-Simulação!W94-Fluxo!$H$7)*0.75+Fluxo!$J$14+Fluxo!$J$15+Fluxo!$J$16-Fluxo!$J$18-Fluxo!$J$20+Fluxo!$J$21 -> 33210.62982 | K87: =(((Faturamento!$K$20)*22*12)*0.9635-Fluxo!$K$4-Simulação!X94-Fluxo!$I$7)*0.75+Fluxo!$K$14+Fluxo!$K$15+Fluxo!$K$16-Fluxo!$K$18-Fluxo!$K$20+Fluxo!$K$21 -> 6750.438926 | L87: =(((Faturamento!$L$20)*22*12)*0.9635-Fluxo!$L$4-Simulação!Y94-Fluxo!$J$7)*0.75+Fluxo!$L$14+Fluxo!$L$15+Fluxo!$L$16-Fluxo!$L$18-Fluxo!$L$20+Fluxo!$L$21 -> 3206.40244 | M87: =NPV(Taxas!$B$17,C87:L87)+B87 -> -18529.49076
A88: 87 | B88: -108118 | C88: 10430.495 | D88: 10889.51975 | E88: =(((Faturamento!$E$20)*22*12)*0.9635-Fluxo!$E$4-Simulação!R95-Fluxo!$E$7)*0.75+Fluxo!$E$14+Fluxo!$E$15+Fluxo!$E$16-Fluxo!$E$18-Fluxo!$E$20+Fluxo!$E$21 -> 38645.03078 | F88: =(((Faturamento!$F$20)*22*12)*0.9635-Fluxo!$F$4-Simulação!S95-Fluxo!$D$7)*0.75+Fluxo!$F$14+Fluxo!$F$15+Fluxo!$F$16-Fluxo!$F$18-Fluxo!$F$20+Fluxo!$F$21 -> -1787.803872 | G88: =(((Faturamento!$G$20)*22*12)*0.9635-Fluxo!$G$4-Simulação!T95-Fluxo!$E$7)*0.75+Fluxo!$G$14+Fluxo!$G$15+Fluxo!$G$16-Fluxo!$G$18-Fluxo!$G$20+Fluxo!$G$21 -> 41491.91657 | H88: =(((Faturamento!$H$20)*22*12)*0.9635-Fluxo!$H$4-Simulação!U95-Fluxo!$F$7)*0.75+Fluxo!$H$14+Fluxo!$H$15+Fluxo!$H$16-Fluxo!$H$18-Fluxo!$H$20+Fluxo!$H$21 -> 31101.42177 | I88: =(((Faturamento!$I$20)*22*12)*0.9635-Fluxo!$I$4-Simulação!V95-Fluxo!$G$7)*0.75+Fluxo!$I$14+Fluxo!$I$15+Fluxo!$I$16-Fluxo!$I$18-Fluxo!$I$20+Fluxo!$I$21 -> 31409.22914 | J88: =(((Faturamento!$J$20)*22*12)*0.9635-Fluxo!$J$4-Simulação!W95-Fluxo!$H$7)*0.75+Fluxo!$J$14+Fluxo!$J$15+Fluxo!$J$16-Fluxo!$J$18-Fluxo!$J$20+Fluxo!$J$21 -> -14320.97486 | K88: =(((Faturamento!$K$20)*22*12)*0.9635-Fluxo!$K$4-Simulação!X95-Fluxo!$I$7)*0.75+Fluxo!$K$14+Fluxo!$K$15+Fluxo!$K$16-Fluxo!$K$18-Fluxo!$K$20+Fluxo!$K$21 -> 111.7554415 | L88: =(((Faturamento!$L$20)*22*12)*0.9635-Fluxo!$L$4-Simulação!Y95-Fluxo!$J$7)*0.75+Fluxo!$L$14+Fluxo!$L$15+Fluxo!$L$16-Fluxo!$L$18-Fluxo!$L$20+Fluxo!$L$21 -> 4670.615759 | M88: =NPV(Taxas!$B$17,C88:L88)+B88 -> 17001.34388
A89: 88 | B89: -108118 | C89: 10430.495 | D89: 10889.51975 | E89: =(((Faturamento!$E$20)*22*12)*0.9635-Fluxo!$E$4-Simulação!R96-Fluxo!$E$7)*0.75+Fluxo!$E$14+Fluxo!$E$15+Fluxo!$E$16-Fluxo!$E$18-Fluxo!$E$20+Fluxo!$E$21 -> 22365.27654 | F89: =(((Faturamento!$F$20)*22*12)*0.9635-Fluxo!$F$4-Simulação!S96-Fluxo!$D$7)*0.75+Fluxo!$F$14+Fluxo!$F$15+Fluxo!$F$16-Fluxo!$F$18-Fluxo!$F$20+Fluxo!$F$21 -> 31743.49925 | G89: =(((Faturamento!$G$20)*22*12)*0.9635-Fluxo!$G$4-Simulação!T96-Fluxo!$E$7)*0.75+Fluxo!$G$14+Fluxo!$G$15+Fluxo!$G$16-Fluxo!$G$18-Fluxo!$G$20+Fluxo!$G$21 -> -706.3679418 | H89: =(((Faturamento!$H$20)*22*12)*0.9635-Fluxo!$H$4-Simulação!U96-Fluxo!$F$7)*0.75+Fluxo!$H$14+Fluxo!$H$15+Fluxo!$H$16-Fluxo!$H$18-Fluxo!$H$20+Fluxo!$H$21 -> 33038.78327 | I89: =(((Faturamento!$I$20)*22*12)*0.9635-Fluxo!$I$4-Simulação!V96-Fluxo!$G$7)*0.75+Fluxo!$I$14+Fluxo!$I$15+Fluxo!$I$16-Fluxo!$I$18-Fluxo!$I$20+Fluxo!$I$21 -> -19075.05979 | J89: =(((Faturamento!$J$20)*22*12)*0.9635-Fluxo!$J$4-Simulação!W96-Fluxo!$H$7)*0.75+Fluxo!$J$14+Fluxo!$J$15+Fluxo!$J$16-Fluxo!$J$18-Fluxo!$J$20+Fluxo!$J$21 -> 867.4800373 | K89: =(((Faturamento!$K$20)*22*12)*0.9635-Fluxo!$K$4-Simulação!X96-Fluxo!$I$7)*0.75+Fluxo!$K$14+Fluxo!$K$15+Fluxo!$K$16-Fluxo!$K$18-Fluxo!$K$20+Fluxo!$K$21 -> -4454.148751 | L89: =(((Faturamento!$L$20)*22*12)*0.9635-Fluxo!$L$4-Simulação!Y96-Fluxo!$J$7)*0.75+Fluxo!$L$14+Fluxo!$L$15+Fluxo!$L$16-Fluxo!$L$18-Fluxo!$L$20+Fluxo!$L$21 -> -10081.73824 | M89: =NPV(Taxas!$B$17,C89:L89)+B89 -> -40177.09079
A90: 89 | B90: -108118 | C90: 10430.495 | D90: 10889.51975 | E90: =(((Faturamento!$E$20)*22*12)*0.9635-Fluxo!$E$4-Simulação!R97-Fluxo!$E$7)*0.75+Fluxo!$E$14+Fluxo!$E$15+Fluxo!$E$16-Fluxo!$E$18-Fluxo!$E$20+Fluxo!$E$21 -> -7272.855876 | F90: =(((Faturamento!$F$20)*22*12)*0.9635-Fluxo!$F$4-Simulação!S97-Fluxo!$D$7)*0.75+Fluxo!$F$14+Fluxo!$F$15+Fluxo!$F$16-Fluxo!$F$18-Fluxo!$F$20+Fluxo!$F$21 -> 14401.73269 | G90: =(((Faturamento!$G$20)*22*12)*0.9635-Fluxo!$G$4-Simulação!T97-Fluxo!$E$7)*0.75+Fluxo!$G$14+Fluxo!$G$15+Fluxo!$G$16-Fluxo!$G$18-Fluxo!$G$20+Fluxo!$G$21 -> -7190.144289 | H90: =(((Faturamento!$H$20)*22*12)*0.9635-Fluxo!$H$4-Simulação!U97-Fluxo!$F$7)*0.75+Fluxo!$H$14+Fluxo!$H$15+Fluxo!$H$16-Fluxo!$H$18-Fluxo!$H$20+Fluxo!$H$21 -> -10039.71057 | I90: =(((Faturamento!$I$20)*22*12)*0.9635-Fluxo!$I$4-Simulação!V97-Fluxo!$G$7)*0.75+Fluxo!$I$14+Fluxo!$I$15+Fluxo!$I$16-Fluxo!$I$18-Fluxo!$I$20+Fluxo!$I$21 -> -20141.13953 | J90: =(((Faturamento!$J$20)*22*12)*0.9635-Fluxo!$J$4-Simulação!W97-Fluxo!$H$7)*0.75+Fluxo!$J$14+Fluxo!$J$15+Fluxo!$J$16-Fluxo!$J$18-Fluxo!$J$20+Fluxo!$J$21 -> 33875.6573 | K90: =(((Faturamento!$K$20)*22*12)*0.9635-Fluxo!$K$4-Simulação!X97-Fluxo!$I$7)*0.75+Fluxo!$K$14+Fluxo!$K$15+Fluxo!$K$16-Fluxo!$K$18-Fluxo!$K$20+Fluxo!$K$21 -> 14143.75256 | L90: =(((Faturamento!$L$20)*22*12)*0.9635-Fluxo!$L$4-Simulação!Y97-Fluxo!$J$7)*0.75+Fluxo!$L$14+Fluxo!$L$15+Fluxo!$L$16-Fluxo!$L$18-Fluxo!$L$20+Fluxo!$L$21 -> 20676.73276 | M90: =NPV(Taxas!$B$17,C90:L90)+B90 -> -64336.61956
A91: 90 | B91: -108118 | C91: 10430.495 | D91: 10889.51975 | E91: =(((Faturamento!$E$20)*22*12)*0.9635-Fluxo!$E$4-Simulação!R98-Fluxo!$E$7)*0.75+Fluxo!$E$14+Fluxo!$E$15+Fluxo!$E$16-Fluxo!$E$18-Fluxo!$E$20+Fluxo!$E$21 -> -5506.322882 | F91: =(((Faturamento!$F$20)*22*12)*0.9635-Fluxo!$F$4-Simulação!S98-Fluxo!$D$7)*0.75+Fluxo!$F$14+Fluxo!$F$15+Fluxo!$F$16-Fluxo!$F$18-Fluxo!$F$20+Fluxo!$F$21 -> 16427.89795 | G91: =(((Faturamento!$G$20)*22*12)*0.9635-Fluxo!$G$4-Simulação!T98-Fluxo!$E$7)*0.75+Fluxo!$G$14+Fluxo!$G$15+Fluxo!$G$16-Fluxo!$G$18-Fluxo!$G$20+Fluxo!$G$21 -> -17073.65683 | H91: =(((Faturamento!$H$20)*22*12)*0.9635-Fluxo!$H$4-Simulação!U98-Fluxo!$F$7)*0.75+Fluxo!$H$14+Fluxo!$H$15+Fluxo!$H$16-Fluxo!$H$18-Fluxo!$H$20+Fluxo!$H$21 -> -5767.968061 | I91: =(((Faturamento!$I$20)*22*12)*0.9635-Fluxo!$I$4-Simulação!V98-Fluxo!$G$7)*0.75+Fluxo!$I$14+Fluxo!$I$15+Fluxo!$I$16-Fluxo!$I$18-Fluxo!$I$20+Fluxo!$I$21 -> 32503.00096 | J91: =(((Faturamento!$J$20)*22*12)*0.9635-Fluxo!$J$4-Simulação!W98-Fluxo!$H$7)*0.75+Fluxo!$J$14+Fluxo!$J$15+Fluxo!$J$16-Fluxo!$J$18-Fluxo!$J$20+Fluxo!$J$21 -> 13281.61856 | K91: =(((Faturamento!$K$20)*22*12)*0.9635-Fluxo!$K$4-Simulação!X98-Fluxo!$I$7)*0.75+Fluxo!$K$14+Fluxo!$K$15+Fluxo!$K$16-Fluxo!$K$18-Fluxo!$K$20+Fluxo!$K$21 -> 38867.55805 | L91: =(((Faturamento!$L$20)*22*12)*0.9635-Fluxo!$L$4-Simulação!Y98-Fluxo!$J$7)*0.75+Fluxo!$L$14+Fluxo!$L$15+Fluxo!$L$16-Fluxo!$L$18-Fluxo!$L$20+Fluxo!$L$21 -> 53567.91045 | M91: =NPV(Taxas!$B$17,C91:L91)+B91 -> -4156.683054
A92: 91 | B92: -108118 | C92: 10430.495 | D92: 10889.51975 | E92: =(((Faturamento!$E$20)*22*12)*0.9635-Fluxo!$E$4-Simulação!R99-Fluxo!$E$7)*0.75+Fluxo!$E$14+Fluxo!$E$15+Fluxo!$E$16-Fluxo!$E$18-Fluxo!$E$20+Fluxo!$E$21 -> 3081.122097 | F92: =(((Faturamento!$F$20)*22*12)*0.9635-Fluxo!$F$4-Simulação!S99-Fluxo!$D$7)*0.75+Fluxo!$F$14+Fluxo!$F$15+Fluxo!$F$16-Fluxo!$F$18-Fluxo!$F$20+Fluxo!$F$21 -> -15239.73836 | G92: =(((Faturamento!$G$20)*22*12)*0.9635-Fluxo!$G$4-Simulação!T99-Fluxo!$E$7)*0.75+Fluxo!$G$14+Fluxo!$G$15+Fluxo!$G$16-Fluxo!$G$18-Fluxo!$G$20+Fluxo!$G$21 -> 10671.87733 | H92: =(((Faturamento!$H$20)*22*12)*0.9635-Fluxo!$H$4-Simulação!U99-Fluxo!$F$7)*0.75+Fluxo!$H$14+Fluxo!$H$15+Fluxo!$H$16-Fluxo!$H$18-Fluxo!$H$20+Fluxo!$H$21 -> -11683.0856 | I92: =(((Faturamento!$I$20)*22*12)*0.9635-Fluxo!$I$4-Simulação!V99-Fluxo!$G$7)*0.75+Fluxo!$I$14+Fluxo!$I$15+Fluxo!$I$16-Fluxo!$I$18-Fluxo!$I$20+Fluxo!$I$21 -> -6176.822494 | J92: =(((Faturamento!$J$20)*22*12)*0.9635-Fluxo!$J$4-Simulação!W99-Fluxo!$H$7)*0.75+Fluxo!$J$14+Fluxo!$J$15+Fluxo!$J$16-Fluxo!$J$18-Fluxo!$J$20+Fluxo!$J$21 -> -13589.07977 | K92: =(((Faturamento!$K$20)*22*12)*0.9635-Fluxo!$K$4-Simulação!X99-Fluxo!$I$7)*0.75+Fluxo!$K$14+Fluxo!$K$15+Fluxo!$K$16-Fluxo!$K$18-Fluxo!$K$20+Fluxo!$K$21 -> 38343.09671 | L92: =(((Faturamento!$L$20)*22*12)*0.9635-Fluxo!$L$4-Simulação!Y99-Fluxo!$J$7)*0.75+Fluxo!$L$14+Fluxo!$L$15+Fluxo!$L$16-Fluxo!$L$18-Fluxo!$L$20+Fluxo!$L$21 -> 29511.22716 | M92: =NPV(Taxas!$B$17,C92:L92)+B92 -> -68190.7331
A93: 92 | B93: -108118 | C93: 10430.495 | D93: 10889.51975 | E93: =(((Faturamento!$E$20)*22*12)*0.9635-Fluxo!$E$4-Simulação!R100-Fluxo!$E$7)*0.75+Fluxo!$E$14+Fluxo!$E$15+Fluxo!$E$16-Fluxo!$E$18-Fluxo!$E$20+Fluxo!$E$21 -> 35411.65151 | F93: =(((Faturamento!$F$20)*22*12)*0.9635-Fluxo!$F$4-Simulação!S100-Fluxo!$D$7)*0.75+Fluxo!$F$14+Fluxo!$F$15+Fluxo!$F$16-Fluxo!$F$18-Fluxo!$F$20+Fluxo!$F$21 -> -93.91835199 | G93: =(((Faturamento!$G$20)*22*12)*0.9635-Fluxo!$G$4-Simulação!T100-Fluxo!$E$7)*0.75+Fluxo!$G$14+Fluxo!$G$15+Fluxo!$G$16-Fluxo!$G$18-Fluxo!$G$20+Fluxo!$G$21 -> 31481.13608 | H93: =(((Faturamento!$H$20)*22*12)*0.9635-Fluxo!$H$4-Simulação!U100-Fluxo!$F$7)*0.75+Fluxo!$H$14+Fluxo!$H$15+Fluxo!$H$16-Fluxo!$H$18-Fluxo!$H$20+Fluxo!$H$21 -> 8617.881822 | I93: =(((Faturamento!$I$20)*22*12)*0.9635-Fluxo!$I$4-Simulação!V100-Fluxo!$G$7)*0.75+Fluxo!$I$14+Fluxo!$I$15+Fluxo!$I$16-Fluxo!$I$18-Fluxo!$I$20+Fluxo!$I$21 -> 29722.38218 | J93: =(((Faturamento!$J$20)*22*12)*0.9635-Fluxo!$J$4-Simulação!W100-Fluxo!$H$7)*0.75+Fluxo!$J$14+Fluxo!$J$15+Fluxo!$J$16-Fluxo!$J$18-Fluxo!$J$20+Fluxo!$J$21 -> 21031.3691 | K93: =(((Faturamento!$K$20)*22*12)*0.9635-Fluxo!$K$4-Simulação!X100-Fluxo!$I$7)*0.75+Fluxo!$K$14+Fluxo!$K$15+Fluxo!$K$16-Fluxo!$K$18-Fluxo!$K$20+Fluxo!$K$21 -> 9369.024896 | L93: =(((Faturamento!$L$20)*22*12)*0.9635-Fluxo!$L$4-Simulação!Y100-Fluxo!$J$7)*0.75+Fluxo!$L$14+Fluxo!$L$15+Fluxo!$L$16-Fluxo!$L$18-Fluxo!$L$20+Fluxo!$L$21 -> 20315.91609 | M93: =NPV(Taxas!$B$17,C93:L93)+B93 -> 30041.86857
A94: 93 | B94: -108118 | C94: 10430.495 | D94: 10889.51975 | E94: =(((Faturamento!$E$20)*22*12)*0.9635-Fluxo!$E$4-Simulação!R101-Fluxo!$E$7)*0.75+Fluxo!$E$14+Fluxo!$E$15+Fluxo!$E$16-Fluxo!$E$18-Fluxo!$E$20+Fluxo!$E$21 -> 14829.35235 | F94: =(((Faturamento!$F$20)*22*12)*0.9635-Fluxo!$F$4-Simulação!S101-Fluxo!$D$7)*0.75+Fluxo!$F$14+Fluxo!$F$15+Fluxo!$F$16-Fluxo!$F$18-Fluxo!$F$20+Fluxo!$F$21 -> 6494.535859 | G94: =(((Faturamento!$G$20)*22*12)*0.9635-Fluxo!$G$4-Simulação!T101-Fluxo!$E$7)*0.75+Fluxo!$G$14+Fluxo!$G$15+Fluxo!$G$16-Fluxo!$G$18-Fluxo!$G$20+Fluxo!$G$21 -> 1669.007022 | H94: =(((Faturamento!$H$20)*22*12)*0.9635-Fluxo!$H$4-Simulação!U101-Fluxo!$F$7)*0.75+Fluxo!$H$14+Fluxo!$H$15+Fluxo!$H$16-Fluxo!$H$18-Fluxo!$H$20+Fluxo!$H$21 -> -11675.20121 | I94: =(((Faturamento!$I$20)*22*12)*0.9635-Fluxo!$I$4-Simulação!V101-Fluxo!$G$7)*0.75+Fluxo!$I$14+Fluxo!$I$15+Fluxo!$I$16-Fluxo!$I$18-Fluxo!$I$20+Fluxo!$I$21 -> -13796.09168 | J94: =(((Faturamento!$J$20)*22*12)*0.9635-Fluxo!$J$4-Simulação!W101-Fluxo!$H$7)*0.75+Fluxo!$J$14+Fluxo!$J$15+Fluxo!$J$16-Fluxo!$J$18-Fluxo!$J$20+Fluxo!$J$21 -> -13840.58638 | K94: =(((Faturamento!$K$20)*22*12)*0.9635-Fluxo!$K$4-Simulação!X101-Fluxo!$I$7)*0.75+Fluxo!$K$14+Fluxo!$K$15+Fluxo!$K$16-Fluxo!$K$18-Fluxo!$K$20+Fluxo!$K$21 -> -1425.1151 | L94: =(((Faturamento!$L$20)*22*12)*0.9635-Fluxo!$L$4-Simulação!Y101-Fluxo!$J$7)*0.75+Fluxo!$L$14+Fluxo!$L$15+Fluxo!$L$16-Fluxo!$L$18-Fluxo!$L$20+Fluxo!$L$21 -> 17.71462577 | M94: =NPV(Taxas!$B$17,C94:L94)+B94 -> -98070.22072
A95: 94 | B95: -108118 | C95: 10430.495 | D95: 10889.51975 | E95: =(((Faturamento!$E$20)*22*12)*0.9635-Fluxo!$E$4-Simulação!R102-Fluxo!$E$7)*0.75+Fluxo!$E$14+Fluxo!$E$15+Fluxo!$E$16-Fluxo!$E$18-Fluxo!$E$20+Fluxo!$E$21 -> 12914.55236 | F95: =(((Faturamento!$F$20)*22*12)*0.9635-Fluxo!$F$4-Simulação!S102-Fluxo!$D$7)*0.75+Fluxo!$F$14+Fluxo!$F$15+Fluxo!$F$16-Fluxo!$F$18-Fluxo!$F$20+Fluxo!$F$21 -> -17036.32803 | G95: =(((Faturamento!$G$20)*22*12)*0.9635-Fluxo!$G$4-Simulação!T102-Fluxo!$E$7)*0.75+Fluxo!$G$14+Fluxo!$G$15+Fluxo!$G$16-Fluxo!$G$18-Fluxo!$G$20+Fluxo!$G$21 -> 21764.8745 | H95: =(((Faturamento!$H$20)*22*12)*0.9635-Fluxo!$H$4-Simulação!U102-Fluxo!$F$7)*0.75+Fluxo!$H$14+Fluxo!$H$15+Fluxo!$H$16-Fluxo!$H$18-Fluxo!$H$20+Fluxo!$H$21 -> 37520.19702 | I95: =(((Faturamento!$I$20)*22*12)*0.9635-Fluxo!$I$4-Simulação!V102-Fluxo!$G$7)*0.75+Fluxo!$I$14+Fluxo!$I$15+Fluxo!$I$16-Fluxo!$I$18-Fluxo!$I$20+Fluxo!$I$21 -> -7246.650003 | J95: =(((Faturamento!$J$20)*22*12)*0.9635-Fluxo!$J$4-Simulação!W102-Fluxo!$H$7)*0.75+Fluxo!$J$14+Fluxo!$J$15+Fluxo!$J$16-Fluxo!$J$18-Fluxo!$J$20+Fluxo!$J$21 -> 35434.10114 | K95: =(((Faturamento!$K$20)*22*12)*0.9635-Fluxo!$K$4-Simulação!X102-Fluxo!$I$7)*0.75+Fluxo!$K$14+Fluxo!$K$15+Fluxo!$K$16-Fluxo!$K$18-Fluxo!$K$20+Fluxo!$K$21 -> -11753.19299 | L95: =(((Faturamento!$L$20)*22*12)*0.9635-Fluxo!$L$4-Simulação!Y102-Fluxo!$J$7)*0.75+Fluxo!$L$14+Fluxo!$L$15+Fluxo!$L$16-Fluxo!$L$18-Fluxo!$L$20+Fluxo!$L$21 -> 62814.05977 | M95: =NPV(Taxas!$B$17,C95:L95)+B95 -> 6619.674064
A96: 95 | B96: -108118 | C96: 10430.495 | D96: 10889.51975 | E96: =(((Faturamento!$E$20)*22*12)*0.9635-Fluxo!$E$4-Simulação!R103-Fluxo!$E$7)*0.75+Fluxo!$E$14+Fluxo!$E$15+Fluxo!$E$16-Fluxo!$E$18-Fluxo!$E$20+Fluxo!$E$21 -> 12209.22532 | F96: =(((Faturamento!$F$20)*22*12)*0.9635-Fluxo!$F$4-Simulação!S103-Fluxo!$D$7)*0.75+Fluxo!$F$14+Fluxo!$F$15+Fluxo!$F$16-Fluxo!$F$18-Fluxo!$F$20+Fluxo!$F$21 -> 31457.56767 | G96: =(((Faturamento!$G$20)*22*12)*0.9635-Fluxo!$G$4-Simulação!T103-Fluxo!$E$7)*0.75+Fluxo!$G$14+Fluxo!$G$15+Fluxo!$G$16-Fluxo!$G$18-Fluxo!$G$20+Fluxo!$G$21 -> 25242.03509 | H96: =(((Faturamento!$H$20)*22*12)*0.9635-Fluxo!$H$4-Simulação!U103-Fluxo!$F$7)*0.75+Fluxo!$H$14+Fluxo!$H$15+Fluxo!$H$16-Fluxo!$H$18-Fluxo!$H$20+Fluxo!$H$21 -> -7765.734453 | I96: =(((Faturamento!$I$20)*22*12)*0.9635-Fluxo!$I$4-Simulação!V103-Fluxo!$G$7)*0.75+Fluxo!$I$14+Fluxo!$I$15+Fluxo!$I$16-Fluxo!$I$18-Fluxo!$I$20+Fluxo!$I$21 -> 15715.17286 | J96: =(((Faturamento!$J$20)*22*12)*0.9635-Fluxo!$J$4-Simulação!W103-Fluxo!$H$7)*0.75+Fluxo!$J$14+Fluxo!$J$15+Fluxo!$J$16-Fluxo!$J$18-Fluxo!$J$20+Fluxo!$J$21 -> 32463.76159 | K96: =(((Faturamento!$K$20)*22*12)*0.9635-Fluxo!$K$4-Simulação!X103-Fluxo!$I$7)*0.75+Fluxo!$K$14+Fluxo!$K$15+Fluxo!$K$16-Fluxo!$K$18-Fluxo!$K$20+Fluxo!$K$21 -> 1747.836048 | L96: =(((Faturamento!$L$20)*22*12)*0.9635-Fluxo!$L$4-Simulação!Y103-Fluxo!$J$7)*0.75+Fluxo!$L$14+Fluxo!$L$15+Fluxo!$L$16-Fluxo!$L$18-Fluxo!$L$20+Fluxo!$L$21 -> 8812.983395 | M96: =NPV(Taxas!$B$17,C96:L96)+B96 -> 3948.387485
A97: 96 | B97: -108118 | C97: 10430.495 | D97: 10889.51975 | E97: =(((Faturamento!$E$20)*22*12)*0.9635-Fluxo!$E$4-Simulação!R104-Fluxo!$E$7)*0.75+Fluxo!$E$14+Fluxo!$E$15+Fluxo!$E$16-Fluxo!$E$18-Fluxo!$E$20+Fluxo!$E$21 -> -9181.860536 | F97: =(((Faturamento!$F$20)*22*12)*0.9635-Fluxo!$F$4-Simulação!S104-Fluxo!$D$7)*0.75+Fluxo!$F$14+Fluxo!$F$15+Fluxo!$F$16-Fluxo!$F$18-Fluxo!$F$20+Fluxo!$F$21 -> 35179.57919 | G97: =(((Faturamento!$G$20)*22*12)*0.9635-Fluxo!$G$4-Simulação!T104-Fluxo!$E$7)*0.75+Fluxo!$G$14+Fluxo!$G$15+Fluxo!$G$16-Fluxo!$G$18-Fluxo!$G$20+Fluxo!$G$21 -> -11654.56801 | H97: =(((Faturamento!$H$20)*22*12)*0.9635-Fluxo!$H$4-Simulação!U104-Fluxo!$F$7)*0.75+Fluxo!$H$14+Fluxo!$H$15+Fluxo!$H$16-Fluxo!$H$18-Fluxo!$H$20+Fluxo!$H$21 -> -3984.334245 | I97: =(((Faturamento!$I$20)*22*12)*0.9635-Fluxo!$I$4-Simulação!V104-Fluxo!$G$7)*0.75+Fluxo!$I$14+Fluxo!$I$15+Fluxo!$I$16-Fluxo!$I$18-Fluxo!$I$20+Fluxo!$I$21 -> 29451.17507 | J97: =(((Faturamento!$J$20)*22*12)*0.9635-Fluxo!$J$4-Simulação!W104-Fluxo!$H$7)*0.75+Fluxo!$J$14+Fluxo!$J$15+Fluxo!$J$16-Fluxo!$J$18-Fluxo!$J$20+Fluxo!$J$21 -> 12640.9235 | K97: =(((Faturamento!$K$20)*22*12)*0.9635-Fluxo!$K$4-Simulação!X104-Fluxo!$I$7)*0.75+Fluxo!$K$14+Fluxo!$K$15+Fluxo!$K$16-Fluxo!$K$18-Fluxo!$K$20+Fluxo!$K$21 -> -13326.22859 | L97: =(((Faturamento!$L$20)*22*12)*0.9635-Fluxo!$L$4-Simulação!Y104-Fluxo!$J$7)*0.75+Fluxo!$L$14+Fluxo!$L$15+Fluxo!$L$16-Fluxo!$L$18-Fluxo!$L$20+Fluxo!$L$21 -> 24726.63154 | M97: =NPV(Taxas!$B$17,C97:L97)+B97 -> -41945.79232
A98: 97 | B98: -108118 | C98: 10430.495 | D98: 10889.51975 | E98: =(((Faturamento!$E$20)*22*12)*0.9635-Fluxo!$E$4-Simulação!R105-Fluxo!$E$7)*0.75+Fluxo!$E$14+Fluxo!$E$15+Fluxo!$E$16-Fluxo!$E$18-Fluxo!$E$20+Fluxo!$E$21 -> 36335.69886 | F98: =(((Faturamento!$F$20)*22*12)*0.9635-Fluxo!$F$4-Simulação!S105-Fluxo!$D$7)*0.75+Fluxo!$F$14+Fluxo!$F$15+Fluxo!$F$16-Fluxo!$F$18-Fluxo!$F$20+Fluxo!$F$21 -> 17962.18601 | G98: =(((Faturamento!$G$20)*22*12)*0.9635-Fluxo!$G$4-Simulação!T105-Fluxo!$E$7)*0.75+Fluxo!$G$14+Fluxo!$G$15+Fluxo!$G$16-Fluxo!$G$18-Fluxo!$G$20+Fluxo!$G$21 -> 28263.04966 | H98: =(((Faturamento!$H$20)*22*12)*0.9635-Fluxo!$H$4-Simulação!U105-Fluxo!$F$7)*0.75+Fluxo!$H$14+Fluxo!$H$15+Fluxo!$H$16-Fluxo!$H$18-Fluxo!$H$20+Fluxo!$H$21 -> 19655.20045 | I98: =(((Faturamento!$I$20)*22*12)*0.9635-Fluxo!$I$4-Simulação!V105-Fluxo!$G$7)*0.75+Fluxo!$I$14+Fluxo!$I$15+Fluxo!$I$16-Fluxo!$I$18-Fluxo!$I$20+Fluxo!$I$21 -> 3098.987569 | J98: =(((Faturamento!$J$20)*22*12)*0.9635-Fluxo!$J$4-Simulação!W105-Fluxo!$H$7)*0.75+Fluxo!$J$14+Fluxo!$J$15+Fluxo!$J$16-Fluxo!$J$18-Fluxo!$J$20+Fluxo!$J$21 -> 46554.80667 | K98: =(((Faturamento!$K$20)*22*12)*0.9635-Fluxo!$K$4-Simulação!X105-Fluxo!$I$7)*0.75+Fluxo!$K$14+Fluxo!$K$15+Fluxo!$K$16-Fluxo!$K$18-Fluxo!$K$20+Fluxo!$K$21 -> -11040.2548 | L98: =(((Faturamento!$L$20)*22*12)*0.9635-Fluxo!$L$4-Simulação!Y105-Fluxo!$J$7)*0.75+Fluxo!$L$14+Fluxo!$L$15+Fluxo!$L$16-Fluxo!$L$18-Fluxo!$L$20+Fluxo!$L$21 -> -9954.700757 | M98: =NPV(Taxas!$B$17,C98:L98)+B98 -> 17225.12552
A99: 98 | B99: -108118 | C99: 10430.495 | D99: 10889.51975 | E99: =(((Faturamento!$E$20)*22*12)*0.9635-Fluxo!$E$4-Simulação!R106-Fluxo!$E$7)*0.75+Fluxo!$E$14+Fluxo!$E$15+Fluxo!$E$16-Fluxo!$E$18-Fluxo!$E$20+Fluxo!$E$21 -> 15238.28101 | F99: =(((Faturamento!$F$20)*22*12)*0.9635-Fluxo!$F$4-Simulação!S106-Fluxo!$D$7)*0.75+Fluxo!$F$14+Fluxo!$F$15+Fluxo!$F$16-Fluxo!$F$18-Fluxo!$F$20+Fluxo!$F$21 -> -12632.96481 | G99: =(((Faturamento!$G$20)*22*12)*0.9635-Fluxo!$G$4-Simulação!T106-Fluxo!$E$7)*0.75+Fluxo!$G$14+Fluxo!$G$15+Fluxo!$G$16-Fluxo!$G$18-Fluxo!$G$20+Fluxo!$G$21 -> 34962.30431 | H99: =(((Faturamento!$H$20)*22*12)*0.9635-Fluxo!$H$4-Simulação!U106-Fluxo!$F$7)*0.75+Fluxo!$H$14+Fluxo!$H$15+Fluxo!$H$16-Fluxo!$H$18-Fluxo!$H$20+Fluxo!$H$21 -> 629.3059079 | I99: =(((Faturamento!$I$20)*22*12)*0.9635-Fluxo!$I$4-Simulação!V106-Fluxo!$G$7)*0.75+Fluxo!$I$14+Fluxo!$I$15+Fluxo!$I$16-Fluxo!$I$18-Fluxo!$I$20+Fluxo!$I$21 -> -19871.27688 | J99: =(((Faturamento!$J$20)*22*12)*0.9635-Fluxo!$J$4-Simulação!W106-Fluxo!$H$7)*0.75+Fluxo!$J$14+Fluxo!$J$15+Fluxo!$J$16-Fluxo!$J$18-Fluxo!$J$20+Fluxo!$J$21 -> -3131.011303 | K99: =(((Faturamento!$K$20)*22*12)*0.9635-Fluxo!$K$4-Simulação!X106-Fluxo!$I$7)*0.75+Fluxo!$K$14+Fluxo!$K$15+Fluxo!$K$16-Fluxo!$K$18-Fluxo!$K$20+Fluxo!$K$21 -> 36106.08718 | L99: =(((Faturamento!$L$20)*22*12)*0.9635-Fluxo!$L$4-Simulação!Y106-Fluxo!$J$7)*0.75+Fluxo!$L$14+Fluxo!$L$15+Fluxo!$L$16-Fluxo!$L$18-Fluxo!$L$20+Fluxo!$L$21 -> 67951.34394 | M99: =NPV(Taxas!$B$17,C99:L99)+B99 -> -6224.751939
A100: 99 | B100: -108118 | C100: 10430.495 | D100: 10889.51975 | E100: =(((Faturamento!$E$20)*22*12)*0.9635-Fluxo!$E$4-Simulação!R107-Fluxo!$E$7)*0.75+Fluxo!$E$14+Fluxo!$E$15+Fluxo!$E$16-Fluxo!$E$18-Fluxo!$E$20+Fluxo!$E$21 -> 32789.41907 | F100: =(((Faturamento!$F$20)*22*12)*0.9635-Fluxo!$F$4-Simulação!S107-Fluxo!$D$7)*0.75+Fluxo!$F$14+Fluxo!$F$15+Fluxo!$F$16-Fluxo!$F$18-Fluxo!$F$20+Fluxo!$F$21 -> 6431.823523 | G100: =(((Faturamento!$G$20)*22*12)*0.9635-Fluxo!$G$4-Simulação!T107-Fluxo!$E$7)*0.75+Fluxo!$G$14+Fluxo!$G$15+Fluxo!$G$16-Fluxo!$G$18-Fluxo!$G$20+Fluxo!$G$21 -> 42927.74674 | H100: =(((Faturamento!$H$20)*22*12)*0.9635-Fluxo!$H$4-Simulação!U107-Fluxo!$F$7)*0.75+Fluxo!$H$14+Fluxo!$H$15+Fluxo!$H$16-Fluxo!$H$18-Fluxo!$H$20+Fluxo!$H$21 -> 13687.29962 | I100: =(((Faturamento!$I$20)*22*12)*0.9635-Fluxo!$I$4-Simulação!V107-Fluxo!$G$7)*0.75+Fluxo!$I$14+Fluxo!$I$15+Fluxo!$I$16-Fluxo!$I$18-Fluxo!$I$20+Fluxo!$I$21 -> 8810.164018 | J100: =(((Faturamento!$J$20)*22*12)*0.9635-Fluxo!$J$4-Simulação!W107-Fluxo!$H$7)*0.75+Fluxo!$J$14+Fluxo!$J$15+Fluxo!$J$16-Fluxo!$J$18-Fluxo!$J$20+Fluxo!$J$21 -> 21540.46238 | K100: =(((Faturamento!$K$20)*22*12)*0.9635-Fluxo!$K$4-Simulação!X107-Fluxo!$I$7)*0.75+Fluxo!$K$14+Fluxo!$K$15+Fluxo!$K$16-Fluxo!$K$18-Fluxo!$K$20+Fluxo!$K$21 -> -20210.24209 | L100: =(((Faturamento!$L$20)*22*12)*0.9635-Fluxo!$L$4-Simulação!Y107-Fluxo!$J$7)*0.75+Fluxo!$L$14+Fluxo!$L$15+Fluxo!$L$16-Fluxo!$L$18-Fluxo!$L$20+Fluxo!$L$21 -> -2418.57475 | M100: =NPV(Taxas!$B$17,C100:L100)+B100 -> -2961.336222
A101: 100 | B101: -108118 | C101: 10430.495 | D101: 10889.51975 | E101: =(((Faturamento!$E$20)*22*12)*0.9635-Fluxo!$E$4-Simulação!R108-Fluxo!$E$7)*0.75+Fluxo!$E$14+Fluxo!$E$15+Fluxo!$E$16-Fluxo!$E$18-Fluxo!$E$20+Fluxo!$E$21 -> 31174.61215 | F101: =(((Faturamento!$F$20)*22*12)*0.9635-Fluxo!$F$4-Simulação!S108-Fluxo!$D$7)*0.75+Fluxo!$F$14+Fluxo!$F$15+Fluxo!$F$16-Fluxo!$F$18-Fluxo!$F$20+Fluxo!$F$21 -> 24996.02409 | G101: =(((Faturamento!$G$20)*22*12)*0.9635-Fluxo!$G$4-Simulação!T108-Fluxo!$E$7)*0.75+Fluxo!$G$14+Fluxo!$G$15+Fluxo!$G$16-Fluxo!$G$18-Fluxo!$G$20+Fluxo!$G$21 -> 28593.3285 | H101: =(((Faturamento!$H$20)*22*12)*0.9635-Fluxo!$H$4-Simulação!U108-Fluxo!$F$7)*0.75+Fluxo!$H$14+Fluxo!$H$15+Fluxo!$H$16-Fluxo!$H$18-Fluxo!$H$20+Fluxo!$H$21 -> 11309.04074 | I101: =(((Faturamento!$I$20)*22*12)*0.9635-Fluxo!$I$4-Simulação!V108-Fluxo!$G$7)*0.75+Fluxo!$I$14+Fluxo!$I$15+Fluxo!$I$16-Fluxo!$I$18-Fluxo!$I$20+Fluxo!$I$21 -> 29823.55259 | J101: =(((Faturamento!$J$20)*22*12)*0.9635-Fluxo!$J$4-Simulação!W108-Fluxo!$H$7)*0.75+Fluxo!$J$14+Fluxo!$J$15+Fluxo!$J$16-Fluxo!$J$18-Fluxo!$J$20+Fluxo!$J$21 -> -7198.550944 | K101: =(((Faturamento!$K$20)*22*12)*0.9635-Fluxo!$K$4-Simulação!X108-Fluxo!$I$7)*0.75+Fluxo!$K$14+Fluxo!$K$15+Fluxo!$K$16-Fluxo!$K$18-Fluxo!$K$20+Fluxo!$K$21 -> 26777.87814 | L101: =(((Faturamento!$L$20)*22*12)*0.9635-Fluxo!$L$4-Simulação!Y108-Fluxo!$J$7)*0.75+Fluxo!$L$14+Fluxo!$L$15+Fluxo!$L$16-Fluxo!$L$18-Fluxo!$L$20+Fluxo!$L$21 -> 18692.35229 | M101: =NPV(Taxas!$B$17,C101:L101)+B101 -> 38001.05095
A102: 101 | B102: -108118 | C102: 10430.495 | D102: 10889.51975 | E102: =(((Faturamento!$E$20)*22*12)*0.9635-Fluxo!$E$4-Simulação!R109-Fluxo!$E$7)*0.75+Fluxo!$E$14+Fluxo!$E$15+Fluxo!$E$16-Fluxo!$E$18-Fluxo!$E$20+Fluxo!$E$21 -> 21947.12149 | F102: =(((Faturamento!$F$20)*22*12)*0.9635-Fluxo!$F$4-Simulação!S109-Fluxo!$D$7)*0.75+Fluxo!$F$14+Fluxo!$F$15+Fluxo!$F$16-Fluxo!$F$18-Fluxo!$F$20+Fluxo!$F$21 -> -1254.607789 | G102: =(((Faturamento!$G$20)*22*12)*0.9635-Fluxo!$G$4-Simulação!T109-Fluxo!$E$7)*0.75+Fluxo!$G$14+Fluxo!$G$15+Fluxo!$G$16-Fluxo!$G$18-Fluxo!$G$20+Fluxo!$G$21 -> 26372.65338 | H102: =(((Faturamento!$H$20)*22*12)*0.9635-Fluxo!$H$4-Simulação!U109-Fluxo!$F$7)*0.75+Fluxo!$H$14+Fluxo!$H$15+Fluxo!$H$16-Fluxo!$H$18-Fluxo!$H$20+Fluxo!$H$21 -> -15659.07516 | I102: =(((Faturamento!$I$20)*22*12)*0.9635-Fluxo!$I$4-Simulação!V109-Fluxo!$G$7)*0.75+Fluxo!$I$14+Fluxo!$I$15+Fluxo!$I$16-Fluxo!$I$18-Fluxo!$I$20+Fluxo!$I$21 -> 8734.61523 | J102: =(((Faturamento!$J$20)*22*12)*0.9635-Fluxo!$J$4-Simulação!W109-Fluxo!$H$7)*0.75+Fluxo!$J$14+Fluxo!$J$15+Fluxo!$J$16-Fluxo!$J$18-Fluxo!$J$20+Fluxo!$J$21 -> 25914.93978 | K102: =(((Faturamento!$K$20)*22*12)*0.9635-Fluxo!$K$4-Simulação!X109-Fluxo!$I$7)*0.75+Fluxo!$K$14+Fluxo!$K$15+Fluxo!$K$16-Fluxo!$K$18-Fluxo!$K$20+Fluxo!$K$21 -> 6369.764278 | L102: =(((Faturamento!$L$20)*22*12)*0.9635-Fluxo!$L$4-Simulação!Y109-Fluxo!$J$7)*0.75+Fluxo!$L$14+Fluxo!$L$15+Fluxo!$L$16-Fluxo!$L$18-Fluxo!$L$20+Fluxo!$L$21 -> 35609.84021 | M102: =NPV(Taxas!$B$17,C102:L102)+B102 -> -9482.55322
A103: 102 | B103: -108118 | C103: 10430.495 | D103: 10889.51975 | E103: =(((Faturamento!$E$20)*22*12)*0.9635-Fluxo!$E$4-Simulação!R110-Fluxo!$E$7)*0.75+Fluxo!$E$14+Fluxo!$E$15+Fluxo!$E$16-Fluxo!$E$18-Fluxo!$E$20+Fluxo!$E$21 -> 38416.29041 | F103: =(((Faturamento!$F$20)*22*12)*0.9635-Fluxo!$F$4-Simulação!S110-Fluxo!$D$7)*0.75+Fluxo!$F$14+Fluxo!$F$15+Fluxo!$F$16-Fluxo!$F$18-Fluxo!$F$20+Fluxo!$F$21 -> 10336.00064 | G103: =(((Faturamento!$G$20)*22*12)*0.9635-Fluxo!$G$4-Simulação!T110-Fluxo!$E$7)*0.75+Fluxo!$G$14+Fluxo!$G$15+Fluxo!$G$16-Fluxo!$G$18-Fluxo!$G$20+Fluxo!$G$21 -> 34348.41977 | H103: =(((Faturamento!$H$20)*22*12)*0.9635-Fluxo!$H$4-Simulação!U110-Fluxo!$F$7)*0.75+Fluxo!$H$14+Fluxo!$H$15+Fluxo!$H$16-Fluxo!$H$18-Fluxo!$H$20+Fluxo!$H$21 -> 2898.366081 | I103: =(((Faturamento!$I$20)*22*12)*0.9635-Fluxo!$I$4-Simulação!V110-Fluxo!$G$7)*0.75+Fluxo!$I$14+Fluxo!$I$15+Fluxo!$I$16-Fluxo!$I$18-Fluxo!$I$20+Fluxo!$I$21 -> -14523.27928 | J103: =(((Faturamento!$J$20)*22*12)*0.9635-Fluxo!$J$4-Simulação!W110-Fluxo!$H$7)*0.75+Fluxo!$J$14+Fluxo!$J$15+Fluxo!$J$16-Fluxo!$J$18-Fluxo!$J$20+Fluxo!$J$21 -> -3570.272475 | K103: =(((Faturamento!$K$20)*22*12)*0.9635-Fluxo!$K$4-Simulação!X110-Fluxo!$I$7)*0.75+Fluxo!$K$14+Fluxo!$K$15+Fluxo!$K$16-Fluxo!$K$18-Fluxo!$K$20+Fluxo!$K$21 -> -19641.32124 | L103: =(((Faturamento!$L$20)*22*12)*0.9635-Fluxo!$L$4-Simulação!Y110-Fluxo!$J$7)*0.75+Fluxo!$L$14+Fluxo!$L$15+Fluxo!$L$16-Fluxo!$L$18-Fluxo!$L$20+Fluxo!$L$21 -> 31168.3716 | M103: =NPV(Taxas!$B$17,C103:L103)+B103 -> -22634.94032
A104: 103 | B104: -108118 | C104: 10430.495 | D104: 10889.51975 | E104: =(((Faturamento!$E$20)*22*12)*0.9635-Fluxo!$E$4-Simulação!R111-Fluxo!$E$7)*0.75+Fluxo!$E$14+Fluxo!$E$15+Fluxo!$E$16-Fluxo!$E$18-Fluxo!$E$20+Fluxo!$E$21 -> -16551.74775 | F104: =(((Faturamento!$F$20)*22*12)*0.9635-Fluxo!$F$4-Simulação!S111-Fluxo!$D$7)*0.75+Fluxo!$F$14+Fluxo!$F$15+Fluxo!$F$16-Fluxo!$F$18-Fluxo!$F$20+Fluxo!$F$21 -> 6575.33417 | G104: =(((Faturamento!$G$20)*22*12)*0.9635-Fluxo!$G$4-Simulação!T111-Fluxo!$E$7)*0.75+Fluxo!$G$14+Fluxo!$G$15+Fluxo!$G$16-Fluxo!$G$18-Fluxo!$G$20+Fluxo!$G$21 -> 36339.75764 | H104: =(((Faturamento!$H$20)*22*12)*0.9635-Fluxo!$H$4-Simulação!U111-Fluxo!$F$7)*0.75+Fluxo!$H$14+Fluxo!$H$15+Fluxo!$H$16-Fluxo!$H$18-Fluxo!$H$20+Fluxo!$H$21 -> -11437.44345 | I104: =(((Faturamento!$I$20)*22*12)*0.9635-Fluxo!$I$4-Simulação!V111-Fluxo!$G$7)*0.75+Fluxo!$I$14+Fluxo!$I$15+Fluxo!$I$16-Fluxo!$I$18-Fluxo!$I$20+Fluxo!$I$21 -> 44607.98186 | J104: =(((Faturamento!$J$20)*22*12)*0.9635-Fluxo!$J$4-Simulação!W111-Fluxo!$H$7)*0.75+Fluxo!$J$14+Fluxo!$J$15+Fluxo!$J$16-Fluxo!$J$18-Fluxo!$J$20+Fluxo!$J$21 -> 6084.802245 | K104: =(((Faturamento!$K$20)*22*12)*0.9635-Fluxo!$K$4-Simulação!X111-Fluxo!$I$7)*0.75+Fluxo!$K$14+Fluxo!$K$15+Fluxo!$K$16-Fluxo!$K$18-Fluxo!$K$20+Fluxo!$K$21 -> 39642.18224 | L104: =(((Faturamento!$L$20)*22*12)*0.9635-Fluxo!$L$4-Simulação!Y111-Fluxo!$J$7)*0.75+Fluxo!$L$14+Fluxo!$L$15+Fluxo!$L$16-Fluxo!$L$18-Fluxo!$L$20+Fluxo!$L$21 -> 44732.76363 | M104: =NPV(Taxas!$B$17,C104:L104)+B104 -> 14994.53146
A105: 104 | B105: -108118 | C105: 10430.495 | D105: 10889.51975 | E105: =(((Faturamento!$E$20)*22*12)*0.9635-Fluxo!$E$4-Simulação!R112-Fluxo!$E$7)*0.75+Fluxo!$E$14+Fluxo!$E$15+Fluxo!$E$16-Fluxo!$E$18-Fluxo!$E$20+Fluxo!$E$21 -> -6245.356412 | F105: =(((Faturamento!$F$20)*22*12)*0.9635-Fluxo!$F$4-Simulação!S112-Fluxo!$D$7)*0.75+Fluxo!$F$14+Fluxo!$F$15+Fluxo!$F$16-Fluxo!$F$18-Fluxo!$F$20+Fluxo!$F$21 -> 38718.4896 | G105: =(((Faturamento!$G$20)*22*12)*0.9635-Fluxo!$G$4-Simulação!T112-Fluxo!$E$7)*0.75+Fluxo!$G$14+Fluxo!$G$15+Fluxo!$G$16-Fluxo!$G$18-Fluxo!$G$20+Fluxo!$G$21 -> 40152.88411 | H105: =(((Faturamento!$H$20)*22*12)*0.9635-Fluxo!$H$4-Simulação!U112-Fluxo!$F$7)*0.75+Fluxo!$H$14+Fluxo!$H$15+Fluxo!$H$16-Fluxo!$H$18-Fluxo!$H$20+Fluxo!$H$21 -> -11492.97415 | I105: =(((Faturamento!$I$20)*22*12)*0.9635-Fluxo!$I$4-Simulação!V112-Fluxo!$G$7)*0.75+Fluxo!$I$14+Fluxo!$I$15+Fluxo!$I$16-Fluxo!$I$18-Fluxo!$I$20+Fluxo!$I$21 -> 4368.312368 | J105: =(((Faturamento!$J$20)*22*12)*0.9635-Fluxo!$J$4-Simulação!W112-Fluxo!$H$7)*0.75+Fluxo!$J$14+Fluxo!$J$15+Fluxo!$J$16-Fluxo!$J$18-Fluxo!$J$20+Fluxo!$J$21 -> -5780.41356 | K105: =(((Faturamento!$K$20)*22*12)*0.9635-Fluxo!$K$4-Simulação!X112-Fluxo!$I$7)*0.75+Fluxo!$K$14+Fluxo!$K$15+Fluxo!$K$16-Fluxo!$K$18-Fluxo!$K$20+Fluxo!$K$21 -> -16274.19733 | L105: =(((Faturamento!$L$20)*22*12)*0.9635-Fluxo!$L$4-Simulação!Y112-Fluxo!$J$7)*0.75+Fluxo!$L$14+Fluxo!$L$15+Fluxo!$L$16-Fluxo!$L$18-Fluxo!$L$20+Fluxo!$L$21 -> 5725.322315 | M105: =NPV(Taxas!$B$17,C105:L105)+B105 -> -46048.10267
A106: 105 | B106: -108118 | C106: 10430.495 | D106: 10889.51975 | E106: =(((Faturamento!$E$20)*22*12)*0.9635-Fluxo!$E$4-Simulação!R113-Fluxo!$E$7)*0.75+Fluxo!$E$14+Fluxo!$E$15+Fluxo!$E$16-Fluxo!$E$18-Fluxo!$E$20+Fluxo!$E$21 -> 38593.05064 | F106: =(((Faturamento!$F$20)*22*12)*0.9635-Fluxo!$F$4-Simulação!S113-Fluxo!$D$7)*0.75+Fluxo!$F$14+Fluxo!$F$15+Fluxo!$F$16-Fluxo!$F$18-Fluxo!$F$20+Fluxo!$F$21 -> 40778.51159 | G106: =(((Faturamento!$G$20)*22*12)*0.9635-Fluxo!$G$4-Simulação!T113-Fluxo!$E$7)*0.75+Fluxo!$G$14+Fluxo!$G$15+Fluxo!$G$16-Fluxo!$G$18-Fluxo!$G$20+Fluxo!$G$21 -> 20593.53514 | H106: =(((Faturamento!$H$20)*22*12)*0.9635-Fluxo!$H$4-Simulação!U113-Fluxo!$F$7)*0.75+Fluxo!$H$14+Fluxo!$H$15+Fluxo!$H$16-Fluxo!$H$18-Fluxo!$H$20+Fluxo!$H$21 -> 16810.94434 | I106: =(((Faturamento!$I$20)*22*12)*0.9635-Fluxo!$I$4-Simulação!V113-Fluxo!$G$7)*0.75+Fluxo!$I$14+Fluxo!$I$15+Fluxo!$I$16-Fluxo!$I$18-Fluxo!$I$20+Fluxo!$I$21 -> 38317.39778 | J106: =(((Faturamento!$J$20)*22*12)*0.9635-Fluxo!$J$4-Simulação!W113-Fluxo!$H$7)*0.75+Fluxo!$J$14+Fluxo!$J$15+Fluxo!$J$16-Fluxo!$J$18-Fluxo!$J$20+Fluxo!$J$21 -> -8266.509036 | K106: =(((Faturamento!$K$20)*22*12)*0.9635-Fluxo!$K$4-Simulação!X113-Fluxo!$I$7)*0.75+Fluxo!$K$14+Fluxo!$K$15+Fluxo!$K$16-Fluxo!$K$18-Fluxo!$K$20+Fluxo!$K$21 -> 40151.94598 | L106: =(((Faturamento!$L$20)*22*12)*0.9635-Fluxo!$L$4-Simulação!Y113-Fluxo!$J$7)*0.75+Fluxo!$L$14+Fluxo!$L$15+Fluxo!$L$16-Fluxo!$L$18-Fluxo!$L$20+Fluxo!$L$21 -> 54167.05491 | M106: =NPV(Taxas!$B$17,C106:L106)+B106 -> 92520.92777
A107: 106 | B107: -108118 | C107: 10430.495 | D107: 10889.51975 | E107: =(((Faturamento!$E$20)*22*12)*0.9635-Fluxo!$E$4-Simulação!R114-Fluxo!$E$7)*0.75+Fluxo!$E$14+Fluxo!$E$15+Fluxo!$E$16-Fluxo!$E$18-Fluxo!$E$20+Fluxo!$E$21 -> 19869.46054 | F107: =(((Faturamento!$F$20)*22*12)*0.9635-Fluxo!$F$4-Simulação!S114-Fluxo!$D$7)*0.75+Fluxo!$F$14+Fluxo!$F$15+Fluxo!$F$16-Fluxo!$F$18-Fluxo!$F$20+Fluxo!$F$21 -> 6786.299698 | G107: =(((Faturamento!$G$20)*22*12)*0.9635-Fluxo!$G$4-Simulação!T114-Fluxo!$E$7)*0.75+Fluxo!$G$14+Fluxo!$G$15+Fluxo!$G$16-Fluxo!$G$18-Fluxo!$G$20+Fluxo!$G$21 -> -357.4919109 | H107: =(((Faturamento!$H$20)*22*12)*0.9635-Fluxo!$H$4-Simulação!U114-Fluxo!$F$7)*0.75+Fluxo!$H$14+Fluxo!$H$15+Fluxo!$H$16-Fluxo!$H$18-Fluxo!$H$20+Fluxo!$H$21 -> 38099.94951 | I107: =(((Faturamento!$I$20)*22*12)*0.9635-Fluxo!$I$4-Simulação!V114-Fluxo!$G$7)*0.75+Fluxo!$I$14+Fluxo!$I$15+Fluxo!$I$16-Fluxo!$I$18-Fluxo!$I$20+Fluxo!$I$21 -> -9242.325778 | J107: =(((Faturamento!$J$20)*22*12)*0.9635-Fluxo!$J$4-Simulação!W114-Fluxo!$H$7)*0.75+Fluxo!$J$14+Fluxo!$J$15+Fluxo!$J$16-Fluxo!$J$18-Fluxo!$J$20+Fluxo!$J$21 -> -12705.7767 | K107: =(((Faturamento!$K$20)*22*12)*0.9635-Fluxo!$K$4-Simulação!X114-Fluxo!$I$7)*0.75+Fluxo!$K$14+Fluxo!$K$15+Fluxo!$K$16-Fluxo!$K$18-Fluxo!$K$20+Fluxo!$K$21 -> 9123.392351 | L107: =(((Faturamento!$L$20)*22*12)*0.9635-Fluxo!$L$4-Simulação!Y114-Fluxo!$J$7)*0.75+Fluxo!$L$14+Fluxo!$L$15+Fluxo!$L$16-Fluxo!$L$18-Fluxo!$L$20+Fluxo!$L$21 -> 31954.11956 | M107: =NPV(Taxas!$B$17,C107:L107)+B107 -> -25464.68461
A108: 107 | B108: -108118 | C108: 10430.495 | D108: 10889.51975 | E108: =(((Faturamento!$E$20)*22*12)*0.9635-Fluxo!$E$4-Simulação!R115-Fluxo!$E$7)*0.75+Fluxo!$E$14+Fluxo!$E$15+Fluxo!$E$16-Fluxo!$E$18-Fluxo!$E$20+Fluxo!$E$21 -> 8103.310863 | F108: =(((Faturamento!$F$20)*22*12)*0.9635-Fluxo!$F$4-Simulação!S115-Fluxo!$D$7)*0.75+Fluxo!$F$14+Fluxo!$F$15+Fluxo!$F$16-Fluxo!$F$18-Fluxo!$F$20+Fluxo!$F$21 -> -13127.67119 | G108: =(((Faturamento!$G$20)*22*12)*0.9635-Fluxo!$G$4-Simulação!T115-Fluxo!$E$7)*0.75+Fluxo!$G$14+Fluxo!$G$15+Fluxo!$G$16-Fluxo!$G$18-Fluxo!$G$20+Fluxo!$G$21 -> 41116.77222 | H108: =(((Faturamento!$H$20)*22*12)*0.9635-Fluxo!$H$4-Simulação!U115-Fluxo!$F$7)*0.75+Fluxo!$H$14+Fluxo!$H$15+Fluxo!$H$16-Fluxo!$H$18-Fluxo!$H$20+Fluxo!$H$21 -> -18812.58696 | I108: =(((Faturamento!$I$20)*22*12)*0.9635-Fluxo!$I$4-Simulação!V115-Fluxo!$G$7)*0.75+Fluxo!$I$14+Fluxo!$I$15+Fluxo!$I$16-Fluxo!$I$18-Fluxo!$I$20+Fluxo!$I$21 -> 22292.95416 | J108: =(((Faturamento!$J$20)*22*12)*0.9635-Fluxo!$J$4-Simulação!W115-Fluxo!$H$7)*0.75+Fluxo!$J$14+Fluxo!$J$15+Fluxo!$J$16-Fluxo!$J$18-Fluxo!$J$20+Fluxo!$J$21 -> 26836.08062 | K108: =(((Faturamento!$K$20)*22*12)*0.9635-Fluxo!$K$4-Simulação!X115-Fluxo!$I$7)*0.75+Fluxo!$K$14+Fluxo!$K$15+Fluxo!$K$16-Fluxo!$K$18-Fluxo!$K$20+Fluxo!$K$21 -> 27296.86568 | L108: =(((Faturamento!$L$20)*22*12)*0.9635-Fluxo!$L$4-Simulação!Y115-Fluxo!$J$7)*0.75+Fluxo!$L$14+Fluxo!$L$15+Fluxo!$L$16-Fluxo!$L$18-Fluxo!$L$20+Fluxo!$L$21 -> 36665.05579 | M108: =NPV(Taxas!$B$17,C108:L108)+B108 -> 3060.306044
A109: 108 | B109: -108118 | C109: 10430.495 | D109: 10889.51975 | E109: =(((Faturamento!$E$20)*22*12)*0.9635-Fluxo!$E$4-Simulação!R116-Fluxo!$E$7)*0.75+Fluxo!$E$14+Fluxo!$E$15+Fluxo!$E$16-Fluxo!$E$18-Fluxo!$E$20+Fluxo!$E$21 -> 26504.96671 | F109: =(((Faturamento!$F$20)*22*12)*0.9635-Fluxo!$F$4-Simulação!S116-Fluxo!$D$7)*0.75+Fluxo!$F$14+Fluxo!$F$15+Fluxo!$F$16-Fluxo!$F$18-Fluxo!$F$20+Fluxo!$F$21 -> 10433.86651 | G109: =(((Faturamento!$G$20)*22*12)*0.9635-Fluxo!$G$4-Simulação!T116-Fluxo!$E$7)*0.75+Fluxo!$G$14+Fluxo!$G$15+Fluxo!$G$16-Fluxo!$G$18-Fluxo!$G$20+Fluxo!$G$21 -> 25975.80814 | H109: =(((Faturamento!$H$20)*22*12)*0.9635-Fluxo!$H$4-Simulação!U116-Fluxo!$F$7)*0.75+Fluxo!$H$14+Fluxo!$H$15+Fluxo!$H$16-Fluxo!$H$18-Fluxo!$H$20+Fluxo!$H$21 -> -10063.34763 | I109: =(((Faturamento!$I$20)*22*12)*0.9635-Fluxo!$I$4-Simulação!V116-Fluxo!$G$7)*0.75+Fluxo!$I$14+Fluxo!$I$15+Fluxo!$I$16-Fluxo!$I$18-Fluxo!$I$20+Fluxo!$I$21 -> 21510.52757 | J109: =(((Faturamento!$J$20)*22*12)*0.9635-Fluxo!$J$4-Simulação!W116-Fluxo!$H$7)*0.75+Fluxo!$J$14+Fluxo!$J$15+Fluxo!$J$16-Fluxo!$J$18-Fluxo!$J$20+Fluxo!$J$21 -> 21598.64303 | K109: =(((Faturamento!$K$20)*22*12)*0.9635-Fluxo!$K$4-Simulação!X116-Fluxo!$I$7)*0.75+Fluxo!$K$14+Fluxo!$K$15+Fluxo!$K$16-Fluxo!$K$18-Fluxo!$K$20+Fluxo!$K$21 -> 46829.85375 | L109: =(((Faturamento!$L$20)*22*12)*0.9635-Fluxo!$L$4-Simulação!Y116-Fluxo!$J$7)*0.75+Fluxo!$L$14+Fluxo!$L$15+Fluxo!$L$16-Fluxo!$L$18-Fluxo!$L$20+Fluxo!$L$21 -> 5360.498578 | M109: =NPV(Taxas!$B$17,C109:L109)+B109 -> 22248.29435
A110: 109 | B110: -108118 | C110: 10430.495 | D110: 10889.51975 | E110: =(((Faturamento!$E$20)*22*12)*0.9635-Fluxo!$E$4-Simulação!R117-Fluxo!$E$7)*0.75+Fluxo!$E$14+Fluxo!$E$15+Fluxo!$E$16-Fluxo!$E$18-Fluxo!$E$20+Fluxo!$E$21 -> 3884.431225 | F110: =(((Faturamento!$F$20)*22*12)*0.9635-Fluxo!$F$4-Simulação!S117-Fluxo!$D$7)*0.75+Fluxo!$F$14+Fluxo!$F$15+Fluxo!$F$16-Fluxo!$F$18-Fluxo!$F$20+Fluxo!$F$21 -> -2306.699336 | G110: =(((Faturamento!$G$20)*22*12)*0.9635-Fluxo!$G$4-Simulação!T117-Fluxo!$E$7)*0.75+Fluxo!$G$14+Fluxo!$G$15+Fluxo!$G$16-Fluxo!$G$18-Fluxo!$G$20+Fluxo!$G$21 -> -2053.904358 | H110: =(((Faturamento!$H$20)*22*12)*0.9635-Fluxo!$H$4-Simulação!U117-Fluxo!$F$7)*0.75+Fluxo!$H$14+Fluxo!$H$15+Fluxo!$H$16-Fluxo!$H$18-Fluxo!$H$20+Fluxo!$H$21 -> -12562.8256 | I110: =(((Faturamento!$I$20)*22*12)*0.9635-Fluxo!$I$4-Simulação!V117-Fluxo!$G$7)*0.75+Fluxo!$I$14+Fluxo!$I$15+Fluxo!$I$16-Fluxo!$I$18-Fluxo!$I$20+Fluxo!$I$21 -> -11008.10473 | J110: =(((Faturamento!$J$20)*22*12)*0.9635-Fluxo!$J$4-Simulação!W117-Fluxo!$H$7)*0.75+Fluxo!$J$14+Fluxo!$J$15+Fluxo!$J$16-Fluxo!$J$18-Fluxo!$J$20+Fluxo!$J$21 -> 39478.6895 | K110: =(((Faturamento!$K$20)*22*12)*0.9635-Fluxo!$K$4-Simulação!X117-Fluxo!$I$7)*0.75+Fluxo!$K$14+Fluxo!$K$15+Fluxo!$K$16-Fluxo!$K$18-Fluxo!$K$20+Fluxo!$K$21 -> 42073.59006 | L110: =(((Faturamento!$L$20)*22*12)*0.9635-Fluxo!$L$4-Simulação!Y117-Fluxo!$J$7)*0.75+Fluxo!$L$14+Fluxo!$L$15+Fluxo!$L$16-Fluxo!$L$18-Fluxo!$L$20+Fluxo!$L$21 -> 22749.25653 | M110: =NPV(Taxas!$B$17,C110:L110)+B110 -> -35815.25868
A111: 110 | B111: -108118 | C111: 10430.495 | D111: 10889.51975 | E111: =(((Faturamento!$E$20)*22*12)*0.9635-Fluxo!$E$4-Simulação!R118-Fluxo!$E$7)*0.75+Fluxo!$E$14+Fluxo!$E$15+Fluxo!$E$16-Fluxo!$E$18-Fluxo!$E$20+Fluxo!$E$21 -> 26963.37508 | F111: =(((Faturamento!$F$20)*22*12)*0.9635-Fluxo!$F$4-Simulação!S118-Fluxo!$D$7)*0.75+Fluxo!$F$14+Fluxo!$F$15+Fluxo!$F$16-Fluxo!$F$18-Fluxo!$F$20+Fluxo!$F$21 -> 26848.70924 | G111: =(((Faturamento!$G$20)*22*12)*0.9635-Fluxo!$G$4-Simulação!T118-Fluxo!$E$7)*0.75+Fluxo!$G$14+Fluxo!$G$15+Fluxo!$G$16-Fluxo!$G$18-Fluxo!$G$20+Fluxo!$G$21 -> -2250.681127 | H111: =(((Faturamento!$H$20)*22*12)*0.9635-Fluxo!$H$4-Simulação!U118-Fluxo!$F$7)*0.75+Fluxo!$H$14+Fluxo!$H$15+Fluxo!$H$16-Fluxo!$H$18-Fluxo!$H$20+Fluxo!$H$21 -> 10892.47042 | I111: =(((Faturamento!$I$20)*22*12)*0.9635-Fluxo!$I$4-Simulação!V118-Fluxo!$G$7)*0.75+Fluxo!$I$14+Fluxo!$I$15+Fluxo!$I$16-Fluxo!$I$18-Fluxo!$I$20+Fluxo!$I$21 -> 10369.37236 | J111: =(((Faturamento!$J$20)*22*12)*0.9635-Fluxo!$J$4-Simulação!W118-Fluxo!$H$7)*0.75+Fluxo!$J$14+Fluxo!$J$15+Fluxo!$J$16-Fluxo!$J$18-Fluxo!$J$20+Fluxo!$J$21 -> 31139.42423 | K111: =(((Faturamento!$K$20)*22*12)*0.9635-Fluxo!$K$4-Simulação!X118-Fluxo!$I$7)*0.75+Fluxo!$K$14+Fluxo!$K$15+Fluxo!$K$16-Fluxo!$K$18-Fluxo!$K$20+Fluxo!$K$21 -> -18017.4873 | L111: =(((Faturamento!$L$20)*22*12)*0.9635-Fluxo!$L$4-Simulação!Y118-Fluxo!$J$7)*0.75+Fluxo!$L$14+Fluxo!$L$15+Fluxo!$L$16-Fluxo!$L$18-Fluxo!$L$20+Fluxo!$L$21 -> 46020.27689 | M111: =NPV(Taxas!$B$17,C111:L111)+B111 -> 11005.87016
A112: 111 | B112: -108118 | C112: 10430.495 | D112: 10889.51975 | E112: =(((Faturamento!$E$20)*22*12)*0.9635-Fluxo!$E$4-Simulação!R119-Fluxo!$E$7)*0.75+Fluxo!$E$14+Fluxo!$E$15+Fluxo!$E$16-Fluxo!$E$18-Fluxo!$E$20+Fluxo!$E$21 -> 11298.77156 | F112: =(((Faturamento!$F$20)*22*12)*0.9635-Fluxo!$F$4-Simulação!S119-Fluxo!$D$7)*0.75+Fluxo!$F$14+Fluxo!$F$15+Fluxo!$F$16-Fluxo!$F$18-Fluxo!$F$20+Fluxo!$F$21 -> -10697.60081 | G112: =(((Faturamento!$G$20)*22*12)*0.9635-Fluxo!$G$4-Simulação!T119-Fluxo!$E$7)*0.75+Fluxo!$G$14+Fluxo!$G$15+Fluxo!$G$16-Fluxo!$G$18-Fluxo!$G$20+Fluxo!$G$21 -> 23782.04963 | H112: =(((Faturamento!$H$20)*22*12)*0.9635-Fluxo!$H$4-Simulação!U119-Fluxo!$F$7)*0.75+Fluxo!$H$14+Fluxo!$H$15+Fluxo!$H$16-Fluxo!$H$18-Fluxo!$H$20+Fluxo!$H$21 -> 23814.88966 | I112: =(((Faturamento!$I$20)*22*12)*0.9635-Fluxo!$I$4-Simulação!V119-Fluxo!$G$7)*0.75+Fluxo!$I$14+Fluxo!$I$15+Fluxo!$I$16-Fluxo!$I$18-Fluxo!$I$20+Fluxo!$I$21 -> 11939.12946 | J112: =(((Faturamento!$J$20)*22*12)*0.9635-Fluxo!$J$4-Simulação!W119-Fluxo!$H$7)*0.75+Fluxo!$J$14+Fluxo!$J$15+Fluxo!$J$16-Fluxo!$J$18-Fluxo!$J$20+Fluxo!$J$21 -> 26236.92201 | K112: =(((Faturamento!$K$20)*22*12)*0.9635-Fluxo!$K$4-Simulação!X119-Fluxo!$I$7)*0.75+Fluxo!$K$14+Fluxo!$K$15+Fluxo!$K$16-Fluxo!$K$18-Fluxo!$K$20+Fluxo!$K$21 -> 33441.93836 | L112: =(((Faturamento!$L$20)*22*12)*0.9635-Fluxo!$L$4-Simulação!Y119-Fluxo!$J$7)*0.75+Fluxo!$L$14+Fluxo!$L$15+Fluxo!$L$16-Fluxo!$L$18-Fluxo!$L$20+Fluxo!$L$21 -> 48956.7597 | M112: =NPV(Taxas!$B$17,C112:L112)+B112 -> 30567.56374
A113: 112 | B113: -108118 | C113: 10430.495 | D113: 10889.51975 | E113: =(((Faturamento!$E$20)*22*12)*0.9635-Fluxo!$E$4-Simulação!R120-Fluxo!$E$7)*0.75+Fluxo!$E$14+Fluxo!$E$15+Fluxo!$E$16-Fluxo!$E$18-Fluxo!$E$20+Fluxo!$E$21 -> -6698.455085 | F113: =(((Faturamento!$F$20)*22*12)*0.9635-Fluxo!$F$4-Simulação!S120-Fluxo!$D$7)*0.75+Fluxo!$F$14+Fluxo!$F$15+Fluxo!$F$16-Fluxo!$F$18-Fluxo!$F$20+Fluxo!$F$21 -> 2800.530448 | G113: =(((Faturamento!$G$20)*22*12)*0.9635-Fluxo!$G$4-Simulação!T120-Fluxo!$E$7)*0.75+Fluxo!$G$14+Fluxo!$G$15+Fluxo!$G$16-Fluxo!$G$18-Fluxo!$G$20+Fluxo!$G$21 -> 39007.82396 | H113: =(((Faturamento!$H$20)*22*12)*0.9635-Fluxo!$H$4-Simulação!U120-Fluxo!$F$7)*0.75+Fluxo!$H$14+Fluxo!$H$15+Fluxo!$H$16-Fluxo!$H$18-Fluxo!$H$20+Fluxo!$H$21 -> 12485.90702 | I113: =(((Faturamento!$I$20)*22*12)*0.9635-Fluxo!$I$4-Simulação!V120-Fluxo!$G$7)*0.75+Fluxo!$I$14+Fluxo!$I$15+Fluxo!$I$16-Fluxo!$I$18-Fluxo!$I$20+Fluxo!$I$21 -> -311.5621052 | J113: =(((Faturamento!$J$20)*22*12)*0.9635-Fluxo!$J$4-Simulação!W120-Fluxo!$H$7)*0.75+Fluxo!$J$14+Fluxo!$J$15+Fluxo!$J$16-Fluxo!$J$18-Fluxo!$J$20+Fluxo!$J$21 -> -18446.40303 | K113: =(((Faturamento!$K$20)*22*12)*0.9635-Fluxo!$K$4-Simulação!X120-Fluxo!$I$7)*0.75+Fluxo!$K$14+Fluxo!$K$15+Fluxo!$K$16-Fluxo!$K$18-Fluxo!$K$20+Fluxo!$K$21 -> 29500.25169 | L113: =(((Faturamento!$L$20)*22*12)*0.9635-Fluxo!$L$4-Simulação!Y120-Fluxo!$J$7)*0.75+Fluxo!$L$14+Fluxo!$L$15+Fluxo!$L$16-Fluxo!$L$18-Fluxo!$L$20+Fluxo!$L$21 -> 42894.01114 | M113: =NPV(Taxas!$B$17,C113:L113)+B113 -> -17027.24984
A114: 113 | B114: -108118 | C114: 10430.495 | D114: 10889.51975 | E114: =(((Faturamento!$E$20)*22*12)*0.9635-Fluxo!$E$4-Simulação!R121-Fluxo!$E$7)*0.75+Fluxo!$E$14+Fluxo!$E$15+Fluxo!$E$16-Fluxo!$E$18-Fluxo!$E$20+Fluxo!$E$21 -> 35825.81973 | F114: =(((Faturamento!$F$20)*22*12)*0.9635-Fluxo!$F$4-Simulação!S121-Fluxo!$D$7)*0.75+Fluxo!$F$14+Fluxo!$F$15+Fluxo!$F$16-Fluxo!$F$18-Fluxo!$F$20+Fluxo!$F$21 -> 29277.19786 | G114: =(((Faturamento!$G$20)*22*12)*0.9635-Fluxo!$G$4-Simulação!T121-Fluxo!$E$7)*0.75+Fluxo!$G$14+Fluxo!$G$15+Fluxo!$G$16-Fluxo!$G$18-Fluxo!$G$20+Fluxo!$G$21 -> 35908.62508 | H114: =(((Faturamento!$H$20)*22*12)*0.9635-Fluxo!$H$4-Simulação!U121-Fluxo!$F$7)*0.75+Fluxo!$H$14+Fluxo!$H$15+Fluxo!$H$16-Fluxo!$H$18-Fluxo!$H$20+Fluxo!$H$21 -> -5057.480809 | I114: =(((Faturamento!$I$20)*22*12)*0.9635-Fluxo!$I$4-Simulação!V121-Fluxo!$G$7)*0.75+Fluxo!$I$14+Fluxo!$I$15+Fluxo!$I$16-Fluxo!$I$18-Fluxo!$I$20+Fluxo!$I$21 -> -901.7720842 | J114: =(((Faturamento!$J$20)*22*12)*0.9635-Fluxo!$J$4-Simulação!W121-Fluxo!$H$7)*0.75+Fluxo!$J$14+Fluxo!$J$15+Fluxo!$J$16-Fluxo!$J$18-Fluxo!$J$20+Fluxo!$J$21 -> 15244.62043 | K114: =(((Faturamento!$K$20)*22*12)*0.9635-Fluxo!$K$4-Simulação!X121-Fluxo!$I$7)*0.75+Fluxo!$K$14+Fluxo!$K$15+Fluxo!$K$16-Fluxo!$K$18-Fluxo!$K$20+Fluxo!$K$21 -> -20820.477 | L114: =(((Faturamento!$L$20)*22*12)*0.9635-Fluxo!$L$4-Simulação!Y121-Fluxo!$J$7)*0.75+Fluxo!$L$14+Fluxo!$L$15+Fluxo!$L$16-Fluxo!$L$18-Fluxo!$L$20+Fluxo!$L$21 -> 23898.42392 | M114: =NPV(Taxas!$B$17,C114:L114)+B114 -> 3758.828506
A115: 114 | B115: -108118 | C115: 10430.495 | D115: 10889.51975 | E115: =(((Faturamento!$E$20)*22*12)*0.9635-Fluxo!$E$4-Simulação!R122-Fluxo!$E$7)*0.75+Fluxo!$E$14+Fluxo!$E$15+Fluxo!$E$16-Fluxo!$E$18-Fluxo!$E$20+Fluxo!$E$21 -> 29428.89151 | F115: =(((Faturamento!$F$20)*22*12)*0.9635-Fluxo!$F$4-Simulação!S122-Fluxo!$D$7)*0.75+Fluxo!$F$14+Fluxo!$F$15+Fluxo!$F$16-Fluxo!$F$18-Fluxo!$F$20+Fluxo!$F$21 -> 26329.61187 | G115: =(((Faturamento!$G$20)*22*12)*0.9635-Fluxo!$G$4-Simulação!T122-Fluxo!$E$7)*0.75+Fluxo!$G$14+Fluxo!$G$15+Fluxo!$G$16-Fluxo!$G$18-Fluxo!$G$20+Fluxo!$G$21 -> 21172.2885 | H115: =(((Faturamento!$H$20)*22*12)*0.9635-Fluxo!$H$4-Simulação!U122-Fluxo!$F$7)*0.75+Fluxo!$H$14+Fluxo!$H$15+Fluxo!$H$16-Fluxo!$H$18-Fluxo!$H$20+Fluxo!$H$21 -> 2742.994741 | I115: =(((Faturamento!$I$20)*22*12)*0.9635-Fluxo!$I$4-Simulação!V122-Fluxo!$G$7)*0.75+Fluxo!$I$14+Fluxo!$I$15+Fluxo!$I$16-Fluxo!$I$18-Fluxo!$I$20+Fluxo!$I$21 -> 2336.607671 | J115: =(((Faturamento!$J$20)*22*12)*0.9635-Fluxo!$J$4-Simulação!W122-Fluxo!$H$7)*0.75+Fluxo!$J$14+Fluxo!$J$15+Fluxo!$J$16-Fluxo!$J$18-Fluxo!$J$20+Fluxo!$J$21 -> 39516.22819 | K115: =(((Faturamento!$K$20)*22*12)*0.9635-Fluxo!$K$4-Simulação!X122-Fluxo!$I$7)*0.75+Fluxo!$K$14+Fluxo!$K$15+Fluxo!$K$16-Fluxo!$K$18-Fluxo!$K$20+Fluxo!$K$21 -> 9032.261071 | L115: =(((Faturamento!$L$20)*22*12)*0.9635-Fluxo!$L$4-Simulação!Y122-Fluxo!$J$7)*0.75+Fluxo!$L$14+Fluxo!$L$15+Fluxo!$L$16-Fluxo!$L$18-Fluxo!$L$20+Fluxo!$L$21 -> 40420.47939 | M115: =NPV(Taxas!$B$17,C115:L115)+B115 -> 39685.60575
A116: 115 | B116: -108118 | C116: 10430.495 | D116: 10889.51975 | E116: =(((Faturamento!$E$20)*22*12)*0.9635-Fluxo!$E$4-Simulação!R123-Fluxo!$E$7)*0.75+Fluxo!$E$14+Fluxo!$E$15+Fluxo!$E$16-Fluxo!$E$18-Fluxo!$E$20+Fluxo!$E$21 -> 26956.91145 | F116: =(((Faturamento!$F$20)*22*12)*0.9635-Fluxo!$F$4-Simulação!S123-Fluxo!$D$7)*0.75+Fluxo!$F$14+Fluxo!$F$15+Fluxo!$F$16-Fluxo!$F$18-Fluxo!$F$20+Fluxo!$F$21 -> 13390.79293 | G116: =(((Faturamento!$G$20)*22*12)*0.9635-Fluxo!$G$4-Simulação!T123-Fluxo!$E$7)*0.75+Fluxo!$G$14+Fluxo!$G$15+Fluxo!$G$16-Fluxo!$G$18-Fluxo!$G$20+Fluxo!$G$21 -> -18559.28433 | H116: =(((Faturamento!$H$20)*22*12)*0.9635-Fluxo!$H$4-Simulação!U123-Fluxo!$F$7)*0.75+Fluxo!$H$14+Fluxo!$H$15+Fluxo!$H$16-Fluxo!$H$18-Fluxo!$H$20+Fluxo!$H$21 -> 12232.14568 | I116: =(((Faturamento!$I$20)*22*12)*0.9635-Fluxo!$I$4-Simulação!V123-Fluxo!$G$7)*0.75+Fluxo!$I$14+Fluxo!$I$15+Fluxo!$I$16-Fluxo!$I$18-Fluxo!$I$20+Fluxo!$I$21 -> 25507.0257 | J116: =(((Faturamento!$J$20)*22*12)*0.9635-Fluxo!$J$4-Simulação!W123-Fluxo!$H$7)*0.75+Fluxo!$J$14+Fluxo!$J$15+Fluxo!$J$16-Fluxo!$J$18-Fluxo!$J$20+Fluxo!$J$21 -> -7792.055935 | K116: =(((Faturamento!$K$20)*22*12)*0.9635-Fluxo!$K$4-Simulação!X123-Fluxo!$I$7)*0.75+Fluxo!$K$14+Fluxo!$K$15+Fluxo!$K$16-Fluxo!$K$18-Fluxo!$K$20+Fluxo!$K$21 -> 50356.29904 | L116: =(((Faturamento!$L$20)*22*12)*0.9635-Fluxo!$L$4-Simulação!Y123-Fluxo!$J$7)*0.75+Fluxo!$L$14+Fluxo!$L$15+Fluxo!$L$16-Fluxo!$L$18-Fluxo!$L$20+Fluxo!$L$21 -> 64981.79657 | M116: =NPV(Taxas!$B$17,C116:L116)+B116 -> 29374.22878
A117: 116 | B117: -108118 | C117: 10430.495 | D117: 10889.51975 | E117: =(((Faturamento!$E$20)*22*12)*0.9635-Fluxo!$E$4-Simulação!R124-Fluxo!$E$7)*0.75+Fluxo!$E$14+Fluxo!$E$15+Fluxo!$E$16-Fluxo!$E$18-Fluxo!$E$20+Fluxo!$E$21 -> -10164.03933 | F117: =(((Faturamento!$F$20)*22*12)*0.9635-Fluxo!$F$4-Simulação!S124-Fluxo!$D$7)*0.75+Fluxo!$F$14+Fluxo!$F$15+Fluxo!$F$16-Fluxo!$F$18-Fluxo!$F$20+Fluxo!$F$21 -> 22202.14283 | G117: =(((Faturamento!$G$20)*22*12)*0.9635-Fluxo!$G$4-Simulação!T124-Fluxo!$E$7)*0.75+Fluxo!$G$14+Fluxo!$G$15+Fluxo!$G$16-Fluxo!$G$18-Fluxo!$G$20+Fluxo!$G$21 -> -335.1146188 | H117: =(((Faturamento!$H$20)*22*12)*0.9635-Fluxo!$H$4-Simulação!U124-Fluxo!$F$7)*0.75+Fluxo!$H$14+Fluxo!$H$15+Fluxo!$H$16-Fluxo!$H$18-Fluxo!$H$20+Fluxo!$H$21 -> 39763.98392 | I117: =(((Faturamento!$I$20)*22*12)*0.9635-Fluxo!$I$4-Simulação!V124-Fluxo!$G$7)*0.75+Fluxo!$I$14+Fluxo!$I$15+Fluxo!$I$16-Fluxo!$I$18-Fluxo!$I$20+Fluxo!$I$21 -> -12396.30894 | J117: =(((Faturamento!$J$20)*22*12)*0.9635-Fluxo!$J$4-Simulação!W124-Fluxo!$H$7)*0.75+Fluxo!$J$14+Fluxo!$J$15+Fluxo!$J$16-Fluxo!$J$18-Fluxo!$J$20+Fluxo!$J$21 -> 10658.11353 | K117: =(((Faturamento!$K$20)*22*12)*0.9635-Fluxo!$K$4-Simulação!X124-Fluxo!$I$7)*0.75+Fluxo!$K$14+Fluxo!$K$15+Fluxo!$K$16-Fluxo!$K$18-Fluxo!$K$20+Fluxo!$K$21 -> 14397.22032 | L117: =(((Faturamento!$L$20)*22*12)*0.9635-Fluxo!$L$4-Simulação!Y124-Fluxo!$J$7)*0.75+Fluxo!$L$14+Fluxo!$L$15+Fluxo!$L$16-Fluxo!$L$18-Fluxo!$L$20+Fluxo!$L$21 -> 59357.25864 | M117: =NPV(Taxas!$B$17,C117:L117)+B117 -> -2514.815168
A118: 117 | B118: -108118 | C118: 10430.495 | D118: 10889.51975 | E118: =(((Faturamento!$E$20)*22*12)*0.9635-Fluxo!$E$4-Simulação!R125-Fluxo!$E$7)*0.75+Fluxo!$E$14+Fluxo!$E$15+Fluxo!$E$16-Fluxo!$E$18-Fluxo!$E$20+Fluxo!$E$21 -> -10154.11874 | F118: =(((Faturamento!$F$20)*22*12)*0.9635-Fluxo!$F$4-Simulação!S125-Fluxo!$D$7)*0.75+Fluxo!$F$14+Fluxo!$F$15+Fluxo!$F$16-Fluxo!$F$18-Fluxo!$F$20+Fluxo!$F$21 -> 1982.818249 | G118: =(((Faturamento!$G$20)*22*12)*0.9635-Fluxo!$G$4-Simulação!T125-Fluxo!$E$7)*0.75+Fluxo!$G$14+Fluxo!$G$15+Fluxo!$G$16-Fluxo!$G$18-Fluxo!$G$20+Fluxo!$G$21 -> 26367.57516 | H118: =(((Faturamento!$H$20)*22*12)*0.9635-Fluxo!$H$4-Simulação!U125-Fluxo!$F$7)*0.75+Fluxo!$H$14+Fluxo!$H$15+Fluxo!$H$16-Fluxo!$H$18-Fluxo!$H$20+Fluxo!$H$21 -> -15554.21194 | I118: =(((Faturamento!$I$20)*22*12)*0.9635-Fluxo!$I$4-Simulação!V125-Fluxo!$G$7)*0.75+Fluxo!$I$14+Fluxo!$I$15+Fluxo!$I$16-Fluxo!$I$18-Fluxo!$I$20+Fluxo!$I$21 -> 26629.1713 | J118: =(((Faturamento!$J$20)*22*12)*0.9635-Fluxo!$J$4-Simulação!W125-Fluxo!$H$7)*0.75+Fluxo!$J$14+Fluxo!$J$15+Fluxo!$J$16-Fluxo!$J$18-Fluxo!$J$20+Fluxo!$J$21 -> 26083.34079 | K118: =(((Faturamento!$K$20)*22*12)*0.9635-Fluxo!$K$4-Simulação!X125-Fluxo!$I$7)*0.75+Fluxo!$K$14+Fluxo!$K$15+Fluxo!$K$16-Fluxo!$K$18-Fluxo!$K$20+Fluxo!$K$21 -> 10188.77155 | L118: =(((Faturamento!$L$20)*22*12)*0.9635-Fluxo!$L$4-Simulação!Y125-Fluxo!$J$7)*0.75+Fluxo!$L$14+Fluxo!$L$15+Fluxo!$L$16-Fluxo!$L$18-Fluxo!$L$20+Fluxo!$L$21 -> 34997.85641 | M118: =NPV(Taxas!$B$17,C118:L118)+B118 -> -19411.3759
A119: 118 | B119: -108118 | C119: 10430.495 | D119: 10889.51975 | E119: =(((Faturamento!$E$20)*22*12)*0.9635-Fluxo!$E$4-Simulação!R126-Fluxo!$E$7)*0.75+Fluxo!$E$14+Fluxo!$E$15+Fluxo!$E$16-Fluxo!$E$18-Fluxo!$E$20+Fluxo!$E$21 -> 24686.60804 | F119: =(((Faturamento!$F$20)*22*12)*0.9635-Fluxo!$F$4-Simulação!S126-Fluxo!$D$7)*0.75+Fluxo!$F$14+Fluxo!$F$15+Fluxo!$F$16-Fluxo!$F$18-Fluxo!$F$20+Fluxo!$F$21 -> 3902.315218 | G119: =(((Faturamento!$G$20)*22*12)*0.9635-Fluxo!$G$4-Simulação!T126-Fluxo!$E$7)*0.75+Fluxo!$G$14+Fluxo!$G$15+Fluxo!$G$16-Fluxo!$G$18-Fluxo!$G$20+Fluxo!$G$21 -> -18199.08884 | H119: =(((Faturamento!$H$20)*22*12)*0.9635-Fluxo!$H$4-Simulação!U126-Fluxo!$F$7)*0.75+Fluxo!$H$14+Fluxo!$H$15+Fluxo!$H$16-Fluxo!$H$18-Fluxo!$H$20+Fluxo!$H$21 -> -7228.903704 | I119: =(((Faturamento!$I$20)*22*12)*0.9635-Fluxo!$I$4-Simulação!V126-Fluxo!$G$7)*0.75+Fluxo!$I$14+Fluxo!$I$15+Fluxo!$I$16-Fluxo!$I$18-Fluxo!$I$20+Fluxo!$I$21 -> 42109.22658 | J119: =(((Faturamento!$J$20)*22*12)*0.9635-Fluxo!$J$4-Simulação!W126-Fluxo!$H$7)*0.75+Fluxo!$J$14+Fluxo!$J$15+Fluxo!$J$16-Fluxo!$J$18-Fluxo!$J$20+Fluxo!$J$21 -> 39462.16838 | K119: =(((Faturamento!$K$20)*22*12)*0.9635-Fluxo!$K$4-Simulação!X126-Fluxo!$I$7)*0.75+Fluxo!$K$14+Fluxo!$K$15+Fluxo!$K$16-Fluxo!$K$18-Fluxo!$K$20+Fluxo!$K$21 -> -13372.74428 | L119: =(((Faturamento!$L$20)*22*12)*0.9635-Fluxo!$L$4-Simulação!Y126-Fluxo!$J$7)*0.75+Fluxo!$L$14+Fluxo!$L$15+Fluxo!$L$16-Fluxo!$L$18-Fluxo!$L$20+Fluxo!$L$21 -> 49634.13855 | M119: =NPV(Taxas!$B$17,C119:L119)+B119 -> -2342.455221
A120: 119 | B120: -108118 | C120: 10430.495 | D120: 10889.51975 | E120: =(((Faturamento!$E$20)*22*12)*0.9635-Fluxo!$E$4-Simulação!R127-Fluxo!$E$7)*0.75+Fluxo!$E$14+Fluxo!$E$15+Fluxo!$E$16-Fluxo!$E$18-Fluxo!$E$20+Fluxo!$E$21 -> 14389.03339 | F120: =(((Faturamento!$F$20)*22*12)*0.9635-Fluxo!$F$4-Simulação!S127-Fluxo!$D$7)*0.75+Fluxo!$F$14+Fluxo!$F$15+Fluxo!$F$16-Fluxo!$F$18-Fluxo!$F$20+Fluxo!$F$21 -> -16759.99598 | G120: =(((Faturamento!$G$20)*22*12)*0.9635-Fluxo!$G$4-Simulação!T127-Fluxo!$E$7)*0.75+Fluxo!$G$14+Fluxo!$G$15+Fluxo!$G$16-Fluxo!$G$18-Fluxo!$G$20+Fluxo!$G$21 -> 7751.374641 | H120: =(((Faturamento!$H$20)*22*12)*0.9635-Fluxo!$H$4-Simulação!U127-Fluxo!$F$7)*0.75+Fluxo!$H$14+Fluxo!$H$15+Fluxo!$H$16-Fluxo!$H$18-Fluxo!$H$20+Fluxo!$H$21 -> -1359.338953 | I120: =(((Faturamento!$I$20)*22*12)*0.9635-Fluxo!$I$4-Simulação!V127-Fluxo!$G$7)*0.75+Fluxo!$I$14+Fluxo!$I$15+Fluxo!$I$16-Fluxo!$I$18-Fluxo!$I$20+Fluxo!$I$21 -> -6906.029013 | J120: =(((Faturamento!$J$20)*22*12)*0.9635-Fluxo!$J$4-Simulação!W127-Fluxo!$H$7)*0.75+Fluxo!$J$14+Fluxo!$J$15+Fluxo!$J$16-Fluxo!$J$18-Fluxo!$J$20+Fluxo!$J$21 -> 46736.54143 | K120: =(((Faturamento!$K$20)*22*12)*0.9635-Fluxo!$K$4-Simulação!X127-Fluxo!$I$7)*0.75+Fluxo!$K$14+Fluxo!$K$15+Fluxo!$K$16-Fluxo!$K$18-Fluxo!$K$20+Fluxo!$K$21 -> -12019.84389 | L120: =(((Faturamento!$L$20)*22*12)*0.9635-Fluxo!$L$4-Simulação!Y127-Fluxo!$J$7)*0.75+Fluxo!$L$14+Fluxo!$L$15+Fluxo!$L$16-Fluxo!$L$18-Fluxo!$L$20+Fluxo!$L$21 -> 26932.08263 | M120: =NPV(Taxas!$B$17,C120:L120)+B120 -> -47702.55176
A121: 120 | B121: -108118 | C121: 10430.495 | D121: 10889.51975 | E121: =(((Faturamento!$E$20)*22*12)*0.9635-Fluxo!$E$4-Simulação!R128-Fluxo!$E$7)*0.75+Fluxo!$E$14+Fluxo!$E$15+Fluxo!$E$16-Fluxo!$E$18-Fluxo!$E$20+Fluxo!$E$21 -> 27009.57446 | F121: =(((Faturamento!$F$20)*22*12)*0.9635-Fluxo!$F$4-Simulação!S128-Fluxo!$D$7)*0.75+Fluxo!$F$14+Fluxo!$F$15+Fluxo!$F$16-Fluxo!$F$18-Fluxo!$F$20+Fluxo!$F$21 -> 28107.676 | G121: =(((Faturamento!$G$20)*22*12)*0.9635-Fluxo!$G$4-Simulação!T128-Fluxo!$E$7)*0.75+Fluxo!$G$14+Fluxo!$G$15+Fluxo!$G$16-Fluxo!$G$18-Fluxo!$G$20+Fluxo!$G$21 -> 13584.52653 | H121: =(((Faturamento!$H$20)*22*12)*0.9635-Fluxo!$H$4-Simulação!U128-Fluxo!$F$7)*0.75+Fluxo!$H$14+Fluxo!$H$15+Fluxo!$H$16-Fluxo!$H$18-Fluxo!$H$20+Fluxo!$H$21 -> -15813.24153 | I121: =(((Faturamento!$I$20)*22*12)*0.9635-Fluxo!$I$4-Simulação!V128-Fluxo!$G$7)*0.75+Fluxo!$I$14+Fluxo!$I$15+Fluxo!$I$16-Fluxo!$I$18-Fluxo!$I$20+Fluxo!$I$21 -> -10054.99738 | J121: =(((Faturamento!$J$20)*22*12)*0.9635-Fluxo!$J$4-Simulação!W128-Fluxo!$H$7)*0.75+Fluxo!$J$14+Fluxo!$J$15+Fluxo!$J$16-Fluxo!$J$18-Fluxo!$J$20+Fluxo!$J$21 -> -6545.07657 | K121: =(((Faturamento!$K$20)*22*12)*0.9635-Fluxo!$K$4-Simulação!X128-Fluxo!$I$7)*0.75+Fluxo!$K$14+Fluxo!$K$15+Fluxo!$K$16-Fluxo!$K$18-Fluxo!$K$20+Fluxo!$K$21 -> 23555.78927 | L121: =(((Faturamento!$L$20)*22*12)*0.9635-Fluxo!$L$4-Simulação!Y128-Fluxo!$J$7)*0.75+Fluxo!$L$14+Fluxo!$L$15+Fluxo!$L$16-Fluxo!$L$18-Fluxo!$L$20+Fluxo!$L$21 -> 37382.66007 | M121: =NPV(Taxas!$B$17,C121:L121)+B121 -> -14641.74379
A122: 121 | B122: -108118 | C122: 10430.495 | D122: 10889.51975 | E122: =(((Faturamento!$E$20)*22*12)*0.9635-Fluxo!$E$4-Simulação!R129-Fluxo!$E$7)*0.75+Fluxo!$E$14+Fluxo!$E$15+Fluxo!$E$16-Fluxo!$E$18-Fluxo!$E$20+Fluxo!$E$21 -> 36117.07844 | F122: =(((Faturamento!$F$20)*22*12)*0.9635-Fluxo!$F$4-Simulação!S129-Fluxo!$D$7)*0.75+Fluxo!$F$14+Fluxo!$F$15+Fluxo!$F$16-Fluxo!$F$18-Fluxo!$F$20+Fluxo!$F$21 -> 21919.78576 | G122: =(((Faturamento!$G$20)*22*12)*0.9635-Fluxo!$G$4-Simulação!T129-Fluxo!$E$7)*0.75+Fluxo!$G$14+Fluxo!$G$15+Fluxo!$G$16-Fluxo!$G$18-Fluxo!$G$20+Fluxo!$G$21 -> -7478.683844 | H122: =(((Faturamento!$H$20)*22*12)*0.9635-Fluxo!$H$4-Simulação!U129-Fluxo!$F$7)*0.75+Fluxo!$H$14+Fluxo!$H$15+Fluxo!$H$16-Fluxo!$H$18-Fluxo!$H$20+Fluxo!$H$21 -> -12515.16868 | I122: =(((Faturamento!$I$20)*22*12)*0.9635-Fluxo!$I$4-Simulação!V129-Fluxo!$G$7)*0.75+Fluxo!$I$14+Fluxo!$I$15+Fluxo!$I$16-Fluxo!$I$18-Fluxo!$I$20+Fluxo!$I$21 -> -1438.271789 | J122: =(((Faturamento!$J$20)*22*12)*0.9635-Fluxo!$J$4-Simulação!W129-Fluxo!$H$7)*0.75+Fluxo!$J$14+Fluxo!$J$15+Fluxo!$J$16-Fluxo!$J$18-Fluxo!$J$20+Fluxo!$J$21 -> 50139.88079 | K122: =(((Faturamento!$K$20)*22*12)*0.9635-Fluxo!$K$4-Simulação!X129-Fluxo!$I$7)*0.75+Fluxo!$K$14+Fluxo!$K$15+Fluxo!$K$16-Fluxo!$K$18-Fluxo!$K$20+Fluxo!$K$21 -> 27242.14308 | L122: =(((Faturamento!$L$20)*22*12)*0.9635-Fluxo!$L$4-Simulação!Y129-Fluxo!$J$7)*0.75+Fluxo!$L$14+Fluxo!$L$15+Fluxo!$L$16-Fluxo!$L$18-Fluxo!$L$20+Fluxo!$L$21 -> 14992.27923 | M122: =NPV(Taxas!$B$17,C122:L122)+B122 -> 7884.827369
A123: 122 | B123: -108118 | C123: 10430.495 | D123: 10889.51975 | E123: =(((Faturamento!$E$20)*22*12)*0.9635-Fluxo!$E$4-Simulação!R130-Fluxo!$E$7)*0.75+Fluxo!$E$14+Fluxo!$E$15+Fluxo!$E$16-Fluxo!$E$18-Fluxo!$E$20+Fluxo!$E$21 -> 29244.45361 | F123: =(((Faturamento!$F$20)*22*12)*0.9635-Fluxo!$F$4-Simulação!S130-Fluxo!$D$7)*0.75+Fluxo!$F$14+Fluxo!$F$15+Fluxo!$F$16-Fluxo!$F$18-Fluxo!$F$20+Fluxo!$F$21 -> -943.8503982 | G123: =(((Faturamento!$G$20)*22*12)*0.9635-Fluxo!$G$4-Simulação!T130-Fluxo!$E$7)*0.75+Fluxo!$G$14+Fluxo!$G$15+Fluxo!$G$16-Fluxo!$G$18-Fluxo!$G$20+Fluxo!$G$21 -> 3398.756032 | H123: =(((Faturamento!$H$20)*22*12)*0.9635-Fluxo!$H$4-Simulação!U130-Fluxo!$F$7)*0.75+Fluxo!$H$14+Fluxo!$H$15+Fluxo!$H$16-Fluxo!$H$18-Fluxo!$H$20+Fluxo!$H$21 -> 24084.64273 | I123: =(((Faturamento!$I$20)*22*12)*0.9635-Fluxo!$I$4-Simulação!V130-Fluxo!$G$7)*0.75+Fluxo!$I$14+Fluxo!$I$15+Fluxo!$I$16-Fluxo!$I$18-Fluxo!$I$20+Fluxo!$I$21 -> 34500.87358 | J123: =(((Faturamento!$J$20)*22*12)*0.9635-Fluxo!$J$4-Simulação!W130-Fluxo!$H$7)*0.75+Fluxo!$J$14+Fluxo!$J$15+Fluxo!$J$16-Fluxo!$J$18-Fluxo!$J$20+Fluxo!$J$21 -> 41870.008 | K123: =(((Faturamento!$K$20)*22*12)*0.9635-Fluxo!$K$4-Simulação!X130-Fluxo!$I$7)*0.75+Fluxo!$K$14+Fluxo!$K$15+Fluxo!$K$16-Fluxo!$K$18-Fluxo!$K$20+Fluxo!$K$21 -> 41970.7428 | L123: =(((Faturamento!$L$20)*22*12)*0.9635-Fluxo!$L$4-Simulação!Y130-Fluxo!$J$7)*0.75+Fluxo!$L$14+Fluxo!$L$15+Fluxo!$L$16-Fluxo!$L$18-Fluxo!$L$20+Fluxo!$L$21 -> 40762.51877 | M123: =NPV(Taxas!$B$17,C123:L123)+B123 -> 66183.89515
